Workbook

Sheet Home
B1: PLEASE DON’T CRACK THE SOFTWARE | M1: Before the use of this particular format, please read the instruction Carefully. This is just the effort to minimize the work. The Designer are not responsible for any kind of error. Please check at your level to find the accuracy of the format.
B2: Result Compilation Software for Class XI & XII
B4: Designed By:-Dr.Sunil Kumar Vats, PGT Computer Science, JNV Mohindergarh | N4: Formula adopted to Calculate the Final Result:
B5: E-Mail:- sunilvats1981@gmail.com,sunilvats27@yahoo.com | N5: Two Best from UT1, UT2 and UT3 with 20% weightage (10% for each Unit Test)
B6: PLEASE DON’T CRACK THE SOFTWARE | N6: Two Best from UT4, UT5 and UT6/Pre Annual with 20% weightage (10% for each Unit Test)
B7: NAME OF JNV | C7: JAWAHAR NAVODAYA VIDYALAYA, | I7: MOHINDERGARH | N7: Term Test 1 30% weightage
B8: SESSION | C8: 2019-20 | N8: Term Test 2 30% weightage
B9: CLASS & SEC | C9: XII A | N9: Total= 20+20+30+30
B10: REGION | C10: JAIPUR
B11: CLASS TEACHER | C11: DR. SUNIL VATS
B12: NOTE : Click on the underlined text for going to the particular sheet
B13: STUDENTS PROFILE
B14: MARK LIST | K14: HOUSE
B15: ENGLISH | C15: UT 1 | D15: UT 3 | E15: TERM TEST 1 | F15: UT 4 | G15: UT 6/ PRE ANNUAL | H15: TERM TEST 2 | I15: COSOLIDATE (SUBJECT WISE | J15: STUDENT PROFILE | K15: ARAWALI
B16: HINDI | K16: NILGIRI
B17: INFO PRACT | K17: SHIVALIK
B18: MATH | C18: UT 2 | F18: UT 5 | K18: UDAIGIRI
B19: CHEM
B20: PHYSICS
B21: BIO
B22: For Any Help:- 9067892000, E-mail : sunilvats1981@gmail.com
B23: NOTE:- CLICK ON REQUIRED FIELD TO MOVE ON
A27: Note:-
B28: 1. Enter your School Name, Session, Class,Region and Class Teacher Name
B29: 2. CHOOSE SUBJECTS OF STUDENTS FROM "STUDENT PROFILE" SHEET
B30: 3. TO ENTER THE PROFILE OF THE STUDENT CLICK ON STUDENT PROFILE AND FILL THE REQUIRED FILED.
B31: 4. IN STUDENT PROFILE ENTER THE SUBJECT OPTED BY THE STUDENT.
B32: 5. PERCENTAGE OF THE MARKS ARE BASED ON THE NUMBER OF SUBJECT ENTERED BY YOU. SO FOR BETTER RESULT, ENTER THE PROPER DETAIL OF THE SUBJECTS.
B33: 6. BEFORE ENTERING THE MARKS (UT 1,UT 2, TT 1,UT 3, UT 4, UT 4, UT5, PB1 ETC. SET THE M.M. (MAXIMUM MARKS)
B34: 7. FOR THE UPDATED VERSION OF ANY SOFTWARE DESIGNED BY ME, YOU CAN VISIT MY WEBSITE MENTIONED BELOW.
B35: 8. Mark "AB" for Absent
B36: FOR MORE QUERIES or SUGGESTIONS RING OR MAIL ME:
C38: Dr. SUNIL KUMAR VATS
C39: 9416266966, 9067892000
C40: SUNILVATS1981@GMAIL.COM
B41: YOU CAN ALSO DROP A MESSAGE ON MY WEBSITE:
C42: www.sunilvats1981.wix.com/drskvats

Sheet Student Profile
A1: Name of The School | D1: =Home!C7 -> JAWAHAR NAVODAYA VIDYALAYA, | H1: =Home!I7 -> MOHINDERGARH | I1: ← | J1: Subjects offered
A2: Affilation No. | D2: 540005 | E2: Class & Sec | G2: =Home!C9 -> XII A | H2: =Home!C8 -> 2019-20
A3: Complete Address | D3: VILL. KAREERA PO-KOTIA ,DISTT-MOHINDERGARH 123027
A4: CLASS TEACHER | D4: =Home!C11 -> DR. SUNIL VATS | F4: Email ID | G4: jnvkareera2006@gmail.com
A5: SL.NO | B5: AADHAR NO | C5: NAME OF THE STUDENT | D5: Adm. No | E5: CONTACT NO | F5: DOB (dd/mm/yyyy) | G5: Mother Name | H5: Father Name | I5: HOUSE | J5: LANG | K5: SUB 1/ LANG 2 | L5: SUB2 | M5: SUB 3 | N5: SUB 4 | O5: ADD. SUB | P5: No of subjects | Q5: Term I | S5: Term II | U5: TOTAL | W5: %AGE
Q6: Total Attendance | R6: No. of working days | S6: Total Attendance | T6: No. of working days | U6: Total Attendance | V6: No. of working days
A7: 1 | C7: SUNIL KUMAR | J7: ENGLISH | K7: HINDI | L7: Informatic Practices | M7: MATH | N7: BIO | P7: =COUNTIF(J7:O7,">A") -> 5 | U7: =IF(OR(ISNUMBER(Q7),ISNUMBER(S7)),Q7+S7,"") ->  | V7: =IF(OR(ISNUMBER(R7),ISNUMBER(T7)),R7+T7,"") ->  | W7: =IF(ISNUMBER(U7),U7/V7*100,"") -> 
A8: =IF(C8>0,A7+1,"") ->  | H8: f | J8: ENGLISH | K8: HINDI | L8: Informatic Practices | M8: MATH | N8: BIO | P8: =COUNTIF(J8:O8,">A") -> 5 | U8: =IF(OR(ISNUMBER(Q8),ISNUMBER(S8)),Q8+S8,"") ->  | V8: =IF(OR(ISNUMBER(R8),ISNUMBER(T8)),R8+T8,"") ->  | W8: =IF(ISNUMBER(U8),U8/V8*100,"") -> 
A9: =IF(C9>0,A8+1,"") ->  | J9: ENGLISH | K9: HINDI | L9: Informatic Practices | M9: MATH | N9: BIO | P9: 5
J10: ENGLISH | K10: HINDI | L10: Informatic Practices | M10: MATH | N10: BIO | P10: 5
J11: ENGLISH | K11: HINDI | L11: Informatic Practices | M11: MATH | N11: BIO | P11: 5
J12: ENGLISH | K12: HINDI | L12: Informatic Practices | M12: MATH | N12: BIO | P12: 5
J13: ENGLISH | K13: HINDI | L13: Informatic Practices | M13: MATH | N13: BIO | P13: 5
J14: ENGLISH | K14: HINDI | L14: Informatic Practices | M14: MATH | N14: BIO | P14: 5
J15: ENGLISH | K15: HINDI | L15: Informatic Practices | M15: MATH | N15: BIO | P15: 5
J16: ENGLISH | K16: HINDI | L16: Informatic Practices | M16: MATH | N16: BIO | P16: 5
J17: ENGLISH | K17: HINDI | L17: Informatic Practices | M17: MATH | N17: BIO | P17: 5
J18: ENGLISH | K18: HINDI | L18: Informatic Practices | M18: MATH | N18: BIO | P18: 5
J19: ENGLISH | K19: HINDI | L19: Informatic Practices | M19: MATH | N19: BIO | P19: 5
J20: ENGLISH | K20: HINDI | L20: Informatic Practices | M20: MATH | N20: BIO | P20: 5
J21: ENGLISH | K21: HINDI | L21: Informatic Practices | M21: MATH | N21: BIO | P21: 5
J22: ENGLISH | K22: HINDI | L22: Informatic Practices | M22: MATH | N22: BIO | P22: 5
J23: ENGLISH | K23: HINDI | L23: Informatic Practices | M23: MATH | N23: BIO | P23: 5
J24: ENGLISH | K24: HINDI | L24: Informatic Practices | M24: MATH | N24: BIO | P24: 5
J25: ENGLISH | K25: HINDI | L25: Informatic Practices | M25: MATH | N25: BIO | P25: 5
J26: ENGLISH | K26: HINDI | L26: Informatic Practices | M26: MATH | N26: BIO | P26: 5
J27: ENGLISH | K27: HINDI | L27: Informatic Practices | M27: MATH | N27: BIO | P27: 5
J28: ENGLISH | K28: HINDI | L28: Informatic Practices | M28: MATH | N28: BIO | P28: 5
J29: ENGLISH | K29: HINDI | L29: Informatic Practices | M29: MATH | N29: BIO | P29: 5
J30: ENGLISH | K30: HINDI | L30: Informatic Practices | M30: MATH | N30: BIO | P30: 5
J31: ENGLISH | K31: HINDI | L31: Informatic Practices | M31: MATH | N31: BIO | P31: 5
J32: ENGLISH | K32: HINDI | L32: Informatic Practices | M32: MATH | N32: BIO | P32: 5
J33: ENGLISH | K33: HINDI | L33: Informatic Practices | M33: MATH | N33: BIO | P33: 5
J34: ENGLISH | K34: HINDI | L34: Informatic Practices | M34: MATH | N34: BIO | P34: 5
J35: ENGLISH | K35: HINDI | L35: Informatic Practices | M35: MATH | N35: BIO | P35: 5
J36: ENGLISH | K36: HINDI | L36: Informatic Practices | M36: MATH | N36: BIO | P36: 5
J37: ENGLISH | K37: HINDI | L37: Informatic Practices | M37: MATH | N37: BIO | P37: 5
J38: ENGLISH | K38: HINDI | L38: Informatic Practices | M38: MATH | N38: BIO | P38: 5
J39: ENGLISH | K39: HINDI | L39: Informatic Practices | M39: MATH | N39: BIO | P39: 5
J40: ENGLISH | K40: HINDI | L40: Informatic Practices | M40: MATH | N40: BIO | P40: 5
J41: ENGLISH | K41: HINDI | L41: Informatic Practices | M41: MATH | N41: BIO | P41: 5
J42: ENGLISH | K42: HINDI | L42: Informatic Practices | M42: MATH | N42: BIO | P42: 5
J43: ENGLISH | K43: HINDI | L43: Informatic Practices | M43: MATH | N43: BIO | P43: 5
J44: ENGLISH | K44: HINDI | L44: Informatic Practices | M44: MATH | N44: BIO | P44: 5
J45: ENGLISH | K45: HINDI | L45: Informatic Practices | M45: MATH | N45: BIO | P45: 5
J46: ENGLISH | K46: HINDI | L46: Informatic Practices | M46: MATH | N46: BIO | P46: 5
J47: ENGLISH | K47: HINDI | L47: Informatic Practices | M47: MATH | N47: BIO | P47: 5
J48: ENGLISH | K48: HINDI | L48: Informatic Practices | M48: MATH | N48: BIO | P48: 5
J49: ENGLISH | K49: HINDI | L49: Informatic Practices | M49: MATH | N49: BIO | P49: 5
J50: ENGLISH | K50: HINDI | L50: Informatic Practices | M50: MATH | N50: BIO | P50: 5
J51: ENGLISH | K51: HINDI | L51: Informatic Practices | M51: MATH | N51: BIO | P51: 5

Sheet UT1
A1: =Home!C7 -> JAWAHAR NAVODAYA VIDYALAYA, | M1: =Home!I7 -> MOHINDERGARH
A2: Unit Test-1
A3: =Home!C9 -> XII A | G3: =Home!C8 -> 2019-20 | P3: E
A4: ROLL NO. | B4: STUDENT NAME | C4: =Home!B15 -> ENGLISH | F4: =Home!B16 -> HINDI | I4: =Home!B17 -> INFO PRACT | L4: =Home!B18 -> MATH | O4: =Home!B19 -> CHEM | R4: =Home!B20 -> PHYSICS | U4: =Home!B21 -> BIO | X4: MARKS OBT | Y4: %AGE | Z4: Rank
C5: M.M | E5: %age | F5: M.M | H5: %age | I5: M.M | K5: %age | L5: M.M | N5: %age | O5: M.M | Q5: %age | R5: M.M | T5: %age | U5: M.M | W5: %age
C6: Th. | D6: IA/ Prac. | F6: Th. | G6: IA/ Prac. | I6: Th. | J6: IA/ Prac. | L6: Th. | M6: IA/ Prac. | O6: Th. | P6: IA/ Prac. | R6: Th. | S6: IA/ Prac. | U6: Th. | V6: IA/ Prac.
C7: 40 | D7: 20 | E7: 100 | F7: 70 | G7: 30 | H7: 100 | I7: 40 | J7: 20 | K7: 100 | L7: 40 | M7: 20 | N7: 100 | O7: 40 | P7: 20 | Q7: 100 | R7: 40 | S7: 20 | T7: 100 | U7: 40 | V7: 20 | W7: 100
A8: ='Student Profile'!A7 -> 1 | B8: =IF(('Student Profile'!C7)>0,'Student Profile'!C7,"") -> SUNIL KUMAR | C8: 20 | D8: 10 | E8: =IF(OR(ISNUMBER(C8),ISNUMBER(D8)),ROUNDUP(SUM(C8:D8)/SUM($C$7,$D$7)*100,0),IF(C8="AB",C8,"")) -> 50 | F8: 70 | G8: 10 | H8: =IF(OR(ISNUMBER(F8),ISNUMBER(G8)),ROUNDUP(SUM(F8:G8)/SUM($F$7,$G$7)*100,0),IF(F8="AB",F8,"")) -> 80 | I8: 20 | J8: 10 | K8: =IF(OR(ISNUMBER(I8),ISNUMBER(J8)),ROUNDUP(SUM(I8:J8)/SUM($I$7,$J$7)*100,0),IF(I8="AB",I8,"")) -> 50 | L8: 20 | M8: 10 | N8: =IF(OR(ISNUMBER(L8),ISNUMBER(M8)),ROUNDUP(SUM(L8:M8)/SUM($L$7,$M$7)*100,0),IF(L8="AB",L8,"")) -> 50 | O8: 20 | P8: 10 | Q8: =IF(OR(ISNUMBER(O8),ISNUMBER(P8)),ROUNDUP(SUM(O8:P8)/SUM($O$7,$P$7)*100,0),IF(O8="AB",O8,"")) -> 50 | R8: 20 | S8: 10 | T8: =IF(OR(ISNUMBER(R8),ISNUMBER(S8)),ROUNDUP(SUM(R8:S8)/SUM($R$7,$S$7)*100,0),IF(R8="AB",R8,"")) -> 50 | U8: 20 | V8: 10 | W8: =IF(OR(ISNUMBER(U8),ISNUMBER(V8)),ROUNDUP(SUM(U8:V8)/SUM($U$7,$V$7)*100,0),IF(U8="AB",U8,"")) -> 50 | X8: =IF(OR(ISNUMBER(E8),ISNUMBER(G8),ISNUMBER(J8),ISNUMBER(M8),ISNUMBER(P8),ISNUMBER(S8),ISNUMBER(V8)),SUM(E8,G8,J8,M8,P8,S8,V8),"") -> 110 | Y8: =IFERROR(X8/'Student Profile'!P7,"") -> 22 | Z8: =IFERROR(RANK(Y8,Y$8:Y$52,0),"") -> 42
A9: ='Student Profile'!A8 ->  | B9: =IF(('Student Profile'!C8)>0,'Student Profile'!C8,"") ->  | C9: 25 | D9: 15 | E9: =IF(OR(ISNUMBER(C9),ISNUMBER(D9)),ROUNDUP(SUM(C9:D9)/SUM($C$7,$D$7)*100,0),IF(C9="AB",C9,"")) -> 67 | F9: 25 | G9: 15 | H9: =IF(OR(ISNUMBER(F9),ISNUMBER(G9)),ROUNDUP(SUM(F9:G9)/SUM($F$7,$G$7)*100,0),IF(F9="AB",F9,"")) -> 40 | I9: 25 | J9: 15 | K9: =IF(OR(ISNUMBER(I9),ISNUMBER(J9)),ROUNDUP(SUM(I9:J9)/SUM($I$7,$J$7)*100,0),IF(I9="AB",I9,"")) -> 67 | L9: 25 | M9: 15 | N9: =IF(OR(ISNUMBER(L9),ISNUMBER(M9)),ROUNDUP(SUM(L9:M9)/SUM($L$7,$M$7)*100,0),IF(L9="AB",L9,"")) -> 67 | O9: 25 | P9: 15 | Q9: =IF(OR(ISNUMBER(O9),ISNUMBER(P9)),ROUNDUP(SUM(O9:P9)/SUM($O$7,$P$7)*100,0),IF(O9="AB",O9,"")) -> 67 | R9: 25 | S9: 15 | T9: =IF(OR(ISNUMBER(R9),ISNUMBER(S9)),ROUNDUP(SUM(R9:S9)/SUM($R$7,$S$7)*100,0),IF(R9="AB",R9,"")) -> 67 | U9: 25 | V9: 15 | W9: =IF(OR(ISNUMBER(U9),ISNUMBER(V9)),ROUNDUP(SUM(U9:V9)/SUM($U$7,$V$7)*100,0),IF(U9="AB",U9,"")) -> 67 | X9: =IF(OR(ISNUMBER(E9),ISNUMBER(G9),ISNUMBER(J9),ISNUMBER(M9),ISNUMBER(P9),ISNUMBER(S9),ISNUMBER(V9)),SUM(E9,G9,J9,M9,P9,S9,V9),"") -> 157 | Y9: =IFERROR(X9/'Student Profile'!P8,"") -> 31.4 | Z9: =IF(ISNUMBER(Y9),RANK(X9,X$8:X$52,0),"") -> 32
A10: ='Student Profile'!A9 ->  | B10: =IF(('Student Profile'!C9)>0,'Student Profile'!C9,"") ->  | C10: 35 | D10: 20 | E10: 92 | F10: 35 | G10: 20 | H10: 55 | I10: 35 | J10: 20 | K10: 92 | L10: 35 | M10: 20 | N10: 92 | O10: 35 | P10: 20 | Q10: 92 | R10: 35 | S10: 20 | T10: 92 | U10: 35 | V10: 20 | W10: 92 | X10: 212 | Y10: =IFERROR(X10/'Student Profile'!P9,"") -> 42.4 | Z10: 1
A11: ='Student Profile'!A10 ->  | B11: =IF(('Student Profile'!C10)>0,'Student Profile'!C10,"") ->  | C11: 25 | D11: 17 | E11: 70 | F11: 25 | G11: 17 | H11: 42 | I11: 25 | J11: 17 | K11: 70 | L11: 25 | M11: 17 | N11: 70 | O11: 25 | P11: 17 | Q11: 70 | R11: 25 | S11: 17 | T11: 70 | U11: 25 | V11: 17 | W11: 70 | X11: 172 | Y11: =IFERROR(X11/'Student Profile'!P10,"") -> 34.4 | Z11: 15
A12: ='Student Profile'!A11 ->  | B12: =IF(('Student Profile'!C11)>0,'Student Profile'!C11,"") ->  | C12: 34 | D12: 15 | E12: 82 | F12: 34 | G12: 15 | H12: 49 | I12: 34 | J12: 15 | K12: 82 | L12: 34 | M12: 15 | N12: 82 | O12: 34 | P12: 15 | Q12: 82 | R12: 34 | S12: 15 | T12: 82 | U12: 34 | V12: 15 | W12: 82 | X12: 172 | Y12: =IFERROR(X12/'Student Profile'!P11,"") -> 34.4 | Z12: 15
A13: ='Student Profile'!A12 ->  | B13: =IF(('Student Profile'!C12)>0,'Student Profile'!C12,"") ->  | C13: 36 | D13: 15 | E13: 85 | F13: 36 | G13: 15 | H13: 51 | I13: 36 | J13: 15 | K13: 85 | L13: 36 | M13: 15 | N13: 85 | O13: 36 | P13: 15 | Q13: 85 | R13: 36 | S13: 15 | T13: 85 | U13: 36 | V13: 15 | W13: 85 | X13: 175 | Y13: =IFERROR(X13/'Student Profile'!P12,"") -> 35 | Z13: 10
A14: ='Student Profile'!A13 ->  | B14: =IF(('Student Profile'!C13)>0,'Student Profile'!C13,"") ->  | C14: 25 | D14: 15 | E14: 67 | F14: 25 | G14: 15 | H14: 40 | I14: 25 | J14: 15 | K14: 67 | L14: 25 | M14: 15 | N14: 67 | O14: 25 | P14: 15 | Q14: 67 | R14: 25 | S14: 15 | T14: 67 | U14: 25 | V14: 15 | W14: 67 | X14: 157 | Y14: =IFERROR(X14/'Student Profile'!P13,"") -> 31.4 | Z14: 32
A15: ='Student Profile'!A14 ->  | B15: =IF(('Student Profile'!C14)>0,'Student Profile'!C14,"") ->  | C15: 34 | D15: 15 | E15: 82 | F15: 34 | G15: 15 | H15: 49 | I15: 34 | J15: 15 | K15: 82 | L15: 34 | M15: 15 | N15: 82 | O15: 34 | P15: 15 | Q15: 82 | R15: 34 | S15: 15 | T15: 82 | U15: 34 | V15: 15 | W15: 82 | X15: 172 | Y15: =IFERROR(X15/'Student Profile'!P14,"") -> 34.4 | Z15: 15
A16: ='Student Profile'!A15 ->  | B16: =IF(('Student Profile'!C15)>0,'Student Profile'!C15,"") ->  | C16: 28 | D16: 18 | E16: 77 | F16: 28 | G16: 18 | H16: 46 | I16: 28 | J16: 18 | K16: 77 | L16: 28 | M16: 18 | N16: 77 | O16: 28 | P16: 18 | Q16: 77 | R16: 28 | S16: 18 | T16: 77 | U16: 28 | V16: 18 | W16: 77 | X16: 185 | Y16: =IFERROR(X16/'Student Profile'!P15,"") -> 37 | Z16: 5
A17: ='Student Profile'!A16 ->  | B17: =IF(('Student Profile'!C16)>0,'Student Profile'!C16,"") ->  | C17: 29 | D17: 15 | E17: 74 | F17: 29 | G17: 15 | H17: 44 | I17: 29 | J17: 15 | K17: 74 | L17: 29 | M17: 15 | N17: 74 | O17: 29 | P17: 15 | Q17: 74 | R17: 29 | S17: 15 | T17: 74 | U17: 29 | V17: 15 | W17: 74 | X17: 164 | Y17: =IFERROR(X17/'Student Profile'!P16,"") -> 32.8 | Z17: 28
A18: ='Student Profile'!A17 ->  | B18: =IF(('Student Profile'!C17)>0,'Student Profile'!C17,"") ->  | C18: 20 | D18: 10 | E18: 50 | F18: 20 | G18: 10 | H18: 30 | I18: 20 | J18: 10 | K18: 50 | L18: 20 | M18: 10 | N18: 50 | O18: 20 | P18: 10 | Q18: 50 | R18: 20 | S18: 10 | T18: 50 | U18: 20 | V18: 10 | W18: 50 | X18: 110 | Y18: =IFERROR(X18/'Student Profile'!P17,"") -> 22 | Z18: 42
A19: ='Student Profile'!A18 ->  | B19: =IF(('Student Profile'!C18)>0,'Student Profile'!C18,"") ->  | C19: 25 | D19: 15 | E19: 67 | F19: 25 | G19: 15 | H19: 40 | I19: 25 | J19: 15 | K19: 67 | L19: 25 | M19: 15 | N19: 67 | O19: 25 | P19: 15 | Q19: 67 | R19: 25 | S19: 15 | T19: 67 | U19: 25 | V19: 15 | W19: 67 | X19: 157 | Y19: =IFERROR(X19/'Student Profile'!P18,"") -> 31.4 | Z19: 32
A20: ='Student Profile'!A19 ->  | B20: =IF(('Student Profile'!C19)>0,'Student Profile'!C19,"") ->  | C20: 35 | D20: 20 | E20: 92 | F20: 35 | G20: 20 | H20: 55 | I20: 35 | J20: 20 | K20: 92 | L20: 35 | M20: 20 | N20: 92 | O20: 35 | P20: 20 | Q20: 92 | R20: 35 | S20: 20 | T20: 92 | U20: 35 | V20: 20 | W20: 92 | X20: 212 | Y20: =IFERROR(X20/'Student Profile'!P19,"") -> 42.4 | Z20: 1
A21: ='Student Profile'!A20 ->  | B21: =IF(('Student Profile'!C20)>0,'Student Profile'!C20,"") ->  | C21: 25 | D21: 17 | E21: 70 | F21: 25 | G21: 17 | H21: 42 | I21: 25 | J21: 17 | K21: 70 | L21: 25 | M21: 17 | N21: 70 | O21: 25 | P21: 17 | Q21: 70 | R21: 25 | S21: 17 | T21: 70 | U21: 25 | V21: 17 | W21: 70 | X21: 172 | Y21: =IFERROR(X21/'Student Profile'!P20,"") -> 34.4 | Z21: 15
A22: ='Student Profile'!A21 ->  | B22: =IF(('Student Profile'!C21)>0,'Student Profile'!C21,"") ->  | C22: 34 | D22: 15 | E22: 82 | F22: 34 | G22: 15 | H22: 49 | I22: 34 | J22: 15 | K22: 82 | L22: 34 | M22: 15 | N22: 82 | O22: 34 | P22: 15 | Q22: 82 | R22: 34 | S22: 15 | T22: 82 | U22: 34 | V22: 15 | W22: 82 | X22: 172 | Y22: =IFERROR(X22/'Student Profile'!P21,"") -> 34.4 | Z22: 15
A23: ='Student Profile'!A22 ->  | B23: =IF(('Student Profile'!C22)>0,'Student Profile'!C22,"") ->  | C23: 36 | D23: 15 | E23: 85 | F23: 36 | G23: 15 | H23: 51 | I23: 36 | J23: 15 | K23: 85 | L23: 36 | M23: 15 | N23: 85 | O23: 36 | P23: 15 | Q23: 85 | R23: 36 | S23: 15 | T23: 85 | U23: 36 | V23: 15 | W23: 85 | X23: 175 | Y23: =IFERROR(X23/'Student Profile'!P22,"") -> 35 | Z23: 10
A24: ='Student Profile'!A23 ->  | B24: =IF(('Student Profile'!C23)>0,'Student Profile'!C23,"") ->  | C24: 25 | D24: 15 | E24: 67 | F24: 25 | G24: 15 | H24: 40 | I24: 25 | J24: 15 | K24: 67 | L24: 25 | M24: 15 | N24: 67 | O24: 25 | P24: 15 | Q24: 67 | R24: 25 | S24: 15 | T24: 67 | U24: 25 | V24: 15 | W24: 67 | X24: 157 | Y24: =IFERROR(X24/'Student Profile'!P23,"") -> 31.4 | Z24: 32
A25: ='Student Profile'!A24 ->  | B25: =IF(('Student Profile'!C24)>0,'Student Profile'!C24,"") ->  | C25: 34 | D25: 15 | E25: 82 | F25: 34 | G25: 15 | H25: 49 | I25: 34 | J25: 15 | K25: 82 | L25: 34 | M25: 15 | N25: 82 | O25: 34 | P25: 15 | Q25: 82 | R25: 34 | S25: 15 | T25: 82 | U25: 34 | V25: 15 | W25: 82 | X25: 172 | Y25: =IFERROR(X25/'Student Profile'!P24,"") -> 34.4 | Z25: 15
A26: ='Student Profile'!A25 ->  | B26: =IF(('Student Profile'!C25)>0,'Student Profile'!C25,"") ->  | C26: 28 | D26: 18 | E26: 77 | F26: 28 | G26: 18 | H26: 46 | I26: 28 | J26: 18 | K26: 77 | L26: 28 | M26: 18 | N26: 77 | O26: 28 | P26: 18 | Q26: 77 | R26: 28 | S26: 18 | T26: 77 | U26: 28 | V26: 18 | W26: 77 | X26: 185 | Y26: =IFERROR(X26/'Student Profile'!P25,"") -> 37 | Z26: 5
A27: ='Student Profile'!A26 ->  | B27: =IF(('Student Profile'!C26)>0,'Student Profile'!C26,"") ->  | C27: 29 | D27: 15 | E27: 74 | F27: 29 | G27: 15 | H27: 44 | I27: 29 | J27: 15 | K27: 74 | L27: 29 | M27: 15 | N27: 74 | O27: 29 | P27: 15 | Q27: 74 | R27: 29 | S27: 15 | T27: 74 | U27: 29 | V27: 15 | W27: 74 | X27: 164 | Y27: =IFERROR(X27/'Student Profile'!P26,"") -> 32.8 | Z27: 28
A28: ='Student Profile'!A27 ->  | B28: =IF(('Student Profile'!C27)>0,'Student Profile'!C27,"") ->  | C28: 20 | D28: 10 | E28: 50 | F28: 20 | G28: 10 | H28: 30 | I28: 20 | J28: 10 | K28: 50 | L28: 20 | M28: 10 | N28: 50 | O28: 20 | P28: 10 | Q28: 50 | R28: 20 | S28: 10 | T28: 50 | U28: 20 | V28: 10 | W28: 50 | X28: 110 | Y28: =IFERROR(X28/'Student Profile'!P27,"") -> 22 | Z28: 42
A29: ='Student Profile'!A28 ->  | B29: =IF(('Student Profile'!C28)>0,'Student Profile'!C28,"") ->  | C29: 25 | D29: 15 | E29: 67 | F29: 25 | G29: 15 | H29: 40 | I29: 25 | J29: 15 | K29: 67 | L29: 25 | M29: 15 | N29: 67 | O29: 25 | P29: 15 | Q29: 67 | R29: 25 | S29: 15 | T29: 67 | U29: 25 | V29: 15 | W29: 67 | X29: 157 | Y29: =IFERROR(X29/'Student Profile'!P28,"") -> 31.4 | Z29: 32
A30: ='Student Profile'!A29 ->  | B30: =IF(('Student Profile'!C29)>0,'Student Profile'!C29,"") ->  | C30: 35 | D30: 20 | E30: 92 | F30: 35 | G30: 20 | H30: 55 | I30: 35 | J30: 20 | K30: 92 | L30: 35 | M30: 20 | N30: 92 | O30: 35 | P30: 20 | Q30: 92 | R30: 35 | S30: 20 | T30: 92 | U30: 35 | V30: 20 | W30: 92 | X30: 212 | Y30: =IFERROR(X30/'Student Profile'!P29,"") -> 42.4 | Z30: 1
A31: ='Student Profile'!A30 ->  | B31: =IF(('Student Profile'!C30)>0,'Student Profile'!C30,"") ->  | C31: 25 | D31: 17 | E31: 70 | F31: 25 | G31: 17 | H31: 42 | I31: 25 | J31: 17 | K31: 70 | L31: 25 | M31: 17 | N31: 70 | O31: 25 | P31: 17 | Q31: 70 | R31: 25 | S31: 17 | T31: 70 | U31: 25 | V31: 17 | W31: 70 | X31: 172 | Y31: =IFERROR(X31/'Student Profile'!P30,"") -> 34.4 | Z31: 15
A32: ='Student Profile'!A31 ->  | B32: =IF(('Student Profile'!C31)>0,'Student Profile'!C31,"") ->  | C32: 34 | D32: 15 | E32: 82 | F32: 34 | G32: 15 | H32: 49 | I32: 34 | J32: 15 | K32: 82 | L32: 34 | M32: 15 | N32: 82 | O32: 34 | P32: 15 | Q32: 82 | R32: 34 | S32: 15 | T32: 82 | U32: 34 | V32: 15 | W32: 82 | X32: 172 | Y32: =IFERROR(X32/'Student Profile'!P31,"") -> 34.4 | Z32: 15
A33: ='Student Profile'!A32 ->  | B33: =IF(('Student Profile'!C32)>0,'Student Profile'!C32,"") ->  | C33: 36 | D33: 15 | E33: 85 | F33: 36 | G33: 15 | H33: 51 | I33: 36 | J33: 15 | K33: 85 | L33: 36 | M33: 15 | N33: 85 | O33: 36 | P33: 15 | Q33: 85 | R33: 36 | S33: 15 | T33: 85 | U33: 36 | V33: 15 | W33: 85 | X33: 175 | Y33: =IFERROR(X33/'Student Profile'!P32,"") -> 35 | Z33: 10
A34: ='Student Profile'!A33 ->  | B34: =IF(('Student Profile'!C33)>0,'Student Profile'!C33,"") ->  | C34: 25 | D34: 15 | E34: 67 | F34: 25 | G34: 15 | H34: 40 | I34: 25 | J34: 15 | K34: 67 | L34: 25 | M34: 15 | N34: 67 | O34: 25 | P34: 15 | Q34: 67 | R34: 25 | S34: 15 | T34: 67 | U34: 25 | V34: 15 | W34: 67 | X34: 157 | Y34: =IFERROR(X34/'Student Profile'!P33,"") -> 31.4 | Z34: 32
A35: ='Student Profile'!A34 ->  | B35: =IF(('Student Profile'!C34)>0,'Student Profile'!C34,"") ->  | C35: 34 | D35: 15 | E35: 82 | F35: 34 | G35: 15 | H35: 49 | I35: 34 | J35: 15 | K35: 82 | L35: 34 | M35: 15 | N35: 82 | O35: 34 | P35: 15 | Q35: 82 | R35: 34 | S35: 15 | T35: 82 | U35: 34 | V35: 15 | W35: 82 | X35: 172 | Y35: =IFERROR(X35/'Student Profile'!P34,"") -> 34.4 | Z35: 15
A36: ='Student Profile'!A35 ->  | B36: =IF(('Student Profile'!C35)>0,'Student Profile'!C35,"") ->  | C36: 28 | D36: 18 | E36: 77 | F36: 28 | G36: 18 | H36: 46 | I36: 28 | J36: 18 | K36: 77 | L36: 28 | M36: 18 | N36: 77 | O36: 28 | P36: 18 | Q36: 77 | R36: 28 | S36: 18 | T36: 77 | U36: 28 | V36: 18 | W36: 77 | X36: 185 | Y36: =IFERROR(X36/'Student Profile'!P35,"") -> 37 | Z36: 5
A37: ='Student Profile'!A36 ->  | B37: =IF(('Student Profile'!C36)>0,'Student Profile'!C36,"") ->  | C37: 29 | D37: 15 | E37: 74 | F37: 29 | G37: 15 | H37: 44 | I37: 29 | J37: 15 | K37: 74 | L37: 29 | M37: 15 | N37: 74 | O37: 29 | P37: 15 | Q37: 74 | R37: 29 | S37: 15 | T37: 74 | U37: 29 | V37: 15 | W37: 74 | X37: 164 | Y37: =IFERROR(X37/'Student Profile'!P36,"") -> 32.8 | Z37: 28
A38: ='Student Profile'!A37 ->  | B38: =IF(('Student Profile'!C37)>0,'Student Profile'!C37,"") ->  | C38: 20 | D38: 10 | E38: 50 | F38: 20 | G38: 10 | H38: 30 | I38: 20 | J38: 10 | K38: 50 | L38: 20 | M38: 10 | N38: 50 | O38: 20 | P38: 10 | Q38: 50 | R38: 20 | S38: 10 | T38: 50 | U38: 20 | V38: 10 | W38: 50 | X38: 110 | Y38: =IFERROR(X38/'Student Profile'!P37,"") -> 22 | Z38: 42
A39: ='Student Profile'!A38 ->  | B39: =IF(('Student Profile'!C38)>0,'Student Profile'!C38,"") ->  | C39: 25 | D39: 15 | E39: 67 | F39: 25 | G39: 15 | H39: 40 | I39: 25 | J39: 15 | K39: 67 | L39: 25 | M39: 15 | N39: 67 | O39: 25 | P39: 15 | Q39: 67 | R39: 25 | S39: 15 | T39: 67 | U39: 25 | V39: 15 | W39: 67 | X39: 157 | Y39: =IFERROR(X39/'Student Profile'!P38,"") -> 31.4 | Z39: 32
A40: ='Student Profile'!A39 ->  | B40: =IF(('Student Profile'!C39)>0,'Student Profile'!C39,"") ->  | C40: 35 | D40: 20 | E40: 92 | F40: 35 | G40: 20 | H40: 55 | I40: 35 | J40: 20 | K40: 92 | L40: 35 | M40: 20 | N40: 92 | O40: 35 | P40: 20 | Q40: 92 | R40: 35 | S40: 20 | T40: 92 | U40: 35 | V40: 20 | W40: 92 | X40: 212 | Y40: =IFERROR(X40/'Student Profile'!P39,"") -> 42.4 | Z40: 1
A41: ='Student Profile'!A40 ->  | B41: =IF(('Student Profile'!C40)>0,'Student Profile'!C40,"") ->  | C41: 25 | D41: 17 | E41: 70 | F41: 25 | G41: 17 | H41: 42 | I41: 25 | J41: 17 | K41: 70 | L41: 25 | M41: 17 | N41: 70 | O41: 25 | P41: 17 | Q41: 70 | R41: 25 | S41: 17 | T41: 70 | U41: 25 | V41: 17 | W41: 70 | X41: 172 | Y41: =IFERROR(X41/'Student Profile'!P40,"") -> 34.4 | Z41: 15
A42: ='Student Profile'!A41 ->  | B42: =IF(('Student Profile'!C41)>0,'Student Profile'!C41,"") ->  | C42: 34 | D42: 15 | E42: 82 | F42: 34 | G42: 15 | H42: 49 | I42: 34 | J42: 15 | K42: 82 | L42: 34 | M42: 15 | N42: 82 | O42: 34 | P42: 15 | Q42: 82 | R42: 34 | S42: 15 | T42: 82 | U42: 34 | V42: 15 | W42: 82 | X42: 172 | Y42: =IFERROR(X42/'Student Profile'!P41,"") -> 34.4 | Z42: 15
A43: ='Student Profile'!A42 ->  | B43: =IF(('Student Profile'!C42)>0,'Student Profile'!C42,"") ->  | C43: 36 | D43: 15 | E43: 85 | F43: 36 | G43: 15 | H43: 51 | I43: 36 | J43: 15 | K43: 85 | L43: 36 | M43: 15 | N43: 85 | O43: 36 | P43: 15 | Q43: 85 | R43: 36 | S43: 15 | T43: 85 | U43: 36 | V43: 15 | W43: 85 | X43: 175 | Y43: =IFERROR(X43/'Student Profile'!P42,"") -> 35 | Z43: 10
A44: ='Student Profile'!A43 ->  | B44: =IF(('Student Profile'!C43)>0,'Student Profile'!C43,"") ->  | C44: 25 | D44: 15 | E44: 67 | F44: 25 | G44: 15 | H44: 40 | I44: 25 | J44: 15 | K44: 67 | L44: 25 | M44: 15 | N44: 67 | O44: 25 | P44: 15 | Q44: 67 | R44: 25 | S44: 15 | T44: 67 | U44: 25 | V44: 15 | W44: 67 | X44: 157 | Y44: =IFERROR(X44/'Student Profile'!P43,"") -> 31.4 | Z44: 32
A45: ='Student Profile'!A44 ->  | B45: =IF(('Student Profile'!C44)>0,'Student Profile'!C44,"") ->  | C45: 34 | D45: 15 | E45: 82 | F45: 34 | G45: 15 | H45: 49 | I45: 34 | J45: 15 | K45: 82 | L45: 34 | M45: 15 | N45: 82 | O45: 34 | P45: 15 | Q45: 82 | R45: 34 | S45: 15 | T45: 82 | U45: 34 | V45: 15 | W45: 82 | X45: 172 | Y45: =IFERROR(X45/'Student Profile'!P44,"") -> 34.4 | Z45: 15
A46: ='Student Profile'!A45 ->  | B46: =IF(('Student Profile'!C45)>0,'Student Profile'!C45,"") ->  | C46: 28 | D46: 18 | E46: 77 | F46: 28 | G46: 18 | H46: 46 | I46: 28 | J46: 18 | K46: 77 | L46: 28 | M46: 18 | N46: 77 | O46: 28 | P46: 18 | Q46: 77 | R46: 28 | S46: 18 | T46: 77 | U46: 28 | V46: 18 | W46: 77 | X46: 185 | Y46: =IFERROR(X46/'Student Profile'!P45,"") -> 37 | Z46: 5
A47: ='Student Profile'!A46 ->  | B47: =IF(('Student Profile'!C46)>0,'Student Profile'!C46,"") ->  | C47: 29 | D47: 15 | E47: 74 | F47: 29 | G47: 15 | H47: 44 | I47: 29 | J47: 15 | K47: 74 | L47: 29 | M47: 15 | N47: 74 | O47: 29 | P47: 15 | Q47: 74 | R47: 29 | S47: 15 | T47: 74 | U47: 29 | V47: 15 | W47: 74 | X47: 164 | Y47: =IFERROR(X47/'Student Profile'!P46,"") -> 32.8 | Z47: 28
A48: ='Student Profile'!A47 ->  | B48: =IF(('Student Profile'!C47)>0,'Student Profile'!C47,"") ->  | C48: 36 | D48: 15 | E48: 85 | F48: 36 | G48: 15 | H48: 51 | I48: 36 | J48: 15 | K48: 85 | L48: 36 | M48: 15 | N48: 85 | O48: 36 | P48: 15 | Q48: 85 | R48: 36 | S48: 15 | T48: 85 | U48: 36 | V48: 15 | W48: 85 | X48: 175 | Y48: =IFERROR(X48/'Student Profile'!P47,"") -> 35 | Z48: 10
A49: ='Student Profile'!A48 ->  | B49: =IF(('Student Profile'!C48)>0,'Student Profile'!C48,"") ->  | C49: 25 | D49: 15 | E49: 67 | F49: 25 | G49: 15 | H49: 40 | I49: 25 | J49: 15 | K49: 67 | L49: 25 | M49: 15 | N49: 67 | O49: 25 | P49: 15 | Q49: 67 | R49: 25 | S49: 15 | T49: 67 | U49: 25 | V49: 15 | W49: 67 | X49: 157 | Y49: =IFERROR(X49/'Student Profile'!P48,"") -> 31.4 | Z49: 32
A50: ='Student Profile'!A49 ->  | B50: =IF(('Student Profile'!C49)>0,'Student Profile'!C49,"") ->  | C50: 34 | D50: 15 | E50: 82 | F50: 34 | G50: 15 | H50: 49 | I50: 34 | J50: 15 | K50: 82 | L50: 34 | M50: 15 | N50: 82 | O50: 34 | P50: 15 | Q50: 82 | R50: 34 | S50: 15 | T50: 82 | U50: 34 | V50: 15 | W50: 82 | X50: 172 | Y50: =IFERROR(X50/'Student Profile'!P49,"") -> 34.4 | Z50: 15
A51: ='Student Profile'!A50 ->  | B51: =IF(('Student Profile'!C50)>0,'Student Profile'!C50,"") ->  | C51: 28 | D51: 18 | E51: 77 | F51: 28 | G51: 18 | H51: 46 | I51: 28 | J51: 18 | K51: 77 | L51: 28 | M51: 18 | N51: 77 | O51: 28 | P51: 18 | Q51: 77 | R51: 28 | S51: 18 | T51: 77 | U51: 28 | V51: 18 | W51: 77 | X51: 185 | Y51: =IFERROR(X51/'Student Profile'!P50,"") -> 37 | Z51: 5
A52: ='Student Profile'!A51 ->  | B52: =IF(('Student Profile'!C51)>0,'Student Profile'!C51,"") ->  | C52: AB | D52: 12 | E52: 20 | F52: AB | G52: 12 | H52: 12 | I52: AB | J52: 12 | K52: 20 | L52: AB | M52: 12 | N52: 20 | O52: AB | P52: 12 | Q52: 20 | R52: AB | S52: 12 | T52: 20 | U52: AB | V52: 12 | W52: 20 | X52: =IF(OR(ISNUMBER(E52),ISNUMBER(H52),ISNUMBER(K52),ISNUMBER(N52),ISNUMBER(Q52),ISNUMBER(T52),ISNUMBER(W52)),SUM(E52,H52,K52,N52,Q52,T52,Q52),"") -> 132 | Y52: =IFERROR(X52/'Student Profile'!P51,"") -> 26.4 | Z52: 41
A53: Subject Avg. | C53: =IF(AND(ISNUMBER(Z57),Z57>0),SUM(E8:E52)/C60,"") -> 73.66666667 | F53: =IF(AND(ISNUMBER(Z58),Z58>0),SUM(H8:H52)/F60,"") -> 45.15555556 | I53: =IF(AND(ISNUMBER(Z59),Z59>0),SUM(K8:K52)/I60,"") -> 73.66666667 | L53: =IF(AND(ISNUMBER(Z60),Z60>0),SUM(N8:N52)/L60,"") -> 73.66666667 | O53: =IF(AND(ISNUMBER(Z61),Z61>0),SUM(Q8:Q52)/O60,"") -> 73.66666667 | R53: =IF(AND(ISNUMBER(Z62),Z62>0),SUM(T8:T52)/R60,"") -> 73.66666667 | U53: =IF(AND(ISNUMBER(AO58),AO58>0),SUM(W8:W52)/U60,"") ->  | X53: SUBJECTS | Y53: Total Student | Z53: Present
A54: Pass %age | C54: =IF(ISNUMBER(C53),(C61/C60)*100,"0") -> 97.77777778 | F54: =IF(ISNUMBER(F53),F61/F60*100,"0") -> 91.11111111 | I54: =IF(ISNUMBER(I53),I61/I60*100,"0") -> 97.77777778 | L54: =IF(ISNUMBER(L53),L61/L60*100,"0") -> 97.77777778 | O54: =IF(ISNUMBER(O53),O61/O60*100,"0") -> 97.77777778 | R54: =IF(ISNUMBER(R53),R61/R60*100,"0") -> 97.77777778 | U54: =IF(ISNUMBER(U53),U61/U60*100,"0") -> 0
A55: Below 33% | C55: =COUNTIF(E8:E52,"<33") -> 1 | F55: =COUNTIF(H8:H52,"<33") -> 4 | I55: =COUNTIF(K8:K52,"<33") -> 1 | L55: =COUNTIF(N8:N52,"<33") -> 1 | O55: =COUNTIF(Q8:Q52,"<33") -> 1 | R55: =COUNTIF(T8:T52,"<33") -> 1 | U55: =COUNTIF(V8:V52,"<33") -> 45
A56: 33% to 50% | C56: =COUNTIF(E8:E52,">=33")-C57-C58-C59 -> 0 | F56: =COUNTIF(H8:H52,">=33")-F57-F58-F59 -> 31 | I56: =COUNTIF(K8:K52,">=33")-I57-I58-I59 -> 0 | L56: =COUNTIF(N8:N52,">=33")-L57-L58-L59 -> 0 | O56: =COUNTIF(Q8:Q52,">=33")-O57-O58-O59 -> 0 | R56: =COUNTIF(T8:T52,">=33")-R57-R58-R59 -> 0 | U56: =COUNTIF(W8:W52,">=33")-U57-U58-U59 -> 0
A57: 50% to 60% | C57: =COUNTIF(E8:E52,">=50")-C58-C59 -> 4 | F57: =COUNTIF(H8:H52,">=50")-F58-F59 -> 9 | I57: =COUNTIF(K8:K52,">=50")-I58-I59 -> 4 | L57: =COUNTIF(N8:N52,">=50")-L58-L59 -> 4 | O57: =COUNTIF(Q8:Q52,">=50")-O58-O59 -> 4 | R57: =COUNTIF(T8:T52,">=50")-R58-R59 -> 4 | U57: =COUNTIF(W8:W52,">=50")-U58-U59 -> 4 | X57: =Home!B15 -> ENGLISH | Y57: =C62 -> 45 | Z57: =C60 -> 45
A58: 60% to 75% | C58: =COUNTIF(E8:E52,">=60")-C59 -> 17 | F58: =COUNTIF(H8:H52,">=60")-F59 -> 0 | I58: =COUNTIF(K8:K52,">=60")-I59 -> 17 | L58: =COUNTIF(N8:N52,">=60")-L59 -> 17 | O58: =COUNTIF(Q8:Q52,">=60")-O59 -> 17 | R58: =COUNTIF(T8:T52,">=60")-R59 -> 17 | U58: =COUNTIF(W8:W52,">=60")-U59 -> 17 | X58: =Home!B16 -> HINDI | Y58: =F62 -> 45 | Z58: =F60 -> 45
A59: above 75% | C59: =COUNTIF(E8:E52,">=75") -> 23 | F59: =COUNTIF(H8:H52,">=75") -> 1 | I59: =COUNTIF(K8:K52,">=75") -> 23 | L59: =COUNTIF(N8:N52,">=75") -> 23 | O59: =COUNTIF(Q8:Q52,">=75") -> 23 | R59: =COUNTIF(T8:T52,">=75") -> 23 | U59: =COUNTIF(W8:W52,">=75") -> 23 | X59: =Home!B17 -> INFO PRACT | Y59: =I62 -> 45 | Z59: =I60 -> 45
A60: Appeared | C60: =COUNTIF(E8:E52,">=0") -> 45 | F60: =COUNTIF(H8:H52,">=0") -> 45 | I60: =COUNTIF(K8:K52,">=0") -> 45 | L60: =COUNTIF(N8:N52,">=0") -> 45 | O60: =COUNTIF(Q8:Q52,">=0") -> 45 | R60: =COUNTIF(T8:T52,">=0") -> 45 | U60: =COUNTIF(W8:W52,">=0") -> 45 | X60: =Home!B18 -> MATH | Y60: =L62 -> 45 | Z60: =L60 -> 45
A61: Passed | C61: =COUNTIF(E8:E52,">=33") -> 44 | F61: =COUNTIF(H8:H52,">=33") -> 41 | I61: =COUNTIF(K8:K52,">=33") -> 44 | L61: =COUNTIF(N8:N52,">=33") -> 44 | O61: =COUNTIF(Q8:Q52,">=33") -> 44 | R61: =COUNTIF(T8:T52,">=33") -> 44 | U61: =COUNTIF(W8:W52,">=33") -> 44 | X61: =Home!B19 -> CHEM | Y61: =O62 -> 45 | Z61: =O60 -> 45
A62: Total | C62: =C60+C63 -> 45 | F62: =F60+F63 -> 45 | I62: =I60+I63 -> 45 | L62: =L60+L63 -> 45 | O62: =O60+O63 -> 45 | R62: =R60+R63 -> 45 | U62: =U60+U63 -> 45 | X62: =Home!B20 -> PHYSICS | Y62: =R62 -> 45 | Z62: =R60 -> 45
A63: Absent | C63: =COUNTIF(E8:E52,"AB") -> 0 | F63: =COUNTIF(H8:H52,"AB") -> 0 | I63: =COUNTIF(J8:J52,"AB") -> 0 | L63: =COUNTIF(N8:N52,"AB") -> 0 | O63: =COUNTIF(Q8:Q52,"AB") -> 0 | R63: =COUNTIF(T8:T52,"AB") -> 0 | U63: =COUNTIF(W8:W52,"AB") -> 0 | X63: =Home!B21 -> BIO | Y63: =U62 -> 45 | Z63: =U60 -> 45

Sheet UT 2
A1: =Home!C7 -> JAWAHAR NAVODAYA VIDYALAYA, | M1: =Home!I7 -> MOHINDERGARH
A2: Unit Test-2
A3: =Home!C9 -> XII A | G3: =Home!C8 -> 2019-20 | P3: E
A4: ROLL NO. | B4: STUDENT NAME | C4: =Home!B15 -> ENGLISH | F4: =Home!B16 -> HINDI | I4: =Home!B17 -> INFO PRACT | L4: =Home!B18 -> MATH | O4: =Home!B19 -> CHEM | R4: =Home!B20 -> PHYSICS | U4: =Home!B21 -> BIO | X4: MARKS OBT | Y4: %AGE | Z4: Rank
C5: M.M | E5: %age | F5: M.M | H5: %age | I5: M.M | K5: %age | L5: M.M | N5: %age | O5: M.M | Q5: %age | R5: M.M | T5: %age | U5: M.M | W5: %age
C6: Th. | D6: IA/ Prac. | F6: Th. | G6: IA/ Prac. | I6: Th. | J6: IA/ Prac. | L6: Th. | M6: IA/ Prac. | O6: Th. | P6: IA/ Prac. | R6: Th. | S6: IA/ Prac. | U6: Th. | V6: IA/ Prac.
C7: 40 | D7: 20 | E7: 100 | F7: 40 | G7: 20 | H7: 100 | I7: 40 | J7: 20 | K7: 100 | L7: 40 | M7: 20 | N7: 100 | O7: 40 | P7: 20 | Q7: 100 | R7: 40 | S7: 20 | T7: 100 | U7: 40 | V7: 20 | W7: 100
A8: ='Student Profile'!A7 -> 1 | B8: =IF(('Student Profile'!C7)>0,'Student Profile'!C7,"") -> SUNIL KUMAR | C8: 20 | D8: 10 | E8: =IF(OR(ISNUMBER(C8),ISNUMBER(D8)),ROUNDUP(SUM(C8:D8)/SUM($C$7,$D$7)*100,0),IF(C8="AB",C8,"")) -> 50 | F8: 20 | G8: 10 | H8: =IF(OR(ISNUMBER(F8),ISNUMBER(G8)),ROUNDUP(SUM(F8:G8)/SUM($F$7,$G$7)*100,0),IF(F8="AB",F8,"")) -> 50 | I8: 20 | J8: 10 | K8: =IF(OR(ISNUMBER(I8),ISNUMBER(J8)),ROUNDUP(SUM(I8:J8)/SUM($I$7,$J$7)*100,0),IF(I8="AB",I8,"")) -> 50 | L8: 20 | M8: 10 | N8: =IF(OR(ISNUMBER(L8),ISNUMBER(M8)),ROUNDUP(SUM(L8:M8)/SUM($L$7,$M$7)*100,0),IF(L8="AB",L8,"")) -> 50 | O8: 20 | P8: 10 | Q8: =IF(OR(ISNUMBER(O8),ISNUMBER(P8)),ROUNDUP(SUM(O8:P8)/SUM($O$7,$P$7)*100,0),IF(O8="AB",O8,"")) -> 50 | R8: 20 | S8: 10 | T8: =IF(OR(ISNUMBER(R8),ISNUMBER(S8)),ROUNDUP(SUM(R8:S8)/SUM($R$7,$S$7)*100,0),IF(R8="AB",R8,"")) -> 50 | U8: 20 | V8: 10 | W8: =IF(OR(ISNUMBER(U8),ISNUMBER(V8)),ROUNDUP(SUM(U8:V8)/SUM($U$7,$V$7)*100,0),IF(U8="AB",U8,"")) -> 50 | X8: =IF(OR(ISNUMBER(E8),ISNUMBER(G8),ISNUMBER(J8),ISNUMBER(M8),ISNUMBER(P8),ISNUMBER(S8),ISNUMBER(V8)),SUM(E8,G8,J8,M8,P8,S8,V8),"") -> 110 | Y8: =IFERROR(X8/'Student Profile'!P7,"") -> 22 | Z8: =IFERROR(RANK(Y8,Y$8:Y$52,0),"") -> 42
A9: ='Student Profile'!A8 ->  | B9: =IF(('Student Profile'!C8)>0,'Student Profile'!C8,"") ->  | C9: 25 | D9: 15 | E9: =IF(OR(ISNUMBER(C9),ISNUMBER(D9)),ROUNDUP(SUM(C9:D9)/SUM($C$7,$D$7)*100,0),IF(C9="AB",C9,"")) -> 67 | F9: 25 | G9: 15 | H9: =IF(OR(ISNUMBER(F9),ISNUMBER(G9)),ROUNDUP(SUM(F9:G9)/SUM($F$7,$G$7)*100,0),IF(F9="AB",F9,"")) -> 67 | I9: 25 | J9: 15 | K9: =IF(OR(ISNUMBER(I9),ISNUMBER(J9)),ROUNDUP(SUM(I9:J9)/SUM($I$7,$J$7)*100,0),IF(I9="AB",I9,"")) -> 67 | L9: 25 | M9: 15 | N9: =IF(OR(ISNUMBER(L9),ISNUMBER(M9)),ROUNDUP(SUM(L9:M9)/SUM($L$7,$M$7)*100,0),IF(L9="AB",L9,"")) -> 67 | O9: 25 | P9: 15 | Q9: =IF(OR(ISNUMBER(O9),ISNUMBER(P9)),ROUNDUP(SUM(O9:P9)/SUM($O$7,$P$7)*100,0),IF(O9="AB",O9,"")) -> 67 | R9: 25 | S9: 15 | T9: =IF(OR(ISNUMBER(R9),ISNUMBER(S9)),ROUNDUP(SUM(R9:S9)/SUM($R$7,$S$7)*100,0),IF(R9="AB",R9,"")) -> 67 | U9: 25 | V9: 15 | W9: =IF(OR(ISNUMBER(U9),ISNUMBER(V9)),ROUNDUP(SUM(U9:V9)/SUM($U$7,$V$7)*100,0),IF(U9="AB",U9,"")) -> 67 | X9: =IF(OR(ISNUMBER(E9),ISNUMBER(G9),ISNUMBER(J9),ISNUMBER(M9),ISNUMBER(P9),ISNUMBER(S9),ISNUMBER(V9)),SUM(E9,G9,J9,M9,P9,S9,V9),"") -> 157 | Y9: =IFERROR(X9/'Student Profile'!P8,"") -> 31.4 | Z9: =IF(ISNUMBER(Y9),RANK(X9,X$8:X$52,0),"") -> 32
A10: ='Student Profile'!A9 ->  | B10: =IF(('Student Profile'!C9)>0,'Student Profile'!C9,"") ->  | C10: 35 | D10: 20 | E10: 92 | F10: 35 | G10: 20 | H10: 92 | I10: 35 | J10: 20 | K10: 92 | L10: 35 | M10: 20 | N10: 92 | O10: 35 | P10: 20 | Q10: 92 | R10: 35 | S10: 20 | T10: 92 | U10: 35 | V10: 20 | W10: 92 | X10: 212 | Y10: =IFERROR(X10/'Student Profile'!P9,"") -> 42.4 | Z10: 1
A11: ='Student Profile'!A10 ->  | B11: =IF(('Student Profile'!C10)>0,'Student Profile'!C10,"") ->  | C11: 25 | D11: 17 | E11: 70 | F11: 25 | G11: 17 | H11: 70 | I11: 25 | J11: 17 | K11: 70 | L11: 25 | M11: 17 | N11: 70 | O11: 25 | P11: 17 | Q11: 70 | R11: 25 | S11: 17 | T11: 70 | U11: 25 | V11: 17 | W11: 70 | X11: 172 | Y11: =IFERROR(X11/'Student Profile'!P10,"") -> 34.4 | Z11: 15
A12: ='Student Profile'!A11 ->  | B12: =IF(('Student Profile'!C11)>0,'Student Profile'!C11,"") ->  | C12: 34 | D12: 15 | E12: 82 | F12: 34 | G12: 15 | H12: 82 | I12: 34 | J12: 15 | K12: 82 | L12: 34 | M12: 15 | N12: 82 | O12: 34 | P12: 15 | Q12: 82 | R12: 34 | S12: 15 | T12: 82 | U12: 34 | V12: 15 | W12: 82 | X12: 172 | Y12: =IFERROR(X12/'Student Profile'!P11,"") -> 34.4 | Z12: 15
A13: ='Student Profile'!A12 ->  | B13: =IF(('Student Profile'!C12)>0,'Student Profile'!C12,"") ->  | C13: 36 | D13: 15 | E13: 85 | F13: 36 | G13: 15 | H13: 85 | I13: 36 | J13: 15 | K13: 85 | L13: 36 | M13: 15 | N13: 85 | O13: 36 | P13: 15 | Q13: 85 | R13: 36 | S13: 15 | T13: 85 | U13: 36 | V13: 15 | W13: 85 | X13: 175 | Y13: =IFERROR(X13/'Student Profile'!P12,"") -> 35 | Z13: 10
A14: ='Student Profile'!A13 ->  | B14: =IF(('Student Profile'!C13)>0,'Student Profile'!C13,"") ->  | C14: 25 | D14: 15 | E14: 67 | F14: 25 | G14: 15 | H14: 67 | I14: 25 | J14: 15 | K14: 67 | L14: 25 | M14: 15 | N14: 67 | O14: 25 | P14: 15 | Q14: 67 | R14: 25 | S14: 15 | T14: 67 | U14: 25 | V14: 15 | W14: 67 | X14: 157 | Y14: =IFERROR(X14/'Student Profile'!P13,"") -> 31.4 | Z14: 32
A15: ='Student Profile'!A14 ->  | B15: =IF(('Student Profile'!C14)>0,'Student Profile'!C14,"") ->  | C15: 34 | D15: 15 | E15: 82 | F15: 34 | G15: 15 | H15: 82 | I15: 34 | J15: 15 | K15: 82 | L15: 34 | M15: 15 | N15: 82 | O15: 34 | P15: 15 | Q15: 82 | R15: 34 | S15: 15 | T15: 82 | U15: 34 | V15: 15 | W15: 82 | X15: 172 | Y15: =IFERROR(X15/'Student Profile'!P14,"") -> 34.4 | Z15: 15
A16: ='Student Profile'!A15 ->  | B16: =IF(('Student Profile'!C15)>0,'Student Profile'!C15,"") ->  | C16: 28 | D16: 18 | E16: 77 | F16: 28 | G16: 18 | H16: 77 | I16: 28 | J16: 18 | K16: 77 | L16: 28 | M16: 18 | N16: 77 | O16: 28 | P16: 18 | Q16: 77 | R16: 28 | S16: 18 | T16: 77 | U16: 28 | V16: 18 | W16: 77 | X16: 185 | Y16: =IFERROR(X16/'Student Profile'!P15,"") -> 37 | Z16: 5
A17: ='Student Profile'!A16 ->  | B17: =IF(('Student Profile'!C16)>0,'Student Profile'!C16,"") ->  | C17: 29 | D17: 15 | E17: 74 | F17: 29 | G17: 15 | H17: 74 | I17: 29 | J17: 15 | K17: 74 | L17: 29 | M17: 15 | N17: 74 | O17: 29 | P17: 15 | Q17: 74 | R17: 29 | S17: 15 | T17: 74 | U17: 29 | V17: 15 | W17: 74 | X17: 164 | Y17: =IFERROR(X17/'Student Profile'!P16,"") -> 32.8 | Z17: 28
A18: ='Student Profile'!A17 ->  | B18: =IF(('Student Profile'!C17)>0,'Student Profile'!C17,"") ->  | C18: 20 | D18: 10 | E18: 50 | F18: 20 | G18: 10 | H18: 50 | I18: 20 | J18: 10 | K18: 50 | L18: 20 | M18: 10 | N18: 50 | O18: 20 | P18: 10 | Q18: 50 | R18: 20 | S18: 10 | T18: 50 | U18: 20 | V18: 10 | W18: 50 | X18: 110 | Y18: =IFERROR(X18/'Student Profile'!P17,"") -> 22 | Z18: 42
A19: ='Student Profile'!A18 ->  | B19: =IF(('Student Profile'!C18)>0,'Student Profile'!C18,"") ->  | C19: 25 | D19: 15 | E19: 67 | F19: 25 | G19: 15 | H19: 67 | I19: 25 | J19: 15 | K19: 67 | L19: 25 | M19: 15 | N19: 67 | O19: 25 | P19: 15 | Q19: 67 | R19: 25 | S19: 15 | T19: 67 | U19: 25 | V19: 15 | W19: 67 | X19: 157 | Y19: =IFERROR(X19/'Student Profile'!P18,"") -> 31.4 | Z19: 32
A20: ='Student Profile'!A19 ->  | B20: =IF(('Student Profile'!C19)>0,'Student Profile'!C19,"") ->  | C20: 35 | D20: 20 | E20: 92 | F20: 35 | G20: 20 | H20: 92 | I20: 35 | J20: 20 | K20: 92 | L20: 35 | M20: 20 | N20: 92 | O20: 35 | P20: 20 | Q20: 92 | R20: 35 | S20: 20 | T20: 92 | U20: 35 | V20: 20 | W20: 92 | X20: 212 | Y20: =IFERROR(X20/'Student Profile'!P19,"") -> 42.4 | Z20: 1
A21: ='Student Profile'!A20 ->  | B21: =IF(('Student Profile'!C20)>0,'Student Profile'!C20,"") ->  | C21: 25 | D21: 17 | E21: 70 | F21: 25 | G21: 17 | H21: 70 | I21: 25 | J21: 17 | K21: 70 | L21: 25 | M21: 17 | N21: 70 | O21: 25 | P21: 17 | Q21: 70 | R21: 25 | S21: 17 | T21: 70 | U21: 25 | V21: 17 | W21: 70 | X21: 172 | Y21: =IFERROR(X21/'Student Profile'!P20,"") -> 34.4 | Z21: 15
A22: ='Student Profile'!A21 ->  | B22: =IF(('Student Profile'!C21)>0,'Student Profile'!C21,"") ->  | C22: 34 | D22: 15 | E22: 82 | F22: 34 | G22: 15 | H22: 82 | I22: 34 | J22: 15 | K22: 82 | L22: 34 | M22: 15 | N22: 82 | O22: 34 | P22: 15 | Q22: 82 | R22: 34 | S22: 15 | T22: 82 | U22: 34 | V22: 15 | W22: 82 | X22: 172 | Y22: =IFERROR(X22/'Student Profile'!P21,"") -> 34.4 | Z22: 15
A23: ='Student Profile'!A22 ->  | B23: =IF(('Student Profile'!C22)>0,'Student Profile'!C22,"") ->  | C23: 36 | D23: 15 | E23: 85 | F23: 36 | G23: 15 | H23: 85 | I23: 36 | J23: 15 | K23: 85 | L23: 36 | M23: 15 | N23: 85 | O23: 36 | P23: 15 | Q23: 85 | R23: 36 | S23: 15 | T23: 85 | U23: 36 | V23: 15 | W23: 85 | X23: 175 | Y23: =IFERROR(X23/'Student Profile'!P22,"") -> 35 | Z23: 10
A24: ='Student Profile'!A23 ->  | B24: =IF(('Student Profile'!C23)>0,'Student Profile'!C23,"") ->  | C24: 25 | D24: 15 | E24: 67 | F24: 25 | G24: 15 | H24: 67 | I24: 25 | J24: 15 | K24: 67 | L24: 25 | M24: 15 | N24: 67 | O24: 25 | P24: 15 | Q24: 67 | R24: 25 | S24: 15 | T24: 67 | U24: 25 | V24: 15 | W24: 67 | X24: 157 | Y24: =IFERROR(X24/'Student Profile'!P23,"") -> 31.4 | Z24: 32
A25: ='Student Profile'!A24 ->  | B25: =IF(('Student Profile'!C24)>0,'Student Profile'!C24,"") ->  | C25: 34 | D25: 15 | E25: 82 | F25: 34 | G25: 15 | H25: 82 | I25: 34 | J25: 15 | K25: 82 | L25: 34 | M25: 15 | N25: 82 | O25: 34 | P25: 15 | Q25: 82 | R25: 34 | S25: 15 | T25: 82 | U25: 34 | V25: 15 | W25: 82 | X25: 172 | Y25: =IFERROR(X25/'Student Profile'!P24,"") -> 34.4 | Z25: 15
A26: ='Student Profile'!A25 ->  | B26: =IF(('Student Profile'!C25)>0,'Student Profile'!C25,"") ->  | C26: 28 | D26: 18 | E26: 77 | F26: 28 | G26: 18 | H26: 77 | I26: 28 | J26: 18 | K26: 77 | L26: 28 | M26: 18 | N26: 77 | O26: 28 | P26: 18 | Q26: 77 | R26: 28 | S26: 18 | T26: 77 | U26: 28 | V26: 18 | W26: 77 | X26: 185 | Y26: =IFERROR(X26/'Student Profile'!P25,"") -> 37 | Z26: 5
A27: ='Student Profile'!A26 ->  | B27: =IF(('Student Profile'!C26)>0,'Student Profile'!C26,"") ->  | C27: 29 | D27: 15 | E27: 74 | F27: 29 | G27: 15 | H27: 74 | I27: 29 | J27: 15 | K27: 74 | L27: 29 | M27: 15 | N27: 74 | O27: 29 | P27: 15 | Q27: 74 | R27: 29 | S27: 15 | T27: 74 | U27: 29 | V27: 15 | W27: 74 | X27: 164 | Y27: =IFERROR(X27/'Student Profile'!P26,"") -> 32.8 | Z27: 28
A28: ='Student Profile'!A27 ->  | B28: =IF(('Student Profile'!C27)>0,'Student Profile'!C27,"") ->  | C28: 20 | D28: 10 | E28: 50 | F28: 20 | G28: 10 | H28: 50 | I28: 20 | J28: 10 | K28: 50 | L28: 20 | M28: 10 | N28: 50 | O28: 20 | P28: 10 | Q28: 50 | R28: 20 | S28: 10 | T28: 50 | U28: 20 | V28: 10 | W28: 50 | X28: 110 | Y28: =IFERROR(X28/'Student Profile'!P27,"") -> 22 | Z28: 42
A29: ='Student Profile'!A28 ->  | B29: =IF(('Student Profile'!C28)>0,'Student Profile'!C28,"") ->  | C29: 25 | D29: 15 | E29: 67 | F29: 25 | G29: 15 | H29: 67 | I29: 25 | J29: 15 | K29: 67 | L29: 25 | M29: 15 | N29: 67 | O29: 25 | P29: 15 | Q29: 67 | R29: 25 | S29: 15 | T29: 67 | U29: 25 | V29: 15 | W29: 67 | X29: 157 | Y29: =IFERROR(X29/'Student Profile'!P28,"") -> 31.4 | Z29: 32
A30: ='Student Profile'!A29 ->  | B30: =IF(('Student Profile'!C29)>0,'Student Profile'!C29,"") ->  | C30: 35 | D30: 20 | E30: 92 | F30: 35 | G30: 20 | H30: 92 | I30: 35 | J30: 20 | K30: 92 | L30: 35 | M30: 20 | N30: 92 | O30: 35 | P30: 20 | Q30: 92 | R30: 35 | S30: 20 | T30: 92 | U30: 35 | V30: 20 | W30: 92 | X30: 212 | Y30: =IFERROR(X30/'Student Profile'!P29,"") -> 42.4 | Z30: 1
A31: ='Student Profile'!A30 ->  | B31: =IF(('Student Profile'!C30)>0,'Student Profile'!C30,"") ->  | C31: 25 | D31: 17 | E31: 70 | F31: 25 | G31: 17 | H31: 70 | I31: 25 | J31: 17 | K31: 70 | L31: 25 | M31: 17 | N31: 70 | O31: 25 | P31: 17 | Q31: 70 | R31: 25 | S31: 17 | T31: 70 | U31: 25 | V31: 17 | W31: 70 | X31: 172 | Y31: =IFERROR(X31/'Student Profile'!P30,"") -> 34.4 | Z31: 15
A32: ='Student Profile'!A31 ->  | B32: =IF(('Student Profile'!C31)>0,'Student Profile'!C31,"") ->  | C32: 34 | D32: 15 | E32: 82 | F32: 34 | G32: 15 | H32: 82 | I32: 34 | J32: 15 | K32: 82 | L32: 34 | M32: 15 | N32: 82 | O32: 34 | P32: 15 | Q32: 82 | R32: 34 | S32: 15 | T32: 82 | U32: 34 | V32: 15 | W32: 82 | X32: 172 | Y32: =IFERROR(X32/'Student Profile'!P31,"") -> 34.4 | Z32: 15
A33: ='Student Profile'!A32 ->  | B33: =IF(('Student Profile'!C32)>0,'Student Profile'!C32,"") ->  | C33: 36 | D33: 15 | E33: 85 | F33: 36 | G33: 15 | H33: 85 | I33: 36 | J33: 15 | K33: 85 | L33: 36 | M33: 15 | N33: 85 | O33: 36 | P33: 15 | Q33: 85 | R33: 36 | S33: 15 | T33: 85 | U33: 36 | V33: 15 | W33: 85 | X33: 175 | Y33: =IFERROR(X33/'Student Profile'!P32,"") -> 35 | Z33: 10
A34: ='Student Profile'!A33 ->  | B34: =IF(('Student Profile'!C33)>0,'Student Profile'!C33,"") ->  | C34: 25 | D34: 15 | E34: 67 | F34: 25 | G34: 15 | H34: 67 | I34: 25 | J34: 15 | K34: 67 | L34: 25 | M34: 15 | N34: 67 | O34: 25 | P34: 15 | Q34: 67 | R34: 25 | S34: 15 | T34: 67 | U34: 25 | V34: 15 | W34: 67 | X34: 157 | Y34: =IFERROR(X34/'Student Profile'!P33,"") -> 31.4 | Z34: 32
A35: ='Student Profile'!A34 ->  | B35: =IF(('Student Profile'!C34)>0,'Student Profile'!C34,"") ->  | C35: 34 | D35: 15 | E35: 82 | F35: 34 | G35: 15 | H35: 82 | I35: 34 | J35: 15 | K35: 82 | L35: 34 | M35: 15 | N35: 82 | O35: 34 | P35: 15 | Q35: 82 | R35: 34 | S35: 15 | T35: 82 | U35: 34 | V35: 15 | W35: 82 | X35: 172 | Y35: =IFERROR(X35/'Student Profile'!P34,"") -> 34.4 | Z35: 15
A36: ='Student Profile'!A35 ->  | B36: =IF(('Student Profile'!C35)>0,'Student Profile'!C35,"") ->  | C36: 28 | D36: 18 | E36: 77 | F36: 28 | G36: 18 | H36: 77 | I36: 28 | J36: 18 | K36: 77 | L36: 28 | M36: 18 | N36: 77 | O36: 28 | P36: 18 | Q36: 77 | R36: 28 | S36: 18 | T36: 77 | U36: 28 | V36: 18 | W36: 77 | X36: 185 | Y36: =IFERROR(X36/'Student Profile'!P35,"") -> 37 | Z36: 5
A37: ='Student Profile'!A36 ->  | B37: =IF(('Student Profile'!C36)>0,'Student Profile'!C36,"") ->  | C37: 29 | D37: 15 | E37: 74 | F37: 29 | G37: 15 | H37: 74 | I37: 29 | J37: 15 | K37: 74 | L37: 29 | M37: 15 | N37: 74 | O37: 29 | P37: 15 | Q37: 74 | R37: 29 | S37: 15 | T37: 74 | U37: 29 | V37: 15 | W37: 74 | X37: 164 | Y37: =IFERROR(X37/'Student Profile'!P36,"") -> 32.8 | Z37: 28
A38: ='Student Profile'!A37 ->  | B38: =IF(('Student Profile'!C37)>0,'Student Profile'!C37,"") ->  | C38: 20 | D38: 10 | E38: 50 | F38: 20 | G38: 10 | H38: 50 | I38: 20 | J38: 10 | K38: 50 | L38: 20 | M38: 10 | N38: 50 | O38: 20 | P38: 10 | Q38: 50 | R38: 20 | S38: 10 | T38: 50 | U38: 20 | V38: 10 | W38: 50 | X38: 110 | Y38: =IFERROR(X38/'Student Profile'!P37,"") -> 22 | Z38: 42
A39: ='Student Profile'!A38 ->  | B39: =IF(('Student Profile'!C38)>0,'Student Profile'!C38,"") ->  | C39: 25 | D39: 15 | E39: 67 | F39: 25 | G39: 15 | H39: 67 | I39: 25 | J39: 15 | K39: 67 | L39: 25 | M39: 15 | N39: 67 | O39: 25 | P39: 15 | Q39: 67 | R39: 25 | S39: 15 | T39: 67 | U39: 25 | V39: 15 | W39: 67 | X39: 157 | Y39: =IFERROR(X39/'Student Profile'!P38,"") -> 31.4 | Z39: 32
A40: ='Student Profile'!A39 ->  | B40: =IF(('Student Profile'!C39)>0,'Student Profile'!C39,"") ->  | C40: 35 | D40: 20 | E40: 92 | F40: 35 | G40: 20 | H40: 92 | I40: 35 | J40: 20 | K40: 92 | L40: 35 | M40: 20 | N40: 92 | O40: 35 | P40: 20 | Q40: 92 | R40: 35 | S40: 20 | T40: 92 | U40: 35 | V40: 20 | W40: 92 | X40: 212 | Y40: =IFERROR(X40/'Student Profile'!P39,"") -> 42.4 | Z40: 1
A41: ='Student Profile'!A40 ->  | B41: =IF(('Student Profile'!C40)>0,'Student Profile'!C40,"") ->  | C41: 25 | D41: 17 | E41: 70 | F41: 25 | G41: 17 | H41: 70 | I41: 25 | J41: 17 | K41: 70 | L41: 25 | M41: 17 | N41: 70 | O41: 25 | P41: 17 | Q41: 70 | R41: 25 | S41: 17 | T41: 70 | U41: 25 | V41: 17 | W41: 70 | X41: 172 | Y41: =IFERROR(X41/'Student Profile'!P40,"") -> 34.4 | Z41: 15
A42: ='Student Profile'!A41 ->  | B42: =IF(('Student Profile'!C41)>0,'Student Profile'!C41,"") ->  | C42: 34 | D42: 15 | E42: 82 | F42: 34 | G42: 15 | H42: 82 | I42: 34 | J42: 15 | K42: 82 | L42: 34 | M42: 15 | N42: 82 | O42: 34 | P42: 15 | Q42: 82 | R42: 34 | S42: 15 | T42: 82 | U42: 34 | V42: 15 | W42: 82 | X42: 172 | Y42: =IFERROR(X42/'Student Profile'!P41,"") -> 34.4 | Z42: 15
A43: ='Student Profile'!A42 ->  | B43: =IF(('Student Profile'!C42)>0,'Student Profile'!C42,"") ->  | C43: 36 | D43: 15 | E43: 85 | F43: 36 | G43: 15 | H43: 85 | I43: 36 | J43: 15 | K43: 85 | L43: 36 | M43: 15 | N43: 85 | O43: 36 | P43: 15 | Q43: 85 | R43: 36 | S43: 15 | T43: 85 | U43: 36 | V43: 15 | W43: 85 | X43: 175 | Y43: =IFERROR(X43/'Student Profile'!P42,"") -> 35 | Z43: 10
A44: ='Student Profile'!A43 ->  | B44: =IF(('Student Profile'!C43)>0,'Student Profile'!C43,"") ->  | C44: 25 | D44: 15 | E44: 67 | F44: 25 | G44: 15 | H44: 67 | I44: 25 | J44: 15 | K44: 67 | L44: 25 | M44: 15 | N44: 67 | O44: 25 | P44: 15 | Q44: 67 | R44: 25 | S44: 15 | T44: 67 | U44: 25 | V44: 15 | W44: 67 | X44: 157 | Y44: =IFERROR(X44/'Student Profile'!P43,"") -> 31.4 | Z44: 32
A45: ='Student Profile'!A44 ->  | B45: =IF(('Student Profile'!C44)>0,'Student Profile'!C44,"") ->  | C45: 34 | D45: 15 | E45: 82 | F45: 34 | G45: 15 | H45: 82 | I45: 34 | J45: 15 | K45: 82 | L45: 34 | M45: 15 | N45: 82 | O45: 34 | P45: 15 | Q45: 82 | R45: 34 | S45: 15 | T45: 82 | U45: 34 | V45: 15 | W45: 82 | X45: 172 | Y45: =IFERROR(X45/'Student Profile'!P44,"") -> 34.4 | Z45: 15
A46: ='Student Profile'!A45 ->  | B46: =IF(('Student Profile'!C45)>0,'Student Profile'!C45,"") ->  | C46: 28 | D46: 18 | E46: 77 | F46: 28 | G46: 18 | H46: 77 | I46: 28 | J46: 18 | K46: 77 | L46: 28 | M46: 18 | N46: 77 | O46: 28 | P46: 18 | Q46: 77 | R46: 28 | S46: 18 | T46: 77 | U46: 28 | V46: 18 | W46: 77 | X46: 185 | Y46: =IFERROR(X46/'Student Profile'!P45,"") -> 37 | Z46: 5
A47: ='Student Profile'!A46 ->  | B47: =IF(('Student Profile'!C46)>0,'Student Profile'!C46,"") ->  | C47: 29 | D47: 15 | E47: 74 | F47: 29 | G47: 15 | H47: 74 | I47: 29 | J47: 15 | K47: 74 | L47: 29 | M47: 15 | N47: 74 | O47: 29 | P47: 15 | Q47: 74 | R47: 29 | S47: 15 | T47: 74 | U47: 29 | V47: 15 | W47: 74 | X47: 164 | Y47: =IFERROR(X47/'Student Profile'!P46,"") -> 32.8 | Z47: 28
A48: ='Student Profile'!A47 ->  | B48: =IF(('Student Profile'!C47)>0,'Student Profile'!C47,"") ->  | C48: 36 | D48: 15 | E48: 85 | F48: 36 | G48: 15 | H48: 85 | I48: 36 | J48: 15 | K48: 85 | L48: 36 | M48: 15 | N48: 85 | O48: 36 | P48: 15 | Q48: 85 | R48: 36 | S48: 15 | T48: 85 | U48: 36 | V48: 15 | W48: 85 | X48: 175 | Y48: =IFERROR(X48/'Student Profile'!P47,"") -> 35 | Z48: 10
A49: ='Student Profile'!A48 ->  | B49: =IF(('Student Profile'!C48)>0,'Student Profile'!C48,"") ->  | C49: 25 | D49: 15 | E49: 67 | F49: 25 | G49: 15 | H49: 67 | I49: 25 | J49: 15 | K49: 67 | L49: 25 | M49: 15 | N49: 67 | O49: 25 | P49: 15 | Q49: 67 | R49: 25 | S49: 15 | T49: 67 | U49: 25 | V49: 15 | W49: 67 | X49: 157 | Y49: =IFERROR(X49/'Student Profile'!P48,"") -> 31.4 | Z49: 32
A50: ='Student Profile'!A49 ->  | B50: =IF(('Student Profile'!C49)>0,'Student Profile'!C49,"") ->  | C50: 34 | D50: 15 | E50: 82 | F50: 34 | G50: 15 | H50: 82 | I50: 34 | J50: 15 | K50: 82 | L50: 34 | M50: 15 | N50: 82 | O50: 34 | P50: 15 | Q50: 82 | R50: 34 | S50: 15 | T50: 82 | U50: 34 | V50: 15 | W50: 82 | X50: 172 | Y50: =IFERROR(X50/'Student Profile'!P49,"") -> 34.4 | Z50: 15
A51: ='Student Profile'!A50 ->  | B51: =IF(('Student Profile'!C50)>0,'Student Profile'!C50,"") ->  | C51: 28 | D51: 18 | E51: 77 | F51: 28 | G51: 18 | H51: 77 | I51: 28 | J51: 18 | K51: 77 | L51: 28 | M51: 18 | N51: 77 | O51: 28 | P51: 18 | Q51: 77 | R51: 28 | S51: 18 | T51: 77 | U51: 28 | V51: 18 | W51: 77 | X51: 185 | Y51: =IFERROR(X51/'Student Profile'!P50,"") -> 37 | Z51: 5
A52: ='Student Profile'!A51 ->  | B52: =IF(('Student Profile'!C51)>0,'Student Profile'!C51,"") ->  | C52: AB | D52: 12 | E52: 20 | F52: AB | G52: 12 | H52: 20 | I52: AB | J52: 12 | K52: 20 | L52: AB | M52: 12 | N52: 20 | O52: AB | P52: 12 | Q52: 20 | R52: AB | S52: 12 | T52: 20 | U52: AB | V52: 12 | W52: 20 | X52: =IF(OR(ISNUMBER(E52),ISNUMBER(H52),ISNUMBER(K52),ISNUMBER(N52),ISNUMBER(Q52),ISNUMBER(T52),ISNUMBER(W52)),SUM(E52,H52,K52,N52,Q52,T52,Q52),"") -> 140 | Y52: =IFERROR(X52/'Student Profile'!P51,"") -> 28 | Z52: 41
A53: Subject Avg. | C53: =IF(AND(ISNUMBER(Z57),Z57>0),SUM(E8:E52)/C60,"") -> 73.66666667 | F53: =IF(AND(ISNUMBER(Z58),Z58>0),SUM(H8:H52)/F60,"") -> 73.66666667 | I53: =IF(AND(ISNUMBER(Z59),Z59>0),SUM(K8:K52)/I60,"") -> 73.66666667 | L53: =IF(AND(ISNUMBER(Z60),Z60>0),SUM(N8:N52)/L60,"") -> 73.66666667 | O53: =IF(AND(ISNUMBER(Z61),Z61>0),SUM(Q8:Q52)/O60,"") -> 73.66666667 | R53: =IF(AND(ISNUMBER(Z62),Z62>0),SUM(T8:T52)/R60,"") -> 73.66666667 | U53: =IF(AND(ISNUMBER(AO58),AO58>0),SUM(W8:W52)/U60,"") ->  | X53: SUBJECTS | Y53: Total Student | Z53: Present
A54: Pass %age | C54: =IF(ISNUMBER(C53),(C61/C60)*100,"0") -> 97.77777778 | F54: =IF(ISNUMBER(F53),F61/F60*100,"0") -> 97.77777778 | I54: =IF(ISNUMBER(I53),I61/I60*100,"0") -> 97.77777778 | L54: =IF(ISNUMBER(L53),L61/L60*100,"0") -> 97.77777778 | O54: =IF(ISNUMBER(O53),O61/O60*100,"0") -> 97.77777778 | R54: =IF(ISNUMBER(R53),R61/R60*100,"0") -> 97.77777778 | U54: =IF(ISNUMBER(U53),U61/U60*100,"0") -> 0
A55: Below 33% | C55: =COUNTIF(E8:E52,"<33") -> 1 | F55: =COUNTIF(H8:H52,"<33") -> 1 | I55: =COUNTIF(K8:K52,"<33") -> 1 | L55: =COUNTIF(N8:N52,"<33") -> 1 | O55: =COUNTIF(Q8:Q52,"<33") -> 1 | R55: =COUNTIF(T8:T52,"<33") -> 1 | U55: =COUNTIF(V8:V52,"<33") -> 45
A56: 33% to 50% | C56: =COUNTIF(E8:E52,">=33")-C57-C58-C59 -> 0 | F56: =COUNTIF(H8:H52,">=33")-F57-F58-F59 -> 0 | I56: =COUNTIF(K8:K52,">=33")-I57-I58-I59 -> 0 | L56: =COUNTIF(N8:N52,">=33")-L57-L58-L59 -> 0 | O56: =COUNTIF(Q8:Q52,">=33")-O57-O58-O59 -> 0 | R56: =COUNTIF(T8:T52,">=33")-R57-R58-R59 -> 0 | U56: =COUNTIF(W8:W52,">=33")-U57-U58-U59 -> 0
A57: 50% to 60% | C57: =COUNTIF(E8:E52,">=50")-C58-C59 -> 4 | F57: =COUNTIF(H8:H52,">=50")-F58-F59 -> 4 | I57: =COUNTIF(K8:K52,">=50")-I58-I59 -> 4 | L57: =COUNTIF(N8:N52,">=50")-L58-L59 -> 4 | O57: =COUNTIF(Q8:Q52,">=50")-O58-O59 -> 4 | R57: =COUNTIF(T8:T52,">=50")-R58-R59 -> 4 | U57: =COUNTIF(W8:W52,">=50")-U58-U59 -> 4 | X57: =Home!B15 -> ENGLISH | Y57: =C62 -> 45 | Z57: =C60 -> 45
A58: 60% to 75% | C58: =COUNTIF(E8:E52,">=60")-C59 -> 17 | F58: =COUNTIF(H8:H52,">=60")-F59 -> 17 | I58: =COUNTIF(K8:K52,">=60")-I59 -> 17 | L58: =COUNTIF(N8:N52,">=60")-L59 -> 17 | O58: =COUNTIF(Q8:Q52,">=60")-O59 -> 17 | R58: =COUNTIF(T8:T52,">=60")-R59 -> 17 | U58: =COUNTIF(W8:W52,">=60")-U59 -> 17 | X58: =Home!B16 -> HINDI | Y58: =F62 -> 45 | Z58: =F60 -> 45
A59: above 75% | C59: =COUNTIF(E8:E52,">=75") -> 23 | F59: =COUNTIF(H8:H52,">=75") -> 23 | I59: =COUNTIF(K8:K52,">=75") -> 23 | L59: =COUNTIF(N8:N52,">=75") -> 23 | O59: =COUNTIF(Q8:Q52,">=75") -> 23 | R59: =COUNTIF(T8:T52,">=75") -> 23 | U59: =COUNTIF(W8:W52,">=75") -> 23 | X59: =Home!B17 -> INFO PRACT | Y59: =I62 -> 45 | Z59: =I60 -> 45
A60: Appeared | C60: =COUNTIF(E8:E52,">=0") -> 45 | F60: =COUNTIF(H8:H52,">=0") -> 45 | I60: =COUNTIF(K8:K52,">=0") -> 45 | L60: =COUNTIF(N8:N52,">=0") -> 45 | O60: =COUNTIF(Q8:Q52,">=0") -> 45 | R60: =COUNTIF(T8:T52,">=0") -> 45 | U60: =COUNTIF(W8:W52,">=0") -> 45 | X60: =Home!B18 -> MATH | Y60: =L62 -> 45 | Z60: =L60 -> 45
A61: Passed | C61: =COUNTIF(E8:E52,">=33") -> 44 | F61: =COUNTIF(H8:H52,">=33") -> 44 | I61: =COUNTIF(K8:K52,">=33") -> 44 | L61: =COUNTIF(N8:N52,">=33") -> 44 | O61: =COUNTIF(Q8:Q52,">=33") -> 44 | R61: =COUNTIF(T8:T52,">=33") -> 44 | U61: =COUNTIF(W8:W52,">=33") -> 44 | X61: =Home!B19 -> CHEM | Y61: =O62 -> 45 | Z61: =O60 -> 45
A62: Total | C62: =C60+C63 -> 45 | F62: =F60+F63 -> 45 | I62: =I60+I63 -> 45 | L62: =L60+L63 -> 45 | O62: =O60+O63 -> 45 | R62: =R60+R63 -> 45 | U62: =U60+U63 -> 45 | X62: =Home!B20 -> PHYSICS | Y62: =R62 -> 45 | Z62: =R60 -> 45
A63: Absent | C63: =COUNTIF(E8:E52,"AB") -> 0 | F63: =COUNTIF(H8:H52,"AB") -> 0 | I63: =COUNTIF(J8:J52,"AB") -> 0 | L63: =COUNTIF(N8:N52,"AB") -> 0 | O63: =COUNTIF(Q8:Q52,"AB") -> 0 | R63: =COUNTIF(T8:T52,"AB") -> 0 | U63: =COUNTIF(W8:W52,"AB") -> 0 | X63: =Home!B21 -> BIO | Y63: =U62 -> 45 | Z63: =U60 -> 45

Sheet UT 3
A1: =Home!C7 -> JAWAHAR NAVODAYA VIDYALAYA, | M1: =Home!I7 -> MOHINDERGARH
A2: Unit Test-3
A3: =Home!C9 -> XII A | G3: =Home!C8 -> 2019-20 | P3: E
A4: ROLL NO. | B4: STUDENT NAME | C4: =Home!B15 -> ENGLISH | F4: =Home!B16 -> HINDI | I4: =Home!B17 -> INFO PRACT | L4: =Home!B18 -> MATH | O4: =Home!B19 -> CHEM | R4: =Home!B20 -> PHYSICS | U4: =Home!B21 -> BIO | X4: MARKS OBT | Y4: %AGE | Z4: Rank
C5: M.M | E5: %age | F5: M.M | H5: %age | I5: M.M | K5: %age | L5: M.M | N5: %age | O5: M.M | Q5: %age | R5: M.M | T5: %age | U5: M.M | W5: %age
C6: Th. | D6: IA/ Prac. | F6: Th. | G6: IA/ Prac. | I6: Th. | J6: IA/ Prac. | L6: Th. | M6: IA/ Prac. | O6: Th. | P6: IA/ Prac. | R6: Th. | S6: IA/ Prac. | U6: Th. | V6: IA/ Prac.
C7: 40 | D7: 20 | E7: 100 | F7: 40 | G7: 20 | H7: 100 | I7: 40 | J7: 20 | K7: 100 | L7: 40 | M7: 20 | N7: 100 | O7: 40 | P7: 20 | Q7: 100 | R7: 40 | S7: 20 | T7: 100 | U7: 40 | V7: 20 | W7: 100
A8: ='Student Profile'!A7 -> 1 | B8: =IF(('Student Profile'!C7)>0,'Student Profile'!C7,"") -> SUNIL KUMAR | C8: 20 | D8: 10 | E8: =IF(OR(ISNUMBER(C8),ISNUMBER(D8)),ROUNDUP(SUM(C8:D8)/SUM($C$7,$D$7)*100,0),IF(C8="AB",C8,"")) -> 50 | F8: 20 | G8: 10 | H8: =IF(OR(ISNUMBER(F8),ISNUMBER(G8)),ROUNDUP(SUM(F8:G8)/SUM($F$7,$G$7)*100,0),IF(F8="AB",F8,"")) -> 50 | I8: 20 | J8: 10 | K8: =IF(OR(ISNUMBER(I8),ISNUMBER(J8)),ROUNDUP(SUM(I8:J8)/SUM($I$7,$J$7)*100,0),IF(I8="AB",I8,"")) -> 50 | L8: 20 | M8: 10 | N8: =IF(OR(ISNUMBER(L8),ISNUMBER(M8)),ROUNDUP(SUM(L8:M8)/SUM($L$7,$M$7)*100,0),IF(L8="AB",L8,"")) -> 50 | O8: 20 | P8: 10 | Q8: =IF(OR(ISNUMBER(O8),ISNUMBER(P8)),ROUNDUP(SUM(O8:P8)/SUM($O$7,$P$7)*100,0),IF(O8="AB",O8,"")) -> 50 | R8: 20 | S8: 10 | T8: =IF(OR(ISNUMBER(R8),ISNUMBER(S8)),ROUNDUP(SUM(R8:S8)/SUM($R$7,$S$7)*100,0),IF(R8="AB",R8,"")) -> 50 | U8: 20 | V8: 10 | W8: =IF(OR(ISNUMBER(U8),ISNUMBER(V8)),ROUNDUP(SUM(U8:V8)/SUM($U$7,$V$7)*100,0),IF(U8="AB",U8,"")) -> 50 | X8: =IF(OR(ISNUMBER(E8),ISNUMBER(G8),ISNUMBER(J8),ISNUMBER(M8),ISNUMBER(P8),ISNUMBER(S8),ISNUMBER(V8)),SUM(E8,G8,J8,M8,P8,S8,V8),"") -> 110 | Y8: =IFERROR(X8/'Student Profile'!P7,"") -> 22 | Z8: =IFERROR(RANK(Y8,Y$8:Y$52,0),"") -> 42
A9: ='Student Profile'!A8 ->  | B9: =IF(('Student Profile'!C8)>0,'Student Profile'!C8,"") ->  | C9: 25 | D9: 15 | E9: =IF(OR(ISNUMBER(C9),ISNUMBER(D9)),ROUNDUP(SUM(C9:D9)/SUM($C$7,$D$7)*100,0),IF(C9="AB",C9,"")) -> 67 | F9: 25 | G9: 15 | H9: =IF(OR(ISNUMBER(F9),ISNUMBER(G9)),ROUNDUP(SUM(F9:G9)/SUM($F$7,$G$7)*100,0),IF(F9="AB",F9,"")) -> 67 | I9: 25 | J9: 15 | K9: =IF(OR(ISNUMBER(I9),ISNUMBER(J9)),ROUNDUP(SUM(I9:J9)/SUM($I$7,$J$7)*100,0),IF(I9="AB",I9,"")) -> 67 | L9: 25 | M9: 15 | N9: =IF(OR(ISNUMBER(L9),ISNUMBER(M9)),ROUNDUP(SUM(L9:M9)/SUM($L$7,$M$7)*100,0),IF(L9="AB",L9,"")) -> 67 | O9: 25 | P9: 15 | Q9: =IF(OR(ISNUMBER(O9),ISNUMBER(P9)),ROUNDUP(SUM(O9:P9)/SUM($O$7,$P$7)*100,0),IF(O9="AB",O9,"")) -> 67 | R9: 25 | S9: 15 | T9: =IF(OR(ISNUMBER(R9),ISNUMBER(S9)),ROUNDUP(SUM(R9:S9)/SUM($R$7,$S$7)*100,0),IF(R9="AB",R9,"")) -> 67 | U9: 25 | V9: 15 | W9: =IF(OR(ISNUMBER(U9),ISNUMBER(V9)),ROUNDUP(SUM(U9:V9)/SUM($U$7,$V$7)*100,0),IF(U9="AB",U9,"")) -> 67 | X9: =IF(OR(ISNUMBER(E9),ISNUMBER(G9),ISNUMBER(J9),ISNUMBER(M9),ISNUMBER(P9),ISNUMBER(S9),ISNUMBER(V9)),SUM(E9,G9,J9,M9,P9,S9,V9),"") -> 157 | Y9: =IFERROR(X9/'Student Profile'!P8,"") -> 31.4 | Z9: =IF(ISNUMBER(Y9),RANK(X9,X$8:X$52,0),"") -> 32
A10: ='Student Profile'!A9 ->  | B10: =IF(('Student Profile'!C9)>0,'Student Profile'!C9,"") ->  | C10: 35 | D10: 20 | E10: 92 | F10: 35 | G10: 20 | H10: 92 | I10: 35 | J10: 20 | K10: 92 | L10: 35 | M10: 20 | N10: 92 | O10: 35 | P10: 20 | Q10: 92 | R10: 35 | S10: 20 | T10: 92 | U10: 35 | V10: 20 | W10: 92 | X10: 212 | Y10: =IFERROR(X10/'Student Profile'!P9,"") -> 42.4 | Z10: 1
A11: ='Student Profile'!A10 ->  | B11: =IF(('Student Profile'!C10)>0,'Student Profile'!C10,"") ->  | C11: 25 | D11: 17 | E11: 70 | F11: 25 | G11: 17 | H11: 70 | I11: 25 | J11: 17 | K11: 70 | L11: 25 | M11: 17 | N11: 70 | O11: 25 | P11: 17 | Q11: 70 | R11: 25 | S11: 17 | T11: 70 | U11: 25 | V11: 17 | W11: 70 | X11: 172 | Y11: =IFERROR(X11/'Student Profile'!P10,"") -> 34.4 | Z11: 15
A12: ='Student Profile'!A11 ->  | B12: =IF(('Student Profile'!C11)>0,'Student Profile'!C11,"") ->  | C12: 34 | D12: 15 | E12: 82 | F12: 34 | G12: 15 | H12: 82 | I12: 34 | J12: 15 | K12: 82 | L12: 34 | M12: 15 | N12: 82 | O12: 34 | P12: 15 | Q12: 82 | R12: 34 | S12: 15 | T12: 82 | U12: 34 | V12: 15 | W12: 82 | X12: 172 | Y12: =IFERROR(X12/'Student Profile'!P11,"") -> 34.4 | Z12: 15
A13: ='Student Profile'!A12 ->  | B13: =IF(('Student Profile'!C12)>0,'Student Profile'!C12,"") ->  | C13: 36 | D13: 15 | E13: 85 | F13: 36 | G13: 15 | H13: 85 | I13: 36 | J13: 15 | K13: 85 | L13: 36 | M13: 15 | N13: 85 | O13: 36 | P13: 15 | Q13: 85 | R13: 36 | S13: 15 | T13: 85 | U13: 36 | V13: 15 | W13: 85 | X13: 175 | Y13: =IFERROR(X13/'Student Profile'!P12,"") -> 35 | Z13: 10
A14: ='Student Profile'!A13 ->  | B14: =IF(('Student Profile'!C13)>0,'Student Profile'!C13,"") ->  | C14: 25 | D14: 15 | E14: 67 | F14: 25 | G14: 15 | H14: 67 | I14: 25 | J14: 15 | K14: 67 | L14: 25 | M14: 15 | N14: 67 | O14: 25 | P14: 15 | Q14: 67 | R14: 25 | S14: 15 | T14: 67 | U14: 25 | V14: 15 | W14: 67 | X14: 157 | Y14: =IFERROR(X14/'Student Profile'!P13,"") -> 31.4 | Z14: 32
A15: ='Student Profile'!A14 ->  | B15: =IF(('Student Profile'!C14)>0,'Student Profile'!C14,"") ->  | C15: 34 | D15: 15 | E15: 82 | F15: 34 | G15: 15 | H15: 82 | I15: 34 | J15: 15 | K15: 82 | L15: 34 | M15: 15 | N15: 82 | O15: 34 | P15: 15 | Q15: 82 | R15: 34 | S15: 15 | T15: 82 | U15: 34 | V15: 15 | W15: 82 | X15: 172 | Y15: =IFERROR(X15/'Student Profile'!P14,"") -> 34.4 | Z15: 15
A16: ='Student Profile'!A15 ->  | B16: =IF(('Student Profile'!C15)>0,'Student Profile'!C15,"") ->  | C16: 28 | D16: 18 | E16: 77 | F16: 28 | G16: 18 | H16: 77 | I16: 28 | J16: 18 | K16: 77 | L16: 28 | M16: 18 | N16: 77 | O16: 28 | P16: 18 | Q16: 77 | R16: 28 | S16: 18 | T16: 77 | U16: 28 | V16: 18 | W16: 77 | X16: 185 | Y16: =IFERROR(X16/'Student Profile'!P15,"") -> 37 | Z16: 5
A17: ='Student Profile'!A16 ->  | B17: =IF(('Student Profile'!C16)>0,'Student Profile'!C16,"") ->  | C17: 29 | D17: 15 | E17: 74 | F17: 29 | G17: 15 | H17: 74 | I17: 29 | J17: 15 | K17: 74 | L17: 29 | M17: 15 | N17: 74 | O17: 29 | P17: 15 | Q17: 74 | R17: 29 | S17: 15 | T17: 74 | U17: 29 | V17: 15 | W17: 74 | X17: 164 | Y17: =IFERROR(X17/'Student Profile'!P16,"") -> 32.8 | Z17: 28
A18: ='Student Profile'!A17 ->  | B18: =IF(('Student Profile'!C17)>0,'Student Profile'!C17,"") ->  | C18: 20 | D18: 10 | E18: 50 | F18: 20 | G18: 10 | H18: 50 | I18: 20 | J18: 10 | K18: 50 | L18: 20 | M18: 10 | N18: 50 | O18: 20 | P18: 10 | Q18: 50 | R18: 20 | S18: 10 | T18: 50 | U18: 20 | V18: 10 | W18: 50 | X18: 110 | Y18: =IFERROR(X18/'Student Profile'!P17,"") -> 22 | Z18: 42
A19: ='Student Profile'!A18 ->  | B19: =IF(('Student Profile'!C18)>0,'Student Profile'!C18,"") ->  | C19: 25 | D19: 15 | E19: 67 | F19: 25 | G19: 15 | H19: 67 | I19: 25 | J19: 15 | K19: 67 | L19: 25 | M19: 15 | N19: 67 | O19: 25 | P19: 15 | Q19: 67 | R19: 25 | S19: 15 | T19: 67 | U19: 25 | V19: 15 | W19: 67 | X19: 157 | Y19: =IFERROR(X19/'Student Profile'!P18,"") -> 31.4 | Z19: 32
A20: ='Student Profile'!A19 ->  | B20: =IF(('Student Profile'!C19)>0,'Student Profile'!C19,"") ->  | C20: 35 | D20: 20 | E20: 92 | F20: 35 | G20: 20 | H20: 92 | I20: 35 | J20: 20 | K20: 92 | L20: 35 | M20: 20 | N20: 92 | O20: 35 | P20: 20 | Q20: 92 | R20: 35 | S20: 20 | T20: 92 | U20: 35 | V20: 20 | W20: 92 | X20: 212 | Y20: =IFERROR(X20/'Student Profile'!P19,"") -> 42.4 | Z20: 1
A21: ='Student Profile'!A20 ->  | B21: =IF(('Student Profile'!C20)>0,'Student Profile'!C20,"") ->  | C21: 25 | D21: 17 | E21: 70 | F21: 25 | G21: 17 | H21: 70 | I21: 25 | J21: 17 | K21: 70 | L21: 25 | M21: 17 | N21: 70 | O21: 25 | P21: 17 | Q21: 70 | R21: 25 | S21: 17 | T21: 70 | U21: 25 | V21: 17 | W21: 70 | X21: 172 | Y21: =IFERROR(X21/'Student Profile'!P20,"") -> 34.4 | Z21: 15
A22: ='Student Profile'!A21 ->  | B22: =IF(('Student Profile'!C21)>0,'Student Profile'!C21,"") ->  | C22: 34 | D22: 15 | E22: 82 | F22: 34 | G22: 15 | H22: 82 | I22: 34 | J22: 15 | K22: 82 | L22: 34 | M22: 15 | N22: 82 | O22: 34 | P22: 15 | Q22: 82 | R22: 34 | S22: 15 | T22: 82 | U22: 34 | V22: 15 | W22: 82 | X22: 172 | Y22: =IFERROR(X22/'Student Profile'!P21,"") -> 34.4 | Z22: 15
A23: ='Student Profile'!A22 ->  | B23: =IF(('Student Profile'!C22)>0,'Student Profile'!C22,"") ->  | C23: 36 | D23: 15 | E23: 85 | F23: 36 | G23: 15 | H23: 85 | I23: 36 | J23: 15 | K23: 85 | L23: 36 | M23: 15 | N23: 85 | O23: 36 | P23: 15 | Q23: 85 | R23: 36 | S23: 15 | T23: 85 | U23: 36 | V23: 15 | W23: 85 | X23: 175 | Y23: =IFERROR(X23/'Student Profile'!P22,"") -> 35 | Z23: 10
A24: ='Student Profile'!A23 ->  | B24: =IF(('Student Profile'!C23)>0,'Student Profile'!C23,"") ->  | C24: 25 | D24: 15 | E24: 67 | F24: 25 | G24: 15 | H24: 67 | I24: 25 | J24: 15 | K24: 67 | L24: 25 | M24: 15 | N24: 67 | O24: 25 | P24: 15 | Q24: 67 | R24: 25 | S24: 15 | T24: 67 | U24: 25 | V24: 15 | W24: 67 | X24: 157 | Y24: =IFERROR(X24/'Student Profile'!P23,"") -> 31.4 | Z24: 32
A25: ='Student Profile'!A24 ->  | B25: =IF(('Student Profile'!C24)>0,'Student Profile'!C24,"") ->  | C25: 34 | D25: 15 | E25: 82 | F25: 34 | G25: 15 | H25: 82 | I25: 34 | J25: 15 | K25: 82 | L25: 34 | M25: 15 | N25: 82 | O25: 34 | P25: 15 | Q25: 82 | R25: 34 | S25: 15 | T25: 82 | U25: 34 | V25: 15 | W25: 82 | X25: 172 | Y25: =IFERROR(X25/'Student Profile'!P24,"") -> 34.4 | Z25: 15
A26: ='Student Profile'!A25 ->  | B26: =IF(('Student Profile'!C25)>0,'Student Profile'!C25,"") ->  | C26: 28 | D26: 18 | E26: 77 | F26: 28 | G26: 18 | H26: 77 | I26: 28 | J26: 18 | K26: 77 | L26: 28 | M26: 18 | N26: 77 | O26: 28 | P26: 18 | Q26: 77 | R26: 28 | S26: 18 | T26: 77 | U26: 28 | V26: 18 | W26: 77 | X26: 185 | Y26: =IFERROR(X26/'Student Profile'!P25,"") -> 37 | Z26: 5
A27: ='Student Profile'!A26 ->  | B27: =IF(('Student Profile'!C26)>0,'Student Profile'!C26,"") ->  | C27: 29 | D27: 15 | E27: 74 | F27: 29 | G27: 15 | H27: 74 | I27: 29 | J27: 15 | K27: 74 | L27: 29 | M27: 15 | N27: 74 | O27: 29 | P27: 15 | Q27: 74 | R27: 29 | S27: 15 | T27: 74 | U27: 29 | V27: 15 | W27: 74 | X27: 164 | Y27: =IFERROR(X27/'Student Profile'!P26,"") -> 32.8 | Z27: 28
A28: ='Student Profile'!A27 ->  | B28: =IF(('Student Profile'!C27)>0,'Student Profile'!C27,"") ->  | C28: 20 | D28: 10 | E28: 50 | F28: 20 | G28: 10 | H28: 50 | I28: 20 | J28: 10 | K28: 50 | L28: 20 | M28: 10 | N28: 50 | O28: 20 | P28: 10 | Q28: 50 | R28: 20 | S28: 10 | T28: 50 | U28: 20 | V28: 10 | W28: 50 | X28: 110 | Y28: =IFERROR(X28/'Student Profile'!P27,"") -> 22 | Z28: 42
A29: ='Student Profile'!A28 ->  | B29: =IF(('Student Profile'!C28)>0,'Student Profile'!C28,"") ->  | C29: 25 | D29: 15 | E29: 67 | F29: 25 | G29: 15 | H29: 67 | I29: 25 | J29: 15 | K29: 67 | L29: 25 | M29: 15 | N29: 67 | O29: 25 | P29: 15 | Q29: 67 | R29: 25 | S29: 15 | T29: 67 | U29: 25 | V29: 15 | W29: 67 | X29: 157 | Y29: =IFERROR(X29/'Student Profile'!P28,"") -> 31.4 | Z29: 32
A30: ='Student Profile'!A29 ->  | B30: =IF(('Student Profile'!C29)>0,'Student Profile'!C29,"") ->  | C30: 35 | D30: 20 | E30: 92 | F30: 35 | G30: 20 | H30: 92 | I30: 35 | J30: 20 | K30: 92 | L30: 35 | M30: 20 | N30: 92 | O30: 35 | P30: 20 | Q30: 92 | R30: 35 | S30: 20 | T30: 92 | U30: 35 | V30: 20 | W30: 92 | X30: 212 | Y30: =IFERROR(X30/'Student Profile'!P29,"") -> 42.4 | Z30: 1
A31: ='Student Profile'!A30 ->  | B31: =IF(('Student Profile'!C30)>0,'Student Profile'!C30,"") ->  | C31: 25 | D31: 17 | E31: 70 | F31: 25 | G31: 17 | H31: 70 | I31: 25 | J31: 17 | K31: 70 | L31: 25 | M31: 17 | N31: 70 | O31: 25 | P31: 17 | Q31: 70 | R31: 25 | S31: 17 | T31: 70 | U31: 25 | V31: 17 | W31: 70 | X31: 172 | Y31: =IFERROR(X31/'Student Profile'!P30,"") -> 34.4 | Z31: 15
A32: ='Student Profile'!A31 ->  | B32: =IF(('Student Profile'!C31)>0,'Student Profile'!C31,"") ->  | C32: 34 | D32: 15 | E32: 82 | F32: 34 | G32: 15 | H32: 82 | I32: 34 | J32: 15 | K32: 82 | L32: 34 | M32: 15 | N32: 82 | O32: 34 | P32: 15 | Q32: 82 | R32: 34 | S32: 15 | T32: 82 | U32: 34 | V32: 15 | W32: 82 | X32: 172 | Y32: =IFERROR(X32/'Student Profile'!P31,"") -> 34.4 | Z32: 15
A33: ='Student Profile'!A32 ->  | B33: =IF(('Student Profile'!C32)>0,'Student Profile'!C32,"") ->  | C33: 36 | D33: 15 | E33: 85 | F33: 36 | G33: 15 | H33: 85 | I33: 36 | J33: 15 | K33: 85 | L33: 36 | M33: 15 | N33: 85 | O33: 36 | P33: 15 | Q33: 85 | R33: 36 | S33: 15 | T33: 85 | U33: 36 | V33: 15 | W33: 85 | X33: 175 | Y33: =IFERROR(X33/'Student Profile'!P32,"") -> 35 | Z33: 10
A34: ='Student Profile'!A33 ->  | B34: =IF(('Student Profile'!C33)>0,'Student Profile'!C33,"") ->  | C34: 25 | D34: 15 | E34: 67 | F34: 25 | G34: 15 | H34: 67 | I34: 25 | J34: 15 | K34: 67 | L34: 25 | M34: 15 | N34: 67 | O34: 25 | P34: 15 | Q34: 67 | R34: 25 | S34: 15 | T34: 67 | U34: 25 | V34: 15 | W34: 67 | X34: 157 | Y34: =IFERROR(X34/'Student Profile'!P33,"") -> 31.4 | Z34: 32
A35: ='Student Profile'!A34 ->  | B35: =IF(('Student Profile'!C34)>0,'Student Profile'!C34,"") ->  | C35: 34 | D35: 15 | E35: 82 | F35: 34 | G35: 15 | H35: 82 | I35: 34 | J35: 15 | K35: 82 | L35: 34 | M35: 15 | N35: 82 | O35: 34 | P35: 15 | Q35: 82 | R35: 34 | S35: 15 | T35: 82 | U35: 34 | V35: 15 | W35: 82 | X35: 172 | Y35: =IFERROR(X35/'Student Profile'!P34,"") -> 34.4 | Z35: 15
A36: ='Student Profile'!A35 ->  | B36: =IF(('Student Profile'!C35)>0,'Student Profile'!C35,"") ->  | C36: 28 | D36: 18 | E36: 77 | F36: 28 | G36: 18 | H36: 77 | I36: 28 | J36: 18 | K36: 77 | L36: 28 | M36: 18 | N36: 77 | O36: 28 | P36: 18 | Q36: 77 | R36: 28 | S36: 18 | T36: 77 | U36: 28 | V36: 18 | W36: 77 | X36: 185 | Y36: =IFERROR(X36/'Student Profile'!P35,"") -> 37 | Z36: 5
A37: ='Student Profile'!A36 ->  | B37: =IF(('Student Profile'!C36)>0,'Student Profile'!C36,"") ->  | C37: 29 | D37: 15 | E37: 74 | F37: 29 | G37: 15 | H37: 74 | I37: 29 | J37: 15 | K37: 74 | L37: 29 | M37: 15 | N37: 74 | O37: 29 | P37: 15 | Q37: 74 | R37: 29 | S37: 15 | T37: 74 | U37: 29 | V37: 15 | W37: 74 | X37: 164 | Y37: =IFERROR(X37/'Student Profile'!P36,"") -> 32.8 | Z37: 28
A38: ='Student Profile'!A37 ->  | B38: =IF(('Student Profile'!C37)>0,'Student Profile'!C37,"") ->  | C38: 20 | D38: 10 | E38: 50 | F38: 20 | G38: 10 | H38: 50 | I38: 20 | J38: 10 | K38: 50 | L38: 20 | M38: 10 | N38: 50 | O38: 20 | P38: 10 | Q38: 50 | R38: 20 | S38: 10 | T38: 50 | U38: 20 | V38: 10 | W38: 50 | X38: 110 | Y38: =IFERROR(X38/'Student Profile'!P37,"") -> 22 | Z38: 42
A39: ='Student Profile'!A38 ->  | B39: =IF(('Student Profile'!C38)>0,'Student Profile'!C38,"") ->  | C39: 25 | D39: 15 | E39: 67 | F39: 25 | G39: 15 | H39: 67 | I39: 25 | J39: 15 | K39: 67 | L39: 25 | M39: 15 | N39: 67 | O39: 25 | P39: 15 | Q39: 67 | R39: 25 | S39: 15 | T39: 67 | U39: 25 | V39: 15 | W39: 67 | X39: 157 | Y39: =IFERROR(X39/'Student Profile'!P38,"") -> 31.4 | Z39: 32
A40: ='Student Profile'!A39 ->  | B40: =IF(('Student Profile'!C39)>0,'Student Profile'!C39,"") ->  | C40: 35 | D40: 20 | E40: 92 | F40: 35 | G40: 20 | H40: 92 | I40: 35 | J40: 20 | K40: 92 | L40: 35 | M40: 20 | N40: 92 | O40: 35 | P40: 20 | Q40: 92 | R40: 35 | S40: 20 | T40: 92 | U40: 35 | V40: 20 | W40: 92 | X40: 212 | Y40: =IFERROR(X40/'Student Profile'!P39,"") -> 42.4 | Z40: 1
A41: ='Student Profile'!A40 ->  | B41: =IF(('Student Profile'!C40)>0,'Student Profile'!C40,"") ->  | C41: 25 | D41: 17 | E41: 70 | F41: 25 | G41: 17 | H41: 70 | I41: 25 | J41: 17 | K41: 70 | L41: 25 | M41: 17 | N41: 70 | O41: 25 | P41: 17 | Q41: 70 | R41: 25 | S41: 17 | T41: 70 | U41: 25 | V41: 17 | W41: 70 | X41: 172 | Y41: =IFERROR(X41/'Student Profile'!P40,"") -> 34.4 | Z41: 15
A42: ='Student Profile'!A41 ->  | B42: =IF(('Student Profile'!C41)>0,'Student Profile'!C41,"") ->  | C42: 34 | D42: 15 | E42: 82 | F42: 34 | G42: 15 | H42: 82 | I42: 34 | J42: 15 | K42: 82 | L42: 34 | M42: 15 | N42: 82 | O42: 34 | P42: 15 | Q42: 82 | R42: 34 | S42: 15 | T42: 82 | U42: 34 | V42: 15 | W42: 82 | X42: 172 | Y42: =IFERROR(X42/'Student Profile'!P41,"") -> 34.4 | Z42: 15
A43: ='Student Profile'!A42 ->  | B43: =IF(('Student Profile'!C42)>0,'Student Profile'!C42,"") ->  | C43: 36 | D43: 15 | E43: 85 | F43: 36 | G43: 15 | H43: 85 | I43: 36 | J43: 15 | K43: 85 | L43: 36 | M43: 15 | N43: 85 | O43: 36 | P43: 15 | Q43: 85 | R43: 36 | S43: 15 | T43: 85 | U43: 36 | V43: 15 | W43: 85 | X43: 175 | Y43: =IFERROR(X43/'Student Profile'!P42,"") -> 35 | Z43: 10
A44: ='Student Profile'!A43 ->  | B44: =IF(('Student Profile'!C43)>0,'Student Profile'!C43,"") ->  | C44: 25 | D44: 15 | E44: 67 | F44: 25 | G44: 15 | H44: 67 | I44: 25 | J44: 15 | K44: 67 | L44: 25 | M44: 15 | N44: 67 | O44: 25 | P44: 15 | Q44: 67 | R44: 25 | S44: 15 | T44: 67 | U44: 25 | V44: 15 | W44: 67 | X44: 157 | Y44: =IFERROR(X44/'Student Profile'!P43,"") -> 31.4 | Z44: 32
A45: ='Student Profile'!A44 ->  | B45: =IF(('Student Profile'!C44)>0,'Student Profile'!C44,"") ->  | C45: 34 | D45: 15 | E45: 82 | F45: 34 | G45: 15 | H45: 82 | I45: 34 | J45: 15 | K45: 82 | L45: 34 | M45: 15 | N45: 82 | O45: 34 | P45: 15 | Q45: 82 | R45: 34 | S45: 15 | T45: 82 | U45: 34 | V45: 15 | W45: 82 | X45: 172 | Y45: =IFERROR(X45/'Student Profile'!P44,"") -> 34.4 | Z45: 15
A46: ='Student Profile'!A45 ->  | B46: =IF(('Student Profile'!C45)>0,'Student Profile'!C45,"") ->  | C46: 28 | D46: 18 | E46: 77 | F46: 28 | G46: 18 | H46: 77 | I46: 28 | J46: 18 | K46: 77 | L46: 28 | M46: 18 | N46: 77 | O46: 28 | P46: 18 | Q46: 77 | R46: 28 | S46: 18 | T46: 77 | U46: 28 | V46: 18 | W46: 77 | X46: 185 | Y46: =IFERROR(X46/'Student Profile'!P45,"") -> 37 | Z46: 5
A47: ='Student Profile'!A46 ->  | B47: =IF(('Student Profile'!C46)>0,'Student Profile'!C46,"") ->  | C47: 29 | D47: 15 | E47: 74 | F47: 29 | G47: 15 | H47: 74 | I47: 29 | J47: 15 | K47: 74 | L47: 29 | M47: 15 | N47: 74 | O47: 29 | P47: 15 | Q47: 74 | R47: 29 | S47: 15 | T47: 74 | U47: 29 | V47: 15 | W47: 74 | X47: 164 | Y47: =IFERROR(X47/'Student Profile'!P46,"") -> 32.8 | Z47: 28
A48: ='Student Profile'!A47 ->  | B48: =IF(('Student Profile'!C47)>0,'Student Profile'!C47,"") ->  | C48: 36 | D48: 15 | E48: 85 | F48: 36 | G48: 15 | H48: 85 | I48: 36 | J48: 15 | K48: 85 | L48: 36 | M48: 15 | N48: 85 | O48: 36 | P48: 15 | Q48: 85 | R48: 36 | S48: 15 | T48: 85 | U48: 36 | V48: 15 | W48: 85 | X48: 175 | Y48: =IFERROR(X48/'Student Profile'!P47,"") -> 35 | Z48: 10
A49: ='Student Profile'!A48 ->  | B49: =IF(('Student Profile'!C48)>0,'Student Profile'!C48,"") ->  | C49: 25 | D49: 15 | E49: 67 | F49: 25 | G49: 15 | H49: 67 | I49: 25 | J49: 15 | K49: 67 | L49: 25 | M49: 15 | N49: 67 | O49: 25 | P49: 15 | Q49: 67 | R49: 25 | S49: 15 | T49: 67 | U49: 25 | V49: 15 | W49: 67 | X49: 157 | Y49: =IFERROR(X49/'Student Profile'!P48,"") -> 31.4 | Z49: 32
A50: ='Student Profile'!A49 ->  | B50: =IF(('Student Profile'!C49)>0,'Student Profile'!C49,"") ->  | C50: 34 | D50: 15 | E50: 82 | F50: 34 | G50: 15 | H50: 82 | I50: 34 | J50: 15 | K50: 82 | L50: 34 | M50: 15 | N50: 82 | O50: 34 | P50: 15 | Q50: 82 | R50: 34 | S50: 15 | T50: 82 | U50: 34 | V50: 15 | W50: 82 | X50: 172 | Y50: =IFERROR(X50/'Student Profile'!P49,"") -> 34.4 | Z50: 15
A51: ='Student Profile'!A50 ->  | B51: =IF(('Student Profile'!C50)>0,'Student Profile'!C50,"") ->  | C51: 28 | D51: 18 | E51: 77 | F51: 28 | G51: 18 | H51: 77 | I51: 28 | J51: 18 | K51: 77 | L51: 28 | M51: 18 | N51: 77 | O51: 28 | P51: 18 | Q51: 77 | R51: 28 | S51: 18 | T51: 77 | U51: 28 | V51: 18 | W51: 77 | X51: 185 | Y51: =IFERROR(X51/'Student Profile'!P50,"") -> 37 | Z51: 5
A52: ='Student Profile'!A51 ->  | B52: =IF(('Student Profile'!C51)>0,'Student Profile'!C51,"") ->  | C52: AB | D52: 12 | E52: 20 | F52: AB | G52: 12 | H52: 20 | I52: AB | J52: 12 | K52: 20 | L52: AB | M52: 12 | N52: 20 | O52: AB | P52: 12 | Q52: 20 | R52: AB | S52: 12 | T52: 20 | U52: AB | V52: 12 | W52: 20 | X52: =IF(OR(ISNUMBER(E52),ISNUMBER(H52),ISNUMBER(K52),ISNUMBER(N52),ISNUMBER(Q52),ISNUMBER(T52),ISNUMBER(W52)),SUM(E52,H52,K52,N52,Q52,T52,Q52),"") -> 140 | Y52: =IFERROR(X52/'Student Profile'!P51,"") -> 28 | Z52: 41
A53: Subject Avg. | C53: =IF(AND(ISNUMBER(Z57),Z57>0),SUM(E8:E52)/C60,"") -> 73.66666667 | F53: =IF(AND(ISNUMBER(Z58),Z58>0),SUM(H8:H52)/F60,"") -> 73.66666667 | I53: =IF(AND(ISNUMBER(Z59),Z59>0),SUM(K8:K52)/I60,"") -> 73.66666667 | L53: =IF(AND(ISNUMBER(Z60),Z60>0),SUM(N8:N52)/L60,"") -> 73.66666667 | O53: =IF(AND(ISNUMBER(Z61),Z61>0),SUM(Q8:Q52)/O60,"") -> 73.66666667 | R53: =IF(AND(ISNUMBER(Z62),Z62>0),SUM(T8:T52)/R60,"") -> 73.66666667 | U53: =IF(AND(ISNUMBER(AO58),AO58>0),SUM(W8:W52)/U60,"") ->  | X53: SUBJECTS | Y53: Total Student | Z53: Present
A54: Pass %age | C54: =IF(ISNUMBER(C53),(C61/C60)*100,"0") -> 97.77777778 | F54: =IF(ISNUMBER(F53),F61/F60*100,"0") -> 97.77777778 | I54: =IF(ISNUMBER(I53),I61/I60*100,"0") -> 97.77777778 | L54: =IF(ISNUMBER(L53),L61/L60*100,"0") -> 97.77777778 | O54: =IF(ISNUMBER(O53),O61/O60*100,"0") -> 97.77777778 | R54: =IF(ISNUMBER(R53),R61/R60*100,"0") -> 97.77777778 | U54: =IF(ISNUMBER(U53),U61/U60*100,"0") -> 0
A55: Below 33% | C55: =COUNTIF(E8:E52,"<33") -> 1 | F55: =COUNTIF(H8:H52,"<33") -> 1 | I55: =COUNTIF(K8:K52,"<33") -> 1 | L55: =COUNTIF(N8:N52,"<33") -> 1 | O55: =COUNTIF(Q8:Q52,"<33") -> 1 | R55: =COUNTIF(T8:T52,"<33") -> 1 | U55: =COUNTIF(V8:V52,"<33") -> 45
A56: 33% to 50% | C56: =COUNTIF(E8:E52,">=33")-C57-C58-C59 -> 0 | F56: =COUNTIF(H8:H52,">=33")-F57-F58-F59 -> 0 | I56: =COUNTIF(K8:K52,">=33")-I57-I58-I59 -> 0 | L56: =COUNTIF(N8:N52,">=33")-L57-L58-L59 -> 0 | O56: =COUNTIF(Q8:Q52,">=33")-O57-O58-O59 -> 0 | R56: =COUNTIF(T8:T52,">=33")-R57-R58-R59 -> 0 | U56: =COUNTIF(W8:W52,">=33")-U57-U58-U59 -> 0
A57: 50% to 60% | C57: =COUNTIF(E8:E52,">=50")-C58-C59 -> 4 | F57: =COUNTIF(H8:H52,">=50")-F58-F59 -> 4 | I57: =COUNTIF(K8:K52,">=50")-I58-I59 -> 4 | L57: =COUNTIF(N8:N52,">=50")-L58-L59 -> 4 | O57: =COUNTIF(Q8:Q52,">=50")-O58-O59 -> 4 | R57: =COUNTIF(T8:T52,">=50")-R58-R59 -> 4 | U57: =COUNTIF(W8:W52,">=50")-U58-U59 -> 4 | X57: =Home!B15 -> ENGLISH | Y57: =C62 -> 45 | Z57: =C60 -> 45
A58: 60% to 75% | C58: =COUNTIF(E8:E52,">=60")-C59 -> 17 | F58: =COUNTIF(H8:H52,">=60")-F59 -> 17 | I58: =COUNTIF(K8:K52,">=60")-I59 -> 17 | L58: =COUNTIF(N8:N52,">=60")-L59 -> 17 | O58: =COUNTIF(Q8:Q52,">=60")-O59 -> 17 | R58: =COUNTIF(T8:T52,">=60")-R59 -> 17 | U58: =COUNTIF(W8:W52,">=60")-U59 -> 17 | X58: =Home!B16 -> HINDI | Y58: =F62 -> 45 | Z58: =F60 -> 45
A59: above 75% | C59: =COUNTIF(E8:E52,">=75") -> 23 | F59: =COUNTIF(H8:H52,">=75") -> 23 | I59: =COUNTIF(K8:K52,">=75") -> 23 | L59: =COUNTIF(N8:N52,">=75") -> 23 | O59: =COUNTIF(Q8:Q52,">=75") -> 23 | R59: =COUNTIF(T8:T52,">=75") -> 23 | U59: =COUNTIF(W8:W52,">=75") -> 23 | X59: =Home!B17 -> INFO PRACT | Y59: =I62 -> 45 | Z59: =I60 -> 45
A60: Appeared | C60: =COUNTIF(E8:E52,">=0") -> 45 | F60: =COUNTIF(H8:H52,">=0") -> 45 | I60: =COUNTIF(K8:K52,">=0") -> 45 | L60: =COUNTIF(N8:N52,">=0") -> 45 | O60: =COUNTIF(Q8:Q52,">=0") -> 45 | R60: =COUNTIF(T8:T52,">=0") -> 45 | U60: =COUNTIF(W8:W52,">=0") -> 45 | X60: =Home!B18 -> MATH | Y60: =L62 -> 45 | Z60: =L60 -> 45
A61: Passed | C61: =COUNTIF(E8:E52,">=33") -> 44 | F61: =COUNTIF(H8:H52,">=33") -> 44 | I61: =COUNTIF(K8:K52,">=33") -> 44 | L61: =COUNTIF(N8:N52,">=33") -> 44 | O61: =COUNTIF(Q8:Q52,">=33") -> 44 | R61: =COUNTIF(T8:T52,">=33") -> 44 | U61: =COUNTIF(W8:W52,">=33") -> 44 | X61: =Home!B19 -> CHEM | Y61: =O62 -> 45 | Z61: =O60 -> 45
A62: Total | C62: =C60+C63 -> 45 | F62: =F60+F63 -> 45 | I62: =I60+I63 -> 45 | L62: =L60+L63 -> 45 | O62: =O60+O63 -> 45 | R62: =R60+R63 -> 45 | U62: =U60+U63 -> 45 | X62: =Home!B20 -> PHYSICS | Y62: =R62 -> 45 | Z62: =R60 -> 45
A63: Absent | C63: =COUNTIF(E8:E52,"AB") -> 0 | F63: =COUNTIF(H8:H52,"AB") -> 0 | I63: =COUNTIF(J8:J52,"AB") -> 0 | L63: =COUNTIF(N8:N52,"AB") -> 0 | O63: =COUNTIF(Q8:Q52,"AB") -> 0 | R63: =COUNTIF(T8:T52,"AB") -> 0 | U63: =COUNTIF(W8:W52,"AB") -> 0 | X63: =Home!B21 -> BIO | Y63: =U62 -> 45 | Z63: =U60 -> 45

Sheet TT 1
A1: =Home!C7 -> JAWAHAR NAVODAYA VIDYALAYA, | M1: =Home!I7 -> MOHINDERGARH
A2: Term Test-1
A3: =Home!C9 -> XII A | G3: =Home!C8 -> 2019-20 | P3: E
A4: ROLL NO. | B4: STUDENT NAME | C4: =Home!B15 -> ENGLISH | F4: =Home!B16 -> HINDI | I4: =Home!B17 -> INFO PRACT | L4: =Home!B18 -> MATH | O4: =Home!B19 -> CHEM | R4: =Home!B20 -> PHYSICS | U4: =Home!B21 -> BIO | X4: MARKS OBT | Y4: %AGE | Z4: Rank
C5: M.M | E5: %age | F5: M.M | H5: %age | I5: M.M | K5: %age | L5: M.M | N5: %age | O5: M.M | Q5: %age | R5: M.M | T5: %age | U5: M.M | W5: %age
C6: Th. | D6: IA/ Prac. | F6: Th. | G6: IA/ Prac. | I6: Th. | J6: IA/ Prac. | L6: Th. | M6: IA/ Prac. | O6: Th. | P6: IA/ Prac. | R6: Th. | S6: IA/ Prac. | U6: Th. | V6: IA/ Prac.
C7: 70 | D7: 20 | E7: 100 | F7: 40 | G7: 20 | H7: 100 | I7: 40 | J7: 20 | K7: 100 | L7: 40 | M7: 20 | N7: 100 | O7: 40 | P7: 20 | Q7: 100 | R7: 40 | S7: 20 | T7: 100 | U7: 40 | V7: 20 | W7: 100
A8: ='Student Profile'!A7 -> 1 | B8: =IF(('Student Profile'!C7)>0,'Student Profile'!C7,"") -> SUNIL KUMAR | C8: 20 | D8: 10 | E8: =IF(OR(ISNUMBER(C8),ISNUMBER(D8)),ROUNDUP(SUM(C8:D8)/SUM($C$7,$D$7)*100,0),IF(C8="AB",C8,"")) -> 34 | F8: 20 | G8: 10 | H8: =IF(OR(ISNUMBER(F8),ISNUMBER(G8)),ROUNDUP(SUM(F8:G8)/SUM($F$7,$G$7)*100,0),IF(F8="AB",F8,"")) -> 50 | I8: 20 | J8: 10 | K8: =IF(OR(ISNUMBER(I8),ISNUMBER(J8)),ROUNDUP(SUM(I8:J8)/SUM($I$7,$J$7)*100,0),IF(I8="AB",I8,"")) -> 50 | L8: 20 | M8: 10 | N8: =IF(OR(ISNUMBER(L8),ISNUMBER(M8)),ROUNDUP(SUM(L8:M8)/SUM($L$7,$M$7)*100,0),IF(L8="AB",L8,"")) -> 50 | O8: 20 | P8: 10 | Q8: =IF(OR(ISNUMBER(O8),ISNUMBER(P8)),ROUNDUP(SUM(O8:P8)/SUM($O$7,$P$7)*100,0),IF(O8="AB",O8,"")) -> 50 | R8: 20 | S8: 10 | T8: =IF(OR(ISNUMBER(R8),ISNUMBER(S8)),ROUNDUP(SUM(R8:S8)/SUM($R$7,$S$7)*100,0),IF(R8="AB",R8,"")) -> 50 | U8: 20 | V8: 10 | W8: =IF(OR(ISNUMBER(U8),ISNUMBER(V8)),ROUNDUP(SUM(U8:V8)/SUM($U$7,$V$7)*100,0),IF(U8="AB",U8,"")) -> 50 | X8: =IF(OR(ISNUMBER(E8),ISNUMBER(G8),ISNUMBER(J8),ISNUMBER(M8),ISNUMBER(P8),ISNUMBER(S8),ISNUMBER(V8)),SUM(E8,G8,J8,M8,P8,S8,V8),"") -> 94 | Y8: =IFERROR(X8/'Student Profile'!P7,"") -> 18.8 | Z8: =IFERROR(RANK(Y8,Y$8:Y$52,0),"") -> 42
A9: ='Student Profile'!A8 ->  | B9: =IF(('Student Profile'!C8)>0,'Student Profile'!C8,"") ->  | C9: 25 | D9: 15 | E9: =IF(OR(ISNUMBER(C9),ISNUMBER(D9)),ROUNDUP(SUM(C9:D9)/SUM($C$7,$D$7)*100,0),IF(C9="AB",C9,"")) -> 45 | F9: 25 | G9: 15 | H9: =IF(OR(ISNUMBER(F9),ISNUMBER(G9)),ROUNDUP(SUM(F9:G9)/SUM($F$7,$G$7)*100,0),IF(F9="AB",F9,"")) -> 67 | I9: 25 | J9: 15 | K9: =IF(OR(ISNUMBER(I9),ISNUMBER(J9)),ROUNDUP(SUM(I9:J9)/SUM($I$7,$J$7)*100,0),IF(I9="AB",I9,"")) -> 67 | L9: 25 | M9: 15 | N9: =IF(OR(ISNUMBER(L9),ISNUMBER(M9)),ROUNDUP(SUM(L9:M9)/SUM($L$7,$M$7)*100,0),IF(L9="AB",L9,"")) -> 67 | O9: 25 | P9: 15 | Q9: =IF(OR(ISNUMBER(O9),ISNUMBER(P9)),ROUNDUP(SUM(O9:P9)/SUM($O$7,$P$7)*100,0),IF(O9="AB",O9,"")) -> 67 | R9: 25 | S9: 15 | T9: =IF(OR(ISNUMBER(R9),ISNUMBER(S9)),ROUNDUP(SUM(R9:S9)/SUM($R$7,$S$7)*100,0),IF(R9="AB",R9,"")) -> 67 | U9: 25 | V9: 15 | W9: =IF(OR(ISNUMBER(U9),ISNUMBER(V9)),ROUNDUP(SUM(U9:V9)/SUM($U$7,$V$7)*100,0),IF(U9="AB",U9,"")) -> 67 | X9: =IF(OR(ISNUMBER(E9),ISNUMBER(G9),ISNUMBER(J9),ISNUMBER(M9),ISNUMBER(P9),ISNUMBER(S9),ISNUMBER(V9)),SUM(E9,G9,J9,M9,P9,S9,V9),"") -> 135 | Y9: =IFERROR(X9/'Student Profile'!P8,"") -> 27 | Z9: =IF(ISNUMBER(Y9),RANK(X9,X$8:X$52,0),"") -> 32
A10: ='Student Profile'!A9 ->  | B10: =IF(('Student Profile'!C9)>0,'Student Profile'!C9,"") ->  | C10: 35 | D10: 20 | E10: 62 | F10: 35 | G10: 20 | H10: 92 | I10: 35 | J10: 20 | K10: 92 | L10: 35 | M10: 20 | N10: 92 | O10: 35 | P10: 20 | Q10: 92 | R10: 35 | S10: 20 | T10: 92 | U10: 35 | V10: 20 | W10: 92 | X10: 182 | Y10: =IFERROR(X10/'Student Profile'!P9,"") -> 36.4 | Z10: 1
A11: ='Student Profile'!A10 ->  | B11: =IF(('Student Profile'!C10)>0,'Student Profile'!C10,"") ->  | C11: 25 | D11: 17 | E11: 47 | F11: 25 | G11: 17 | H11: 70 | I11: 25 | J11: 17 | K11: 70 | L11: 25 | M11: 17 | N11: 70 | O11: 25 | P11: 17 | Q11: 70 | R11: 25 | S11: 17 | T11: 70 | U11: 25 | V11: 17 | W11: 70 | X11: 149 | Y11: =IFERROR(X11/'Student Profile'!P10,"") -> 29.8 | Z11: 10
A12: ='Student Profile'!A11 ->  | B12: =IF(('Student Profile'!C11)>0,'Student Profile'!C11,"") ->  | C12: 34 | D12: 15 | E12: 55 | F12: 34 | G12: 15 | H12: 82 | I12: 34 | J12: 15 | K12: 82 | L12: 34 | M12: 15 | N12: 82 | O12: 34 | P12: 15 | Q12: 82 | R12: 34 | S12: 15 | T12: 82 | U12: 34 | V12: 15 | W12: 82 | X12: 145 | Y12: =IFERROR(X12/'Student Profile'!P11,"") -> 29 | Z12: 19
A13: ='Student Profile'!A12 ->  | B13: =IF(('Student Profile'!C12)>0,'Student Profile'!C12,"") ->  | C13: 36 | D13: 15 | E13: 57 | F13: 36 | G13: 15 | H13: 85 | I13: 36 | J13: 15 | K13: 85 | L13: 36 | M13: 15 | N13: 85 | O13: 36 | P13: 15 | Q13: 85 | R13: 36 | S13: 15 | T13: 85 | U13: 36 | V13: 15 | W13: 85 | X13: 147 | Y13: =IFERROR(X13/'Student Profile'!P12,"") -> 29.4 | Z13: 14
A14: ='Student Profile'!A13 ->  | B14: =IF(('Student Profile'!C13)>0,'Student Profile'!C13,"") ->  | C14: 25 | D14: 15 | E14: 45 | F14: 25 | G14: 15 | H14: 67 | I14: 25 | J14: 15 | K14: 67 | L14: 25 | M14: 15 | N14: 67 | O14: 25 | P14: 15 | Q14: 67 | R14: 25 | S14: 15 | T14: 67 | U14: 25 | V14: 15 | W14: 67 | X14: 135 | Y14: =IFERROR(X14/'Student Profile'!P13,"") -> 27 | Z14: 32
A15: ='Student Profile'!A14 ->  | B15: =IF(('Student Profile'!C14)>0,'Student Profile'!C14,"") ->  | C15: 34 | D15: 15 | E15: 55 | F15: 34 | G15: 15 | H15: 82 | I15: 34 | J15: 15 | K15: 82 | L15: 34 | M15: 15 | N15: 82 | O15: 34 | P15: 15 | Q15: 82 | R15: 34 | S15: 15 | T15: 82 | U15: 34 | V15: 15 | W15: 82 | X15: 145 | Y15: =IFERROR(X15/'Student Profile'!P14,"") -> 29 | Z15: 19
A16: ='Student Profile'!A15 ->  | B16: =IF(('Student Profile'!C15)>0,'Student Profile'!C15,"") ->  | C16: 28 | D16: 18 | E16: 52 | F16: 28 | G16: 18 | H16: 77 | I16: 28 | J16: 18 | K16: 77 | L16: 28 | M16: 18 | N16: 77 | O16: 28 | P16: 18 | Q16: 77 | R16: 28 | S16: 18 | T16: 77 | U16: 28 | V16: 18 | W16: 77 | X16: 160 | Y16: =IFERROR(X16/'Student Profile'!P15,"") -> 32 | Z16: 5
A17: ='Student Profile'!A16 ->  | B17: =IF(('Student Profile'!C16)>0,'Student Profile'!C16,"") ->  | C17: 29 | D17: 15 | E17: 49 | F17: 29 | G17: 15 | H17: 74 | I17: 29 | J17: 15 | K17: 74 | L17: 29 | M17: 15 | N17: 74 | O17: 29 | P17: 15 | Q17: 74 | R17: 29 | S17: 15 | T17: 74 | U17: 29 | V17: 15 | W17: 74 | X17: 139 | Y17: =IFERROR(X17/'Student Profile'!P16,"") -> 27.8 | Z17: 28
A18: ='Student Profile'!A17 ->  | B18: =IF(('Student Profile'!C17)>0,'Student Profile'!C17,"") ->  | C18: 20 | D18: 10 | E18: 34 | F18: 20 | G18: 10 | H18: 50 | I18: 20 | J18: 10 | K18: 50 | L18: 20 | M18: 10 | N18: 50 | O18: 20 | P18: 10 | Q18: 50 | R18: 20 | S18: 10 | T18: 50 | U18: 20 | V18: 10 | W18: 50 | X18: 94 | Y18: =IFERROR(X18/'Student Profile'!P17,"") -> 18.8 | Z18: 42
A19: ='Student Profile'!A18 ->  | B19: =IF(('Student Profile'!C18)>0,'Student Profile'!C18,"") ->  | C19: 25 | D19: 15 | E19: 45 | F19: 25 | G19: 15 | H19: 67 | I19: 25 | J19: 15 | K19: 67 | L19: 25 | M19: 15 | N19: 67 | O19: 25 | P19: 15 | Q19: 67 | R19: 25 | S19: 15 | T19: 67 | U19: 25 | V19: 15 | W19: 67 | X19: 135 | Y19: =IFERROR(X19/'Student Profile'!P18,"") -> 27 | Z19: 32
A20: ='Student Profile'!A19 ->  | B20: =IF(('Student Profile'!C19)>0,'Student Profile'!C19,"") ->  | C20: 35 | D20: 20 | E20: 62 | F20: 35 | G20: 20 | H20: 92 | I20: 35 | J20: 20 | K20: 92 | L20: 35 | M20: 20 | N20: 92 | O20: 35 | P20: 20 | Q20: 92 | R20: 35 | S20: 20 | T20: 92 | U20: 35 | V20: 20 | W20: 92 | X20: 182 | Y20: =IFERROR(X20/'Student Profile'!P19,"") -> 36.4 | Z20: 1
A21: ='Student Profile'!A20 ->  | B21: =IF(('Student Profile'!C20)>0,'Student Profile'!C20,"") ->  | C21: 25 | D21: 17 | E21: 47 | F21: 25 | G21: 17 | H21: 70 | I21: 25 | J21: 17 | K21: 70 | L21: 25 | M21: 17 | N21: 70 | O21: 25 | P21: 17 | Q21: 70 | R21: 25 | S21: 17 | T21: 70 | U21: 25 | V21: 17 | W21: 70 | X21: 149 | Y21: =IFERROR(X21/'Student Profile'!P20,"") -> 29.8 | Z21: 10
A22: ='Student Profile'!A21 ->  | B22: =IF(('Student Profile'!C21)>0,'Student Profile'!C21,"") ->  | C22: 34 | D22: 15 | E22: 55 | F22: 34 | G22: 15 | H22: 82 | I22: 34 | J22: 15 | K22: 82 | L22: 34 | M22: 15 | N22: 82 | O22: 34 | P22: 15 | Q22: 82 | R22: 34 | S22: 15 | T22: 82 | U22: 34 | V22: 15 | W22: 82 | X22: 145 | Y22: =IFERROR(X22/'Student Profile'!P21,"") -> 29 | Z22: 19
A23: ='Student Profile'!A22 ->  | B23: =IF(('Student Profile'!C22)>0,'Student Profile'!C22,"") ->  | C23: 36 | D23: 15 | E23: 57 | F23: 36 | G23: 15 | H23: 85 | I23: 36 | J23: 15 | K23: 85 | L23: 36 | M23: 15 | N23: 85 | O23: 36 | P23: 15 | Q23: 85 | R23: 36 | S23: 15 | T23: 85 | U23: 36 | V23: 15 | W23: 85 | X23: 147 | Y23: =IFERROR(X23/'Student Profile'!P22,"") -> 29.4 | Z23: 14
A24: ='Student Profile'!A23 ->  | B24: =IF(('Student Profile'!C23)>0,'Student Profile'!C23,"") ->  | C24: 25 | D24: 15 | E24: 45 | F24: 25 | G24: 15 | H24: 67 | I24: 25 | J24: 15 | K24: 67 | L24: 25 | M24: 15 | N24: 67 | O24: 25 | P24: 15 | Q24: 67 | R24: 25 | S24: 15 | T24: 67 | U24: 25 | V24: 15 | W24: 67 | X24: 135 | Y24: =IFERROR(X24/'Student Profile'!P23,"") -> 27 | Z24: 32
A25: ='Student Profile'!A24 ->  | B25: =IF(('Student Profile'!C24)>0,'Student Profile'!C24,"") ->  | C25: 34 | D25: 15 | E25: 55 | F25: 34 | G25: 15 | H25: 82 | I25: 34 | J25: 15 | K25: 82 | L25: 34 | M25: 15 | N25: 82 | O25: 34 | P25: 15 | Q25: 82 | R25: 34 | S25: 15 | T25: 82 | U25: 34 | V25: 15 | W25: 82 | X25: 145 | Y25: =IFERROR(X25/'Student Profile'!P24,"") -> 29 | Z25: 19
A26: ='Student Profile'!A25 ->  | B26: =IF(('Student Profile'!C25)>0,'Student Profile'!C25,"") ->  | C26: 28 | D26: 18 | E26: 52 | F26: 28 | G26: 18 | H26: 77 | I26: 28 | J26: 18 | K26: 77 | L26: 28 | M26: 18 | N26: 77 | O26: 28 | P26: 18 | Q26: 77 | R26: 28 | S26: 18 | T26: 77 | U26: 28 | V26: 18 | W26: 77 | X26: 160 | Y26: =IFERROR(X26/'Student Profile'!P25,"") -> 32 | Z26: 5
A27: ='Student Profile'!A26 ->  | B27: =IF(('Student Profile'!C26)>0,'Student Profile'!C26,"") ->  | C27: 29 | D27: 15 | E27: 49 | F27: 29 | G27: 15 | H27: 74 | I27: 29 | J27: 15 | K27: 74 | L27: 29 | M27: 15 | N27: 74 | O27: 29 | P27: 15 | Q27: 74 | R27: 29 | S27: 15 | T27: 74 | U27: 29 | V27: 15 | W27: 74 | X27: 139 | Y27: =IFERROR(X27/'Student Profile'!P26,"") -> 27.8 | Z27: 28
A28: ='Student Profile'!A27 ->  | B28: =IF(('Student Profile'!C27)>0,'Student Profile'!C27,"") ->  | C28: 20 | D28: 10 | E28: 34 | F28: 20 | G28: 10 | H28: 50 | I28: 20 | J28: 10 | K28: 50 | L28: 20 | M28: 10 | N28: 50 | O28: 20 | P28: 10 | Q28: 50 | R28: 20 | S28: 10 | T28: 50 | U28: 20 | V28: 10 | W28: 50 | X28: 94 | Y28: =IFERROR(X28/'Student Profile'!P27,"") -> 18.8 | Z28: 42
A29: ='Student Profile'!A28 ->  | B29: =IF(('Student Profile'!C28)>0,'Student Profile'!C28,"") ->  | C29: 25 | D29: 15 | E29: 45 | F29: 25 | G29: 15 | H29: 67 | I29: 25 | J29: 15 | K29: 67 | L29: 25 | M29: 15 | N29: 67 | O29: 25 | P29: 15 | Q29: 67 | R29: 25 | S29: 15 | T29: 67 | U29: 25 | V29: 15 | W29: 67 | X29: 135 | Y29: =IFERROR(X29/'Student Profile'!P28,"") -> 27 | Z29: 32
A30: ='Student Profile'!A29 ->  | B30: =IF(('Student Profile'!C29)>0,'Student Profile'!C29,"") ->  | C30: 35 | D30: 20 | E30: 62 | F30: 35 | G30: 20 | H30: 92 | I30: 35 | J30: 20 | K30: 92 | L30: 35 | M30: 20 | N30: 92 | O30: 35 | P30: 20 | Q30: 92 | R30: 35 | S30: 20 | T30: 92 | U30: 35 | V30: 20 | W30: 92 | X30: 182 | Y30: =IFERROR(X30/'Student Profile'!P29,"") -> 36.4 | Z30: 1
A31: ='Student Profile'!A30 ->  | B31: =IF(('Student Profile'!C30)>0,'Student Profile'!C30,"") ->  | C31: 25 | D31: 17 | E31: 47 | F31: 25 | G31: 17 | H31: 70 | I31: 25 | J31: 17 | K31: 70 | L31: 25 | M31: 17 | N31: 70 | O31: 25 | P31: 17 | Q31: 70 | R31: 25 | S31: 17 | T31: 70 | U31: 25 | V31: 17 | W31: 70 | X31: 149 | Y31: =IFERROR(X31/'Student Profile'!P30,"") -> 29.8 | Z31: 10
A32: ='Student Profile'!A31 ->  | B32: =IF(('Student Profile'!C31)>0,'Student Profile'!C31,"") ->  | C32: 34 | D32: 15 | E32: 55 | F32: 34 | G32: 15 | H32: 82 | I32: 34 | J32: 15 | K32: 82 | L32: 34 | M32: 15 | N32: 82 | O32: 34 | P32: 15 | Q32: 82 | R32: 34 | S32: 15 | T32: 82 | U32: 34 | V32: 15 | W32: 82 | X32: 145 | Y32: =IFERROR(X32/'Student Profile'!P31,"") -> 29 | Z32: 19
A33: ='Student Profile'!A32 ->  | B33: =IF(('Student Profile'!C32)>0,'Student Profile'!C32,"") ->  | C33: 36 | D33: 15 | E33: 57 | F33: 36 | G33: 15 | H33: 85 | I33: 36 | J33: 15 | K33: 85 | L33: 36 | M33: 15 | N33: 85 | O33: 36 | P33: 15 | Q33: 85 | R33: 36 | S33: 15 | T33: 85 | U33: 36 | V33: 15 | W33: 85 | X33: 147 | Y33: =IFERROR(X33/'Student Profile'!P32,"") -> 29.4 | Z33: 14
A34: ='Student Profile'!A33 ->  | B34: =IF(('Student Profile'!C33)>0,'Student Profile'!C33,"") ->  | C34: 25 | D34: 15 | E34: 45 | F34: 25 | G34: 15 | H34: 67 | I34: 25 | J34: 15 | K34: 67 | L34: 25 | M34: 15 | N34: 67 | O34: 25 | P34: 15 | Q34: 67 | R34: 25 | S34: 15 | T34: 67 | U34: 25 | V34: 15 | W34: 67 | X34: 135 | Y34: =IFERROR(X34/'Student Profile'!P33,"") -> 27 | Z34: 32
A35: ='Student Profile'!A34 ->  | B35: =IF(('Student Profile'!C34)>0,'Student Profile'!C34,"") ->  | C35: 34 | D35: 15 | E35: 55 | F35: 34 | G35: 15 | H35: 82 | I35: 34 | J35: 15 | K35: 82 | L35: 34 | M35: 15 | N35: 82 | O35: 34 | P35: 15 | Q35: 82 | R35: 34 | S35: 15 | T35: 82 | U35: 34 | V35: 15 | W35: 82 | X35: 145 | Y35: =IFERROR(X35/'Student Profile'!P34,"") -> 29 | Z35: 19
A36: ='Student Profile'!A35 ->  | B36: =IF(('Student Profile'!C35)>0,'Student Profile'!C35,"") ->  | C36: 28 | D36: 18 | E36: 52 | F36: 28 | G36: 18 | H36: 77 | I36: 28 | J36: 18 | K36: 77 | L36: 28 | M36: 18 | N36: 77 | O36: 28 | P36: 18 | Q36: 77 | R36: 28 | S36: 18 | T36: 77 | U36: 28 | V36: 18 | W36: 77 | X36: 160 | Y36: =IFERROR(X36/'Student Profile'!P35,"") -> 32 | Z36: 5
A37: ='Student Profile'!A36 ->  | B37: =IF(('Student Profile'!C36)>0,'Student Profile'!C36,"") ->  | C37: 29 | D37: 15 | E37: 49 | F37: 29 | G37: 15 | H37: 74 | I37: 29 | J37: 15 | K37: 74 | L37: 29 | M37: 15 | N37: 74 | O37: 29 | P37: 15 | Q37: 74 | R37: 29 | S37: 15 | T37: 74 | U37: 29 | V37: 15 | W37: 74 | X37: 139 | Y37: =IFERROR(X37/'Student Profile'!P36,"") -> 27.8 | Z37: 28
A38: ='Student Profile'!A37 ->  | B38: =IF(('Student Profile'!C37)>0,'Student Profile'!C37,"") ->  | C38: 20 | D38: 10 | E38: 34 | F38: 20 | G38: 10 | H38: 50 | I38: 20 | J38: 10 | K38: 50 | L38: 20 | M38: 10 | N38: 50 | O38: 20 | P38: 10 | Q38: 50 | R38: 20 | S38: 10 | T38: 50 | U38: 20 | V38: 10 | W38: 50 | X38: 94 | Y38: =IFERROR(X38/'Student Profile'!P37,"") -> 18.8 | Z38: 42
A39: ='Student Profile'!A38 ->  | B39: =IF(('Student Profile'!C38)>0,'Student Profile'!C38,"") ->  | C39: 25 | D39: 15 | E39: 45 | F39: 25 | G39: 15 | H39: 67 | I39: 25 | J39: 15 | K39: 67 | L39: 25 | M39: 15 | N39: 67 | O39: 25 | P39: 15 | Q39: 67 | R39: 25 | S39: 15 | T39: 67 | U39: 25 | V39: 15 | W39: 67 | X39: 135 | Y39: =IFERROR(X39/'Student Profile'!P38,"") -> 27 | Z39: 32
A40: ='Student Profile'!A39 ->  | B40: =IF(('Student Profile'!C39)>0,'Student Profile'!C39,"") ->  | C40: 35 | D40: 20 | E40: 62 | F40: 35 | G40: 20 | H40: 92 | I40: 35 | J40: 20 | K40: 92 | L40: 35 | M40: 20 | N40: 92 | O40: 35 | P40: 20 | Q40: 92 | R40: 35 | S40: 20 | T40: 92 | U40: 35 | V40: 20 | W40: 92 | X40: 182 | Y40: =IFERROR(X40/'Student Profile'!P39,"") -> 36.4 | Z40: 1
A41: ='Student Profile'!A40 ->  | B41: =IF(('Student Profile'!C40)>0,'Student Profile'!C40,"") ->  | C41: 25 | D41: 17 | E41: 47 | F41: 25 | G41: 17 | H41: 70 | I41: 25 | J41: 17 | K41: 70 | L41: 25 | M41: 17 | N41: 70 | O41: 25 | P41: 17 | Q41: 70 | R41: 25 | S41: 17 | T41: 70 | U41: 25 | V41: 17 | W41: 70 | X41: 149 | Y41: =IFERROR(X41/'Student Profile'!P40,"") -> 29.8 | Z41: 10
A42: ='Student Profile'!A41 ->  | B42: =IF(('Student Profile'!C41)>0,'Student Profile'!C41,"") ->  | C42: 34 | D42: 15 | E42: 55 | F42: 34 | G42: 15 | H42: 82 | I42: 34 | J42: 15 | K42: 82 | L42: 34 | M42: 15 | N42: 82 | O42: 34 | P42: 15 | Q42: 82 | R42: 34 | S42: 15 | T42: 82 | U42: 34 | V42: 15 | W42: 82 | X42: 145 | Y42: =IFERROR(X42/'Student Profile'!P41,"") -> 29 | Z42: 19
A43: ='Student Profile'!A42 ->  | B43: =IF(('Student Profile'!C42)>0,'Student Profile'!C42,"") ->  | C43: 36 | D43: 15 | E43: 57 | F43: 36 | G43: 15 | H43: 85 | I43: 36 | J43: 15 | K43: 85 | L43: 36 | M43: 15 | N43: 85 | O43: 36 | P43: 15 | Q43: 85 | R43: 36 | S43: 15 | T43: 85 | U43: 36 | V43: 15 | W43: 85 | X43: 147 | Y43: =IFERROR(X43/'Student Profile'!P42,"") -> 29.4 | Z43: 14
A44: ='Student Profile'!A43 ->  | B44: =IF(('Student Profile'!C43)>0,'Student Profile'!C43,"") ->  | C44: 25 | D44: 15 | E44: 45 | F44: 25 | G44: 15 | H44: 67 | I44: 25 | J44: 15 | K44: 67 | L44: 25 | M44: 15 | N44: 67 | O44: 25 | P44: 15 | Q44: 67 | R44: 25 | S44: 15 | T44: 67 | U44: 25 | V44: 15 | W44: 67 | X44: 135 | Y44: =IFERROR(X44/'Student Profile'!P43,"") -> 27 | Z44: 32
A45: ='Student Profile'!A44 ->  | B45: =IF(('Student Profile'!C44)>0,'Student Profile'!C44,"") ->  | C45: 34 | D45: 15 | E45: 55 | F45: 34 | G45: 15 | H45: 82 | I45: 34 | J45: 15 | K45: 82 | L45: 34 | M45: 15 | N45: 82 | O45: 34 | P45: 15 | Q45: 82 | R45: 34 | S45: 15 | T45: 82 | U45: 34 | V45: 15 | W45: 82 | X45: 145 | Y45: =IFERROR(X45/'Student Profile'!P44,"") -> 29 | Z45: 19
A46: ='Student Profile'!A45 ->  | B46: =IF(('Student Profile'!C45)>0,'Student Profile'!C45,"") ->  | C46: 28 | D46: 18 | E46: 52 | F46: 28 | G46: 18 | H46: 77 | I46: 28 | J46: 18 | K46: 77 | L46: 28 | M46: 18 | N46: 77 | O46: 28 | P46: 18 | Q46: 77 | R46: 28 | S46: 18 | T46: 77 | U46: 28 | V46: 18 | W46: 77 | X46: 160 | Y46: =IFERROR(X46/'Student Profile'!P45,"") -> 32 | Z46: 5
A47: ='Student Profile'!A46 ->  | B47: =IF(('Student Profile'!C46)>0,'Student Profile'!C46,"") ->  | C47: 29 | D47: 15 | E47: 49 | F47: 29 | G47: 15 | H47: 74 | I47: 29 | J47: 15 | K47: 74 | L47: 29 | M47: 15 | N47: 74 | O47: 29 | P47: 15 | Q47: 74 | R47: 29 | S47: 15 | T47: 74 | U47: 29 | V47: 15 | W47: 74 | X47: 139 | Y47: =IFERROR(X47/'Student Profile'!P46,"") -> 27.8 | Z47: 28
A48: ='Student Profile'!A47 ->  | B48: =IF(('Student Profile'!C47)>0,'Student Profile'!C47,"") ->  | C48: 36 | D48: 15 | E48: 57 | F48: 36 | G48: 15 | H48: 85 | I48: 36 | J48: 15 | K48: 85 | L48: 36 | M48: 15 | N48: 85 | O48: 36 | P48: 15 | Q48: 85 | R48: 36 | S48: 15 | T48: 85 | U48: 36 | V48: 15 | W48: 85 | X48: 147 | Y48: =IFERROR(X48/'Student Profile'!P47,"") -> 29.4 | Z48: 14
A49: ='Student Profile'!A48 ->  | B49: =IF(('Student Profile'!C48)>0,'Student Profile'!C48,"") ->  | C49: 25 | D49: 15 | E49: 45 | F49: 25 | G49: 15 | H49: 67 | I49: 25 | J49: 15 | K49: 67 | L49: 25 | M49: 15 | N49: 67 | O49: 25 | P49: 15 | Q49: 67 | R49: 25 | S49: 15 | T49: 67 | U49: 25 | V49: 15 | W49: 67 | X49: 135 | Y49: =IFERROR(X49/'Student Profile'!P48,"") -> 27 | Z49: 32
A50: ='Student Profile'!A49 ->  | B50: =IF(('Student Profile'!C49)>0,'Student Profile'!C49,"") ->  | C50: 34 | D50: 15 | E50: 55 | F50: 34 | G50: 15 | H50: 82 | I50: 34 | J50: 15 | K50: 82 | L50: 34 | M50: 15 | N50: 82 | O50: 34 | P50: 15 | Q50: 82 | R50: 34 | S50: 15 | T50: 82 | U50: 34 | V50: 15 | W50: 82 | X50: 145 | Y50: =IFERROR(X50/'Student Profile'!P49,"") -> 29 | Z50: 19
A51: ='Student Profile'!A50 ->  | B51: =IF(('Student Profile'!C50)>0,'Student Profile'!C50,"") ->  | C51: 28 | D51: 18 | E51: 52 | F51: 28 | G51: 18 | H51: 77 | I51: 28 | J51: 18 | K51: 77 | L51: 28 | M51: 18 | N51: 77 | O51: 28 | P51: 18 | Q51: 77 | R51: 28 | S51: 18 | T51: 77 | U51: 28 | V51: 18 | W51: 77 | X51: 160 | Y51: =IFERROR(X51/'Student Profile'!P50,"") -> 32 | Z51: 5
A52: ='Student Profile'!A51 ->  | B52: =IF(('Student Profile'!C51)>0,'Student Profile'!C51,"") ->  | C52: AB | D52: 12 | E52: 14 | F52: AB | G52: 12 | H52: 20 | I52: AB | J52: 12 | K52: 20 | L52: AB | M52: 12 | N52: 20 | O52: AB | P52: 12 | Q52: 20 | R52: AB | S52: 12 | T52: 20 | U52: AB | V52: 12 | W52: 20 | X52: =IF(OR(ISNUMBER(E52),ISNUMBER(H52),ISNUMBER(K52),ISNUMBER(N52),ISNUMBER(Q52),ISNUMBER(T52),ISNUMBER(W52)),SUM(E52,H52,K52,N52,Q52,T52,Q52),"") -> 134 | Y52: =IFERROR(X52/'Student Profile'!P51,"") -> 26.8 | Z52: 41
A53: Subject Avg. | C53: =IF(AND(ISNUMBER(Z57),Z57>0),SUM(E8:E52)/C60,"") -> 49.48888889 | F53: =IF(AND(ISNUMBER(Z58),Z58>0),SUM(H8:H52)/F60,"") -> 73.66666667 | I53: =IF(AND(ISNUMBER(Z59),Z59>0),SUM(K8:K52)/I60,"") -> 73.66666667 | L53: =IF(AND(ISNUMBER(Z60),Z60>0),SUM(N8:N52)/L60,"") -> 73.66666667 | O53: =IF(AND(ISNUMBER(Z61),Z61>0),SUM(Q8:Q52)/O60,"") -> 73.66666667 | R53: =IF(AND(ISNUMBER(Z62),Z62>0),SUM(T8:T52)/R60,"") -> 73.66666667 | U53: =IF(AND(ISNUMBER(AO58),AO58>0),SUM(W8:W52)/U60,"") ->  | X53: SUBJECTS | Y53: Total Student | Z53: Present
A54: Pass %age | C54: =IF(ISNUMBER(C53),(C61/C60)*100,"0") -> 97.77777778 | F54: =IF(ISNUMBER(F53),F61/F60*100,"0") -> 97.77777778 | I54: =IF(ISNUMBER(I53),I61/I60*100,"0") -> 97.77777778 | L54: =IF(ISNUMBER(L53),L61/L60*100,"0") -> 97.77777778 | O54: =IF(ISNUMBER(O53),O61/O60*100,"0") -> 97.77777778 | R54: =IF(ISNUMBER(R53),R61/R60*100,"0") -> 97.77777778 | U54: =IF(ISNUMBER(U53),U61/U60*100,"0") -> 0
A55: Below 33% | C55: =COUNTIF(E8:E52,"<33") -> 1 | F55: =COUNTIF(H8:H52,"<33") -> 1 | I55: =COUNTIF(K8:K52,"<33") -> 1 | L55: =COUNTIF(N8:N52,"<33") -> 1 | O55: =COUNTIF(Q8:Q52,"<33") -> 1 | R55: =COUNTIF(T8:T52,"<33") -> 1 | U55: =COUNTIF(V8:V52,"<33") -> 45
A56: 33% to 50% | C56: =COUNTIF(E8:E52,">=33")-C57-C58-C59 -> 21 | F56: =COUNTIF(H8:H52,">=33")-F57-F58-F59 -> 0 | I56: =COUNTIF(K8:K52,">=33")-I57-I58-I59 -> 0 | L56: =COUNTIF(N8:N52,">=33")-L57-L58-L59 -> 0 | O56: =COUNTIF(Q8:Q52,">=33")-O57-O58-O59 -> 0 | R56: =COUNTIF(T8:T52,">=33")-R57-R58-R59 -> 0 | U56: =COUNTIF(W8:W52,">=33")-U57-U58-U59 -> 0
A57: 50% to 60% | C57: =COUNTIF(E8:E52,">=50")-C58-C59 -> 19 | F57: =COUNTIF(H8:H52,">=50")-F58-F59 -> 4 | I57: =COUNTIF(K8:K52,">=50")-I58-I59 -> 4 | L57: =COUNTIF(N8:N52,">=50")-L58-L59 -> 4 | O57: =COUNTIF(Q8:Q52,">=50")-O58-O59 -> 4 | R57: =COUNTIF(T8:T52,">=50")-R58-R59 -> 4 | U57: =COUNTIF(W8:W52,">=50")-U58-U59 -> 4 | X57: =Home!B15 -> ENGLISH | Y57: =C62 -> 45 | Z57: =C60 -> 45
A58: 60% to 75% | C58: =COUNTIF(E8:E52,">=60")-C59 -> 4 | F58: =COUNTIF(H8:H52,">=60")-F59 -> 17 | I58: =COUNTIF(K8:K52,">=60")-I59 -> 17 | L58: =COUNTIF(N8:N52,">=60")-L59 -> 17 | O58: =COUNTIF(Q8:Q52,">=60")-O59 -> 17 | R58: =COUNTIF(T8:T52,">=60")-R59 -> 17 | U58: =COUNTIF(W8:W52,">=60")-U59 -> 17 | X58: =Home!B16 -> HINDI | Y58: =F62 -> 45 | Z58: =F60 -> 45
A59: above 75% | C59: =COUNTIF(E8:E52,">=75") -> 0 | F59: =COUNTIF(H8:H52,">=75") -> 23 | I59: =COUNTIF(K8:K52,">=75") -> 23 | L59: =COUNTIF(N8:N52,">=75") -> 23 | O59: =COUNTIF(Q8:Q52,">=75") -> 23 | R59: =COUNTIF(T8:T52,">=75") -> 23 | U59: =COUNTIF(W8:W52,">=75") -> 23 | X59: =Home!B17 -> INFO PRACT | Y59: =I62 -> 45 | Z59: =I60 -> 45
A60: Appeared | C60: =COUNTIF(E8:E52,">=0") -> 45 | F60: =COUNTIF(H8:H52,">=0") -> 45 | I60: =COUNTIF(K8:K52,">=0") -> 45 | L60: =COUNTIF(N8:N52,">=0") -> 45 | O60: =COUNTIF(Q8:Q52,">=0") -> 45 | R60: =COUNTIF(T8:T52,">=0") -> 45 | U60: =COUNTIF(W8:W52,">=0") -> 45 | X60: =Home!B18 -> MATH | Y60: =L62 -> 45 | Z60: =L60 -> 45
A61: Passed | C61: =COUNTIF(E8:E52,">=33") -> 44 | F61: =COUNTIF(H8:H52,">=33") -> 44 | I61: =COUNTIF(K8:K52,">=33") -> 44 | L61: =COUNTIF(N8:N52,">=33") -> 44 | O61: =COUNTIF(Q8:Q52,">=33") -> 44 | R61: =COUNTIF(T8:T52,">=33") -> 44 | U61: =COUNTIF(W8:W52,">=33") -> 44 | X61: =Home!B19 -> CHEM | Y61: =O62 -> 45 | Z61: =O60 -> 45
A62: Total | C62: =C60+C63 -> 45 | F62: =F60+F63 -> 45 | I62: =I60+I63 -> 45 | L62: =L60+L63 -> 45 | O62: =O60+O63 -> 45 | R62: =R60+R63 -> 45 | U62: =U60+U63 -> 45 | X62: =Home!B20 -> PHYSICS | Y62: =R62 -> 45 | Z62: =R60 -> 45
A63: Absent | C63: =COUNTIF(E8:E52,"AB") -> 0 | F63: =COUNTIF(H8:H52,"AB") -> 0 | I63: =COUNTIF(J8:J52,"AB") -> 0 | L63: =COUNTIF(N8:N52,"AB") -> 0 | O63: =COUNTIF(Q8:Q52,"AB") -> 0 | R63: =COUNTIF(T8:T52,"AB") -> 0 | U63: =COUNTIF(W8:W52,"AB") -> 0 | X63: =Home!B21 -> BIO | Y63: =U62 -> 45 | Z63: =U60 -> 45

Sheet UT 4
A1: =Home!C7 -> JAWAHAR NAVODAYA VIDYALAYA, | M1: =Home!I7 -> MOHINDERGARH
A2: Unit Test-4
A3: =Home!C9 -> XII A | G3: =Home!C8 -> 2019-20 | P3: E
A4: ROLL NO. | B4: STUDENT NAME | C4: =Home!B15 -> ENGLISH | F4: =Home!B16 -> HINDI | I4: =Home!B17 -> INFO PRACT | L4: =Home!B18 -> MATH | O4: =Home!B19 -> CHEM | R4: =Home!B20 -> PHYSICS | U4: =Home!B21 -> BIO | X4: MARKS OBT | Y4: %AGE | Z4: Rank
C5: M.M | E5: %age | F5: M.M | H5: %age | I5: M.M | K5: %age | L5: M.M | N5: %age | O5: M.M | Q5: %age | R5: M.M | T5: %age | U5: M.M | W5: %age
C6: Th. | D6: IA/ Prac. | F6: Th. | G6: IA/ Prac. | I6: Th. | J6: IA/ Prac. | L6: Th. | M6: IA/ Prac. | O6: Th. | P6: IA/ Prac. | R6: Th. | S6: IA/ Prac. | U6: Th. | V6: IA/ Prac.
C7: 40 | D7: 20 | E7: 100 | F7: 40 | G7: 20 | H7: 100 | I7: 40 | J7: 20 | K7: 100 | L7: 40 | M7: 20 | N7: 100 | O7: 40 | P7: 20 | Q7: 100 | R7: 40 | S7: 20 | T7: 100 | U7: 40 | V7: 20 | W7: 100
A8: ='Student Profile'!A7 -> 1 | B8: =IF(('Student Profile'!C7)>0,'Student Profile'!C7,"") -> SUNIL KUMAR | C8: 20 | D8: 10 | E8: =IF(OR(ISNUMBER(C8),ISNUMBER(D8)),ROUNDUP(SUM(C8:D8)/SUM($C$7,$D$7)*100,0),IF(C8="AB",C8,"")) -> 50 | F8: 20 | G8: 10 | H8: =IF(OR(ISNUMBER(F8),ISNUMBER(G8)),ROUNDUP(SUM(F8:G8)/SUM($F$7,$G$7)*100,0),IF(F8="AB",F8,"")) -> 50 | I8: 20 | J8: 10 | K8: =IF(OR(ISNUMBER(I8),ISNUMBER(J8)),ROUNDUP(SUM(I8:J8)/SUM($I$7,$J$7)*100,0),IF(I8="AB",I8,"")) -> 50 | L8: 20 | M8: 10 | N8: =IF(OR(ISNUMBER(L8),ISNUMBER(M8)),ROUNDUP(SUM(L8:M8)/SUM($L$7,$M$7)*100,0),IF(L8="AB",L8,"")) -> 50 | O8: 20 | P8: 10 | Q8: =IF(OR(ISNUMBER(O8),ISNUMBER(P8)),ROUNDUP(SUM(O8:P8)/SUM($O$7,$P$7)*100,0),IF(O8="AB",O8,"")) -> 50 | R8: 20 | S8: 10 | T8: =IF(OR(ISNUMBER(R8),ISNUMBER(S8)),ROUNDUP(SUM(R8:S8)/SUM($R$7,$S$7)*100,0),IF(R8="AB",R8,"")) -> 50 | U8: 20 | V8: 10 | W8: =IF(OR(ISNUMBER(U8),ISNUMBER(V8)),ROUNDUP(SUM(U8:V8)/SUM($U$7,$V$7)*100,0),IF(U8="AB",U8,"")) -> 50 | X8: =IF(OR(ISNUMBER(E8),ISNUMBER(G8),ISNUMBER(J8),ISNUMBER(M8),ISNUMBER(P8),ISNUMBER(S8),ISNUMBER(V8)),SUM(E8,G8,J8,M8,P8,S8,V8),"") -> 110 | Y8: =IFERROR(X8/'Student Profile'!P7,"") -> 22 | Z8: =IFERROR(RANK(Y8,Y$8:Y$52,0),"") -> 42
A9: ='Student Profile'!A8 ->  | B9: =IF(('Student Profile'!C8)>0,'Student Profile'!C8,"") ->  | C9: 25 | D9: 15 | E9: =IF(OR(ISNUMBER(C9),ISNUMBER(D9)),ROUNDUP(SUM(C9:D9)/SUM($C$7,$D$7)*100,0),IF(C9="AB",C9,"")) -> 67 | F9: 25 | G9: 15 | H9: =IF(OR(ISNUMBER(F9),ISNUMBER(G9)),ROUNDUP(SUM(F9:G9)/SUM($F$7,$G$7)*100,0),IF(F9="AB",F9,"")) -> 67 | I9: 25 | J9: 15 | K9: =IF(OR(ISNUMBER(I9),ISNUMBER(J9)),ROUNDUP(SUM(I9:J9)/SUM($I$7,$J$7)*100,0),IF(I9="AB",I9,"")) -> 67 | L9: 25 | M9: 15 | N9: =IF(OR(ISNUMBER(L9),ISNUMBER(M9)),ROUNDUP(SUM(L9:M9)/SUM($L$7,$M$7)*100,0),IF(L9="AB",L9,"")) -> 67 | O9: 25 | P9: 15 | Q9: =IF(OR(ISNUMBER(O9),ISNUMBER(P9)),ROUNDUP(SUM(O9:P9)/SUM($O$7,$P$7)*100,0),IF(O9="AB",O9,"")) -> 67 | R9: 25 | S9: 15 | T9: =IF(OR(ISNUMBER(R9),ISNUMBER(S9)),ROUNDUP(SUM(R9:S9)/SUM($R$7,$S$7)*100,0),IF(R9="AB",R9,"")) -> 67 | U9: 25 | V9: 15 | W9: =IF(OR(ISNUMBER(U9),ISNUMBER(V9)),ROUNDUP(SUM(U9:V9)/SUM($U$7,$V$7)*100,0),IF(U9="AB",U9,"")) -> 67 | X9: =IF(OR(ISNUMBER(E9),ISNUMBER(G9),ISNUMBER(J9),ISNUMBER(M9),ISNUMBER(P9),ISNUMBER(S9),ISNUMBER(V9)),SUM(E9,G9,J9,M9,P9,S9,V9),"") -> 157 | Y9: =IFERROR(X9/'Student Profile'!P8,"") -> 31.4 | Z9: =IF(ISNUMBER(Y9),RANK(X9,X$8:X$52,0),"") -> 32
A10: ='Student Profile'!A9 ->  | B10: =IF(('Student Profile'!C9)>0,'Student Profile'!C9,"") ->  | C10: 35 | D10: 20 | E10: 92 | F10: 35 | G10: 20 | H10: 92 | I10: 35 | J10: 20 | K10: 92 | L10: 35 | M10: 20 | N10: 92 | O10: 35 | P10: 20 | Q10: 92 | R10: 35 | S10: 20 | T10: 92 | U10: 35 | V10: 20 | W10: 92 | X10: 212 | Y10: =IFERROR(X10/'Student Profile'!P9,"") -> 42.4 | Z10: 1
A11: ='Student Profile'!A10 ->  | B11: =IF(('Student Profile'!C10)>0,'Student Profile'!C10,"") ->  | C11: 25 | D11: 17 | E11: 70 | F11: 25 | G11: 17 | H11: 70 | I11: 25 | J11: 17 | K11: 70 | L11: 25 | M11: 17 | N11: 70 | O11: 25 | P11: 17 | Q11: 70 | R11: 25 | S11: 17 | T11: 70 | U11: 25 | V11: 17 | W11: 70 | X11: 172 | Y11: =IFERROR(X11/'Student Profile'!P10,"") -> 34.4 | Z11: 15
A12: ='Student Profile'!A11 ->  | B12: =IF(('Student Profile'!C11)>0,'Student Profile'!C11,"") ->  | C12: 34 | D12: 15 | E12: 82 | F12: 34 | G12: 15 | H12: 82 | I12: 34 | J12: 15 | K12: 82 | L12: 34 | M12: 15 | N12: 82 | O12: 34 | P12: 15 | Q12: 82 | R12: 34 | S12: 15 | T12: 82 | U12: 34 | V12: 15 | W12: 82 | X12: 172 | Y12: =IFERROR(X12/'Student Profile'!P11,"") -> 34.4 | Z12: 15
A13: ='Student Profile'!A12 ->  | B13: =IF(('Student Profile'!C12)>0,'Student Profile'!C12,"") ->  | C13: 36 | D13: 15 | E13: 85 | F13: 36 | G13: 15 | H13: 85 | I13: 36 | J13: 15 | K13: 85 | L13: 36 | M13: 15 | N13: 85 | O13: 36 | P13: 15 | Q13: 85 | R13: 36 | S13: 15 | T13: 85 | U13: 36 | V13: 15 | W13: 85 | X13: 175 | Y13: =IFERROR(X13/'Student Profile'!P12,"") -> 35 | Z13: 10
A14: ='Student Profile'!A13 ->  | B14: =IF(('Student Profile'!C13)>0,'Student Profile'!C13,"") ->  | C14: 25 | D14: 15 | E14: 67 | F14: 25 | G14: 15 | H14: 67 | I14: 25 | J14: 15 | K14: 67 | L14: 25 | M14: 15 | N14: 67 | O14: 25 | P14: 15 | Q14: 67 | R14: 25 | S14: 15 | T14: 67 | U14: 25 | V14: 15 | W14: 67 | X14: 157 | Y14: =IFERROR(X14/'Student Profile'!P13,"") -> 31.4 | Z14: 32
A15: ='Student Profile'!A14 ->  | B15: =IF(('Student Profile'!C14)>0,'Student Profile'!C14,"") ->  | C15: 34 | D15: 15 | E15: 82 | F15: 34 | G15: 15 | H15: 82 | I15: 34 | J15: 15 | K15: 82 | L15: 34 | M15: 15 | N15: 82 | O15: 34 | P15: 15 | Q15: 82 | R15: 34 | S15: 15 | T15: 82 | U15: 34 | V15: 15 | W15: 82 | X15: 172 | Y15: =IFERROR(X15/'Student Profile'!P14,"") -> 34.4 | Z15: 15
A16: ='Student Profile'!A15 ->  | B16: =IF(('Student Profile'!C15)>0,'Student Profile'!C15,"") ->  | C16: 28 | D16: 18 | E16: 77 | F16: 28 | G16: 18 | H16: 77 | I16: 28 | J16: 18 | K16: 77 | L16: 28 | M16: 18 | N16: 77 | O16: 28 | P16: 18 | Q16: 77 | R16: 28 | S16: 18 | T16: 77 | U16: 28 | V16: 18 | W16: 77 | X16: 185 | Y16: =IFERROR(X16/'Student Profile'!P15,"") -> 37 | Z16: 5
A17: ='Student Profile'!A16 ->  | B17: =IF(('Student Profile'!C16)>0,'Student Profile'!C16,"") ->  | C17: 29 | D17: 15 | E17: 74 | F17: 29 | G17: 15 | H17: 74 | I17: 29 | J17: 15 | K17: 74 | L17: 29 | M17: 15 | N17: 74 | O17: 29 | P17: 15 | Q17: 74 | R17: 29 | S17: 15 | T17: 74 | U17: 29 | V17: 15 | W17: 74 | X17: 164 | Y17: =IFERROR(X17/'Student Profile'!P16,"") -> 32.8 | Z17: 28
A18: ='Student Profile'!A17 ->  | B18: =IF(('Student Profile'!C17)>0,'Student Profile'!C17,"") ->  | C18: 20 | D18: 10 | E18: 50 | F18: 20 | G18: 10 | H18: 50 | I18: 20 | J18: 10 | K18: 50 | L18: 20 | M18: 10 | N18: 50 | O18: 20 | P18: 10 | Q18: 50 | R18: 20 | S18: 10 | T18: 50 | U18: 20 | V18: 10 | W18: 50 | X18: 110 | Y18: =IFERROR(X18/'Student Profile'!P17,"") -> 22 | Z18: 42
A19: ='Student Profile'!A18 ->  | B19: =IF(('Student Profile'!C18)>0,'Student Profile'!C18,"") ->  | C19: 25 | D19: 15 | E19: 67 | F19: 25 | G19: 15 | H19: 67 | I19: 25 | J19: 15 | K19: 67 | L19: 25 | M19: 15 | N19: 67 | O19: 25 | P19: 15 | Q19: 67 | R19: 25 | S19: 15 | T19: 67 | U19: 25 | V19: 15 | W19: 67 | X19: 157 | Y19: =IFERROR(X19/'Student Profile'!P18,"") -> 31.4 | Z19: 32
A20: ='Student Profile'!A19 ->  | B20: =IF(('Student Profile'!C19)>0,'Student Profile'!C19,"") ->  | C20: 35 | D20: 20 | E20: 92 | F20: 35 | G20: 20 | H20: 92 | I20: 35 | J20: 20 | K20: 92 | L20: 35 | M20: 20 | N20: 92 | O20: 35 | P20: 20 | Q20: 92 | R20: 35 | S20: 20 | T20: 92 | U20: 35 | V20: 20 | W20: 92 | X20: 212 | Y20: =IFERROR(X20/'Student Profile'!P19,"") -> 42.4 | Z20: 1
A21: ='Student Profile'!A20 ->  | B21: =IF(('Student Profile'!C20)>0,'Student Profile'!C20,"") ->  | C21: 25 | D21: 17 | E21: 70 | F21: 25 | G21: 17 | H21: 70 | I21: 25 | J21: 17 | K21: 70 | L21: 25 | M21: 17 | N21: 70 | O21: 25 | P21: 17 | Q21: 70 | R21: 25 | S21: 17 | T21: 70 | U21: 25 | V21: 17 | W21: 70 | X21: 172 | Y21: =IFERROR(X21/'Student Profile'!P20,"") -> 34.4 | Z21: 15
A22: ='Student Profile'!A21 ->  | B22: =IF(('Student Profile'!C21)>0,'Student Profile'!C21,"") ->  | C22: 34 | D22: 15 | E22: 82 | F22: 34 | G22: 15 | H22: 82 | I22: 34 | J22: 15 | K22: 82 | L22: 34 | M22: 15 | N22: 82 | O22: 34 | P22: 15 | Q22: 82 | R22: 34 | S22: 15 | T22: 82 | U22: 34 | V22: 15 | W22: 82 | X22: 172 | Y22: =IFERROR(X22/'Student Profile'!P21,"") -> 34.4 | Z22: 15
A23: ='Student Profile'!A22 ->  | B23: =IF(('Student Profile'!C22)>0,'Student Profile'!C22,"") ->  | C23: 36 | D23: 15 | E23: 85 | F23: 36 | G23: 15 | H23: 85 | I23: 36 | J23: 15 | K23: 85 | L23: 36 | M23: 15 | N23: 85 | O23: 36 | P23: 15 | Q23: 85 | R23: 36 | S23: 15 | T23: 85 | U23: 36 | V23: 15 | W23: 85 | X23: 175 | Y23: =IFERROR(X23/'Student Profile'!P22,"") -> 35 | Z23: 10
A24: ='Student Profile'!A23 ->  | B24: =IF(('Student Profile'!C23)>0,'Student Profile'!C23,"") ->  | C24: 25 | D24: 15 | E24: 67 | F24: 25 | G24: 15 | H24: 67 | I24: 25 | J24: 15 | K24: 67 | L24: 25 | M24: 15 | N24: 67 | O24: 25 | P24: 15 | Q24: 67 | R24: 25 | S24: 15 | T24: 67 | U24: 25 | V24: 15 | W24: 67 | X24: 157 | Y24: =IFERROR(X24/'Student Profile'!P23,"") -> 31.4 | Z24: 32
A25: ='Student Profile'!A24 ->  | B25: =IF(('Student Profile'!C24)>0,'Student Profile'!C24,"") ->  | C25: 34 | D25: 15 | E25: 82 | F25: 34 | G25: 15 | H25: 82 | I25: 34 | J25: 15 | K25: 82 | L25: 34 | M25: 15 | N25: 82 | O25: 34 | P25: 15 | Q25: 82 | R25: 34 | S25: 15 | T25: 82 | U25: 34 | V25: 15 | W25: 82 | X25: 172 | Y25: =IFERROR(X25/'Student Profile'!P24,"") -> 34.4 | Z25: 15
A26: ='Student Profile'!A25 ->  | B26: =IF(('Student Profile'!C25)>0,'Student Profile'!C25,"") ->  | C26: 28 | D26: 18 | E26: 77 | F26: 28 | G26: 18 | H26: 77 | I26: 28 | J26: 18 | K26: 77 | L26: 28 | M26: 18 | N26: 77 | O26: 28 | P26: 18 | Q26: 77 | R26: 28 | S26: 18 | T26: 77 | U26: 28 | V26: 18 | W26: 77 | X26: 185 | Y26: =IFERROR(X26/'Student Profile'!P25,"") -> 37 | Z26: 5
A27: ='Student Profile'!A26 ->  | B27: =IF(('Student Profile'!C26)>0,'Student Profile'!C26,"") ->  | C27: 29 | D27: 15 | E27: 74 | F27: 29 | G27: 15 | H27: 74 | I27: 29 | J27: 15 | K27: 74 | L27: 29 | M27: 15 | N27: 74 | O27: 29 | P27: 15 | Q27: 74 | R27: 29 | S27: 15 | T27: 74 | U27: 29 | V27: 15 | W27: 74 | X27: 164 | Y27: =IFERROR(X27/'Student Profile'!P26,"") -> 32.8 | Z27: 28
A28: ='Student Profile'!A27 ->  | B28: =IF(('Student Profile'!C27)>0,'Student Profile'!C27,"") ->  | C28: 20 | D28: 10 | E28: 50 | F28: 20 | G28: 10 | H28: 50 | I28: 20 | J28: 10 | K28: 50 | L28: 20 | M28: 10 | N28: 50 | O28: 20 | P28: 10 | Q28: 50 | R28: 20 | S28: 10 | T28: 50 | U28: 20 | V28: 10 | W28: 50 | X28: 110 | Y28: =IFERROR(X28/'Student Profile'!P27,"") -> 22 | Z28: 42
A29: ='Student Profile'!A28 ->  | B29: =IF(('Student Profile'!C28)>0,'Student Profile'!C28,"") ->  | C29: 25 | D29: 15 | E29: 67 | F29: 25 | G29: 15 | H29: 67 | I29: 25 | J29: 15 | K29: 67 | L29: 25 | M29: 15 | N29: 67 | O29: 25 | P29: 15 | Q29: 67 | R29: 25 | S29: 15 | T29: 67 | U29: 25 | V29: 15 | W29: 67 | X29: 157 | Y29: =IFERROR(X29/'Student Profile'!P28,"") -> 31.4 | Z29: 32
A30: ='Student Profile'!A29 ->  | B30: =IF(('Student Profile'!C29)>0,'Student Profile'!C29,"") ->  | C30: 35 | D30: 20 | E30: 92 | F30: 35 | G30: 20 | H30: 92 | I30: 35 | J30: 20 | K30: 92 | L30: 35 | M30: 20 | N30: 92 | O30: 35 | P30: 20 | Q30: 92 | R30: 35 | S30: 20 | T30: 92 | U30: 35 | V30: 20 | W30: 92 | X30: 212 | Y30: =IFERROR(X30/'Student Profile'!P29,"") -> 42.4 | Z30: 1
A31: ='Student Profile'!A30 ->  | B31: =IF(('Student Profile'!C30)>0,'Student Profile'!C30,"") ->  | C31: 25 | D31: 17 | E31: 70 | F31: 25 | G31: 17 | H31: 70 | I31: 25 | J31: 17 | K31: 70 | L31: 25 | M31: 17 | N31: 70 | O31: 25 | P31: 17 | Q31: 70 | R31: 25 | S31: 17 | T31: 70 | U31: 25 | V31: 17 | W31: 70 | X31: 172 | Y31: =IFERROR(X31/'Student Profile'!P30,"") -> 34.4 | Z31: 15
A32: ='Student Profile'!A31 ->  | B32: =IF(('Student Profile'!C31)>0,'Student Profile'!C31,"") ->  | C32: 34 | D32: 15 | E32: 82 | F32: 34 | G32: 15 | H32: 82 | I32: 34 | J32: 15 | K32: 82 | L32: 34 | M32: 15 | N32: 82 | O32: 34 | P32: 15 | Q32: 82 | R32: 34 | S32: 15 | T32: 82 | U32: 34 | V32: 15 | W32: 82 | X32: 172 | Y32: =IFERROR(X32/'Student Profile'!P31,"") -> 34.4 | Z32: 15
A33: ='Student Profile'!A32 ->  | B33: =IF(('Student Profile'!C32)>0,'Student Profile'!C32,"") ->  | C33: 36 | D33: 15 | E33: 85 | F33: 36 | G33: 15 | H33: 85 | I33: 36 | J33: 15 | K33: 85 | L33: 36 | M33: 15 | N33: 85 | O33: 36 | P33: 15 | Q33: 85 | R33: 36 | S33: 15 | T33: 85 | U33: 36 | V33: 15 | W33: 85 | X33: 175 | Y33: =IFERROR(X33/'Student Profile'!P32,"") -> 35 | Z33: 10
A34: ='Student Profile'!A33 ->  | B34: =IF(('Student Profile'!C33)>0,'Student Profile'!C33,"") ->  | C34: 25 | D34: 15 | E34: 67 | F34: 25 | G34: 15 | H34: 67 | I34: 25 | J34: 15 | K34: 67 | L34: 25 | M34: 15 | N34: 67 | O34: 25 | P34: 15 | Q34: 67 | R34: 25 | S34: 15 | T34: 67 | U34: 25 | V34: 15 | W34: 67 | X34: 157 | Y34: =IFERROR(X34/'Student Profile'!P33,"") -> 31.4 | Z34: 32
A35: ='Student Profile'!A34 ->  | B35: =IF(('Student Profile'!C34)>0,'Student Profile'!C34,"") ->  | C35: 34 | D35: 15 | E35: 82 | F35: 34 | G35: 15 | H35: 82 | I35: 34 | J35: 15 | K35: 82 | L35: 34 | M35: 15 | N35: 82 | O35: 34 | P35: 15 | Q35: 82 | R35: 34 | S35: 15 | T35: 82 | U35: 34 | V35: 15 | W35: 82 | X35: 172 | Y35: =IFERROR(X35/'Student Profile'!P34,"") -> 34.4 | Z35: 15
A36: ='Student Profile'!A35 ->  | B36: =IF(('Student Profile'!C35)>0,'Student Profile'!C35,"") ->  | C36: 28 | D36: 18 | E36: 77 | F36: 28 | G36: 18 | H36: 77 | I36: 28 | J36: 18 | K36: 77 | L36: 28 | M36: 18 | N36: 77 | O36: 28 | P36: 18 | Q36: 77 | R36: 28 | S36: 18 | T36: 77 | U36: 28 | V36: 18 | W36: 77 | X36: 185 | Y36: =IFERROR(X36/'Student Profile'!P35,"") -> 37 | Z36: 5
A37: ='Student Profile'!A36 ->  | B37: =IF(('Student Profile'!C36)>0,'Student Profile'!C36,"") ->  | C37: 29 | D37: 15 | E37: 74 | F37: 29 | G37: 15 | H37: 74 | I37: 29 | J37: 15 | K37: 74 | L37: 29 | M37: 15 | N37: 74 | O37: 29 | P37: 15 | Q37: 74 | R37: 29 | S37: 15 | T37: 74 | U37: 29 | V37: 15 | W37: 74 | X37: 164 | Y37: =IFERROR(X37/'Student Profile'!P36,"") -> 32.8 | Z37: 28
A38: ='Student Profile'!A37 ->  | B38: =IF(('Student Profile'!C37)>0,'Student Profile'!C37,"") ->  | C38: 20 | D38: 10 | E38: 50 | F38: 20 | G38: 10 | H38: 50 | I38: 20 | J38: 10 | K38: 50 | L38: 20 | M38: 10 | N38: 50 | O38: 20 | P38: 10 | Q38: 50 | R38: 20 | S38: 10 | T38: 50 | U38: 20 | V38: 10 | W38: 50 | X38: 110 | Y38: =IFERROR(X38/'Student Profile'!P37,"") -> 22 | Z38: 42
A39: ='Student Profile'!A38 ->  | B39: =IF(('Student Profile'!C38)>0,'Student Profile'!C38,"") ->  | C39: 25 | D39: 15 | E39: 67 | F39: 25 | G39: 15 | H39: 67 | I39: 25 | J39: 15 | K39: 67 | L39: 25 | M39: 15 | N39: 67 | O39: 25 | P39: 15 | Q39: 67 | R39: 25 | S39: 15 | T39: 67 | U39: 25 | V39: 15 | W39: 67 | X39: 157 | Y39: =IFERROR(X39/'Student Profile'!P38,"") -> 31.4 | Z39: 32
A40: ='Student Profile'!A39 ->  | B40: =IF(('Student Profile'!C39)>0,'Student Profile'!C39,"") ->  | C40: 35 | D40: 20 | E40: 92 | F40: 35 | G40: 20 | H40: 92 | I40: 35 | J40: 20 | K40: 92 | L40: 35 | M40: 20 | N40: 92 | O40: 35 | P40: 20 | Q40: 92 | R40: 35 | S40: 20 | T40: 92 | U40: 35 | V40: 20 | W40: 92 | X40: 212 | Y40: =IFERROR(X40/'Student Profile'!P39,"") -> 42.4 | Z40: 1
A41: ='Student Profile'!A40 ->  | B41: =IF(('Student Profile'!C40)>0,'Student Profile'!C40,"") ->  | C41: 25 | D41: 17 | E41: 70 | F41: 25 | G41: 17 | H41: 70 | I41: 25 | J41: 17 | K41: 70 | L41: 25 | M41: 17 | N41: 70 | O41: 25 | P41: 17 | Q41: 70 | R41: 25 | S41: 17 | T41: 70 | U41: 25 | V41: 17 | W41: 70 | X41: 172 | Y41: =IFERROR(X41/'Student Profile'!P40,"") -> 34.4 | Z41: 15
A42: ='Student Profile'!A41 ->  | B42: =IF(('Student Profile'!C41)>0,'Student Profile'!C41,"") ->  | C42: 34 | D42: 15 | E42: 82 | F42: 34 | G42: 15 | H42: 82 | I42: 34 | J42: 15 | K42: 82 | L42: 34 | M42: 15 | N42: 82 | O42: 34 | P42: 15 | Q42: 82 | R42: 34 | S42: 15 | T42: 82 | U42: 34 | V42: 15 | W42: 82 | X42: 172 | Y42: =IFERROR(X42/'Student Profile'!P41,"") -> 34.4 | Z42: 15
A43: ='Student Profile'!A42 ->  | B43: =IF(('Student Profile'!C42)>0,'Student Profile'!C42,"") ->  | C43: 36 | D43: 15 | E43: 85 | F43: 36 | G43: 15 | H43: 85 | I43: 36 | J43: 15 | K43: 85 | L43: 36 | M43: 15 | N43: 85 | O43: 36 | P43: 15 | Q43: 85 | R43: 36 | S43: 15 | T43: 85 | U43: 36 | V43: 15 | W43: 85 | X43: 175 | Y43: =IFERROR(X43/'Student Profile'!P42,"") -> 35 | Z43: 10
A44: ='Student Profile'!A43 ->  | B44: =IF(('Student Profile'!C43)>0,'Student Profile'!C43,"") ->  | C44: 25 | D44: 15 | E44: 67 | F44: 25 | G44: 15 | H44: 67 | I44: 25 | J44: 15 | K44: 67 | L44: 25 | M44: 15 | N44: 67 | O44: 25 | P44: 15 | Q44: 67 | R44: 25 | S44: 15 | T44: 67 | U44: 25 | V44: 15 | W44: 67 | X44: 157 | Y44: =IFERROR(X44/'Student Profile'!P43,"") -> 31.4 | Z44: 32
A45: ='Student Profile'!A44 ->  | B45: =IF(('Student Profile'!C44)>0,'Student Profile'!C44,"") ->  | C45: 34 | D45: 15 | E45: 82 | F45: 34 | G45: 15 | H45: 82 | I45: 34 | J45: 15 | K45: 82 | L45: 34 | M45: 15 | N45: 82 | O45: 34 | P45: 15 | Q45: 82 | R45: 34 | S45: 15 | T45: 82 | U45: 34 | V45: 15 | W45: 82 | X45: 172 | Y45: =IFERROR(X45/'Student Profile'!P44,"") -> 34.4 | Z45: 15
A46: ='Student Profile'!A45 ->  | B46: =IF(('Student Profile'!C45)>0,'Student Profile'!C45,"") ->  | C46: 28 | D46: 18 | E46: 77 | F46: 28 | G46: 18 | H46: 77 | I46: 28 | J46: 18 | K46: 77 | L46: 28 | M46: 18 | N46: 77 | O46: 28 | P46: 18 | Q46: 77 | R46: 28 | S46: 18 | T46: 77 | U46: 28 | V46: 18 | W46: 77 | X46: 185 | Y46: =IFERROR(X46/'Student Profile'!P45,"") -> 37 | Z46: 5
A47: ='Student Profile'!A46 ->  | B47: =IF(('Student Profile'!C46)>0,'Student Profile'!C46,"") ->  | C47: 29 | D47: 15 | E47: 74 | F47: 29 | G47: 15 | H47: 74 | I47: 29 | J47: 15 | K47: 74 | L47: 29 | M47: 15 | N47: 74 | O47: 29 | P47: 15 | Q47: 74 | R47: 29 | S47: 15 | T47: 74 | U47: 29 | V47: 15 | W47: 74 | X47: 164 | Y47: =IFERROR(X47/'Student Profile'!P46,"") -> 32.8 | Z47: 28
A48: ='Student Profile'!A47 ->  | B48: =IF(('Student Profile'!C47)>0,'Student Profile'!C47,"") ->  | C48: 36 | D48: 15 | E48: 85 | F48: 36 | G48: 15 | H48: 85 | I48: 36 | J48: 15 | K48: 85 | L48: 36 | M48: 15 | N48: 85 | O48: 36 | P48: 15 | Q48: 85 | R48: 36 | S48: 15 | T48: 85 | U48: 36 | V48: 15 | W48: 85 | X48: 175 | Y48: =IFERROR(X48/'Student Profile'!P47,"") -> 35 | Z48: 10
A49: ='Student Profile'!A48 ->  | B49: =IF(('Student Profile'!C48)>0,'Student Profile'!C48,"") ->  | C49: 25 | D49: 15 | E49: 67 | F49: 25 | G49: 15 | H49: 67 | I49: 25 | J49: 15 | K49: 67 | L49: 25 | M49: 15 | N49: 67 | O49: 25 | P49: 15 | Q49: 67 | R49: 25 | S49: 15 | T49: 67 | U49: 25 | V49: 15 | W49: 67 | X49: 157 | Y49: =IFERROR(X49/'Student Profile'!P48,"") -> 31.4 | Z49: 32
A50: ='Student Profile'!A49 ->  | B50: =IF(('Student Profile'!C49)>0,'Student Profile'!C49,"") ->  | C50: 34 | D50: 15 | E50: 82 | F50: 34 | G50: 15 | H50: 82 | I50: 34 | J50: 15 | K50: 82 | L50: 34 | M50: 15 | N50: 82 | O50: 34 | P50: 15 | Q50: 82 | R50: 34 | S50: 15 | T50: 82 | U50: 34 | V50: 15 | W50: 82 | X50: 172 | Y50: =IFERROR(X50/'Student Profile'!P49,"") -> 34.4 | Z50: 15
A51: ='Student Profile'!A50 ->  | B51: =IF(('Student Profile'!C50)>0,'Student Profile'!C50,"") ->  | C51: 28 | D51: 18 | E51: 77 | F51: 28 | G51: 18 | H51: 77 | I51: 28 | J51: 18 | K51: 77 | L51: 28 | M51: 18 | N51: 77 | O51: 28 | P51: 18 | Q51: 77 | R51: 28 | S51: 18 | T51: 77 | U51: 28 | V51: 18 | W51: 77 | X51: 185 | Y51: =IFERROR(X51/'Student Profile'!P50,"") -> 37 | Z51: 5
A52: ='Student Profile'!A51 ->  | B52: =IF(('Student Profile'!C51)>0,'Student Profile'!C51,"") ->  | C52: AB | D52: 12 | E52: 20 | F52: AB | G52: 12 | H52: 20 | I52: AB | J52: 12 | K52: 20 | L52: AB | M52: 12 | N52: 20 | O52: AB | P52: 12 | Q52: 20 | R52: AB | S52: 12 | T52: 20 | U52: AB | V52: 12 | W52: 20 | X52: =IF(OR(ISNUMBER(E52),ISNUMBER(H52),ISNUMBER(K52),ISNUMBER(N52),ISNUMBER(Q52),ISNUMBER(T52),ISNUMBER(W52)),SUM(E52,H52,K52,N52,Q52,T52,Q52),"") -> 140 | Y52: =IFERROR(X52/'Student Profile'!P51,"") -> 28 | Z52: 41
A53: Subject Avg. | C53: =IF(AND(ISNUMBER(Z57),Z57>0),SUM(E8:E52)/C60,"") -> 73.66666667 | F53: =IF(AND(ISNUMBER(Z58),Z58>0),SUM(H8:H52)/F60,"") -> 73.66666667 | I53: =IF(AND(ISNUMBER(Z59),Z59>0),SUM(K8:K52)/I60,"") -> 73.66666667 | L53: =IF(AND(ISNUMBER(Z60),Z60>0),SUM(N8:N52)/L60,"") -> 73.66666667 | O53: =IF(AND(ISNUMBER(Z61),Z61>0),SUM(Q8:Q52)/O60,"") -> 73.66666667 | R53: =IF(AND(ISNUMBER(Z62),Z62>0),SUM(T8:T52)/R60,"") -> 73.66666667 | U53: =IF(AND(ISNUMBER(AO58),AO58>0),SUM(W8:W52)/U60,"") ->  | X53: SUBJECTS | Y53: Total Student | Z53: Present
A54: Pass %age | C54: =IF(ISNUMBER(C53),(C61/C60)*100,"0") -> 97.77777778 | F54: =IF(ISNUMBER(F53),F61/F60*100,"0") -> 97.77777778 | I54: =IF(ISNUMBER(I53),I61/I60*100,"0") -> 97.77777778 | L54: =IF(ISNUMBER(L53),L61/L60*100,"0") -> 97.77777778 | O54: =IF(ISNUMBER(O53),O61/O60*100,"0") -> 97.77777778 | R54: =IF(ISNUMBER(R53),R61/R60*100,"0") -> 97.77777778 | U54: =IF(ISNUMBER(U53),U61/U60*100,"0") -> 0
A55: Below 33% | C55: =COUNTIF(E8:E52,"<33") -> 1 | F55: =COUNTIF(H8:H52,"<33") -> 1 | I55: =COUNTIF(K8:K52,"<33") -> 1 | L55: =COUNTIF(N8:N52,"<33") -> 1 | O55: =COUNTIF(Q8:Q52,"<33") -> 1 | R55: =COUNTIF(T8:T52,"<33") -> 1 | U55: =COUNTIF(V8:V52,"<33") -> 45
A56: 33% to 50% | C56: =COUNTIF(E8:E52,">=33")-C57-C58-C59 -> 0 | F56: =COUNTIF(H8:H52,">=33")-F57-F58-F59 -> 0 | I56: =COUNTIF(K8:K52,">=33")-I57-I58-I59 -> 0 | L56: =COUNTIF(N8:N52,">=33")-L57-L58-L59 -> 0 | O56: =COUNTIF(Q8:Q52,">=33")-O57-O58-O59 -> 0 | R56: =COUNTIF(T8:T52,">=33")-R57-R58-R59 -> 0 | U56: =COUNTIF(W8:W52,">=33")-U57-U58-U59 -> 0
A57: 50% to 60% | C57: =COUNTIF(E8:E52,">=50")-C58-C59 -> 4 | F57: =COUNTIF(H8:H52,">=50")-F58-F59 -> 4 | I57: =COUNTIF(K8:K52,">=50")-I58-I59 -> 4 | L57: =COUNTIF(N8:N52,">=50")-L58-L59 -> 4 | O57: =COUNTIF(Q8:Q52,">=50")-O58-O59 -> 4 | R57: =COUNTIF(T8:T52,">=50")-R58-R59 -> 4 | U57: =COUNTIF(W8:W52,">=50")-U58-U59 -> 4 | X57: =Home!B15 -> ENGLISH | Y57: =C62 -> 45 | Z57: =C60 -> 45
A58: 60% to 75% | C58: =COUNTIF(E8:E52,">=60")-C59 -> 17 | F58: =COUNTIF(H8:H52,">=60")-F59 -> 17 | I58: =COUNTIF(K8:K52,">=60")-I59 -> 17 | L58: =COUNTIF(N8:N52,">=60")-L59 -> 17 | O58: =COUNTIF(Q8:Q52,">=60")-O59 -> 17 | R58: =COUNTIF(T8:T52,">=60")-R59 -> 17 | U58: =COUNTIF(W8:W52,">=60")-U59 -> 17 | X58: =Home!B16 -> HINDI | Y58: =F62 -> 45 | Z58: =F60 -> 45
A59: above 75% | C59: =COUNTIF(E8:E52,">=75") -> 23 | F59: =COUNTIF(H8:H52,">=75") -> 23 | I59: =COUNTIF(K8:K52,">=75") -> 23 | L59: =COUNTIF(N8:N52,">=75") -> 23 | O59: =COUNTIF(Q8:Q52,">=75") -> 23 | R59: =COUNTIF(T8:T52,">=75") -> 23 | U59: =COUNTIF(W8:W52,">=75") -> 23 | X59: =Home!B17 -> INFO PRACT | Y59: =I62 -> 45 | Z59: =I60 -> 45
A60: Appeared | C60: =COUNTIF(E8:E52,">=0") -> 45 | F60: =COUNTIF(H8:H52,">=0") -> 45 | I60: =COUNTIF(K8:K52,">=0") -> 45 | L60: =COUNTIF(N8:N52,">=0") -> 45 | O60: =COUNTIF(Q8:Q52,">=0") -> 45 | R60: =COUNTIF(T8:T52,">=0") -> 45 | U60: =COUNTIF(W8:W52,">=0") -> 45 | X60: =Home!B18 -> MATH | Y60: =L62 -> 45 | Z60: =L60 -> 45
A61: Passed | C61: =COUNTIF(E8:E52,">=33") -> 44 | F61: =COUNTIF(H8:H52,">=33") -> 44 | I61: =COUNTIF(K8:K52,">=33") -> 44 | L61: =COUNTIF(N8:N52,">=33") -> 44 | O61: =COUNTIF(Q8:Q52,">=33") -> 44 | R61: =COUNTIF(T8:T52,">=33") -> 44 | U61: =COUNTIF(W8:W52,">=33") -> 44 | X61: =Home!B19 -> CHEM | Y61: =O62 -> 45 | Z61: =O60 -> 45
A62: Total | C62: =C60+C63 -> 45 | F62: =F60+F63 -> 45 | I62: =I60+I63 -> 45 | L62: =L60+L63 -> 45 | O62: =O60+O63 -> 45 | R62: =R60+R63 -> 45 | U62: =U60+U63 -> 45 | X62: =Home!B20 -> PHYSICS | Y62: =R62 -> 45 | Z62: =R60 -> 45
A63: Absent | C63: =COUNTIF(E8:E52,"AB") -> 0 | F63: =COUNTIF(H8:H52,"AB") -> 0 | I63: =COUNTIF(J8:J52,"AB") -> 0 | L63: =COUNTIF(N8:N52,"AB") -> 0 | O63: =COUNTIF(Q8:Q52,"AB") -> 0 | R63: =COUNTIF(T8:T52,"AB") -> 0 | U63: =COUNTIF(W8:W52,"AB") -> 0 | X63: =Home!B21 -> BIO | Y63: =U62 -> 45 | Z63: =U60 -> 45

Sheet UT 5PB1
A1: =Home!C7 -> JAWAHAR NAVODAYA VIDYALAYA, | M1: =Home!I7 -> MOHINDERGARH
A2: Unit Test-5/ PRE-BOARD 1
A3: =Home!C9 -> XII A | G3: =Home!C8 -> 2019-20 | P3: E
A4: ROLL NO. | B4: STUDENT NAME | C4: =Home!B15 -> ENGLISH | F4: =Home!B16 -> HINDI | I4: =Home!B17 -> INFO PRACT | L4: =Home!B18 -> MATH | O4: =Home!B19 -> CHEM | R4: =Home!B20 -> PHYSICS | U4: =Home!B21 -> BIO | X4: MARKS OBT | Y4: %AGE | Z4: Rank
C5: M.M | E5: %age | F5: M.M | H5: %age | I5: M.M | K5: %age | L5: M.M | N5: %age | O5: M.M | Q5: %age | R5: M.M | T5: %age | U5: M.M | W5: %age
C6: Th. | D6: IA/ Prac. | F6: Th. | G6: IA/ Prac. | I6: Th. | J6: IA/ Prac. | L6: Th. | M6: IA/ Prac. | O6: Th. | P6: IA/ Prac. | R6: Th. | S6: IA/ Prac. | U6: Th. | V6: IA/ Prac.
C7: 40 | D7: 20 | E7: 100 | F7: 40 | G7: 20 | H7: 100 | I7: 40 | J7: 20 | K7: 100 | L7: 40 | M7: 20 | N7: 100 | O7: 40 | P7: 20 | Q7: 100 | R7: 40 | S7: 20 | T7: 100 | U7: 40 | V7: 20 | W7: 100
A8: ='Student Profile'!A7 -> 1 | B8: =IF(('Student Profile'!C7)>0,'Student Profile'!C7,"") -> SUNIL KUMAR | C8: 20 | D8: 10 | E8: =IF(OR(ISNUMBER(C8),ISNUMBER(D8)),ROUNDUP(SUM(C8:D8)/SUM($C$7,$D$7)*100,0),IF(C8="AB",C8,"")) -> 50 | F8: 20 | G8: 10 | H8: =IF(OR(ISNUMBER(F8),ISNUMBER(G8)),ROUNDUP(SUM(F8:G8)/SUM($F$7,$G$7)*100,0),IF(F8="AB",F8,"")) -> 50 | I8: 20 | J8: 10 | K8: =IF(OR(ISNUMBER(I8),ISNUMBER(J8)),ROUNDUP(SUM(I8:J8)/SUM($I$7,$J$7)*100,0),IF(I8="AB",I8,"")) -> 50 | L8: 20 | M8: 10 | N8: =IF(OR(ISNUMBER(L8),ISNUMBER(M8)),ROUNDUP(SUM(L8:M8)/SUM($L$7,$M$7)*100,0),IF(L8="AB",L8,"")) -> 50 | O8: 20 | P8: 10 | Q8: =IF(OR(ISNUMBER(O8),ISNUMBER(P8)),ROUNDUP(SUM(O8:P8)/SUM($O$7,$P$7)*100,0),IF(O8="AB",O8,"")) -> 50 | R8: 20 | S8: 10 | T8: =IF(OR(ISNUMBER(R8),ISNUMBER(S8)),ROUNDUP(SUM(R8:S8)/SUM($R$7,$S$7)*100,0),IF(R8="AB",R8,"")) -> 50 | U8: 20 | V8: 10 | W8: =IF(OR(ISNUMBER(U8),ISNUMBER(V8)),ROUNDUP(SUM(U8:V8)/SUM($U$7,$V$7)*100,0),IF(U8="AB",U8,"")) -> 50 | X8: =IF(OR(ISNUMBER(E8),ISNUMBER(G8),ISNUMBER(J8),ISNUMBER(M8),ISNUMBER(P8),ISNUMBER(S8),ISNUMBER(V8)),SUM(E8,G8,J8,M8,P8,S8,V8),"") -> 110 | Y8: =IFERROR(X8/'Student Profile'!P7,"") -> 22 | Z8: =IFERROR(RANK(Y8,Y$8:Y$52,0),"") -> 42
A9: ='Student Profile'!A8 ->  | B9: =IF(('Student Profile'!C8)>0,'Student Profile'!C8,"") ->  | C9: 25 | D9: 15 | E9: =IF(OR(ISNUMBER(C9),ISNUMBER(D9)),ROUNDUP(SUM(C9:D9)/SUM($C$7,$D$7)*100,0),IF(C9="AB",C9,"")) -> 67 | F9: 25 | G9: 15 | H9: =IF(OR(ISNUMBER(F9),ISNUMBER(G9)),ROUNDUP(SUM(F9:G9)/SUM($F$7,$G$7)*100,0),IF(F9="AB",F9,"")) -> 67 | I9: 25 | J9: 15 | K9: =IF(OR(ISNUMBER(I9),ISNUMBER(J9)),ROUNDUP(SUM(I9:J9)/SUM($I$7,$J$7)*100,0),IF(I9="AB",I9,"")) -> 67 | L9: 25 | M9: 15 | N9: =IF(OR(ISNUMBER(L9),ISNUMBER(M9)),ROUNDUP(SUM(L9:M9)/SUM($L$7,$M$7)*100,0),IF(L9="AB",L9,"")) -> 67 | O9: 25 | P9: 15 | Q9: =IF(OR(ISNUMBER(O9),ISNUMBER(P9)),ROUNDUP(SUM(O9:P9)/SUM($O$7,$P$7)*100,0),IF(O9="AB",O9,"")) -> 67 | R9: 25 | S9: 15 | T9: =IF(OR(ISNUMBER(R9),ISNUMBER(S9)),ROUNDUP(SUM(R9:S9)/SUM($R$7,$S$7)*100,0),IF(R9="AB",R9,"")) -> 67 | U9: 25 | V9: 15 | W9: =IF(OR(ISNUMBER(U9),ISNUMBER(V9)),ROUNDUP(SUM(U9:V9)/SUM($U$7,$V$7)*100,0),IF(U9="AB",U9,"")) -> 67 | X9: =IF(OR(ISNUMBER(E9),ISNUMBER(G9),ISNUMBER(J9),ISNUMBER(M9),ISNUMBER(P9),ISNUMBER(S9),ISNUMBER(V9)),SUM(E9,G9,J9,M9,P9,S9,V9),"") -> 157 | Y9: =IFERROR(X9/'Student Profile'!P8,"") -> 31.4 | Z9: =IF(ISNUMBER(Y9),RANK(X9,X$8:X$52,0),"") -> 32
A10: ='Student Profile'!A9 ->  | B10: =IF(('Student Profile'!C9)>0,'Student Profile'!C9,"") ->  | C10: 35 | D10: 20 | E10: 92 | F10: 35 | G10: 20 | H10: 92 | I10: 35 | J10: 20 | K10: 92 | L10: 35 | M10: 20 | N10: 92 | O10: 35 | P10: 20 | Q10: 92 | R10: 35 | S10: 20 | T10: 92 | U10: 35 | V10: 20 | W10: 92 | X10: 212 | Y10: =IFERROR(X10/'Student Profile'!P9,"") -> 42.4 | Z10: 1
A11: ='Student Profile'!A10 ->  | B11: =IF(('Student Profile'!C10)>0,'Student Profile'!C10,"") ->  | C11: 25 | D11: 17 | E11: 70 | F11: 25 | G11: 17 | H11: 70 | I11: 25 | J11: 17 | K11: 70 | L11: 25 | M11: 17 | N11: 70 | O11: 25 | P11: 17 | Q11: 70 | R11: 25 | S11: 17 | T11: 70 | U11: 25 | V11: 17 | W11: 70 | X11: 172 | Y11: =IFERROR(X11/'Student Profile'!P10,"") -> 34.4 | Z11: 15
A12: ='Student Profile'!A11 ->  | B12: =IF(('Student Profile'!C11)>0,'Student Profile'!C11,"") ->  | C12: 34 | D12: 15 | E12: 82 | F12: 34 | G12: 15 | H12: 82 | I12: 34 | J12: 15 | K12: 82 | L12: 34 | M12: 15 | N12: 82 | O12: 34 | P12: 15 | Q12: 82 | R12: 34 | S12: 15 | T12: 82 | U12: 34 | V12: 15 | W12: 82 | X12: 172 | Y12: =IFERROR(X12/'Student Profile'!P11,"") -> 34.4 | Z12: 15
A13: ='Student Profile'!A12 ->  | B13: =IF(('Student Profile'!C12)>0,'Student Profile'!C12,"") ->  | C13: 36 | D13: 15 | E13: 85 | F13: 36 | G13: 15 | H13: 85 | I13: 36 | J13: 15 | K13: 85 | L13: 36 | M13: 15 | N13: 85 | O13: 36 | P13: 15 | Q13: 85 | R13: 36 | S13: 15 | T13: 85 | U13: 36 | V13: 15 | W13: 85 | X13: 175 | Y13: =IFERROR(X13/'Student Profile'!P12,"") -> 35 | Z13: 10
A14: ='Student Profile'!A13 ->  | B14: =IF(('Student Profile'!C13)>0,'Student Profile'!C13,"") ->  | C14: 25 | D14: 15 | E14: 67 | F14: 25 | G14: 15 | H14: 67 | I14: 25 | J14: 15 | K14: 67 | L14: 25 | M14: 15 | N14: 67 | O14: 25 | P14: 15 | Q14: 67 | R14: 25 | S14: 15 | T14: 67 | U14: 25 | V14: 15 | W14: 67 | X14: 157 | Y14: =IFERROR(X14/'Student Profile'!P13,"") -> 31.4 | Z14: 32
A15: ='Student Profile'!A14 ->  | B15: =IF(('Student Profile'!C14)>0,'Student Profile'!C14,"") ->  | C15: 34 | D15: 15 | E15: 82 | F15: 34 | G15: 15 | H15: 82 | I15: 34 | J15: 15 | K15: 82 | L15: 34 | M15: 15 | N15: 82 | O15: 34 | P15: 15 | Q15: 82 | R15: 34 | S15: 15 | T15: 82 | U15: 34 | V15: 15 | W15: 82 | X15: 172 | Y15: =IFERROR(X15/'Student Profile'!P14,"") -> 34.4 | Z15: 15
A16: ='Student Profile'!A15 ->  | B16: =IF(('Student Profile'!C15)>0,'Student Profile'!C15,"") ->  | C16: 28 | D16: 18 | E16: 77 | F16: 28 | G16: 18 | H16: 77 | I16: 28 | J16: 18 | K16: 77 | L16: 28 | M16: 18 | N16: 77 | O16: 28 | P16: 18 | Q16: 77 | R16: 28 | S16: 18 | T16: 77 | U16: 28 | V16: 18 | W16: 77 | X16: 185 | Y16: =IFERROR(X16/'Student Profile'!P15,"") -> 37 | Z16: 5
A17: ='Student Profile'!A16 ->  | B17: =IF(('Student Profile'!C16)>0,'Student Profile'!C16,"") ->  | C17: 29 | D17: 15 | E17: 74 | F17: 29 | G17: 15 | H17: 74 | I17: 29 | J17: 15 | K17: 74 | L17: 29 | M17: 15 | N17: 74 | O17: 29 | P17: 15 | Q17: 74 | R17: 29 | S17: 15 | T17: 74 | U17: 29 | V17: 15 | W17: 74 | X17: 164 | Y17: =IFERROR(X17/'Student Profile'!P16,"") -> 32.8 | Z17: 28
A18: ='Student Profile'!A17 ->  | B18: =IF(('Student Profile'!C17)>0,'Student Profile'!C17,"") ->  | C18: 20 | D18: 10 | E18: 50 | F18: 20 | G18: 10 | H18: 50 | I18: 20 | J18: 10 | K18: 50 | L18: 20 | M18: 10 | N18: 50 | O18: 20 | P18: 10 | Q18: 50 | R18: 20 | S18: 10 | T18: 50 | U18: 20 | V18: 10 | W18: 50 | X18: 110 | Y18: =IFERROR(X18/'Student Profile'!P17,"") -> 22 | Z18: 42
A19: ='Student Profile'!A18 ->  | B19: =IF(('Student Profile'!C18)>0,'Student Profile'!C18,"") ->  | C19: 25 | D19: 15 | E19: 67 | F19: 25 | G19: 15 | H19: 67 | I19: 25 | J19: 15 | K19: 67 | L19: 25 | M19: 15 | N19: 67 | O19: 25 | P19: 15 | Q19: 67 | R19: 25 | S19: 15 | T19: 67 | U19: 25 | V19: 15 | W19: 67 | X19: 157 | Y19: =IFERROR(X19/'Student Profile'!P18,"") -> 31.4 | Z19: 32
A20: ='Student Profile'!A19 ->  | B20: =IF(('Student Profile'!C19)>0,'Student Profile'!C19,"") ->  | C20: 35 | D20: 20 | E20: 92 | F20: 35 | G20: 20 | H20: 92 | I20: 35 | J20: 20 | K20: 92 | L20: 35 | M20: 20 | N20: 92 | O20: 35 | P20: 20 | Q20: 92 | R20: 35 | S20: 20 | T20: 92 | U20: 35 | V20: 20 | W20: 92 | X20: 212 | Y20: =IFERROR(X20/'Student Profile'!P19,"") -> 42.4 | Z20: 1
A21: ='Student Profile'!A20 ->  | B21: =IF(('Student Profile'!C20)>0,'Student Profile'!C20,"") ->  | C21: 25 | D21: 17 | E21: 70 | F21: 25 | G21: 17 | H21: 70 | I21: 25 | J21: 17 | K21: 70 | L21: 25 | M21: 17 | N21: 70 | O21: 25 | P21: 17 | Q21: 70 | R21: 25 | S21: 17 | T21: 70 | U21: 25 | V21: 17 | W21: 70 | X21: 172 | Y21: =IFERROR(X21/'Student Profile'!P20,"") -> 34.4 | Z21: 15
A22: ='Student Profile'!A21 ->  | B22: =IF(('Student Profile'!C21)>0,'Student Profile'!C21,"") ->  | C22: 34 | D22: 15 | E22: 82 | F22: 34 | G22: 15 | H22: 82 | I22: 34 | J22: 15 | K22: 82 | L22: 34 | M22: 15 | N22: 82 | O22: 34 | P22: 15 | Q22: 82 | R22: 34 | S22: 15 | T22: 82 | U22: 34 | V22: 15 | W22: 82 | X22: 172 | Y22: =IFERROR(X22/'Student Profile'!P21,"") -> 34.4 | Z22: 15
A23: ='Student Profile'!A22 ->  | B23: =IF(('Student Profile'!C22)>0,'Student Profile'!C22,"") ->  | C23: 36 | D23: 15 | E23: 85 | F23: 36 | G23: 15 | H23: 85 | I23: 36 | J23: 15 | K23: 85 | L23: 36 | M23: 15 | N23: 85 | O23: 36 | P23: 15 | Q23: 85 | R23: 36 | S23: 15 | T23: 85 | U23: 36 | V23: 15 | W23: 85 | X23: 175 | Y23: =IFERROR(X23/'Student Profile'!P22,"") -> 35 | Z23: 10
A24: ='Student Profile'!A23 ->  | B24: =IF(('Student Profile'!C23)>0,'Student Profile'!C23,"") ->  | C24: 25 | D24: 15 | E24: 67 | F24: 25 | G24: 15 | H24: 67 | I24: 25 | J24: 15 | K24: 67 | L24: 25 | M24: 15 | N24: 67 | O24: 25 | P24: 15 | Q24: 67 | R24: 25 | S24: 15 | T24: 67 | U24: 25 | V24: 15 | W24: 67 | X24: 157 | Y24: =IFERROR(X24/'Student Profile'!P23,"") -> 31.4 | Z24: 32
A25: ='Student Profile'!A24 ->  | B25: =IF(('Student Profile'!C24)>0,'Student Profile'!C24,"") ->  | C25: 34 | D25: 15 | E25: 82 | F25: 34 | G25: 15 | H25: 82 | I25: 34 | J25: 15 | K25: 82 | L25: 34 | M25: 15 | N25: 82 | O25: 34 | P25: 15 | Q25: 82 | R25: 34 | S25: 15 | T25: 82 | U25: 34 | V25: 15 | W25: 82 | X25: 172 | Y25: =IFERROR(X25/'Student Profile'!P24,"") -> 34.4 | Z25: 15
A26: ='Student Profile'!A25 ->  | B26: =IF(('Student Profile'!C25)>0,'Student Profile'!C25,"") ->  | C26: 28 | D26: 18 | E26: 77 | F26: 28 | G26: 18 | H26: 77 | I26: 28 | J26: 18 | K26: 77 | L26: 28 | M26: 18 | N26: 77 | O26: 28 | P26: 18 | Q26: 77 | R26: 28 | S26: 18 | T26: 77 | U26: 28 | V26: 18 | W26: 77 | X26: 185 | Y26: =IFERROR(X26/'Student Profile'!P25,"") -> 37 | Z26: 5
A27: ='Student Profile'!A26 ->  | B27: =IF(('Student Profile'!C26)>0,'Student Profile'!C26,"") ->  | C27: 29 | D27: 15 | E27: 74 | F27: 29 | G27: 15 | H27: 74 | I27: 29 | J27: 15 | K27: 74 | L27: 29 | M27: 15 | N27: 74 | O27: 29 | P27: 15 | Q27: 74 | R27: 29 | S27: 15 | T27: 74 | U27: 29 | V27: 15 | W27: 74 | X27: 164 | Y27: =IFERROR(X27/'Student Profile'!P26,"") -> 32.8 | Z27: 28
A28: ='Student Profile'!A27 ->  | B28: =IF(('Student Profile'!C27)>0,'Student Profile'!C27,"") ->  | C28: 20 | D28: 10 | E28: 50 | F28: 20 | G28: 10 | H28: 50 | I28: 20 | J28: 10 | K28: 50 | L28: 20 | M28: 10 | N28: 50 | O28: 20 | P28: 10 | Q28: 50 | R28: 20 | S28: 10 | T28: 50 | U28: 20 | V28: 10 | W28: 50 | X28: 110 | Y28: =IFERROR(X28/'Student Profile'!P27,"") -> 22 | Z28: 42
A29: ='Student Profile'!A28 ->  | B29: =IF(('Student Profile'!C28)>0,'Student Profile'!C28,"") ->  | C29: 25 | D29: 15 | E29: 67 | F29: 25 | G29: 15 | H29: 67 | I29: 25 | J29: 15 | K29: 67 | L29: 25 | M29: 15 | N29: 67 | O29: 25 | P29: 15 | Q29: 67 | R29: 25 | S29: 15 | T29: 67 | U29: 25 | V29: 15 | W29: 67 | X29: 157 | Y29: =IFERROR(X29/'Student Profile'!P28,"") -> 31.4 | Z29: 32
A30: ='Student Profile'!A29 ->  | B30: =IF(('Student Profile'!C29)>0,'Student Profile'!C29,"") ->  | C30: 35 | D30: 20 | E30: 92 | F30: 35 | G30: 20 | H30: 92 | I30: 35 | J30: 20 | K30: 92 | L30: 35 | M30: 20 | N30: 92 | O30: 35 | P30: 20 | Q30: 92 | R30: 35 | S30: 20 | T30: 92 | U30: 35 | V30: 20 | W30: 92 | X30: 212 | Y30: =IFERROR(X30/'Student Profile'!P29,"") -> 42.4 | Z30: 1
A31: ='Student Profile'!A30 ->  | B31: =IF(('Student Profile'!C30)>0,'Student Profile'!C30,"") ->  | C31: 25 | D31: 17 | E31: 70 | F31: 25 | G31: 17 | H31: 70 | I31: 25 | J31: 17 | K31: 70 | L31: 25 | M31: 17 | N31: 70 | O31: 25 | P31: 17 | Q31: 70 | R31: 25 | S31: 17 | T31: 70 | U31: 25 | V31: 17 | W31: 70 | X31: 172 | Y31: =IFERROR(X31/'Student Profile'!P30,"") -> 34.4 | Z31: 15
A32: ='Student Profile'!A31 ->  | B32: =IF(('Student Profile'!C31)>0,'Student Profile'!C31,"") ->  | C32: 34 | D32: 15 | E32: 82 | F32: 34 | G32: 15 | H32: 82 | I32: 34 | J32: 15 | K32: 82 | L32: 34 | M32: 15 | N32: 82 | O32: 34 | P32: 15 | Q32: 82 | R32: 34 | S32: 15 | T32: 82 | U32: 34 | V32: 15 | W32: 82 | X32: 172 | Y32: =IFERROR(X32/'Student Profile'!P31,"") -> 34.4 | Z32: 15
A33: ='Student Profile'!A32 ->  | B33: =IF(('Student Profile'!C32)>0,'Student Profile'!C32,"") ->  | C33: 36 | D33: 15 | E33: 85 | F33: 36 | G33: 15 | H33: 85 | I33: 36 | J33: 15 | K33: 85 | L33: 36 | M33: 15 | N33: 85 | O33: 36 | P33: 15 | Q33: 85 | R33: 36 | S33: 15 | T33: 85 | U33: 36 | V33: 15 | W33: 85 | X33: 175 | Y33: =IFERROR(X33/'Student Profile'!P32,"") -> 35 | Z33: 10
A34: ='Student Profile'!A33 ->  | B34: =IF(('Student Profile'!C33)>0,'Student Profile'!C33,"") ->  | C34: 25 | D34: 15 | E34: 67 | F34: 25 | G34: 15 | H34: 67 | I34: 25 | J34: 15 | K34: 67 | L34: 25 | M34: 15 | N34: 67 | O34: 25 | P34: 15 | Q34: 67 | R34: 25 | S34: 15 | T34: 67 | U34: 25 | V34: 15 | W34: 67 | X34: 157 | Y34: =IFERROR(X34/'Student Profile'!P33,"") -> 31.4 | Z34: 32
A35: ='Student Profile'!A34 ->  | B35: =IF(('Student Profile'!C34)>0,'Student Profile'!C34,"") ->  | C35: 34 | D35: 15 | E35: 82 | F35: 34 | G35: 15 | H35: 82 | I35: 34 | J35: 15 | K35: 82 | L35: 34 | M35: 15 | N35: 82 | O35: 34 | P35: 15 | Q35: 82 | R35: 34 | S35: 15 | T35: 82 | U35: 34 | V35: 15 | W35: 82 | X35: 172 | Y35: =IFERROR(X35/'Student Profile'!P34,"") -> 34.4 | Z35: 15
A36: ='Student Profile'!A35 ->  | B36: =IF(('Student Profile'!C35)>0,'Student Profile'!C35,"") ->  | C36: 28 | D36: 18 | E36: 77 | F36: 28 | G36: 18 | H36: 77 | I36: 28 | J36: 18 | K36: 77 | L36: 28 | M36: 18 | N36: 77 | O36: 28 | P36: 18 | Q36: 77 | R36: 28 | S36: 18 | T36: 77 | U36: 28 | V36: 18 | W36: 77 | X36: 185 | Y36: =IFERROR(X36/'Student Profile'!P35,"") -> 37 | Z36: 5
A37: ='Student Profile'!A36 ->  | B37: =IF(('Student Profile'!C36)>0,'Student Profile'!C36,"") ->  | C37: 29 | D37: 15 | E37: 74 | F37: 29 | G37: 15 | H37: 74 | I37: 29 | J37: 15 | K37: 74 | L37: 29 | M37: 15 | N37: 74 | O37: 29 | P37: 15 | Q37: 74 | R37: 29 | S37: 15 | T37: 74 | U37: 29 | V37: 15 | W37: 74 | X37: 164 | Y37: =IFERROR(X37/'Student Profile'!P36,"") -> 32.8 | Z37: 28
A38: ='Student Profile'!A37 ->  | B38: =IF(('Student Profile'!C37)>0,'Student Profile'!C37,"") ->  | C38: 20 | D38: 10 | E38: 50 | F38: 20 | G38: 10 | H38: 50 | I38: 20 | J38: 10 | K38: 50 | L38: 20 | M38: 10 | N38: 50 | O38: 20 | P38: 10 | Q38: 50 | R38: 20 | S38: 10 | T38: 50 | U38: 20 | V38: 10 | W38: 50 | X38: 110 | Y38: =IFERROR(X38/'Student Profile'!P37,"") -> 22 | Z38: 42
A39: ='Student Profile'!A38 ->  | B39: =IF(('Student Profile'!C38)>0,'Student Profile'!C38,"") ->  | C39: 25 | D39: 15 | E39: 67 | F39: 25 | G39: 15 | H39: 67 | I39: 25 | J39: 15 | K39: 67 | L39: 25 | M39: 15 | N39: 67 | O39: 25 | P39: 15 | Q39: 67 | R39: 25 | S39: 15 | T39: 67 | U39: 25 | V39: 15 | W39: 67 | X39: 157 | Y39: =IFERROR(X39/'Student Profile'!P38,"") -> 31.4 | Z39: 32
A40: ='Student Profile'!A39 ->  | B40: =IF(('Student Profile'!C39)>0,'Student Profile'!C39,"") ->  | C40: 35 | D40: 20 | E40: 92 | F40: 35 | G40: 20 | H40: 92 | I40: 35 | J40: 20 | K40: 92 | L40: 35 | M40: 20 | N40: 92 | O40: 35 | P40: 20 | Q40: 92 | R40: 35 | S40: 20 | T40: 92 | U40: 35 | V40: 20 | W40: 92 | X40: 212 | Y40: =IFERROR(X40/'Student Profile'!P39,"") -> 42.4 | Z40: 1
A41: ='Student Profile'!A40 ->  | B41: =IF(('Student Profile'!C40)>0,'Student Profile'!C40,"") ->  | C41: 25 | D41: 17 | E41: 70 | F41: 25 | G41: 17 | H41: 70 | I41: 25 | J41: 17 | K41: 70 | L41: 25 | M41: 17 | N41: 70 | O41: 25 | P41: 17 | Q41: 70 | R41: 25 | S41: 17 | T41: 70 | U41: 25 | V41: 17 | W41: 70 | X41: 172 | Y41: =IFERROR(X41/'Student Profile'!P40,"") -> 34.4 | Z41: 15
A42: ='Student Profile'!A41 ->  | B42: =IF(('Student Profile'!C41)>0,'Student Profile'!C41,"") ->  | C42: 34 | D42: 15 | E42: 82 | F42: 34 | G42: 15 | H42: 82 | I42: 34 | J42: 15 | K42: 82 | L42: 34 | M42: 15 | N42: 82 | O42: 34 | P42: 15 | Q42: 82 | R42: 34 | S42: 15 | T42: 82 | U42: 34 | V42: 15 | W42: 82 | X42: 172 | Y42: =IFERROR(X42/'Student Profile'!P41,"") -> 34.4 | Z42: 15
A43: ='Student Profile'!A42 ->  | B43: =IF(('Student Profile'!C42)>0,'Student Profile'!C42,"") ->  | C43: 36 | D43: 15 | E43: 85 | F43: 36 | G43: 15 | H43: 85 | I43: 36 | J43: 15 | K43: 85 | L43: 36 | M43: 15 | N43: 85 | O43: 36 | P43: 15 | Q43: 85 | R43: 36 | S43: 15 | T43: 85 | U43: 36 | V43: 15 | W43: 85 | X43: 175 | Y43: =IFERROR(X43/'Student Profile'!P42,"") -> 35 | Z43: 10
A44: ='Student Profile'!A43 ->  | B44: =IF(('Student Profile'!C43)>0,'Student Profile'!C43,"") ->  | C44: 25 | D44: 15 | E44: 67 | F44: 25 | G44: 15 | H44: 67 | I44: 25 | J44: 15 | K44: 67 | L44: 25 | M44: 15 | N44: 67 | O44: 25 | P44: 15 | Q44: 67 | R44: 25 | S44: 15 | T44: 67 | U44: 25 | V44: 15 | W44: 67 | X44: 157 | Y44: =IFERROR(X44/'Student Profile'!P43,"") -> 31.4 | Z44: 32
A45: ='Student Profile'!A44 ->  | B45: =IF(('Student Profile'!C44)>0,'Student Profile'!C44,"") ->  | C45: 34 | D45: 15 | E45: 82 | F45: 34 | G45: 15 | H45: 82 | I45: 34 | J45: 15 | K45: 82 | L45: 34 | M45: 15 | N45: 82 | O45: 34 | P45: 15 | Q45: 82 | R45: 34 | S45: 15 | T45: 82 | U45: 34 | V45: 15 | W45: 82 | X45: 172 | Y45: =IFERROR(X45/'Student Profile'!P44,"") -> 34.4 | Z45: 15
A46: ='Student Profile'!A45 ->  | B46: =IF(('Student Profile'!C45)>0,'Student Profile'!C45,"") ->  | C46: 28 | D46: 18 | E46: 77 | F46: 28 | G46: 18 | H46: 77 | I46: 28 | J46: 18 | K46: 77 | L46: 28 | M46: 18 | N46: 77 | O46: 28 | P46: 18 | Q46: 77 | R46: 28 | S46: 18 | T46: 77 | U46: 28 | V46: 18 | W46: 77 | X46: 185 | Y46: =IFERROR(X46/'Student Profile'!P45,"") -> 37 | Z46: 5
A47: ='Student Profile'!A46 ->  | B47: =IF(('Student Profile'!C46)>0,'Student Profile'!C46,"") ->  | C47: 29 | D47: 15 | E47: 74 | F47: 29 | G47: 15 | H47: 74 | I47: 29 | J47: 15 | K47: 74 | L47: 29 | M47: 15 | N47: 74 | O47: 29 | P47: 15 | Q47: 74 | R47: 29 | S47: 15 | T47: 74 | U47: 29 | V47: 15 | W47: 74 | X47: 164 | Y47: =IFERROR(X47/'Student Profile'!P46,"") -> 32.8 | Z47: 28
A48: ='Student Profile'!A47 ->  | B48: =IF(('Student Profile'!C47)>0,'Student Profile'!C47,"") ->  | C48: 36 | D48: 15 | E48: 85 | F48: 36 | G48: 15 | H48: 85 | I48: 36 | J48: 15 | K48: 85 | L48: 36 | M48: 15 | N48: 85 | O48: 36 | P48: 15 | Q48: 85 | R48: 36 | S48: 15 | T48: 85 | U48: 36 | V48: 15 | W48: 85 | X48: 175 | Y48: =IFERROR(X48/'Student Profile'!P47,"") -> 35 | Z48: 10
A49: ='Student Profile'!A48 ->  | B49: =IF(('Student Profile'!C48)>0,'Student Profile'!C48,"") ->  | C49: 25 | D49: 15 | E49: 67 | F49: 25 | G49: 15 | H49: 67 | I49: 25 | J49: 15 | K49: 67 | L49: 25 | M49: 15 | N49: 67 | O49: 25 | P49: 15 | Q49: 67 | R49: 25 | S49: 15 | T49: 67 | U49: 25 | V49: 15 | W49: 67 | X49: 157 | Y49: =IFERROR(X49/'Student Profile'!P48,"") -> 31.4 | Z49: 32
A50: ='Student Profile'!A49 ->  | B50: =IF(('Student Profile'!C49)>0,'Student Profile'!C49,"") ->  | C50: 34 | D50: 15 | E50: 82 | F50: 34 | G50: 15 | H50: 82 | I50: 34 | J50: 15 | K50: 82 | L50: 34 | M50: 15 | N50: 82 | O50: 34 | P50: 15 | Q50: 82 | R50: 34 | S50: 15 | T50: 82 | U50: 34 | V50: 15 | W50: 82 | X50: 172 | Y50: =IFERROR(X50/'Student Profile'!P49,"") -> 34.4 | Z50: 15
A51: ='Student Profile'!A50 ->  | B51: =IF(('Student Profile'!C50)>0,'Student Profile'!C50,"") ->  | C51: 28 | D51: 18 | E51: 77 | F51: 28 | G51: 18 | H51: 77 | I51: 28 | J51: 18 | K51: 77 | L51: 28 | M51: 18 | N51: 77 | O51: 28 | P51: 18 | Q51: 77 | R51: 28 | S51: 18 | T51: 77 | U51: 28 | V51: 18 | W51: 77 | X51: 185 | Y51: =IFERROR(X51/'Student Profile'!P50,"") -> 37 | Z51: 5
A52: ='Student Profile'!A51 ->  | B52: =IF(('Student Profile'!C51)>0,'Student Profile'!C51,"") ->  | C52: AB | D52: 12 | E52: 20 | F52: AB | G52: 12 | H52: 20 | I52: AB | J52: 12 | K52: 20 | L52: AB | M52: 12 | N52: 20 | O52: AB | P52: 12 | Q52: 20 | R52: AB | S52: 12 | T52: 20 | U52: AB | V52: 12 | W52: 20 | X52: =IF(OR(ISNUMBER(E52),ISNUMBER(H52),ISNUMBER(K52),ISNUMBER(N52),ISNUMBER(Q52),ISNUMBER(T52),ISNUMBER(W52)),SUM(E52,H52,K52,N52,Q52,T52,Q52),"") -> 140 | Y52: =IFERROR(X52/'Student Profile'!P51,"") -> 28 | Z52: 41
A53: Subject Avg. | C53: =IF(AND(ISNUMBER(Z57),Z57>0),SUM(E8:E52)/C60,"") -> 73.66666667 | F53: =IF(AND(ISNUMBER(Z58),Z58>0),SUM(H8:H52)/F60,"") -> 73.66666667 | I53: =IF(AND(ISNUMBER(Z59),Z59>0),SUM(K8:K52)/I60,"") -> 73.66666667 | L53: =IF(AND(ISNUMBER(Z60),Z60>0),SUM(N8:N52)/L60,"") -> 73.66666667 | O53: =IF(AND(ISNUMBER(Z61),Z61>0),SUM(Q8:Q52)/O60,"") -> 73.66666667 | R53: =IF(AND(ISNUMBER(Z62),Z62>0),SUM(T8:T52)/R60,"") -> 73.66666667 | U53: =IF(AND(ISNUMBER(AO58),AO58>0),SUM(W8:W52)/U60,"") ->  | X53: SUBJECTS | Y53: Total Student | Z53: Present
A54: Pass %age | C54: =IF(ISNUMBER(C53),(C61/C60)*100,"0") -> 97.77777778 | F54: =IF(ISNUMBER(F53),F61/F60*100,"0") -> 97.77777778 | I54: =IF(ISNUMBER(I53),I61/I60*100,"0") -> 97.77777778 | L54: =IF(ISNUMBER(L53),L61/L60*100,"0") -> 97.77777778 | O54: =IF(ISNUMBER(O53),O61/O60*100,"0") -> 97.77777778 | R54: =IF(ISNUMBER(R53),R61/R60*100,"0") -> 97.77777778 | U54: =IF(ISNUMBER(U53),U61/U60*100,"0") -> 0
A55: Below 33% | C55: =COUNTIF(E8:E52,"<33") -> 1 | F55: =COUNTIF(H8:H52,"<33") -> 1 | I55: =COUNTIF(K8:K52,"<33") -> 1 | L55: =COUNTIF(N8:N52,"<33") -> 1 | O55: =COUNTIF(Q8:Q52,"<33") -> 1 | R55: =COUNTIF(T8:T52,"<33") -> 1 | U55: =COUNTIF(V8:V52,"<33") -> 45
A56: 33% to 50% | C56: =COUNTIF(E8:E52,">=33")-C57-C58-C59 -> 0 | F56: =COUNTIF(H8:H52,">=33")-F57-F58-F59 -> 0 | I56: =COUNTIF(K8:K52,">=33")-I57-I58-I59 -> 0 | L56: =COUNTIF(N8:N52,">=33")-L57-L58-L59 -> 0 | O56: =COUNTIF(Q8:Q52,">=33")-O57-O58-O59 -> 0 | R56: =COUNTIF(T8:T52,">=33")-R57-R58-R59 -> 0 | U56: =COUNTIF(W8:W52,">=33")-U57-U58-U59 -> 0
A57: 50% to 60% | C57: =COUNTIF(E8:E52,">=50")-C58-C59 -> 4 | F57: =COUNTIF(H8:H52,">=50")-F58-F59 -> 4 | I57: =COUNTIF(K8:K52,">=50")-I58-I59 -> 4 | L57: =COUNTIF(N8:N52,">=50")-L58-L59 -> 4 | O57: =COUNTIF(Q8:Q52,">=50")-O58-O59 -> 4 | R57: =COUNTIF(T8:T52,">=50")-R58-R59 -> 4 | U57: =COUNTIF(W8:W52,">=50")-U58-U59 -> 4 | X57: =Home!B15 -> ENGLISH | Y57: =C62 -> 45 | Z57: =C60 -> 45
A58: 60% to 75% | C58: =COUNTIF(E8:E52,">=60")-C59 -> 17 | F58: =COUNTIF(H8:H52,">=60")-F59 -> 17 | I58: =COUNTIF(K8:K52,">=60")-I59 -> 17 | L58: =COUNTIF(N8:N52,">=60")-L59 -> 17 | O58: =COUNTIF(Q8:Q52,">=60")-O59 -> 17 | R58: =COUNTIF(T8:T52,">=60")-R59 -> 17 | U58: =COUNTIF(W8:W52,">=60")-U59 -> 17 | X58: =Home!B16 -> HINDI | Y58: =F62 -> 45 | Z58: =F60 -> 45
A59: above 75% | C59: =COUNTIF(E8:E52,">=75") -> 23 | F59: =COUNTIF(H8:H52,">=75") -> 23 | I59: =COUNTIF(K8:K52,">=75") -> 23 | L59: =COUNTIF(N8:N52,">=75") -> 23 | O59: =COUNTIF(Q8:Q52,">=75") -> 23 | R59: =COUNTIF(T8:T52,">=75") -> 23 | U59: =COUNTIF(W8:W52,">=75") -> 23 | X59: =Home!B17 -> INFO PRACT | Y59: =I62 -> 45 | Z59: =I60 -> 45
A60: Appeared | C60: =COUNTIF(E8:E52,">=0") -> 45 | F60: =COUNTIF(H8:H52,">=0") -> 45 | I60: =COUNTIF(K8:K52,">=0") -> 45 | L60: =COUNTIF(N8:N52,">=0") -> 45 | O60: =COUNTIF(Q8:Q52,">=0") -> 45 | R60: =COUNTIF(T8:T52,">=0") -> 45 | U60: =COUNTIF(W8:W52,">=0") -> 45 | X60: =Home!B18 -> MATH | Y60: =L62 -> 45 | Z60: =L60 -> 45
A61: Passed | C61: =COUNTIF(E8:E52,">=33") -> 44 | F61: =COUNTIF(H8:H52,">=33") -> 44 | I61: =COUNTIF(K8:K52,">=33") -> 44 | L61: =COUNTIF(N8:N52,">=33") -> 44 | O61: =COUNTIF(Q8:Q52,">=33") -> 44 | R61: =COUNTIF(T8:T52,">=33") -> 44 | U61: =COUNTIF(W8:W52,">=33") -> 44 | X61: =Home!B19 -> CHEM | Y61: =O62 -> 45 | Z61: =O60 -> 45
A62: Total | C62: =C60+C63 -> 45 | F62: =F60+F63 -> 45 | I62: =I60+I63 -> 45 | L62: =L60+L63 -> 45 | O62: =O60+O63 -> 45 | R62: =R60+R63 -> 45 | U62: =U60+U63 -> 45 | X62: =Home!B20 -> PHYSICS | Y62: =R62 -> 45 | Z62: =R60 -> 45
A63: Absent | C63: =COUNTIF(E8:E52,"AB") -> 0 | F63: =COUNTIF(H8:H52,"AB") -> 0 | I63: =COUNTIF(J8:J52,"AB") -> 0 | L63: =COUNTIF(N8:N52,"AB") -> 0 | O63: =COUNTIF(Q8:Q52,"AB") -> 0 | R63: =COUNTIF(T8:T52,"AB") -> 0 | U63: =COUNTIF(W8:W52,"AB") -> 0 | X63: =Home!B21 -> BIO | Y63: =U62 -> 45 | Z63: =U60 -> 45

Sheet PREANNU PB2
A1: =Home!C7 -> JAWAHAR NAVODAYA VIDYALAYA, | M1: =Home!I7 -> MOHINDERGARH
A2: PRE ANNUAL/PREBOARD-2
A3: =Home!C9 -> XII A | G3: =Home!C8 -> 2019-20 | P3: E
A4: ROLL NO. | B4: STUDENT NAME | C4: =Home!B15 -> ENGLISH | F4: =Home!B16 -> HINDI | I4: =Home!B17 -> INFO PRACT | L4: =Home!B18 -> MATH | O4: =Home!B19 -> CHEM | R4: =Home!B20 -> PHYSICS | U4: =Home!B21 -> BIO | X4: MARKS OBT | Y4: %AGE | Z4: Rank
C5: M.M | E5: %age | F5: M.M | H5: %age | I5: M.M | K5: %age | L5: M.M | N5: %age | O5: M.M | Q5: %age | R5: M.M | T5: %age | U5: M.M | W5: %age
C6: Th. | D6: IA/ Prac. | F6: Th. | G6: IA/ Prac. | I6: Th. | J6: IA/ Prac. | L6: Th. | M6: IA/ Prac. | O6: Th. | P6: IA/ Prac. | R6: Th. | S6: IA/ Prac. | U6: Th. | V6: IA/ Prac.
C7: 40 | D7: 20 | E7: 100 | F7: 40 | G7: 20 | H7: 100 | I7: 40 | J7: 20 | K7: 100 | L7: 40 | M7: 20 | N7: 100 | O7: 40 | P7: 20 | Q7: 100 | R7: 40 | S7: 20 | T7: 100 | U7: 40 | V7: 20 | W7: 100
A8: ='Student Profile'!A7 -> 1 | B8: =IF(('Student Profile'!C7)>0,'Student Profile'!C7,"") -> SUNIL KUMAR | C8: 20 | D8: 10 | E8: =IF(OR(ISNUMBER(C8),ISNUMBER(D8)),ROUNDUP(SUM(C8:D8)/SUM($C$7,$D$7)*100,0),IF(C8="AB",C8,"")) -> 50 | F8: 20 | G8: 10 | H8: =IF(OR(ISNUMBER(F8),ISNUMBER(G8)),ROUNDUP(SUM(F8:G8)/SUM($F$7,$G$7)*100,0),IF(F8="AB",F8,"")) -> 50 | I8: 20 | J8: 10 | K8: =IF(OR(ISNUMBER(I8),ISNUMBER(J8)),ROUNDUP(SUM(I8:J8)/SUM($I$7,$J$7)*100,0),IF(I8="AB",I8,"")) -> 50 | L8: 20 | M8: 10 | N8: =IF(OR(ISNUMBER(L8),ISNUMBER(M8)),ROUNDUP(SUM(L8:M8)/SUM($L$7,$M$7)*100,0),IF(L8="AB",L8,"")) -> 50 | O8: 20 | P8: 10 | Q8: =IF(OR(ISNUMBER(O8),ISNUMBER(P8)),ROUNDUP(SUM(O8:P8)/SUM($O$7,$P$7)*100,0),IF(O8="AB",O8,"")) -> 50 | R8: 20 | S8: 10 | T8: =IF(OR(ISNUMBER(R8),ISNUMBER(S8)),ROUNDUP(SUM(R8:S8)/SUM($R$7,$S$7)*100,0),IF(R8="AB",R8,"")) -> 50 | U8: 20 | V8: 10 | W8: =IF(OR(ISNUMBER(U8),ISNUMBER(V8)),ROUNDUP(SUM(U8:V8)/SUM($U$7,$V$7)*100,0),IF(U8="AB",U8,"")) -> 50 | X8: =IF(OR(ISNUMBER(E8),ISNUMBER(G8),ISNUMBER(J8),ISNUMBER(M8),ISNUMBER(P8),ISNUMBER(S8),ISNUMBER(V8)),SUM(E8,G8,J8,M8,P8,S8,V8),"") -> 110 | Y8: =IFERROR(X8/'Student Profile'!P7,"") -> 22 | Z8: =IFERROR(RANK(Y8,Y$8:Y$52,0),"") -> 42
A9: ='Student Profile'!A8 ->  | B9: =IF(('Student Profile'!C8)>0,'Student Profile'!C8,"") ->  | C9: 25 | D9: 15 | E9: =IF(OR(ISNUMBER(C9),ISNUMBER(D9)),ROUNDUP(SUM(C9:D9)/SUM($C$7,$D$7)*100,0),IF(C9="AB",C9,"")) -> 67 | F9: 25 | G9: 15 | H9: =IF(OR(ISNUMBER(F9),ISNUMBER(G9)),ROUNDUP(SUM(F9:G9)/SUM($F$7,$G$7)*100,0),IF(F9="AB",F9,"")) -> 67 | I9: 25 | J9: 15 | K9: =IF(OR(ISNUMBER(I9),ISNUMBER(J9)),ROUNDUP(SUM(I9:J9)/SUM($I$7,$J$7)*100,0),IF(I9="AB",I9,"")) -> 67 | L9: 25 | M9: 15 | N9: =IF(OR(ISNUMBER(L9),ISNUMBER(M9)),ROUNDUP(SUM(L9:M9)/SUM($L$7,$M$7)*100,0),IF(L9="AB",L9,"")) -> 67 | O9: 25 | P9: 15 | Q9: =IF(OR(ISNUMBER(O9),ISNUMBER(P9)),ROUNDUP(SUM(O9:P9)/SUM($O$7,$P$7)*100,0),IF(O9="AB",O9,"")) -> 67 | R9: 25 | S9: 15 | T9: =IF(OR(ISNUMBER(R9),ISNUMBER(S9)),ROUNDUP(SUM(R9:S9)/SUM($R$7,$S$7)*100,0),IF(R9="AB",R9,"")) -> 67 | U9: 25 | V9: 15 | W9: =IF(OR(ISNUMBER(U9),ISNUMBER(V9)),ROUNDUP(SUM(U9:V9)/SUM($U$7,$V$7)*100,0),IF(U9="AB",U9,"")) -> 67 | X9: =IF(OR(ISNUMBER(E9),ISNUMBER(G9),ISNUMBER(J9),ISNUMBER(M9),ISNUMBER(P9),ISNUMBER(S9),ISNUMBER(V9)),SUM(E9,G9,J9,M9,P9,S9,V9),"") -> 157 | Y9: =IFERROR(X9/'Student Profile'!P8,"") -> 31.4 | Z9: =IF(ISNUMBER(Y9),RANK(X9,X$8:X$52,0),"") -> 32
A10: ='Student Profile'!A9 ->  | B10: =IF(('Student Profile'!C9)>0,'Student Profile'!C9,"") ->  | C10: 35 | D10: 20 | E10: 92 | F10: 35 | G10: 20 | H10: 92 | I10: 35 | J10: 20 | K10: 92 | L10: 35 | M10: 20 | N10: 92 | O10: 35 | P10: 20 | Q10: 92 | R10: 35 | S10: 20 | T10: 92 | U10: 35 | V10: 20 | W10: 92 | X10: 212 | Y10: =IFERROR(X10/'Student Profile'!P9,"") -> 42.4 | Z10: 1
A11: ='Student Profile'!A10 ->  | B11: =IF(('Student Profile'!C10)>0,'Student Profile'!C10,"") ->  | C11: 25 | D11: 17 | E11: 70 | F11: 25 | G11: 17 | H11: 70 | I11: 25 | J11: 17 | K11: 70 | L11: 25 | M11: 17 | N11: 70 | O11: 25 | P11: 17 | Q11: 70 | R11: 25 | S11: 17 | T11: 70 | U11: 25 | V11: 17 | W11: 70 | X11: 172 | Y11: =IFERROR(X11/'Student Profile'!P10,"") -> 34.4 | Z11: 15
A12: ='Student Profile'!A11 ->  | B12: =IF(('Student Profile'!C11)>0,'Student Profile'!C11,"") ->  | C12: 34 | D12: 15 | E12: 82 | F12: 34 | G12: 15 | H12: 82 | I12: 34 | J12: 15 | K12: 82 | L12: 34 | M12: 15 | N12: 82 | O12: 34 | P12: 15 | Q12: 82 | R12: 34 | S12: 15 | T12: 82 | U12: 34 | V12: 15 | W12: 82 | X12: 172 | Y12: =IFERROR(X12/'Student Profile'!P11,"") -> 34.4 | Z12: 15
A13: ='Student Profile'!A12 ->  | B13: =IF(('Student Profile'!C12)>0,'Student Profile'!C12,"") ->  | C13: 36 | D13: 15 | E13: 85 | F13: 36 | G13: 15 | H13: 85 | I13: 36 | J13: 15 | K13: 85 | L13: 36 | M13: 15 | N13: 85 | O13: 36 | P13: 15 | Q13: 85 | R13: 36 | S13: 15 | T13: 85 | U13: 36 | V13: 15 | W13: 85 | X13: 175 | Y13: =IFERROR(X13/'Student Profile'!P12,"") -> 35 | Z13: 10
A14: ='Student Profile'!A13 ->  | B14: =IF(('Student Profile'!C13)>0,'Student Profile'!C13,"") ->  | C14: 25 | D14: 15 | E14: 67 | F14: 25 | G14: 15 | H14: 67 | I14: 25 | J14: 15 | K14: 67 | L14: 25 | M14: 15 | N14: 67 | O14: 25 | P14: 15 | Q14: 67 | R14: 25 | S14: 15 | T14: 67 | U14: 25 | V14: 15 | W14: 67 | X14: 157 | Y14: =IFERROR(X14/'Student Profile'!P13,"") -> 31.4 | Z14: 32
A15: ='Student Profile'!A14 ->  | B15: =IF(('Student Profile'!C14)>0,'Student Profile'!C14,"") ->  | C15: 34 | D15: 15 | E15: 82 | F15: 34 | G15: 15 | H15: 82 | I15: 34 | J15: 15 | K15: 82 | L15: 34 | M15: 15 | N15: 82 | O15: 34 | P15: 15 | Q15: 82 | R15: 34 | S15: 15 | T15: 82 | U15: 34 | V15: 15 | W15: 82 | X15: 172 | Y15: =IFERROR(X15/'Student Profile'!P14,"") -> 34.4 | Z15: 15
A16: ='Student Profile'!A15 ->  | B16: =IF(('Student Profile'!C15)>0,'Student Profile'!C15,"") ->  | C16: 28 | D16: 18 | E16: 77 | F16: 28 | G16: 18 | H16: 77 | I16: 28 | J16: 18 | K16: 77 | L16: 28 | M16: 18 | N16: 77 | O16: 28 | P16: 18 | Q16: 77 | R16: 28 | S16: 18 | T16: 77 | U16: 28 | V16: 18 | W16: 77 | X16: 185 | Y16: =IFERROR(X16/'Student Profile'!P15,"") -> 37 | Z16: 5
A17: ='Student Profile'!A16 ->  | B17: =IF(('Student Profile'!C16)>0,'Student Profile'!C16,"") ->  | C17: 29 | D17: 15 | E17: 74 | F17: 29 | G17: 15 | H17: 74 | I17: 29 | J17: 15 | K17: 74 | L17: 29 | M17: 15 | N17: 74 | O17: 29 | P17: 15 | Q17: 74 | R17: 29 | S17: 15 | T17: 74 | U17: 29 | V17: 15 | W17: 74 | X17: 164 | Y17: =IFERROR(X17/'Student Profile'!P16,"") -> 32.8 | Z17: 28
A18: ='Student Profile'!A17 ->  | B18: =IF(('Student Profile'!C17)>0,'Student Profile'!C17,"") ->  | C18: 20 | D18: 10 | E18: 50 | F18: 20 | G18: 10 | H18: 50 | I18: 20 | J18: 10 | K18: 50 | L18: 20 | M18: 10 | N18: 50 | O18: 20 | P18: 10 | Q18: 50 | R18: 20 | S18: 10 | T18: 50 | U18: 20 | V18: 10 | W18: 50 | X18: 110 | Y18: =IFERROR(X18/'Student Profile'!P17,"") -> 22 | Z18: 42
A19: ='Student Profile'!A18 ->  | B19: =IF(('Student Profile'!C18)>0,'Student Profile'!C18,"") ->  | C19: 25 | D19: 15 | E19: 67 | F19: 25 | G19: 15 | H19: 67 | I19: 25 | J19: 15 | K19: 67 | L19: 25 | M19: 15 | N19: 67 | O19: 25 | P19: 15 | Q19: 67 | R19: 25 | S19: 15 | T19: 67 | U19: 25 | V19: 15 | W19: 67 | X19: 157 | Y19: =IFERROR(X19/'Student Profile'!P18,"") -> 31.4 | Z19: 32
A20: ='Student Profile'!A19 ->  | B20: =IF(('Student Profile'!C19)>0,'Student Profile'!C19,"") ->  | C20: 35 | D20: 20 | E20: 92 | F20: 35 | G20: 20 | H20: 92 | I20: 35 | J20: 20 | K20: 92 | L20: 35 | M20: 20 | N20: 92 | O20: 35 | P20: 20 | Q20: 92 | R20: 35 | S20: 20 | T20: 92 | U20: 35 | V20: 20 | W20: 92 | X20: 212 | Y20: =IFERROR(X20/'Student Profile'!P19,"") -> 42.4 | Z20: 1
A21: ='Student Profile'!A20 ->  | B21: =IF(('Student Profile'!C20)>0,'Student Profile'!C20,"") ->  | C21: 25 | D21: 17 | E21: 70 | F21: 25 | G21: 17 | H21: 70 | I21: 25 | J21: 17 | K21: 70 | L21: 25 | M21: 17 | N21: 70 | O21: 25 | P21: 17 | Q21: 70 | R21: 25 | S21: 17 | T21: 70 | U21: 25 | V21: 17 | W21: 70 | X21: 172 | Y21: =IFERROR(X21/'Student Profile'!P20,"") -> 34.4 | Z21: 15
A22: ='Student Profile'!A21 ->  | B22: =IF(('Student Profile'!C21)>0,'Student Profile'!C21,"") ->  | C22: 34 | D22: 15 | E22: 82 | F22: 34 | G22: 15 | H22: 82 | I22: 34 | J22: 15 | K22: 82 | L22: 34 | M22: 15 | N22: 82 | O22: 34 | P22: 15 | Q22: 82 | R22: 34 | S22: 15 | T22: 82 | U22: 34 | V22: 15 | W22: 82 | X22: 172 | Y22: =IFERROR(X22/'Student Profile'!P21,"") -> 34.4 | Z22: 15
A23: ='Student Profile'!A22 ->  | B23: =IF(('Student Profile'!C22)>0,'Student Profile'!C22,"") ->  | C23: 36 | D23: 15 | E23: 85 | F23: 36 | G23: 15 | H23: 85 | I23: 36 | J23: 15 | K23: 85 | L23: 36 | M23: 15 | N23: 85 | O23: 36 | P23: 15 | Q23: 85 | R23: 36 | S23: 15 | T23: 85 | U23: 36 | V23: 15 | W23: 85 | X23: 175 | Y23: =IFERROR(X23/'Student Profile'!P22,"") -> 35 | Z23: 10
A24: ='Student Profile'!A23 ->  | B24: =IF(('Student Profile'!C23)>0,'Student Profile'!C23,"") ->  | C24: 25 | D24: 15 | E24: 67 | F24: 25 | G24: 15 | H24: 67 | I24: 25 | J24: 15 | K24: 67 | L24: 25 | M24: 15 | N24: 67 | O24: 25 | P24: 15 | Q24: 67 | R24: 25 | S24: 15 | T24: 67 | U24: 25 | V24: 15 | W24: 67 | X24: 157 | Y24: =IFERROR(X24/'Student Profile'!P23,"") -> 31.4 | Z24: 32
A25: ='Student Profile'!A24 ->  | B25: =IF(('Student Profile'!C24)>0,'Student Profile'!C24,"") ->  | C25: 34 | D25: 15 | E25: 82 | F25: 34 | G25: 15 | H25: 82 | I25: 34 | J25: 15 | K25: 82 | L25: 34 | M25: 15 | N25: 82 | O25: 34 | P25: 15 | Q25: 82 | R25: 34 | S25: 15 | T25: 82 | U25: 34 | V25: 15 | W25: 82 | X25: 172 | Y25: =IFERROR(X25/'Student Profile'!P24,"") -> 34.4 | Z25: 15
A26: ='Student Profile'!A25 ->  | B26: =IF(('Student Profile'!C25)>0,'Student Profile'!C25,"") ->  | C26: 28 | D26: 18 | E26: 77 | F26: 28 | G26: 18 | H26: 77 | I26: 28 | J26: 18 | K26: 77 | L26: 28 | M26: 18 | N26: 77 | O26: 28 | P26: 18 | Q26: 77 | R26: 28 | S26: 18 | T26: 77 | U26: 28 | V26: 18 | W26: 77 | X26: 185 | Y26: =IFERROR(X26/'Student Profile'!P25,"") -> 37 | Z26: 5
A27: ='Student Profile'!A26 ->  | B27: =IF(('Student Profile'!C26)>0,'Student Profile'!C26,"") ->  | C27: 29 | D27: 15 | E27: 74 | F27: 29 | G27: 15 | H27: 74 | I27: 29 | J27: 15 | K27: 74 | L27: 29 | M27: 15 | N27: 74 | O27: 29 | P27: 15 | Q27: 74 | R27: 29 | S27: 15 | T27: 74 | U27: 29 | V27: 15 | W27: 74 | X27: 164 | Y27: =IFERROR(X27/'Student Profile'!P26,"") -> 32.8 | Z27: 28
A28: ='Student Profile'!A27 ->  | B28: =IF(('Student Profile'!C27)>0,'Student Profile'!C27,"") ->  | C28: 20 | D28: 10 | E28: 50 | F28: 20 | G28: 10 | H28: 50 | I28: 20 | J28: 10 | K28: 50 | L28: 20 | M28: 10 | N28: 50 | O28: 20 | P28: 10 | Q28: 50 | R28: 20 | S28: 10 | T28: 50 | U28: 20 | V28: 10 | W28: 50 | X28: 110 | Y28: =IFERROR(X28/'Student Profile'!P27,"") -> 22 | Z28: 42
A29: ='Student Profile'!A28 ->  | B29: =IF(('Student Profile'!C28)>0,'Student Profile'!C28,"") ->  | C29: 25 | D29: 15 | E29: 67 | F29: 25 | G29: 15 | H29: 67 | I29: 25 | J29: 15 | K29: 67 | L29: 25 | M29: 15 | N29: 67 | O29: 25 | P29: 15 | Q29: 67 | R29: 25 | S29: 15 | T29: 67 | U29: 25 | V29: 15 | W29: 67 | X29: 157 | Y29: =IFERROR(X29/'Student Profile'!P28,"") -> 31.4 | Z29: 32
A30: ='Student Profile'!A29 ->  | B30: =IF(('Student Profile'!C29)>0,'Student Profile'!C29,"") ->  | C30: 35 | D30: 20 | E30: 92 | F30: 35 | G30: 20 | H30: 92 | I30: 35 | J30: 20 | K30: 92 | L30: 35 | M30: 20 | N30: 92 | O30: 35 | P30: 20 | Q30: 92 | R30: 35 | S30: 20 | T30: 92 | U30: 35 | V30: 20 | W30: 92 | X30: 212 | Y30: =IFERROR(X30/'Student Profile'!P29,"") -> 42.4 | Z30: 1
A31: ='Student Profile'!A30 ->  | B31: =IF(('Student Profile'!C30)>0,'Student Profile'!C30,"") ->  | C31: 25 | D31: 17 | E31: 70 | F31: 25 | G31: 17 | H31: 70 | I31: 25 | J31: 17 | K31: 70 | L31: 25 | M31: 17 | N31: 70 | O31: 25 | P31: 17 | Q31: 70 | R31: 25 | S31: 17 | T31: 70 | U31: 25 | V31: 17 | W31: 70 | X31: 172 | Y31: =IFERROR(X31/'Student Profile'!P30,"") -> 34.4 | Z31: 15
A32: ='Student Profile'!A31 ->  | B32: =IF(('Student Profile'!C31)>0,'Student Profile'!C31,"") ->  | C32: 34 | D32: 15 | E32: 82 | F32: 34 | G32: 15 | H32: 82 | I32: 34 | J32: 15 | K32: 82 | L32: 34 | M32: 15 | N32: 82 | O32: 34 | P32: 15 | Q32: 82 | R32: 34 | S32: 15 | T32: 82 | U32: 34 | V32: 15 | W32: 82 | X32: 172 | Y32: =IFERROR(X32/'Student Profile'!P31,"") -> 34.4 | Z32: 15
A33: ='Student Profile'!A32 ->  | B33: =IF(('Student Profile'!C32)>0,'Student Profile'!C32,"") ->  | C33: 36 | D33: 15 | E33: 85 | F33: 36 | G33: 15 | H33: 85 | I33: 36 | J33: 15 | K33: 85 | L33: 36 | M33: 15 | N33: 85 | O33: 36 | P33: 15 | Q33: 85 | R33: 36 | S33: 15 | T33: 85 | U33: 36 | V33: 15 | W33: 85 | X33: 175 | Y33: =IFERROR(X33/'Student Profile'!P32,"") -> 35 | Z33: 10
A34: ='Student Profile'!A33 ->  | B34: =IF(('Student Profile'!C33)>0,'Student Profile'!C33,"") ->  | C34: 25 | D34: 15 | E34: 67 | F34: 25 | G34: 15 | H34: 67 | I34: 25 | J34: 15 | K34: 67 | L34: 25 | M34: 15 | N34: 67 | O34: 25 | P34: 15 | Q34: 67 | R34: 25 | S34: 15 | T34: 67 | U34: 25 | V34: 15 | W34: 67 | X34: 157 | Y34: =IFERROR(X34/'Student Profile'!P33,"") -> 31.4 | Z34: 32
A35: ='Student Profile'!A34 ->  | B35: =IF(('Student Profile'!C34)>0,'Student Profile'!C34,"") ->  | C35: 34 | D35: 15 | E35: 82 | F35: 34 | G35: 15 | H35: 82 | I35: 34 | J35: 15 | K35: 82 | L35: 34 | M35: 15 | N35: 82 | O35: 34 | P35: 15 | Q35: 82 | R35: 34 | S35: 15 | T35: 82 | U35: 34 | V35: 15 | W35: 82 | X35: 172 | Y35: =IFERROR(X35/'Student Profile'!P34,"") -> 34.4 | Z35: 15
A36: ='Student Profile'!A35 ->  | B36: =IF(('Student Profile'!C35)>0,'Student Profile'!C35,"") ->  | C36: 28 | D36: 18 | E36: 77 | F36: 28 | G36: 18 | H36: 77 | I36: 28 | J36: 18 | K36: 77 | L36: 28 | M36: 18 | N36: 77 | O36: 28 | P36: 18 | Q36: 77 | R36: 28 | S36: 18 | T36: 77 | U36: 28 | V36: 18 | W36: 77 | X36: 185 | Y36: =IFERROR(X36/'Student Profile'!P35,"") -> 37 | Z36: 5
A37: ='Student Profile'!A36 ->  | B37: =IF(('Student Profile'!C36)>0,'Student Profile'!C36,"") ->  | C37: 29 | D37: 15 | E37: 74 | F37: 29 | G37: 15 | H37: 74 | I37: 29 | J37: 15 | K37: 74 | L37: 29 | M37: 15 | N37: 74 | O37: 29 | P37: 15 | Q37: 74 | R37: 29 | S37: 15 | T37: 74 | U37: 29 | V37: 15 | W37: 74 | X37: 164 | Y37: =IFERROR(X37/'Student Profile'!P36,"") -> 32.8 | Z37: 28
A38: ='Student Profile'!A37 ->  | B38: =IF(('Student Profile'!C37)>0,'Student Profile'!C37,"") ->  | C38: 20 | D38: 10 | E38: 50 | F38: 20 | G38: 10 | H38: 50 | I38: 20 | J38: 10 | K38: 50 | L38: 20 | M38: 10 | N38: 50 | O38: 20 | P38: 10 | Q38: 50 | R38: 20 | S38: 10 | T38: 50 | U38: 20 | V38: 10 | W38: 50 | X38: 110 | Y38: =IFERROR(X38/'Student Profile'!P37,"") -> 22 | Z38: 42
A39: ='Student Profile'!A38 ->  | B39: =IF(('Student Profile'!C38)>0,'Student Profile'!C38,"") ->  | C39: 25 | D39: 15 | E39: 67 | F39: 25 | G39: 15 | H39: 67 | I39: 25 | J39: 15 | K39: 67 | L39: 25 | M39: 15 | N39: 67 | O39: 25 | P39: 15 | Q39: 67 | R39: 25 | S39: 15 | T39: 67 | U39: 25 | V39: 15 | W39: 67 | X39: 157 | Y39: =IFERROR(X39/'Student Profile'!P38,"") -> 31.4 | Z39: 32
A40: ='Student Profile'!A39 ->  | B40: =IF(('Student Profile'!C39)>0,'Student Profile'!C39,"") ->  | C40: 35 | D40: 20 | E40: 92 | F40: 35 | G40: 20 | H40: 92 | I40: 35 | J40: 20 | K40: 92 | L40: 35 | M40: 20 | N40: 92 | O40: 35 | P40: 20 | Q40: 92 | R40: 35 | S40: 20 | T40: 92 | U40: 35 | V40: 20 | W40: 92 | X40: 212 | Y40: =IFERROR(X40/'Student Profile'!P39,"") -> 42.4 | Z40: 1
A41: ='Student Profile'!A40 ->  | B41: =IF(('Student Profile'!C40)>0,'Student Profile'!C40,"") ->  | C41: 25 | D41: 17 | E41: 70 | F41: 25 | G41: 17 | H41: 70 | I41: 25 | J41: 17 | K41: 70 | L41: 25 | M41: 17 | N41: 70 | O41: 25 | P41: 17 | Q41: 70 | R41: 25 | S41: 17 | T41: 70 | U41: 25 | V41: 17 | W41: 70 | X41: 172 | Y41: =IFERROR(X41/'Student Profile'!P40,"") -> 34.4 | Z41: 15
A42: ='Student Profile'!A41 ->  | B42: =IF(('Student Profile'!C41)>0,'Student Profile'!C41,"") ->  | C42: 34 | D42: 15 | E42: 82 | F42: 34 | G42: 15 | H42: 82 | I42: 34 | J42: 15 | K42: 82 | L42: 34 | M42: 15 | N42: 82 | O42: 34 | P42: 15 | Q42: 82 | R42: 34 | S42: 15 | T42: 82 | U42: 34 | V42: 15 | W42: 82 | X42: 172 | Y42: =IFERROR(X42/'Student Profile'!P41,"") -> 34.4 | Z42: 15
A43: ='Student Profile'!A42 ->  | B43: =IF(('Student Profile'!C42)>0,'Student Profile'!C42,"") ->  | C43: 36 | D43: 15 | E43: 85 | F43: 36 | G43: 15 | H43: 85 | I43: 36 | J43: 15 | K43: 85 | L43: 36 | M43: 15 | N43: 85 | O43: 36 | P43: 15 | Q43: 85 | R43: 36 | S43: 15 | T43: 85 | U43: 36 | V43: 15 | W43: 85 | X43: 175 | Y43: =IFERROR(X43/'Student Profile'!P42,"") -> 35 | Z43: 10
A44: ='Student Profile'!A43 ->  | B44: =IF(('Student Profile'!C43)>0,'Student Profile'!C43,"") ->  | C44: 25 | D44: 15 | E44: 67 | F44: 25 | G44: 15 | H44: 67 | I44: 25 | J44: 15 | K44: 67 | L44: 25 | M44: 15 | N44: 67 | O44: 25 | P44: 15 | Q44: 67 | R44: 25 | S44: 15 | T44: 67 | U44: 25 | V44: 15 | W44: 67 | X44: 157 | Y44: =IFERROR(X44/'Student Profile'!P43,"") -> 31.4 | Z44: 32
A45: ='Student Profile'!A44 ->  | B45: =IF(('Student Profile'!C44)>0,'Student Profile'!C44,"") ->  | C45: 34 | D45: 15 | E45: 82 | F45: 34 | G45: 15 | H45: 82 | I45: 34 | J45: 15 | K45: 82 | L45: 34 | M45: 15 | N45: 82 | O45: 34 | P45: 15 | Q45: 82 | R45: 34 | S45: 15 | T45: 82 | U45: 34 | V45: 15 | W45: 82 | X45: 172 | Y45: =IFERROR(X45/'Student Profile'!P44,"") -> 34.4 | Z45: 15
A46: ='Student Profile'!A45 ->  | B46: =IF(('Student Profile'!C45)>0,'Student Profile'!C45,"") ->  | C46: 28 | D46: 18 | E46: 77 | F46: 28 | G46: 18 | H46: 77 | I46: 28 | J46: 18 | K46: 77 | L46: 28 | M46: 18 | N46: 77 | O46: 28 | P46: 18 | Q46: 77 | R46: 28 | S46: 18 | T46: 77 | U46: 28 | V46: 18 | W46: 77 | X46: 185 | Y46: =IFERROR(X46/'Student Profile'!P45,"") -> 37 | Z46: 5
A47: ='Student Profile'!A46 ->  | B47: =IF(('Student Profile'!C46)>0,'Student Profile'!C46,"") ->  | C47: 29 | D47: 15 | E47: 74 | F47: 29 | G47: 15 | H47: 74 | I47: 29 | J47: 15 | K47: 74 | L47: 29 | M47: 15 | N47: 74 | O47: 29 | P47: 15 | Q47: 74 | R47: 29 | S47: 15 | T47: 74 | U47: 29 | V47: 15 | W47: 74 | X47: 164 | Y47: =IFERROR(X47/'Student Profile'!P46,"") -> 32.8 | Z47: 28
A48: ='Student Profile'!A47 ->  | B48: =IF(('Student Profile'!C47)>0,'Student Profile'!C47,"") ->  | C48: 36 | D48: 15 | E48: 85 | F48: 36 | G48: 15 | H48: 85 | I48: 36 | J48: 15 | K48: 85 | L48: 36 | M48: 15 | N48: 85 | O48: 36 | P48: 15 | Q48: 85 | R48: 36 | S48: 15 | T48: 85 | U48: 36 | V48: 15 | W48: 85 | X48: 175 | Y48: =IFERROR(X48/'Student Profile'!P47,"") -> 35 | Z48: 10
A49: ='Student Profile'!A48 ->  | B49: =IF(('Student Profile'!C48)>0,'Student Profile'!C48,"") ->  | C49: 25 | D49: 15 | E49: 67 | F49: 25 | G49: 15 | H49: 67 | I49: 25 | J49: 15 | K49: 67 | L49: 25 | M49: 15 | N49: 67 | O49: 25 | P49: 15 | Q49: 67 | R49: 25 | S49: 15 | T49: 67 | U49: 25 | V49: 15 | W49: 67 | X49: 157 | Y49: =IFERROR(X49/'Student Profile'!P48,"") -> 31.4 | Z49: 32
A50: ='Student Profile'!A49 ->  | B50: =IF(('Student Profile'!C49)>0,'Student Profile'!C49,"") ->  | C50: 34 | D50: 15 | E50: 82 | F50: 34 | G50: 15 | H50: 82 | I50: 34 | J50: 15 | K50: 82 | L50: 34 | M50: 15 | N50: 82 | O50: 34 | P50: 15 | Q50: 82 | R50: 34 | S50: 15 | T50: 82 | U50: 34 | V50: 15 | W50: 82 | X50: 172 | Y50: =IFERROR(X50/'Student Profile'!P49,"") -> 34.4 | Z50: 15
A51: ='Student Profile'!A50 ->  | B51: =IF(('Student Profile'!C50)>0,'Student Profile'!C50,"") ->  | C51: 28 | D51: 18 | E51: 77 | F51: 28 | G51: 18 | H51: 77 | I51: 28 | J51: 18 | K51: 77 | L51: 28 | M51: 18 | N51: 77 | O51: 28 | P51: 18 | Q51: 77 | R51: 28 | S51: 18 | T51: 77 | U51: 28 | V51: 18 | W51: 77 | X51: 185 | Y51: =IFERROR(X51/'Student Profile'!P50,"") -> 37 | Z51: 5
A52: ='Student Profile'!A51 ->  | B52: =IF(('Student Profile'!C51)>0,'Student Profile'!C51,"") ->  | C52: AB | D52: 12 | E52: 20 | F52: AB | G52: 12 | H52: 20 | I52: AB | J52: 12 | K52: 20 | L52: AB | M52: 12 | N52: 20 | O52: AB | P52: 12 | Q52: 20 | R52: AB | S52: 12 | T52: 20 | U52: AB | V52: 12 | W52: 20 | X52: =IF(OR(ISNUMBER(E52),ISNUMBER(H52),ISNUMBER(K52),ISNUMBER(N52),ISNUMBER(Q52),ISNUMBER(T52),ISNUMBER(W52)),SUM(E52,H52,K52,N52,Q52,T52,Q52),"") -> 140 | Y52: =IFERROR(X52/'Student Profile'!P51,"") -> 28 | Z52: 41
A53: Subject Avg. | C53: =IF(AND(ISNUMBER(Z57),Z57>0),SUM(E8:E52)/C60,"") -> 73.66666667 | F53: =IF(AND(ISNUMBER(Z58),Z58>0),SUM(H8:H52)/F60,"") -> 73.66666667 | I53: =IF(AND(ISNUMBER(Z59),Z59>0),SUM(K8:K52)/I60,"") -> 73.66666667 | L53: =IF(AND(ISNUMBER(Z60),Z60>0),SUM(N8:N52)/L60,"") -> 73.66666667 | O53: =IF(AND(ISNUMBER(Z61),Z61>0),SUM(Q8:Q52)/O60,"") -> 73.66666667 | R53: =IF(AND(ISNUMBER(Z62),Z62>0),SUM(T8:T52)/R60,"") -> 73.66666667 | U53: =IF(AND(ISNUMBER(AO58),AO58>0),SUM(W8:W52)/U60,"") ->  | X53: SUBJECTS | Y53: Total Student | Z53: Present
A54: Pass %age | C54: =IF(ISNUMBER(C53),(C61/C60)*100,"0") -> 97.77777778 | F54: =IF(ISNUMBER(F53),F61/F60*100,"0") -> 97.77777778 | I54: =IF(ISNUMBER(I53),I61/I60*100,"0") -> 97.77777778 | L54: =IF(ISNUMBER(L53),L61/L60*100,"0") -> 97.77777778 | O54: =IF(ISNUMBER(O53),O61/O60*100,"0") -> 97.77777778 | R54: =IF(ISNUMBER(R53),R61/R60*100,"0") -> 97.77777778 | U54: =IF(ISNUMBER(U53),U61/U60*100,"0") -> 0
A55: Below 33% | C55: =COUNTIF(E8:E52,"<33") -> 1 | F55: =COUNTIF(H8:H52,"<33") -> 1 | I55: =COUNTIF(K8:K52,"<33") -> 1 | L55: =COUNTIF(N8:N52,"<33") -> 1 | O55: =COUNTIF(Q8:Q52,"<33") -> 1 | R55: =COUNTIF(T8:T52,"<33") -> 1 | U55: =COUNTIF(V8:V52,"<33") -> 45
A56: 33% to 50% | C56: =COUNTIF(E8:E52,">=33")-C57-C58-C59 -> 0 | F56: =COUNTIF(H8:H52,">=33")-F57-F58-F59 -> 0 | I56: =COUNTIF(K8:K52,">=33")-I57-I58-I59 -> 0 | L56: =COUNTIF(N8:N52,">=33")-L57-L58-L59 -> 0 | O56: =COUNTIF(Q8:Q52,">=33")-O57-O58-O59 -> 0 | R56: =COUNTIF(T8:T52,">=33")-R57-R58-R59 -> 0 | U56: =COUNTIF(W8:W52,">=33")-U57-U58-U59 -> 0
A57: 50% to 60% | C57: =COUNTIF(E8:E52,">=50")-C58-C59 -> 4 | F57: =COUNTIF(H8:H52,">=50")-F58-F59 -> 4 | I57: =COUNTIF(K8:K52,">=50")-I58-I59 -> 4 | L57: =COUNTIF(N8:N52,">=50")-L58-L59 -> 4 | O57: =COUNTIF(Q8:Q52,">=50")-O58-O59 -> 4 | R57: =COUNTIF(T8:T52,">=50")-R58-R59 -> 4 | U57: =COUNTIF(W8:W52,">=50")-U58-U59 -> 4 | X57: =Home!B15 -> ENGLISH | Y57: =C62 -> 45 | Z57: =C60 -> 45
A58: 60% to 75% | C58: =COUNTIF(E8:E52,">=60")-C59 -> 17 | F58: =COUNTIF(H8:H52,">=60")-F59 -> 17 | I58: =COUNTIF(K8:K52,">=60")-I59 -> 17 | L58: =COUNTIF(N8:N52,">=60")-L59 -> 17 | O58: =COUNTIF(Q8:Q52,">=60")-O59 -> 17 | R58: =COUNTIF(T8:T52,">=60")-R59 -> 17 | U58: =COUNTIF(W8:W52,">=60")-U59 -> 17 | X58: =Home!B16 -> HINDI | Y58: =F62 -> 45 | Z58: =F60 -> 45
A59: above 75% | C59: =COUNTIF(E8:E52,">=75") -> 23 | F59: =COUNTIF(H8:H52,">=75") -> 23 | I59: =COUNTIF(K8:K52,">=75") -> 23 | L59: =COUNTIF(N8:N52,">=75") -> 23 | O59: =COUNTIF(Q8:Q52,">=75") -> 23 | R59: =COUNTIF(T8:T52,">=75") -> 23 | U59: =COUNTIF(W8:W52,">=75") -> 23 | X59: =Home!B17 -> INFO PRACT | Y59: =I62 -> 45 | Z59: =I60 -> 45
A60: Appeared | C60: =COUNTIF(E8:E52,">=0") -> 45 | F60: =COUNTIF(H8:H52,">=0") -> 45 | I60: =COUNTIF(K8:K52,">=0") -> 45 | L60: =COUNTIF(N8:N52,">=0") -> 45 | O60: =COUNTIF(Q8:Q52,">=0") -> 45 | R60: =COUNTIF(T8:T52,">=0") -> 45 | U60: =COUNTIF(W8:W52,">=0") -> 45 | X60: =Home!B18 -> MATH | Y60: =L62 -> 45 | Z60: =L60 -> 45
A61: Passed | C61: =COUNTIF(E8:E52,">=33") -> 44 | F61: =COUNTIF(H8:H52,">=33") -> 44 | I61: =COUNTIF(K8:K52,">=33") -> 44 | L61: =COUNTIF(N8:N52,">=33") -> 44 | O61: =COUNTIF(Q8:Q52,">=33") -> 44 | R61: =COUNTIF(T8:T52,">=33") -> 44 | U61: =COUNTIF(W8:W52,">=33") -> 44 | X61: =Home!B19 -> CHEM | Y61: =O62 -> 45 | Z61: =O60 -> 45
A62: Total | C62: =C60+C63 -> 45 | F62: =F60+F63 -> 45 | I62: =I60+I63 -> 45 | L62: =L60+L63 -> 45 | O62: =O60+O63 -> 45 | R62: =R60+R63 -> 45 | U62: =U60+U63 -> 45 | X62: =Home!B20 -> PHYSICS | Y62: =R62 -> 45 | Z62: =R60 -> 45
A63: Absent | C63: =COUNTIF(E8:E52,"AB") -> 0 | F63: =COUNTIF(H8:H52,"AB") -> 0 | I63: =COUNTIF(J8:J52,"AB") -> 0 | L63: =COUNTIF(N8:N52,"AB") -> 0 | O63: =COUNTIF(Q8:Q52,"AB") -> 0 | R63: =COUNTIF(T8:T52,"AB") -> 0 | U63: =COUNTIF(W8:W52,"AB") -> 0 | X63: =Home!B21 -> BIO | Y63: =U62 -> 45 | Z63: =U60 -> 45

Sheet ANNUAL
A1: =Home!C7 -> JAWAHAR NAVODAYA VIDYALAYA, | M1: =Home!I7 -> MOHINDERGARH
A2: ANNUAL EXAM
A3: =Home!C9 -> XII A | G3: =Home!C8 -> 2019-20 | P3: E
A4: ROLL NO. | B4: STUDENT NAME | C4: =Home!B15 -> ENGLISH | F4: =Home!B16 -> HINDI | I4: =Home!B17 -> INFO PRACT | L4: =Home!B18 -> MATH | O4: =Home!B19 -> CHEM | R4: =Home!B20 -> PHYSICS | U4: =Home!B21 -> BIO | X4: MARKS OBT | Y4: %AGE | Z4: Rank
C5: M.M | E5: %age | F5: M.M | H5: %age | I5: M.M | K5: %age | L5: M.M | N5: %age | O5: M.M | Q5: %age | R5: M.M | T5: %age | U5: M.M | W5: %age
C6: Th. | D6: IA/ Prac. | F6: Th. | G6: IA/ Prac. | I6: Th. | J6: IA/ Prac. | L6: Th. | M6: IA/ Prac. | O6: Th. | P6: IA/ Prac. | R6: Th. | S6: IA/ Prac. | U6: Th. | V6: IA/ Prac.
C7: 70 | D7: 30 | E7: 100 | F7: 40 | G7: 20 | H7: 100 | I7: 40 | J7: 20 | K7: 100 | L7: 40 | M7: 20 | N7: 100 | O7: 40 | P7: 20 | Q7: 100 | R7: 40 | S7: 20 | T7: 100 | U7: 40 | V7: 20 | W7: 100
A8: ='Student Profile'!A7 -> 1 | B8: =IF(('Student Profile'!C7)>0,'Student Profile'!C7,"") -> SUNIL KUMAR | C8: 20 | D8: 10 | E8: =IF(OR(ISNUMBER(C8),ISNUMBER(D8)),ROUNDUP(SUM(C8:D8)/SUM($C$7,$D$7)*100,0),IF(C8="AB",C8,"")) -> 30 | F8: 20 | G8: 10 | H8: =IF(OR(ISNUMBER(F8),ISNUMBER(G8)),ROUNDUP(SUM(F8:G8)/SUM($F$7,$G$7)*100,0),IF(F8="AB",F8,"")) -> 50 | I8: 20 | J8: 10 | K8: =IF(OR(ISNUMBER(I8),ISNUMBER(J8)),ROUNDUP(SUM(I8:J8)/SUM($I$7,$J$7)*100,0),IF(I8="AB",I8,"")) -> 50 | L8: 20 | M8: 10 | N8: =IF(OR(ISNUMBER(L8),ISNUMBER(M8)),ROUNDUP(SUM(L8:M8)/SUM($L$7,$M$7)*100,0),IF(L8="AB",L8,"")) -> 50 | O8: 20 | P8: 10 | Q8: =IF(OR(ISNUMBER(O8),ISNUMBER(P8)),ROUNDUP(SUM(O8:P8)/SUM($O$7,$P$7)*100,0),IF(O8="AB",O8,"")) -> 50 | R8: 20 | S8: 10 | T8: =IF(OR(ISNUMBER(R8),ISNUMBER(S8)),ROUNDUP(SUM(R8:S8)/SUM($R$7,$S$7)*100,0),IF(R8="AB",R8,"")) -> 50 | U8: 20 | V8: 10 | W8: =IF(OR(ISNUMBER(U8),ISNUMBER(V8)),ROUNDUP(SUM(U8:V8)/SUM($U$7,$V$7)*100,0),IF(U8="AB",U8,"")) -> 50 | X8: =IF(OR(ISNUMBER(E8),ISNUMBER(G8),ISNUMBER(J8),ISNUMBER(M8),ISNUMBER(P8),ISNUMBER(S8),ISNUMBER(V8)),SUM(E8,G8,J8,M8,P8,S8,V8),"") -> 90 | Y8: =IFERROR(X8/'Student Profile'!P7,"") -> 18 | Z8: =IFERROR(RANK(Y8,Y$8:Y$52,0),"") -> 42
A9: ='Student Profile'!A8 ->  | B9: =IF(('Student Profile'!C8)>0,'Student Profile'!C8,"") ->  | C9: 25 | D9: 15 | E9: =IF(OR(ISNUMBER(C9),ISNUMBER(D9)),ROUNDUP(SUM(C9:D9)/SUM($C$7,$D$7)*100,0),IF(C9="AB",C9,"")) -> 40 | F9: 25 | G9: 15 | H9: =IF(OR(ISNUMBER(F9),ISNUMBER(G9)),ROUNDUP(SUM(F9:G9)/SUM($F$7,$G$7)*100,0),IF(F9="AB",F9,"")) -> 67 | I9: 25 | J9: 15 | K9: =IF(OR(ISNUMBER(I9),ISNUMBER(J9)),ROUNDUP(SUM(I9:J9)/SUM($I$7,$J$7)*100,0),IF(I9="AB",I9,"")) -> 67 | L9: 25 | M9: 15 | N9: =IF(OR(ISNUMBER(L9),ISNUMBER(M9)),ROUNDUP(SUM(L9:M9)/SUM($L$7,$M$7)*100,0),IF(L9="AB",L9,"")) -> 67 | O9: 25 | P9: 15 | Q9: =IF(OR(ISNUMBER(O9),ISNUMBER(P9)),ROUNDUP(SUM(O9:P9)/SUM($O$7,$P$7)*100,0),IF(O9="AB",O9,"")) -> 67 | R9: 25 | S9: 15 | T9: =IF(OR(ISNUMBER(R9),ISNUMBER(S9)),ROUNDUP(SUM(R9:S9)/SUM($R$7,$S$7)*100,0),IF(R9="AB",R9,"")) -> 67 | U9: 25 | V9: 15 | W9: =IF(OR(ISNUMBER(U9),ISNUMBER(V9)),ROUNDUP(SUM(U9:V9)/SUM($U$7,$V$7)*100,0),IF(U9="AB",U9,"")) -> 67 | X9: =IF(OR(ISNUMBER(E9),ISNUMBER(G9),ISNUMBER(J9),ISNUMBER(M9),ISNUMBER(P9),ISNUMBER(S9),ISNUMBER(V9)),SUM(E9,G9,J9,M9,P9,S9,V9),"") -> 130 | Y9: =IFERROR(X9/'Student Profile'!P8,"") -> 26 | Z9: =IF(ISNUMBER(Y9),RANK(X9,X$8:X$52,0),"") -> 33
A10: ='Student Profile'!A9 ->  | B10: =IF(('Student Profile'!C9)>0,'Student Profile'!C9,"") ->  | C10: 35 | D10: 20 | E10: 55 | F10: 35 | G10: 20 | H10: 92 | I10: 35 | J10: 20 | K10: 92 | L10: 35 | M10: 20 | N10: 92 | O10: 35 | P10: 20 | Q10: 92 | R10: 35 | S10: 20 | T10: 92 | U10: 35 | V10: 20 | W10: 92 | X10: 175 | Y10: =IFERROR(X10/'Student Profile'!P9,"") -> 35 | Z10: 1
A11: ='Student Profile'!A10 ->  | B11: =IF(('Student Profile'!C10)>0,'Student Profile'!C10,"") ->  | C11: 25 | D11: 17 | E11: 42 | F11: 25 | G11: 17 | H11: 70 | I11: 25 | J11: 17 | K11: 70 | L11: 25 | M11: 17 | N11: 70 | O11: 25 | P11: 17 | Q11: 70 | R11: 25 | S11: 17 | T11: 70 | U11: 25 | V11: 17 | W11: 70 | X11: 144 | Y11: =IFERROR(X11/'Student Profile'!P10,"") -> 28.8 | Z11: 10
A12: ='Student Profile'!A11 ->  | B12: =IF(('Student Profile'!C11)>0,'Student Profile'!C11,"") ->  | C12: 34 | D12: 15 | E12: 49 | F12: 34 | G12: 15 | H12: 82 | I12: 34 | J12: 15 | K12: 82 | L12: 34 | M12: 15 | N12: 82 | O12: 34 | P12: 15 | Q12: 82 | R12: 34 | S12: 15 | T12: 82 | U12: 34 | V12: 15 | W12: 82 | X12: 139 | Y12: =IFERROR(X12/'Student Profile'!P11,"") -> 27.8 | Z12: 19
A13: ='Student Profile'!A12 ->  | B13: =IF(('Student Profile'!C12)>0,'Student Profile'!C12,"") ->  | C13: 36 | D13: 15 | E13: 51 | F13: 36 | G13: 15 | H13: 85 | I13: 36 | J13: 15 | K13: 85 | L13: 36 | M13: 15 | N13: 85 | O13: 36 | P13: 15 | Q13: 85 | R13: 36 | S13: 15 | T13: 85 | U13: 36 | V13: 15 | W13: 85 | X13: 141 | Y13: =IFERROR(X13/'Student Profile'!P12,"") -> 28.2 | Z13: 14
A14: ='Student Profile'!A13 ->  | B14: =IF(('Student Profile'!C13)>0,'Student Profile'!C13,"") ->  | C14: 25 | D14: 15 | E14: 40 | F14: 25 | G14: 15 | H14: 67 | I14: 25 | J14: 15 | K14: 67 | L14: 25 | M14: 15 | N14: 67 | O14: 25 | P14: 15 | Q14: 67 | R14: 25 | S14: 15 | T14: 67 | U14: 25 | V14: 15 | W14: 67 | X14: 130 | Y14: =IFERROR(X14/'Student Profile'!P13,"") -> 26 | Z14: 33
A15: ='Student Profile'!A14 ->  | B15: =IF(('Student Profile'!C14)>0,'Student Profile'!C14,"") ->  | C15: 34 | D15: 15 | E15: 49 | F15: 34 | G15: 15 | H15: 82 | I15: 34 | J15: 15 | K15: 82 | L15: 34 | M15: 15 | N15: 82 | O15: 34 | P15: 15 | Q15: 82 | R15: 34 | S15: 15 | T15: 82 | U15: 34 | V15: 15 | W15: 82 | X15: 139 | Y15: =IFERROR(X15/'Student Profile'!P14,"") -> 27.8 | Z15: 19
A16: ='Student Profile'!A15 ->  | B16: =IF(('Student Profile'!C15)>0,'Student Profile'!C15,"") ->  | C16: 28 | D16: 18 | E16: 46 | F16: 28 | G16: 18 | H16: 77 | I16: 28 | J16: 18 | K16: 77 | L16: 28 | M16: 18 | N16: 77 | O16: 28 | P16: 18 | Q16: 77 | R16: 28 | S16: 18 | T16: 77 | U16: 28 | V16: 18 | W16: 77 | X16: 154 | Y16: =IFERROR(X16/'Student Profile'!P15,"") -> 30.8 | Z16: 5
A17: ='Student Profile'!A16 ->  | B17: =IF(('Student Profile'!C16)>0,'Student Profile'!C16,"") ->  | C17: 29 | D17: 15 | E17: 44 | F17: 29 | G17: 15 | H17: 74 | I17: 29 | J17: 15 | K17: 74 | L17: 29 | M17: 15 | N17: 74 | O17: 29 | P17: 15 | Q17: 74 | R17: 29 | S17: 15 | T17: 74 | U17: 29 | V17: 15 | W17: 74 | X17: 134 | Y17: =IFERROR(X17/'Student Profile'!P16,"") -> 26.8 | Z17: 28
A18: ='Student Profile'!A17 ->  | B18: =IF(('Student Profile'!C17)>0,'Student Profile'!C17,"") ->  | C18: 20 | D18: 10 | E18: 30 | F18: 20 | G18: 10 | H18: 50 | I18: 20 | J18: 10 | K18: 50 | L18: 20 | M18: 10 | N18: 50 | O18: 20 | P18: 10 | Q18: 50 | R18: 20 | S18: 10 | T18: 50 | U18: 20 | V18: 10 | W18: 50 | X18: 90 | Y18: =IFERROR(X18/'Student Profile'!P17,"") -> 18 | Z18: 42
A19: ='Student Profile'!A18 ->  | B19: =IF(('Student Profile'!C18)>0,'Student Profile'!C18,"") ->  | C19: 25 | D19: 15 | E19: 40 | F19: 25 | G19: 15 | H19: 67 | I19: 25 | J19: 15 | K19: 67 | L19: 25 | M19: 15 | N19: 67 | O19: 25 | P19: 15 | Q19: 67 | R19: 25 | S19: 15 | T19: 67 | U19: 25 | V19: 15 | W19: 67 | X19: 130 | Y19: =IFERROR(X19/'Student Profile'!P18,"") -> 26 | Z19: 33
A20: ='Student Profile'!A19 ->  | B20: =IF(('Student Profile'!C19)>0,'Student Profile'!C19,"") ->  | C20: 35 | D20: 20 | E20: 55 | F20: 35 | G20: 20 | H20: 92 | I20: 35 | J20: 20 | K20: 92 | L20: 35 | M20: 20 | N20: 92 | O20: 35 | P20: 20 | Q20: 92 | R20: 35 | S20: 20 | T20: 92 | U20: 35 | V20: 20 | W20: 92 | X20: 175 | Y20: =IFERROR(X20/'Student Profile'!P19,"") -> 35 | Z20: 1
A21: ='Student Profile'!A20 ->  | B21: =IF(('Student Profile'!C20)>0,'Student Profile'!C20,"") ->  | C21: 25 | D21: 17 | E21: 42 | F21: 25 | G21: 17 | H21: 70 | I21: 25 | J21: 17 | K21: 70 | L21: 25 | M21: 17 | N21: 70 | O21: 25 | P21: 17 | Q21: 70 | R21: 25 | S21: 17 | T21: 70 | U21: 25 | V21: 17 | W21: 70 | X21: 144 | Y21: =IFERROR(X21/'Student Profile'!P20,"") -> 28.8 | Z21: 10
A22: ='Student Profile'!A21 ->  | B22: =IF(('Student Profile'!C21)>0,'Student Profile'!C21,"") ->  | C22: 34 | D22: 15 | E22: 49 | F22: 34 | G22: 15 | H22: 82 | I22: 34 | J22: 15 | K22: 82 | L22: 34 | M22: 15 | N22: 82 | O22: 34 | P22: 15 | Q22: 82 | R22: 34 | S22: 15 | T22: 82 | U22: 34 | V22: 15 | W22: 82 | X22: 139 | Y22: =IFERROR(X22/'Student Profile'!P21,"") -> 27.8 | Z22: 19
A23: ='Student Profile'!A22 ->  | B23: =IF(('Student Profile'!C22)>0,'Student Profile'!C22,"") ->  | C23: 36 | D23: 15 | E23: 51 | F23: 36 | G23: 15 | H23: 85 | I23: 36 | J23: 15 | K23: 85 | L23: 36 | M23: 15 | N23: 85 | O23: 36 | P23: 15 | Q23: 85 | R23: 36 | S23: 15 | T23: 85 | U23: 36 | V23: 15 | W23: 85 | X23: 141 | Y23: =IFERROR(X23/'Student Profile'!P22,"") -> 28.2 | Z23: 14
A24: ='Student Profile'!A23 ->  | B24: =IF(('Student Profile'!C23)>0,'Student Profile'!C23,"") ->  | C24: 25 | D24: 15 | E24: 40 | F24: 25 | G24: 15 | H24: 67 | I24: 25 | J24: 15 | K24: 67 | L24: 25 | M24: 15 | N24: 67 | O24: 25 | P24: 15 | Q24: 67 | R24: 25 | S24: 15 | T24: 67 | U24: 25 | V24: 15 | W24: 67 | X24: 130 | Y24: =IFERROR(X24/'Student Profile'!P23,"") -> 26 | Z24: 33
A25: ='Student Profile'!A24 ->  | B25: =IF(('Student Profile'!C24)>0,'Student Profile'!C24,"") ->  | C25: 34 | D25: 15 | E25: 49 | F25: 34 | G25: 15 | H25: 82 | I25: 34 | J25: 15 | K25: 82 | L25: 34 | M25: 15 | N25: 82 | O25: 34 | P25: 15 | Q25: 82 | R25: 34 | S25: 15 | T25: 82 | U25: 34 | V25: 15 | W25: 82 | X25: 139 | Y25: =IFERROR(X25/'Student Profile'!P24,"") -> 27.8 | Z25: 19
A26: ='Student Profile'!A25 ->  | B26: =IF(('Student Profile'!C25)>0,'Student Profile'!C25,"") ->  | C26: 28 | D26: 18 | E26: 46 | F26: 28 | G26: 18 | H26: 77 | I26: 28 | J26: 18 | K26: 77 | L26: 28 | M26: 18 | N26: 77 | O26: 28 | P26: 18 | Q26: 77 | R26: 28 | S26: 18 | T26: 77 | U26: 28 | V26: 18 | W26: 77 | X26: 154 | Y26: =IFERROR(X26/'Student Profile'!P25,"") -> 30.8 | Z26: 5
A27: ='Student Profile'!A26 ->  | B27: =IF(('Student Profile'!C26)>0,'Student Profile'!C26,"") ->  | C27: 29 | D27: 15 | E27: 44 | F27: 29 | G27: 15 | H27: 74 | I27: 29 | J27: 15 | K27: 74 | L27: 29 | M27: 15 | N27: 74 | O27: 29 | P27: 15 | Q27: 74 | R27: 29 | S27: 15 | T27: 74 | U27: 29 | V27: 15 | W27: 74 | X27: 134 | Y27: =IFERROR(X27/'Student Profile'!P26,"") -> 26.8 | Z27: 28
A28: ='Student Profile'!A27 ->  | B28: =IF(('Student Profile'!C27)>0,'Student Profile'!C27,"") ->  | C28: 20 | D28: 10 | E28: 30 | F28: 20 | G28: 10 | H28: 50 | I28: 20 | J28: 10 | K28: 50 | L28: 20 | M28: 10 | N28: 50 | O28: 20 | P28: 10 | Q28: 50 | R28: 20 | S28: 10 | T28: 50 | U28: 20 | V28: 10 | W28: 50 | X28: 90 | Y28: =IFERROR(X28/'Student Profile'!P27,"") -> 18 | Z28: 42
A29: ='Student Profile'!A28 ->  | B29: =IF(('Student Profile'!C28)>0,'Student Profile'!C28,"") ->  | C29: 25 | D29: 15 | E29: 40 | F29: 25 | G29: 15 | H29: 67 | I29: 25 | J29: 15 | K29: 67 | L29: 25 | M29: 15 | N29: 67 | O29: 25 | P29: 15 | Q29: 67 | R29: 25 | S29: 15 | T29: 67 | U29: 25 | V29: 15 | W29: 67 | X29: 130 | Y29: =IFERROR(X29/'Student Profile'!P28,"") -> 26 | Z29: 33
A30: ='Student Profile'!A29 ->  | B30: =IF(('Student Profile'!C29)>0,'Student Profile'!C29,"") ->  | C30: 35 | D30: 20 | E30: 55 | F30: 35 | G30: 20 | H30: 92 | I30: 35 | J30: 20 | K30: 92 | L30: 35 | M30: 20 | N30: 92 | O30: 35 | P30: 20 | Q30: 92 | R30: 35 | S30: 20 | T30: 92 | U30: 35 | V30: 20 | W30: 92 | X30: 175 | Y30: =IFERROR(X30/'Student Profile'!P29,"") -> 35 | Z30: 1
A31: ='Student Profile'!A30 ->  | B31: =IF(('Student Profile'!C30)>0,'Student Profile'!C30,"") ->  | C31: 25 | D31: 17 | E31: 42 | F31: 25 | G31: 17 | H31: 70 | I31: 25 | J31: 17 | K31: 70 | L31: 25 | M31: 17 | N31: 70 | O31: 25 | P31: 17 | Q31: 70 | R31: 25 | S31: 17 | T31: 70 | U31: 25 | V31: 17 | W31: 70 | X31: 144 | Y31: =IFERROR(X31/'Student Profile'!P30,"") -> 28.8 | Z31: 10
A32: ='Student Profile'!A31 ->  | B32: =IF(('Student Profile'!C31)>0,'Student Profile'!C31,"") ->  | C32: 34 | D32: 15 | E32: 49 | F32: 34 | G32: 15 | H32: 82 | I32: 34 | J32: 15 | K32: 82 | L32: 34 | M32: 15 | N32: 82 | O32: 34 | P32: 15 | Q32: 82 | R32: 34 | S32: 15 | T32: 82 | U32: 34 | V32: 15 | W32: 82 | X32: 139 | Y32: =IFERROR(X32/'Student Profile'!P31,"") -> 27.8 | Z32: 19
A33: ='Student Profile'!A32 ->  | B33: =IF(('Student Profile'!C32)>0,'Student Profile'!C32,"") ->  | C33: 36 | D33: 15 | E33: 51 | F33: 36 | G33: 15 | H33: 85 | I33: 36 | J33: 15 | K33: 85 | L33: 36 | M33: 15 | N33: 85 | O33: 36 | P33: 15 | Q33: 85 | R33: 36 | S33: 15 | T33: 85 | U33: 36 | V33: 15 | W33: 85 | X33: 141 | Y33: =IFERROR(X33/'Student Profile'!P32,"") -> 28.2 | Z33: 14
A34: ='Student Profile'!A33 ->  | B34: =IF(('Student Profile'!C33)>0,'Student Profile'!C33,"") ->  | C34: 25 | D34: 15 | E34: 40 | F34: 25 | G34: 15 | H34: 67 | I34: 25 | J34: 15 | K34: 67 | L34: 25 | M34: 15 | N34: 67 | O34: 25 | P34: 15 | Q34: 67 | R34: 25 | S34: 15 | T34: 67 | U34: 25 | V34: 15 | W34: 67 | X34: 130 | Y34: =IFERROR(X34/'Student Profile'!P33,"") -> 26 | Z34: 33
A35: ='Student Profile'!A34 ->  | B35: =IF(('Student Profile'!C34)>0,'Student Profile'!C34,"") ->  | C35: 34 | D35: 15 | E35: 49 | F35: 34 | G35: 15 | H35: 82 | I35: 34 | J35: 15 | K35: 82 | L35: 34 | M35: 15 | N35: 82 | O35: 34 | P35: 15 | Q35: 82 | R35: 34 | S35: 15 | T35: 82 | U35: 34 | V35: 15 | W35: 82 | X35: 139 | Y35: =IFERROR(X35/'Student Profile'!P34,"") -> 27.8 | Z35: 19
A36: ='Student Profile'!A35 ->  | B36: =IF(('Student Profile'!C35)>0,'Student Profile'!C35,"") ->  | C36: 28 | D36: 18 | E36: 46 | F36: 28 | G36: 18 | H36: 77 | I36: 28 | J36: 18 | K36: 77 | L36: 28 | M36: 18 | N36: 77 | O36: 28 | P36: 18 | Q36: 77 | R36: 28 | S36: 18 | T36: 77 | U36: 28 | V36: 18 | W36: 77 | X36: 154 | Y36: =IFERROR(X36/'Student Profile'!P35,"") -> 30.8 | Z36: 5
A37: ='Student Profile'!A36 ->  | B37: =IF(('Student Profile'!C36)>0,'Student Profile'!C36,"") ->  | C37: 29 | D37: 15 | E37: 44 | F37: 29 | G37: 15 | H37: 74 | I37: 29 | J37: 15 | K37: 74 | L37: 29 | M37: 15 | N37: 74 | O37: 29 | P37: 15 | Q37: 74 | R37: 29 | S37: 15 | T37: 74 | U37: 29 | V37: 15 | W37: 74 | X37: 134 | Y37: =IFERROR(X37/'Student Profile'!P36,"") -> 26.8 | Z37: 28
A38: ='Student Profile'!A37 ->  | B38: =IF(('Student Profile'!C37)>0,'Student Profile'!C37,"") ->  | C38: 20 | D38: 10 | E38: 30 | F38: 20 | G38: 10 | H38: 50 | I38: 20 | J38: 10 | K38: 50 | L38: 20 | M38: 10 | N38: 50 | O38: 20 | P38: 10 | Q38: 50 | R38: 20 | S38: 10 | T38: 50 | U38: 20 | V38: 10 | W38: 50 | X38: 90 | Y38: =IFERROR(X38/'Student Profile'!P37,"") -> 18 | Z38: 42
A39: ='Student Profile'!A38 ->  | B39: =IF(('Student Profile'!C38)>0,'Student Profile'!C38,"") ->  | C39: 25 | D39: 15 | E39: 40 | F39: 25 | G39: 15 | H39: 67 | I39: 25 | J39: 15 | K39: 67 | L39: 25 | M39: 15 | N39: 67 | O39: 25 | P39: 15 | Q39: 67 | R39: 25 | S39: 15 | T39: 67 | U39: 25 | V39: 15 | W39: 67 | X39: 130 | Y39: =IFERROR(X39/'Student Profile'!P38,"") -> 26 | Z39: 33
A40: ='Student Profile'!A39 ->  | B40: =IF(('Student Profile'!C39)>0,'Student Profile'!C39,"") ->  | C40: 35 | D40: 20 | E40: 55 | F40: 35 | G40: 20 | H40: 92 | I40: 35 | J40: 20 | K40: 92 | L40: 35 | M40: 20 | N40: 92 | O40: 35 | P40: 20 | Q40: 92 | R40: 35 | S40: 20 | T40: 92 | U40: 35 | V40: 20 | W40: 92 | X40: 175 | Y40: =IFERROR(X40/'Student Profile'!P39,"") -> 35 | Z40: 1
A41: ='Student Profile'!A40 ->  | B41: =IF(('Student Profile'!C40)>0,'Student Profile'!C40,"") ->  | C41: 25 | D41: 17 | E41: 42 | F41: 25 | G41: 17 | H41: 70 | I41: 25 | J41: 17 | K41: 70 | L41: 25 | M41: 17 | N41: 70 | O41: 25 | P41: 17 | Q41: 70 | R41: 25 | S41: 17 | T41: 70 | U41: 25 | V41: 17 | W41: 70 | X41: 144 | Y41: =IFERROR(X41/'Student Profile'!P40,"") -> 28.8 | Z41: 10
A42: ='Student Profile'!A41 ->  | B42: =IF(('Student Profile'!C41)>0,'Student Profile'!C41,"") ->  | C42: 34 | D42: 15 | E42: 49 | F42: 34 | G42: 15 | H42: 82 | I42: 34 | J42: 15 | K42: 82 | L42: 34 | M42: 15 | N42: 82 | O42: 34 | P42: 15 | Q42: 82 | R42: 34 | S42: 15 | T42: 82 | U42: 34 | V42: 15 | W42: 82 | X42: 139 | Y42: =IFERROR(X42/'Student Profile'!P41,"") -> 27.8 | Z42: 19
A43: ='Student Profile'!A42 ->  | B43: =IF(('Student Profile'!C42)>0,'Student Profile'!C42,"") ->  | C43: 36 | D43: 15 | E43: 51 | F43: 36 | G43: 15 | H43: 85 | I43: 36 | J43: 15 | K43: 85 | L43: 36 | M43: 15 | N43: 85 | O43: 36 | P43: 15 | Q43: 85 | R43: 36 | S43: 15 | T43: 85 | U43: 36 | V43: 15 | W43: 85 | X43: 141 | Y43: =IFERROR(X43/'Student Profile'!P42,"") -> 28.2 | Z43: 14
A44: ='Student Profile'!A43 ->  | B44: =IF(('Student Profile'!C43)>0,'Student Profile'!C43,"") ->  | C44: 25 | D44: 15 | E44: 40 | F44: 25 | G44: 15 | H44: 67 | I44: 25 | J44: 15 | K44: 67 | L44: 25 | M44: 15 | N44: 67 | O44: 25 | P44: 15 | Q44: 67 | R44: 25 | S44: 15 | T44: 67 | U44: 25 | V44: 15 | W44: 67 | X44: 130 | Y44: =IFERROR(X44/'Student Profile'!P43,"") -> 26 | Z44: 33
A45: ='Student Profile'!A44 ->  | B45: =IF(('Student Profile'!C44)>0,'Student Profile'!C44,"") ->  | C45: 34 | D45: 15 | E45: 49 | F45: 34 | G45: 15 | H45: 82 | I45: 34 | J45: 15 | K45: 82 | L45: 34 | M45: 15 | N45: 82 | O45: 34 | P45: 15 | Q45: 82 | R45: 34 | S45: 15 | T45: 82 | U45: 34 | V45: 15 | W45: 82 | X45: 139 | Y45: =IFERROR(X45/'Student Profile'!P44,"") -> 27.8 | Z45: 19
A46: ='Student Profile'!A45 ->  | B46: =IF(('Student Profile'!C45)>0,'Student Profile'!C45,"") ->  | C46: 28 | D46: 18 | E46: 46 | F46: 28 | G46: 18 | H46: 77 | I46: 28 | J46: 18 | K46: 77 | L46: 28 | M46: 18 | N46: 77 | O46: 28 | P46: 18 | Q46: 77 | R46: 28 | S46: 18 | T46: 77 | U46: 28 | V46: 18 | W46: 77 | X46: 154 | Y46: =IFERROR(X46/'Student Profile'!P45,"") -> 30.8 | Z46: 5
A47: ='Student Profile'!A46 ->  | B47: =IF(('Student Profile'!C46)>0,'Student Profile'!C46,"") ->  | C47: 29 | D47: 15 | E47: 44 | F47: 29 | G47: 15 | H47: 74 | I47: 29 | J47: 15 | K47: 74 | L47: 29 | M47: 15 | N47: 74 | O47: 29 | P47: 15 | Q47: 74 | R47: 29 | S47: 15 | T47: 74 | U47: 29 | V47: 15 | W47: 74 | X47: 134 | Y47: =IFERROR(X47/'Student Profile'!P46,"") -> 26.8 | Z47: 28
A48: ='Student Profile'!A47 ->  | B48: =IF(('Student Profile'!C47)>0,'Student Profile'!C47,"") ->  | C48: 36 | D48: 15 | E48: 51 | F48: 36 | G48: 15 | H48: 85 | I48: 36 | J48: 15 | K48: 85 | L48: 36 | M48: 15 | N48: 85 | O48: 36 | P48: 15 | Q48: 85 | R48: 36 | S48: 15 | T48: 85 | U48: 36 | V48: 15 | W48: 85 | X48: 141 | Y48: =IFERROR(X48/'Student Profile'!P47,"") -> 28.2 | Z48: 14
A49: ='Student Profile'!A48 ->  | B49: =IF(('Student Profile'!C48)>0,'Student Profile'!C48,"") ->  | C49: 25 | D49: 15 | E49: 40 | F49: 25 | G49: 15 | H49: 67 | I49: 25 | J49: 15 | K49: 67 | L49: 25 | M49: 15 | N49: 67 | O49: 25 | P49: 15 | Q49: 67 | R49: 25 | S49: 15 | T49: 67 | U49: 25 | V49: 15 | W49: 67 | X49: 130 | Y49: =IFERROR(X49/'Student Profile'!P48,"") -> 26 | Z49: 33
A50: ='Student Profile'!A49 ->  | B50: =IF(('Student Profile'!C49)>0,'Student Profile'!C49,"") ->  | C50: 34 | D50: 15 | E50: 49 | F50: 34 | G50: 15 | H50: 82 | I50: 34 | J50: 15 | K50: 82 | L50: 34 | M50: 15 | N50: 82 | O50: 34 | P50: 15 | Q50: 82 | R50: 34 | S50: 15 | T50: 82 | U50: 34 | V50: 15 | W50: 82 | X50: 139 | Y50: =IFERROR(X50/'Student Profile'!P49,"") -> 27.8 | Z50: 19
A51: ='Student Profile'!A50 ->  | B51: =IF(('Student Profile'!C50)>0,'Student Profile'!C50,"") ->  | C51: 28 | D51: 18 | E51: 46 | F51: 28 | G51: 18 | H51: 77 | I51: 28 | J51: 18 | K51: 77 | L51: 28 | M51: 18 | N51: 77 | O51: 28 | P51: 18 | Q51: 77 | R51: 28 | S51: 18 | T51: 77 | U51: 28 | V51: 18 | W51: 77 | X51: 154 | Y51: =IFERROR(X51/'Student Profile'!P50,"") -> 30.8 | Z51: 5
A52: ='Student Profile'!A51 ->  | B52: =IF(('Student Profile'!C51)>0,'Student Profile'!C51,"") ->  | C52: AB | D52: 12 | E52: 12 | F52: AB | G52: 12 | H52: 20 | I52: AB | J52: 12 | K52: 20 | L52: AB | M52: 12 | N52: 20 | O52: AB | P52: 12 | Q52: 20 | R52: AB | S52: 12 | T52: 20 | U52: AB | V52: 12 | W52: 20 | X52: =IF(OR(ISNUMBER(E52),ISNUMBER(H52),ISNUMBER(K52),ISNUMBER(N52),ISNUMBER(Q52),ISNUMBER(T52),ISNUMBER(W52)),SUM(E52,H52,K52,N52,Q52,T52,Q52),"") -> 132 | Y52: =IFERROR(X52/'Student Profile'!P51,"") -> 26.4 | Z52: 32
A53: Subject Avg. | C53: =IF(AND(ISNUMBER(Z57),Z57>0),SUM(E8:E52)/C60,"") -> 44.04444444 | F53: =IF(AND(ISNUMBER(Z58),Z58>0),SUM(H8:H52)/F60,"") -> 73.66666667 | I53: =IF(AND(ISNUMBER(Z59),Z59>0),SUM(K8:K52)/I60,"") -> 73.66666667 | L53: =IF(AND(ISNUMBER(Z60),Z60>0),SUM(N8:N52)/L60,"") -> 73.66666667 | O53: =IF(AND(ISNUMBER(Z61),Z61>0),SUM(Q8:Q52)/O60,"") -> 73.66666667 | R53: =IF(AND(ISNUMBER(Z62),Z62>0),SUM(T8:T52)/R60,"") -> 73.66666667 | U53: =IF(AND(ISNUMBER(AO58),AO58>0),SUM(W8:W52)/U60,"") ->  | X53: SUBJECTS | Y53: Total Student | Z53: Present
A54: Pass %age | C54: =IF(ISNUMBER(C53),(C61/C60)*100,"0") -> 88.88888889 | F54: =IF(ISNUMBER(F53),F61/F60*100,"0") -> 97.77777778 | I54: =IF(ISNUMBER(I53),I61/I60*100,"0") -> 97.77777778 | L54: =IF(ISNUMBER(L53),L61/L60*100,"0") -> 97.77777778 | O54: =IF(ISNUMBER(O53),O61/O60*100,"0") -> 97.77777778 | R54: =IF(ISNUMBER(R53),R61/R60*100,"0") -> 97.77777778 | U54: =IF(ISNUMBER(U53),U61/U60*100,"0") -> 0
A55: Below 33% | C55: =COUNTIF(E8:E52,"<33") -> 5 | F55: =COUNTIF(H8:H52,"<33") -> 1 | I55: =COUNTIF(K8:K52,"<33") -> 1 | L55: =COUNTIF(N8:N52,"<33") -> 1 | O55: =COUNTIF(Q8:Q52,"<33") -> 1 | R55: =COUNTIF(T8:T52,"<33") -> 1 | U55: =COUNTIF(V8:V52,"<33") -> 45
A56: 33% to 50% | C56: =COUNTIF(E8:E52,">=33")-C57-C58-C59 -> 31 | F56: =COUNTIF(H8:H52,">=33")-F57-F58-F59 -> 0 | I56: =COUNTIF(K8:K52,">=33")-I57-I58-I59 -> 0 | L56: =COUNTIF(N8:N52,">=33")-L57-L58-L59 -> 0 | O56: =COUNTIF(Q8:Q52,">=33")-O57-O58-O59 -> 0 | R56: =COUNTIF(T8:T52,">=33")-R57-R58-R59 -> 0 | U56: =COUNTIF(W8:W52,">=33")-U57-U58-U59 -> 0
A57: 50% to 60% | C57: =COUNTIF(E8:E52,">=50")-C58-C59 -> 9 | F57: =COUNTIF(H8:H52,">=50")-F58-F59 -> 4 | I57: =COUNTIF(K8:K52,">=50")-I58-I59 -> 4 | L57: =COUNTIF(N8:N52,">=50")-L58-L59 -> 4 | O57: =COUNTIF(Q8:Q52,">=50")-O58-O59 -> 4 | R57: =COUNTIF(T8:T52,">=50")-R58-R59 -> 4 | U57: =COUNTIF(W8:W52,">=50")-U58-U59 -> 4 | X57: =Home!B15 -> ENGLISH | Y57: =C62 -> 45 | Z57: =C60 -> 45
A58: 60% to 75% | C58: =COUNTIF(E8:E52,">=60")-C59 -> 0 | F58: =COUNTIF(H8:H52,">=60")-F59 -> 17 | I58: =COUNTIF(K8:K52,">=60")-I59 -> 17 | L58: =COUNTIF(N8:N52,">=60")-L59 -> 17 | O58: =COUNTIF(Q8:Q52,">=60")-O59 -> 17 | R58: =COUNTIF(T8:T52,">=60")-R59 -> 17 | U58: =COUNTIF(W8:W52,">=60")-U59 -> 17 | X58: =Home!B16 -> HINDI | Y58: =F62 -> 45 | Z58: =F60 -> 45
A59: above 75% | C59: =COUNTIF(E8:E52,">=75") -> 0 | F59: =COUNTIF(H8:H52,">=75") -> 23 | I59: =COUNTIF(K8:K52,">=75") -> 23 | L59: =COUNTIF(N8:N52,">=75") -> 23 | O59: =COUNTIF(Q8:Q52,">=75") -> 23 | R59: =COUNTIF(T8:T52,">=75") -> 23 | U59: =COUNTIF(W8:W52,">=75") -> 23 | X59: =Home!B17 -> INFO PRACT | Y59: =I62 -> 45 | Z59: =I60 -> 45
A60: Appeared | C60: =COUNTIF(E8:E52,">=0") -> 45 | F60: =COUNTIF(H8:H52,">=0") -> 45 | I60: =COUNTIF(K8:K52,">=0") -> 45 | L60: =COUNTIF(N8:N52,">=0") -> 45 | O60: =COUNTIF(Q8:Q52,">=0") -> 45 | R60: =COUNTIF(T8:T52,">=0") -> 45 | U60: =COUNTIF(W8:W52,">=0") -> 45 | X60: =Home!B18 -> MATH | Y60: =L62 -> 45 | Z60: =L60 -> 45
A61: Passed | C61: =COUNTIF(E8:E52,">=33") -> 40 | F61: =COUNTIF(H8:H52,">=33") -> 44 | I61: =COUNTIF(K8:K52,">=33") -> 44 | L61: =COUNTIF(N8:N52,">=33") -> 44 | O61: =COUNTIF(Q8:Q52,">=33") -> 44 | R61: =COUNTIF(T8:T52,">=33") -> 44 | U61: =COUNTIF(W8:W52,">=33") -> 44 | X61: =Home!B19 -> CHEM | Y61: =O62 -> 45 | Z61: =O60 -> 45
A62: Total | C62: =C60+C63 -> 45 | F62: =F60+F63 -> 45 | I62: =I60+I63 -> 45 | L62: =L60+L63 -> 45 | O62: =O60+O63 -> 45 | R62: =R60+R63 -> 45 | U62: =U60+U63 -> 45 | X62: =Home!B20 -> PHYSICS | Y62: =R62 -> 45 | Z62: =R60 -> 45
A63: Absent | C63: =COUNTIF(E8:E52,"AB") -> 0 | F63: =COUNTIF(H8:H52,"AB") -> 0 | I63: =COUNTIF(J8:J52,"AB") -> 0 | L63: =COUNTIF(N8:N52,"AB") -> 0 | O63: =COUNTIF(Q8:Q52,"AB") -> 0 | R63: =COUNTIF(T8:T52,"AB") -> 0 | U63: =COUNTIF(W8:W52,"AB") -> 0 | X63: =Home!B21 -> BIO | Y63: =U62 -> 45 | Z63: =U60 -> 45

Sheet CONSOL.
A1: SUBJECT WISE | D1: =CONCATENATE(Home!C$7,Home!I$7) -> JAWAHAR NAVODAYA VIDYALAYA, MOHINDERGARH | Q1: =D1 -> JAWAHAR NAVODAYA VIDYALAYA, MOHINDERGARH | AD1: =Q1 -> JAWAHAR NAVODAYA VIDYALAYA, MOHINDERGARH | AQ1: =AD1 -> JAWAHAR NAVODAYA VIDYALAYA, MOHINDERGARH | BD1: =AQ1 -> JAWAHAR NAVODAYA VIDYALAYA, MOHINDERGARH | BQ1: =BD1 -> JAWAHAR NAVODAYA VIDYALAYA, MOHINDERGARH | CD1: =BQ1 -> JAWAHAR NAVODAYA VIDYALAYA, MOHINDERGARH | CQ1: JAWAHAR NAVODAYA VIDYALAYA, MOHINDERGARH
A2: Class | C2: =Home!$C$9 -> XII A | D2: Consolidate | I2: =Home!$B$8 -> SESSION | N2: =Home!$C$8 -> 2019-20 | Q2: Consolidate | V2: =Home!$B$8 -> SESSION | AA2: =Home!$C$8 -> 2019-20 | AD2: Consolidate | AI2: =Home!$B$8 -> SESSION | AN2: =Home!$C$8 -> 2019-20 | AQ2: Consolidate | AV2: =Home!$B$8 -> SESSION | BA2: =Home!$C$8 -> 2019-20 | BD2: Consolidate | BI2: =Home!$B$8 -> SESSION | BN2: =Home!$C$8 -> 2019-20 | BQ2: Consolidate | BV2: =Home!$B$8 -> SESSION | CA2: =Home!$C$8 -> 2019-20 | CD2: Consolidate | CI2: =Home!$B$8 -> SESSION | CN2: =Home!$C$8 -> 2019-20 | CQ2: CLASS | CT2: =Home!C9 -> XII A | CV2: =Home!B8 -> SESSION | CY2: =Home!C8 -> 2019-20
A3: SR. NO. | B3: NAME OF STUDENT | C3: ADM.NO. | D3: =Home!B15 -> ENGLISH | Q3: =Home!B16 -> HINDI | AD3: =Home!B17 -> INFO PRACT | AQ3: =Home!B18 -> MATH | BD3: =Home!B19 -> CHEM | BQ3: =Home!B20 -> PHYSICS | CD3: =Home!B21 -> BIO | CQ3: Overall Result (ALL SUBJECT)
D5: UT 1 | E5: UT 2 | F5: UT 3 | G5: T1 | H5: UT 4 | I5: UT 5/ PB 1 | J5: P.A; / PB2 | K5: T2 | L5: UT BEST 1,2,3 | N5: UT BEST 4,5,6 | P5: Total % | Q5: UT 1 | R5: UT 2 | S5: UT 3 | T5: T1 | U5: UT 4 | V5: UT 5/ PB 1 | W5: P.A; / PB2 | X5: T2 | Y5: UT BEST 1,2,3 | AA5: UT BEST 4,5,6 | AC5: Total % | AD5: UT 1 | AE5: UT 2 | AF5: UT 3 | AG5: T1 | AH5: UT 4 | AI5: UT 5/ PB 1 | AJ5: P.A; / PB2 | AK5: T2 | AL5: UT BEST 1,2,3 | AN5: UT BEST 4,5,6 | AP5: Total % | AQ5: UT 1 | AR5: UT 2 | AS5: UT 3 | AT5: T1 | AU5: UT 4 | AV5: UT 5/ PB 1 | AW5: P.A; / PB2 | AX5: T2 | AY5: UT BEST 1,2,3 | BA5: UT BEST 4,5,6 | BC5: Total % | BD5: UT 1 | BE5: UT 2 | BF5: UT 3 | BG5: T1 | BH5: UT 4 | BI5: UT 5/ PB 1 | BJ5: P.A; / PB2 | BK5: T2 | BL5: UT BEST 1,2,3 | BN5: UT BEST 4,5,6 | BP5: Total % | BQ5: UT 1 | BR5: UT 2 | BS5: UT 3 | BT5: T1 | BU5: UT 4 | BV5: UT 5/ PB 1 | BW5: P.A; / PB2 | BX5: T2 | BY5: UT BEST 1,2,3 | CA5: UT BEST 4,5,6 | CC5: Total % | CD5: UT 1 | CE5: UT 2 | CF5: UT 3 | CG5: T1 | CH5: UT 4 | CI5: UT 5/ PB 1 | CJ5: P.A; / PB2 | CK5: T2 | CL5: UT BEST 1,2,3 | CN5: UT BEST 4,5,6 | CP5: Total % | CQ5: =Home!B15 -> ENGLISH | CR5: =Home!B16 -> HINDI | CS5: =Home!B17 -> INFO PRACT | CT5: =Home!B18 -> MATH | CU5: =Home!B19 -> CHEM | CV5: =Home!B20 -> PHYSICS | CW5: =Home!B21 -> BIO | CX5: Total | CY5: %age | CZ5: Rank
A6: =ANNUAL!A8 -> 1 | B6: =ANNUAL!B8 -> SUNIL KUMAR | C6: =IF('Student Profile'!D7>0,'Student Profile'!D7,"") ->  | D6: =IF(ISNUMBER('UT1'!E8),'UT1'!E8,"") -> 50 | E6: =IF(ISNUMBER('UT 2'!E8),'UT 2'!E8,"") -> 50 | F6: =IF(ISNUMBER('UT 3 '!E8),'UT 3 '!E8,"") -> 50 | G6: =IF('TT 1'!E8>0,'TT 1'!E8,"") -> 34 | H6: =IF('UT 4'!E8>0,'UT 4'!E8,"") -> 50 | I6: =IF('UT 5PB1'!E8>0,'UT 5PB1'!E8,"") -> 50 | J6: =IF('PREANNU PB2 '!E8>0,'PREANNU PB2 '!E8,"") -> 50 | K6: =IF(ANNUAL!E8>0,ANNUAL!E8,"") -> 30 | L6: =IF(OR(ISNUMBER(D6),ISNUMBER(E6),ISNUMBER(F6)),LARGE(D6:F6,1)/10,"") -> 5 | M6: =IF(OR(ISNUMBER(D6),ISNUMBER(E6),ISNUMBER(F6)),LARGE(D6:F6,2)/10,"") -> 5 | N6: =IF(OR(ISNUMBER(H6),ISNUMBER(I6),ISNUMBER(J6)),LARGE(H6:J6,1)/10,"") -> 5 | O6: =IF(OR(ISNUMBER(H6),ISNUMBER(I6),ISNUMBER(J6)),LARGE(H6:J6,2)/10,"") -> 5 | P6: =IF(OR(ISNUMBER(L6),ISNUMBER(M6),ISNUMBER(N6),ISNUMBER(O6),ISNUMBER(G6),ISNUMBER(K6)),SUM(L6,M6,N6,O6,('TT 1'!D7*0.3),(ANNUAL!D7*0.3)),"") -> 35 | Q6: =IF(ISNUMBER('UT1'!H8),'UT1'!H8,"") -> 80 | R6: =IF(ISNUMBER('UT 2'!H8),'UT 2'!H8,"") -> 50 | S6: =IF(ISNUMBER('UT 3 '!H8),'UT 3 '!H8,"") -> 50 | T6: =IF('TT 1'!H8>0,'TT 1'!H8,"") -> 50 | U6: =IF('UT 4'!H8>0,'UT 4'!H8,"") -> 50 | V6: =IF('UT 5PB1'!H8>0,'UT 5PB1'!H8,"") -> 50 | W6: =IF('PREANNU PB2 '!H8>0,'PREANNU PB2 '!H8,"") -> 50 | X6: =IF(ANNUAL!H8>0,ANNUAL!H8,"") -> 50 | Y6: =IF(OR(ISNUMBER(Q6),ISNUMBER(R6),ISNUMBER(S6)),LARGE(Q6:S6,1)/10,"") -> 8 | Z6: =IF(OR(ISNUMBER(Q6),ISNUMBER(R6),ISNUMBER(S6)),LARGE(Q6:S6,2)/10,"") -> 5 | AA6: =IF(OR(ISNUMBER(U6),ISNUMBER(V6),ISNUMBER(W6)),LARGE(U6:W6,1)/10,"") -> 5 | AB6: =IF(OR(ISNUMBER(U6),ISNUMBER(V6),ISNUMBER(W6)),LARGE(U6:W6,2)/10,"") -> 5 | AC6: =IF(OR(ISNUMBER(Y6),ISNUMBER(Z6),ISNUMBER(AA6),ISNUMBER(AB6),ISNUMBER(T6),ISNUMBER(X6)),SUM(Y6,Z6,AA6,AB6,('TT 1'!E7*0.3),(ANNUAL!E7*0.3)),"") -> 83 | AD6: =IF(ISNUMBER('UT1'!K8),'UT1'!K8,"") -> 50 | AE6: =IF(ISNUMBER('UT 2'!K8),'UT 2'!K8,"") -> 50 | AF6: =IF(ISNUMBER('UT 3 '!K8),'UT 3 '!K8,"") -> 50 | AG6: =IF('TT 1'!K8>0,'TT 1'!K8,"") -> 50 | AH6: =IF('UT 4'!K8>0,'UT 4'!K8,"") -> 50 | AI6: =IF('UT 5PB1'!K8>0,'UT 5PB1'!K8,"") -> 50 | AJ6: =IF('PREANNU PB2 '!K8>0,'PREANNU PB2 '!K8,"") -> 50 | AK6: =IF(ANNUAL!K8>0,ANNUAL!K8,"") -> 50 | AL6: =IF(OR(ISNUMBER(AD6),ISNUMBER(AE6),ISNUMBER(AF6)),LARGE(AD6:AF6,1)/10,"") -> 5 | AM6: =IF(OR(ISNUMBER(AD6),ISNUMBER(AE6),ISNUMBER(AF6)),LARGE(AD6:AF6,2)/10,"") -> 5 | AN6: =IF(OR(ISNUMBER(AH6),ISNUMBER(AI6),ISNUMBER(AJ6)),LARGE(AH6:AJ6,1)/10,"") -> 5 | AO6: =IF(OR(ISNUMBER(AH6),ISNUMBER(AI6),ISNUMBER(AJ6)),LARGE(AH6:AJ6,2)/10,"") -> 5 | AP6: =IF(OR(ISNUMBER(AL6),ISNUMBER(AM6),ISNUMBER(AN6),ISNUMBER(AO6),ISNUMBER(AG6),ISNUMBER(AK6)),SUM(AL6,AM6,AN6,AO6,('TT 1'!R7*0.3),(ANNUAL!R7*0.3)),"") -> 44 | AQ6: =IF(ISNUMBER('UT1'!N8),'UT1'!N8,"") -> 50 | AR6: =IF(ISNUMBER('UT 2'!N8),'UT 2'!N8,"") -> 50 | AS6: =IF(ISNUMBER('UT 3 '!N8),'UT 3 '!N8,"") -> 50 | AT6: =IF('TT 1'!N8>0,'TT 1'!N8,"") -> 50 | AU6: =IF('UT 4'!N8>0,'UT 4'!N8,"") -> 50 | AV6: =IF('UT 5PB1'!N8>0,'UT 5PB1'!N8,"") -> 50 | AW6: =IF('PREANNU PB2 '!N8>0,'PREANNU PB2 '!N8,"") -> 50 | AX6: =IF(ANNUAL!N8>0,ANNUAL!N8,"") -> 50 | AY6: =IF(OR(ISNUMBER(AQ6),ISNUMBER(AR6),ISNUMBER(AS6)),LARGE(AQ6:AS6,1)/10,"") -> 5 | AZ6: =IF(OR(ISNUMBER(AQ6),ISNUMBER(AR6),ISNUMBER(AS6)),LARGE(AQ6:AS6,2)/10,"") -> 5 | BA6: =IF(OR(ISNUMBER(AU6),ISNUMBER(AV6),ISNUMBER(AW6)),LARGE(AU6:AW6,1)/10,"") -> 5 | BB6: =IF(OR(ISNUMBER(AU6),ISNUMBER(AV6),ISNUMBER(AW6)),LARGE(AU6:AW6,2)/10,"") -> 5 | BC6: =IF(OR(ISNUMBER(AY6),ISNUMBER(AZ6),ISNUMBER(BA6),ISNUMBER(BB6),ISNUMBER(AT6),ISNUMBER(AX6)),SUM(AY6,AZ6,BA6,BB6,('TT 1'!AE7*0.3),(ANNUAL!AE7*0.3)),"") -> 20 | BD6: =IF(ISNUMBER('UT1'!Q8),'UT1'!Q8,"") -> 50 | BE6: =IF(ISNUMBER('UT 2'!Q8),'UT 2'!Q8,"") -> 50 | BF6: =IF(ISNUMBER('UT 3 '!Q8),'UT 3 '!Q8,"") -> 50 | BG6: =IF('TT 1'!Q8>0,'TT 1'!Q8,"") -> 50 | BH6: =IF('UT 4'!Q8>0,'UT 4'!Q8,"") -> 50 | BI6: =IF('UT 5PB1'!Q8>0,'UT 5PB1'!Q8,"") -> 50 | BJ6: =IF('PREANNU PB2 '!Q8>0,'PREANNU PB2 '!Q8,"") -> 50 | BK6: =IF(ANNUAL!Q8>0,ANNUAL!Q8,"") -> 50 | BL6: =IF(OR(ISNUMBER(BD6),ISNUMBER(BE6),ISNUMBER(BF6)),LARGE(BD6:BF6,1)/10,"") -> 5 | BM6: =IF(OR(ISNUMBER(BD6),ISNUMBER(BE6),ISNUMBER(BF6)),LARGE(BD6:BF6,2)/10,"") -> 5 | BN6: =IF(OR(ISNUMBER(BH6),ISNUMBER(BI6),ISNUMBER(BJ6)),LARGE(BH6:BJ6,1)/10,"") -> 5 | BO6: =IF(OR(ISNUMBER(BH6),ISNUMBER(BI6),ISNUMBER(BJ6)),LARGE(BH6:BJ6,2)/10,"") -> 5 | BP6: =IF(OR(ISNUMBER(BL6),ISNUMBER(BM6),ISNUMBER(BN6),ISNUMBER(BO6),ISNUMBER(BG6),ISNUMBER(BK6)),SUM(BL6,BM6,BN6,BO6,('TT 1'!AR7*0.3),(ANNUAL!AR7*0.3)),"") -> 20 | BQ6: =IF(ISNUMBER('UT1'!T8),'UT1'!T8,"") -> 50 | BR6: =IF(ISNUMBER('UT 2'!T8),'UT 2'!T8,"") -> 50 | BS6: =IF(ISNUMBER('UT 3 '!T8),'UT 3 '!T8,"") -> 50 | BT6: =IF('TT 1'!T8>0,'TT 1'!T8,"") -> 50 | BU6: =IF('UT 4'!T8>0,'UT 4'!T8,"") -> 50 | BV6: =IF('UT 5PB1'!T8>0,'UT 5PB1'!T8,"") -> 50 | BW6: =IF('PREANNU PB2 '!T8>0,'PREANNU PB2 '!T8,"") -> 50 | BX6: =IF(ANNUAL!T8>0,ANNUAL!T8,"") -> 50 | BY6: =IF(OR(ISNUMBER(BQ6),ISNUMBER(BR6),ISNUMBER(BS6)),LARGE(BQ6:BS6,1)/10,"") -> 5 | BZ6: =IF(OR(ISNUMBER(BQ6),ISNUMBER(BR6),ISNUMBER(BS6)),LARGE(BQ6:BS6,2)/10,"") -> 5 | CA6: =IF(OR(ISNUMBER(BU6),ISNUMBER(BV6),ISNUMBER(BW6)),LARGE(BU6:BW6,1)/10,"") -> 5 | CB6: =IF(OR(ISNUMBER(BU6),ISNUMBER(BV6),ISNUMBER(BW6)),LARGE(BU6:BW6,2)/10,"") -> 5 | CC6: =IF(OR(ISNUMBER(BY6),ISNUMBER(BZ6),ISNUMBER(CA6),ISNUMBER(CB6),ISNUMBER(BT6),ISNUMBER(BX6)),SUM(BY6,BZ6,CA6,CB6,('TT 1'!BE7*0.3),(ANNUAL!BE7*0.3)),"") -> 20 | CD6: =IF(ISNUMBER('UT1'!W8),'UT1'!W8,"") -> 50 | CE6: =IF(ISNUMBER('UT 2'!W8),'UT 2'!W8,"") -> 50 | CF6: =IF(ISNUMBER('UT 3 '!W8),'UT 3 '!W8,"") -> 50 | CG6: =IF('TT 1'!W8>0,'TT 1'!W8,"") -> 50 | CH6: =IF('UT 4'!W8>0,'UT 4'!W8,"") -> 50 | CI6: =IF('UT 5PB1'!W8>0,'UT 5PB1'!W8,"") -> 50 | CJ6: =IF('PREANNU PB2 '!W8>0,'PREANNU PB2 '!W8,"") -> 50 | CK6: =IF(ANNUAL!W8>0,ANNUAL!W8,"") -> 50 | CL6: =IF(OR(ISNUMBER(CD6),ISNUMBER(CE6),ISNUMBER(CF6)),LARGE(CD6:CF6,1)/10,"") -> 5 | CM6: =IF(OR(ISNUMBER(CD6),ISNUMBER(CE6),ISNUMBER(CF6)),LARGE(CD6:CF6,2)/10,"") -> 5 | CN6: =IF(OR(ISNUMBER(CH6),ISNUMBER(CI6),ISNUMBER(CJ6)),LARGE(CH6:CJ6,1)/10,"") -> 5 | CO6: =IF(OR(ISNUMBER(CH6),ISNUMBER(CI6),ISNUMBER(CJ6)),LARGE(CH6:CJ6,2)/10,"") -> 5 | CP6: =IF(OR(ISNUMBER(CL6),ISNUMBER(CM6),ISNUMBER(CN6),ISNUMBER(CO6),ISNUMBER(CG6),ISNUMBER(CK6)),SUM(CL6,CM6,CN6,CO6,('TT 1'!BR7*0.3),(ANNUAL!BR7*0.3)),"") -> 20 | CQ6: =IF(ISNUMBER(P6),P6,"") -> 35 | CR6: =IF(ISNUMBER(AC6),AC6,"") -> 83 | CS6: =IF(ISNUMBER(AP6),AP6,"") -> 44 | CT6: =IF(ISNUMBER(BC6),BC6,"") -> 20 | CU6: =IF(ISNUMBER(BP6),BP6,"") -> 20 | CV6: =IF(ISNUMBER(CC6),CC6,"") -> 20 | CW6: =IF(ISNUMBER(CP6),CP6,"") -> 20 | CX6: =SUM(CQ6:CW6) -> 242 | CY6: =CX6/'Student Profile'!P7 -> 48.4 | CZ6: =IF(ISNUMBER(CX6),RANK(CX6,CX$6:CX$50,0),"") -> 37
A7: =ANNUAL!A9 ->  | B7: =ANNUAL!B9 ->  | C7: =IF('Student Profile'!D8>0,'Student Profile'!D8,"") ->  | D7: =IF(ISNUMBER('UT1'!E9),'UT1'!E9,"") -> 67 | E7: =IF(ISNUMBER('UT 2'!E9),'UT 2'!E9,"") -> 67 | F7: =IF(ISNUMBER('UT 3 '!E9),'UT 3 '!E9,"") -> 67 | G7: =IF('TT 1'!E9>0,'TT 1'!E9,"") -> 45 | H7: =IF('UT 4'!E9>0,'UT 4'!E9,"") -> 67 | I7: =IF('UT 5PB1'!E9>0,'UT 5PB1'!E9,"") -> 67 | J7: =IF('PREANNU PB2 '!E9>0,'PREANNU PB2 '!E9,"") -> 67 | K7: =IF(ANNUAL!E9>0,ANNUAL!E9,"") -> 40 | L7: =IF(OR(ISNUMBER(D7),ISNUMBER(E7),ISNUMBER(F7)),LARGE(D7:F7,1)/10,"") -> 6.7 | M7: =IF(OR(ISNUMBER(D7),ISNUMBER(E7),ISNUMBER(F7)),LARGE(D7:F7,2)/10,"") -> 6.7 | N7: =IF(OR(ISNUMBER(H7),ISNUMBER(I7),ISNUMBER(J7)),LARGE(H7:J7,1)/10,"") -> 6.7 | O7: =IF(OR(ISNUMBER(H7),ISNUMBER(I7),ISNUMBER(J7)),LARGE(H7:J7,2)/10,"") -> 6.7 | P7: =IF(OR(ISNUMBER(L7),ISNUMBER(M7),ISNUMBER(N7),ISNUMBER(O7),ISNUMBER(G7),ISNUMBER(K7)),SUM(L7,M7,N7,O7,('TT 1'!D8*0.3),(ANNUAL!D8*0.3)),"") -> 32.8 | Q7: =IF(ISNUMBER('UT1'!H9),'UT1'!H9,"") -> 40 | R7: =IF(ISNUMBER('UT 2'!H9),'UT 2'!H9,"") -> 67 | S7: =IF(ISNUMBER('UT 3 '!H9),'UT 3 '!H9,"") -> 67 | T7: =IF('TT 1'!H9>0,'TT 1'!H9,"") -> 67 | U7: =IF('UT 4'!H9>0,'UT 4'!H9,"") -> 67 | V7: =IF('UT 5PB1'!H9>0,'UT 5PB1'!H9,"") -> 67 | W7: =IF('PREANNU PB2 '!H9>0,'PREANNU PB2 '!H9,"") -> 67 | X7: =IF(ANNUAL!H9>0,ANNUAL!H9,"") -> 67 | Y7: =IF(OR(ISNUMBER(Q7),ISNUMBER(R7),ISNUMBER(S7)),LARGE(Q7:S7,1)/10,"") -> 6.7 | Z7: =IF(OR(ISNUMBER(Q7),ISNUMBER(R7),ISNUMBER(S7)),LARGE(Q7:S7,2)/10,"") -> 6.7 | AA7: =IF(OR(ISNUMBER(U7),ISNUMBER(V7),ISNUMBER(W7)),LARGE(U7:W7,1)/10,"") -> 6.7 | AB7: =IF(OR(ISNUMBER(U7),ISNUMBER(V7),ISNUMBER(W7)),LARGE(U7:W7,2)/10,"") -> 6.7 | AC7: =IF(OR(ISNUMBER(Y7),ISNUMBER(Z7),ISNUMBER(AA7),ISNUMBER(AB7),ISNUMBER(T7),ISNUMBER(X7)),SUM(Y7,Z7,AA7,AB7,('TT 1'!E8*0.3),(ANNUAL!E8*0.3)),"") -> 46 | AD7: =IF(ISNUMBER('UT1'!K9),'UT1'!K9,"") -> 67 | AE7: =IF(ISNUMBER('UT 2'!K9),'UT 2'!K9,"") -> 67 | AF7: =IF(ISNUMBER('UT 3 '!K9),'UT 3 '!K9,"") -> 67 | AG7: =IF('TT 1'!K9>0,'TT 1'!K9,"") -> 67 | AH7: =IF('UT 4'!K9>0,'UT 4'!K9,"") -> 67 | AI7: =IF('UT 5PB1'!K9>0,'UT 5PB1'!K9,"") -> 67 | AJ7: =IF('PREANNU PB2 '!K9>0,'PREANNU PB2 '!K9,"") -> 67 | AK7: =IF(ANNUAL!K9>0,ANNUAL!K9,"") -> 67 | AL7: =IF(OR(ISNUMBER(AD7),ISNUMBER(AE7),ISNUMBER(AF7)),LARGE(AD7:AF7,1)/10,"") -> 6.7 | AM7: =IF(OR(ISNUMBER(AD7),ISNUMBER(AE7),ISNUMBER(AF7)),LARGE(AD7:AF7,2)/10,"") -> 6.7 | AN7: =IF(OR(ISNUMBER(AH7),ISNUMBER(AI7),ISNUMBER(AJ7)),LARGE(AH7:AJ7,1)/10,"") -> 6.7 | AO7: =IF(OR(ISNUMBER(AH7),ISNUMBER(AI7),ISNUMBER(AJ7)),LARGE(AH7:AJ7,2)/10,"") -> 6.7 | AP7: =IF(OR(ISNUMBER(AL7),ISNUMBER(AM7),ISNUMBER(AN7),ISNUMBER(AO7),ISNUMBER(AG7),ISNUMBER(AK7)),SUM(AL7,AM7,AN7,AO7,('TT 1'!R8*0.3),(ANNUAL!R8*0.3)),"") -> 38.8 | AQ7: =IF(ISNUMBER('UT1'!N9),'UT1'!N9,"") -> 67 | AR7: =IF(ISNUMBER('UT 2'!N9),'UT 2'!N9,"") -> 67 | AS7: =IF(ISNUMBER('UT 3 '!N9),'UT 3 '!N9,"") -> 67 | AT7: =IF('TT 1'!N9>0,'TT 1'!N9,"") -> 67 | AU7: =IF('UT 4'!N9>0,'UT 4'!N9,"") -> 67 | AV7: =IF('UT 5PB1'!N9>0,'UT 5PB1'!N9,"") -> 67 | AW7: =IF('PREANNU PB2 '!N9>0,'PREANNU PB2 '!N9,"") -> 67 | AX7: =IF(ANNUAL!N9>0,ANNUAL!N9,"") -> 67 | AY7: =IF(OR(ISNUMBER(AQ7),ISNUMBER(AR7),ISNUMBER(AS7)),LARGE(AQ7:AS7,1)/10,"") -> 6.7 | AZ7: =IF(OR(ISNUMBER(AQ7),ISNUMBER(AR7),ISNUMBER(AS7)),LARGE(AQ7:AS7,2)/10,"") -> 6.7 | BA7: =IF(OR(ISNUMBER(AU7),ISNUMBER(AV7),ISNUMBER(AW7)),LARGE(AU7:AW7,1)/10,"") -> 6.7 | BB7: =IF(OR(ISNUMBER(AU7),ISNUMBER(AV7),ISNUMBER(AW7)),LARGE(AU7:AW7,2)/10,"") -> 6.7 | BC7: =IF(OR(ISNUMBER(AY7),ISNUMBER(AZ7),ISNUMBER(BA7),ISNUMBER(BB7),ISNUMBER(AT7),ISNUMBER(AX7)),SUM(AY7,AZ7,BA7,BB7,('TT 1'!AE8*0.3),(ANNUAL!AE8*0.3)),"") -> 26.8 | BD7: =IF(ISNUMBER('UT1'!Q9),'UT1'!Q9,"") -> 67 | BE7: =IF(ISNUMBER('UT 2'!Q9),'UT 2'!Q9,"") -> 67 | BF7: =IF(ISNUMBER('UT 3 '!Q9),'UT 3 '!Q9,"") -> 67 | BG7: =IF('TT 1'!Q9>0,'TT 1'!Q9,"") -> 67 | BH7: =IF('UT 4'!Q9>0,'UT 4'!Q9,"") -> 67 | BI7: =IF('UT 5PB1'!Q9>0,'UT 5PB1'!Q9,"") -> 67 | BJ7: =IF('PREANNU PB2 '!Q9>0,'PREANNU PB2 '!Q9,"") -> 67 | BK7: =IF(ANNUAL!Q9>0,ANNUAL!Q9,"") -> 67 | BL7: =IF(OR(ISNUMBER(BD7),ISNUMBER(BE7),ISNUMBER(BF7)),LARGE(BD7:BF7,1)/10,"") -> 6.7 | BM7: =IF(OR(ISNUMBER(BD7),ISNUMBER(BE7),ISNUMBER(BF7)),LARGE(BD7:BF7,2)/10,"") -> 6.7 | BN7: =IF(OR(ISNUMBER(BH7),ISNUMBER(BI7),ISNUMBER(BJ7)),LARGE(BH7:BJ7,1)/10,"") -> 6.7 | BO7: =IF(OR(ISNUMBER(BH7),ISNUMBER(BI7),ISNUMBER(BJ7)),LARGE(BH7:BJ7,2)/10,"") -> 6.7 | BP7: =IF(OR(ISNUMBER(BL7),ISNUMBER(BM7),ISNUMBER(BN7),ISNUMBER(BO7),ISNUMBER(BG7),ISNUMBER(BK7)),SUM(BL7,BM7,BN7,BO7,('TT 1'!AR8*0.3),(ANNUAL!AR8*0.3)),"") -> 26.8 | BQ7: =IF(ISNUMBER('UT1'!T9),'UT1'!T9,"") -> 67 | BR7: =IF(ISNUMBER('UT 2'!T9),'UT 2'!T9,"") -> 67 | BS7: =IF(ISNUMBER('UT 3 '!T9),'UT 3 '!T9,"") -> 67 | BT7: =IF('TT 1'!T9>0,'TT 1'!T9,"") -> 67 | BU7: =IF('UT 4'!T9>0,'UT 4'!T9,"") -> 67 | BV7: =IF('UT 5PB1'!T9>0,'UT 5PB1'!T9,"") -> 67 | BW7: =IF('PREANNU PB2 '!T9>0,'PREANNU PB2 '!T9,"") -> 67 | BX7: =IF(ANNUAL!T9>0,ANNUAL!T9,"") -> 67 | BY7: =IF(OR(ISNUMBER(BQ7),ISNUMBER(BR7),ISNUMBER(BS7)),LARGE(BQ7:BS7,1)/10,"") -> 6.7 | BZ7: =IF(OR(ISNUMBER(BQ7),ISNUMBER(BR7),ISNUMBER(BS7)),LARGE(BQ7:BS7,2)/10,"") -> 6.7 | CA7: =IF(OR(ISNUMBER(BU7),ISNUMBER(BV7),ISNUMBER(BW7)),LARGE(BU7:BW7,1)/10,"") -> 6.7 | CB7: =IF(OR(ISNUMBER(BU7),ISNUMBER(BV7),ISNUMBER(BW7)),LARGE(BU7:BW7,2)/10,"") -> 6.7 | CC7: =IF(OR(ISNUMBER(BY7),ISNUMBER(BZ7),ISNUMBER(CA7),ISNUMBER(CB7),ISNUMBER(BT7),ISNUMBER(BX7)),SUM(BY7,BZ7,CA7,CB7,('TT 1'!BE8*0.3),(ANNUAL!BE8*0.3)),"") -> 26.8 | CD7: =IF(ISNUMBER('UT1'!W9),'UT1'!W9,"") -> 67 | CE7: =IF(ISNUMBER('UT 2'!W9),'UT 2'!W9,"") -> 67 | CF7: =IF(ISNUMBER('UT 3 '!W9),'UT 3 '!W9,"") -> 67 | CG7: =IF('TT 1'!W9>0,'TT 1'!W9,"") -> 67 | CH7: =IF('UT 4'!W9>0,'UT 4'!W9,"") -> 67 | CI7: =IF('UT 5PB1'!W9>0,'UT 5PB1'!W9,"") -> 67 | CJ7: =IF('PREANNU PB2 '!W9>0,'PREANNU PB2 '!W9,"") -> 67 | CK7: =IF(ANNUAL!W9>0,ANNUAL!W9,"") -> 67 | CL7: =IF(OR(ISNUMBER(CD7),ISNUMBER(CE7),ISNUMBER(CF7)),LARGE(CD7:CF7,1)/10,"") -> 6.7 | CM7: =IF(OR(ISNUMBER(CD7),ISNUMBER(CE7),ISNUMBER(CF7)),LARGE(CD7:CF7,2)/10,"") -> 6.7 | CN7: =IF(OR(ISNUMBER(CH7),ISNUMBER(CI7),ISNUMBER(CJ7)),LARGE(CH7:CJ7,1)/10,"") -> 6.7 | CO7: =IF(OR(ISNUMBER(CH7),ISNUMBER(CI7),ISNUMBER(CJ7)),LARGE(CH7:CJ7,2)/10,"") -> 6.7 | CP7: =IF(OR(ISNUMBER(CL7),ISNUMBER(CM7),ISNUMBER(CN7),ISNUMBER(CO7),ISNUMBER(CG7),ISNUMBER(CK7)),SUM(CL7,CM7,CN7,CO7,('TT 1'!BR8*0.3),(ANNUAL!BR8*0.3)),"") -> 26.8 | CQ7: =IF(ISNUMBER(P7),P7,"") -> 32.8 | CR7: =IF(ISNUMBER(AC7),AC7,"") -> 46 | CS7: =IF(ISNUMBER(AP7),AP7,"") -> 38.8 | CT7: =IF(ISNUMBER(BC7),BC7,"") -> 26.8 | CU7: =IF(ISNUMBER(BP7),BP7,"") -> 26.8 | CV7: =IF(ISNUMBER(CC7),CC7,"") -> 26.8 | CW7: =IF(ISNUMBER(CP7),CP7,"") -> 26.8 | CX7: =SUM(CQ7:CW7) -> 224.8 | CY7: =CX7/'Student Profile'!P8 -> 44.96 | CZ7: =IF(ISNUMBER(CX7),RANK(CX7,CX$6:CX$50,0),"") -> 38
A8: =ANNUAL!A10 ->  | B8: =ANNUAL!B10 ->  | C8: =IF('Student Profile'!D9>0,'Student Profile'!D9,"") ->  | D8: =IF(ISNUMBER('UT1'!E10),'UT1'!E10,"") -> 92 | E8: =IF(ISNUMBER('UT 2'!E10),'UT 2'!E10,"") -> 92 | F8: =IF(ISNUMBER('UT 3 '!E10),'UT 3 '!E10,"") -> 92 | G8: =IF('TT 1'!E10>0,'TT 1'!E10,"") -> 62 | H8: =IF('UT 4'!E10>0,'UT 4'!E10,"") -> 92 | I8: =IF('UT 5PB1'!E10>0,'UT 5PB1'!E10,"") -> 92 | J8: =IF('PREANNU PB2 '!E10>0,'PREANNU PB2 '!E10,"") -> 92 | K8: =IF(ANNUAL!E10>0,ANNUAL!E10,"") -> 55 | L8: 9.2 | M8: 9.2 | N8: 9.2 | O8: 9.2 | P8: =IF(OR(ISNUMBER(L8),ISNUMBER(M8),ISNUMBER(N8),ISNUMBER(O8),ISNUMBER(G8),ISNUMBER(K8)),SUM(L8,M8,N8,O8,('TT 1'!D9*0.3),(ANNUAL!D9*0.3)),"") -> 45.8 | Q8: =IF(ISNUMBER('UT1'!H10),'UT1'!H10,"") -> 55 | R8: =IF(ISNUMBER('UT 2'!H10),'UT 2'!H10,"") -> 92 | S8: =IF(ISNUMBER('UT 3 '!H10),'UT 3 '!H10,"") -> 92 | T8: =IF('TT 1'!H10>0,'TT 1'!H10,"") -> 92 | U8: =IF('UT 4'!H10>0,'UT 4'!H10,"") -> 92 | V8: =IF('UT 5PB1'!H10>0,'UT 5PB1'!H10,"") -> 92 | W8: =IF('PREANNU PB2 '!H10>0,'PREANNU PB2 '!H10,"") -> 92 | X8: =IF(ANNUAL!H10>0,ANNUAL!H10,"") -> 92 | Y8: 9.2 | Z8: 9.2 | AA8: 9.2 | AB8: 9.2 | AC8: =IF(OR(ISNUMBER(Y8),ISNUMBER(Z8),ISNUMBER(AA8),ISNUMBER(AB8),ISNUMBER(T8),ISNUMBER(X8)),SUM(Y8,Z8,AA8,AB8,('TT 1'!E9*0.3),(ANNUAL!E9*0.3)),"") -> 62.3 | AD8: =IF(ISNUMBER('UT1'!K10),'UT1'!K10,"") -> 92 | AE8: =IF(ISNUMBER('UT 2'!K10),'UT 2'!K10,"") -> 92 | AF8: =IF(ISNUMBER('UT 3 '!K10),'UT 3 '!K10,"") -> 92 | AG8: =IF('TT 1'!K10>0,'TT 1'!K10,"") -> 92 | AH8: =IF('UT 4'!K10>0,'UT 4'!K10,"") -> 92 | AI8: =IF('UT 5PB1'!K10>0,'UT 5PB1'!K10,"") -> 92 | AJ8: =IF('PREANNU PB2 '!K10>0,'PREANNU PB2 '!K10,"") -> 92 | AK8: =IF(ANNUAL!K10>0,ANNUAL!K10,"") -> 92 | AL8: 9.2 | AM8: 9.2 | AN8: 9.2 | AO8: 9.2 | AP8: =IF(OR(ISNUMBER(AL8),ISNUMBER(AM8),ISNUMBER(AN8),ISNUMBER(AO8),ISNUMBER(AG8),ISNUMBER(AK8)),SUM(AL8,AM8,AN8,AO8,('TT 1'!R9*0.3),(ANNUAL!R9*0.3)),"") -> 51.8 | AQ8: =IF(ISNUMBER('UT1'!N10),'UT1'!N10,"") -> 92 | AR8: =IF(ISNUMBER('UT 2'!N10),'UT 2'!N10,"") -> 92 | AS8: =IF(ISNUMBER('UT 3 '!N10),'UT 3 '!N10,"") -> 92 | AT8: =IF('TT 1'!N10>0,'TT 1'!N10,"") -> 92 | AU8: =IF('UT 4'!N10>0,'UT 4'!N10,"") -> 92 | AV8: =IF('UT 5PB1'!N10>0,'UT 5PB1'!N10,"") -> 92 | AW8: =IF('PREANNU PB2 '!N10>0,'PREANNU PB2 '!N10,"") -> 92 | AX8: =IF(ANNUAL!N10>0,ANNUAL!N10,"") -> 92 | AY8: 9.2 | AZ8: 9.2 | BA8: 9.2 | BB8: 9.2 | BC8: =IF(OR(ISNUMBER(AY8),ISNUMBER(AZ8),ISNUMBER(BA8),ISNUMBER(BB8),ISNUMBER(AT8),ISNUMBER(AX8)),SUM(AY8,AZ8,BA8,BB8,('TT 1'!AE9*0.3),(ANNUAL!AE9*0.3)),"") -> 36.8 | BD8: =IF(ISNUMBER('UT1'!Q10),'UT1'!Q10,"") -> 92 | BE8: =IF(ISNUMBER('UT 2'!Q10),'UT 2'!Q10,"") -> 92 | BF8: =IF(ISNUMBER('UT 3 '!Q10),'UT 3 '!Q10,"") -> 92 | BG8: =IF('TT 1'!Q10>0,'TT 1'!Q10,"") -> 92 | BH8: =IF('UT 4'!Q10>0,'UT 4'!Q10,"") -> 92 | BI8: =IF('UT 5PB1'!Q10>0,'UT 5PB1'!Q10,"") -> 92 | BJ8: =IF('PREANNU PB2 '!Q10>0,'PREANNU PB2 '!Q10,"") -> 92 | BK8: =IF(ANNUAL!Q10>0,ANNUAL!Q10,"") -> 92 | BL8: 9.2 | BM8: 9.2 | BN8: 9.2 | BO8: 9.2 | BP8: =IF(OR(ISNUMBER(BL8),ISNUMBER(BM8),ISNUMBER(BN8),ISNUMBER(BO8),ISNUMBER(BG8),ISNUMBER(BK8)),SUM(BL8,BM8,BN8,BO8,('TT 1'!AR9*0.3),(ANNUAL!AR9*0.3)),"") -> 36.8 | BQ8: =IF(ISNUMBER('UT1'!T10),'UT1'!T10,"") -> 92 | BR8: =IF(ISNUMBER('UT 2'!T10),'UT 2'!T10,"") -> 92 | BS8: =IF(ISNUMBER('UT 3 '!T10),'UT 3 '!T10,"") -> 92 | BT8: =IF('TT 1'!T10>0,'TT 1'!T10,"") -> 92 | BU8: =IF('UT 4'!T10>0,'UT 4'!T10,"") -> 92 | BV8: =IF('UT 5PB1'!T10>0,'UT 5PB1'!T10,"") -> 92 | BW8: =IF('PREANNU PB2 '!T10>0,'PREANNU PB2 '!T10,"") -> 92 | BX8: =IF(ANNUAL!T10>0,ANNUAL!T10,"") -> 92 | BY8: 9.2 | BZ8: 9.2 | CA8: 9.2 | CB8: 9.2 | CC8: =IF(OR(ISNUMBER(BY8),ISNUMBER(BZ8),ISNUMBER(CA8),ISNUMBER(CB8),ISNUMBER(BT8),ISNUMBER(BX8)),SUM(BY8,BZ8,CA8,CB8,('TT 1'!BE9*0.3),(ANNUAL!BE9*0.3)),"") -> 36.8 | CD8: =IF(ISNUMBER('UT1'!W10),'UT1'!W10,"") -> 92 | CE8: =IF(ISNUMBER('UT 2'!W10),'UT 2'!W10,"") -> 92 | CF8: =IF(ISNUMBER('UT 3 '!W10),'UT 3 '!W10,"") -> 92 | CG8: =IF('TT 1'!W10>0,'TT 1'!W10,"") -> 92 | CH8: =IF('UT 4'!W10>0,'UT 4'!W10,"") -> 92 | CI8: =IF('UT 5PB1'!W10>0,'UT 5PB1'!W10,"") -> 92 | CJ8: =IF('PREANNU PB2 '!W10>0,'PREANNU PB2 '!W10,"") -> 92 | CK8: =IF(ANNUAL!W10>0,ANNUAL!W10,"") -> 92 | CL8: 9.2 | CM8: 9.2 | CN8: 9.2 | CO8: 9.2 | CP8: =IF(OR(ISNUMBER(CL8),ISNUMBER(CM8),ISNUMBER(CN8),ISNUMBER(CO8),ISNUMBER(CG8),ISNUMBER(CK8)),SUM(CL8,CM8,CN8,CO8,('TT 1'!BR9*0.3),(ANNUAL!BR9*0.3)),"") -> 36.8 | CQ8: 45.8 | CR8: 62.3 | CS8: 51.8 | CT8: 36.8 | CU8: 36.8 | CV8: 36.8 | CW8: 36.8 | CX8: 307.1 | CY8: =CX8/'Student Profile'!P9 -> 61.42 | CZ8: =IF(ISNUMBER(CX8),RANK(CX8,CX$6:CX$50,0),"") -> 1
A9: =ANNUAL!A11 ->  | B9: =ANNUAL!B11 ->  | C9: =IF('Student Profile'!D10>0,'Student Profile'!D10,"") ->  | D9: =IF(ISNUMBER('UT1'!E11),'UT1'!E11,"") -> 70 | E9: =IF(ISNUMBER('UT 2'!E11),'UT 2'!E11,"") -> 70 | F9: =IF(ISNUMBER('UT 3 '!E11),'UT 3 '!E11,"") -> 70 | G9: =IF('TT 1'!E11>0,'TT 1'!E11,"") -> 47 | H9: =IF('UT 4'!E11>0,'UT 4'!E11,"") -> 70 | I9: =IF('UT 5PB1'!E11>0,'UT 5PB1'!E11,"") -> 70 | J9: =IF('PREANNU PB2 '!E11>0,'PREANNU PB2 '!E11,"") -> 70 | K9: =IF(ANNUAL!E11>0,ANNUAL!E11,"") -> 42 | L9: 7 | M9: 7 | N9: 7 | O9: 7 | P9: =IF(OR(ISNUMBER(L9),ISNUMBER(M9),ISNUMBER(N9),ISNUMBER(O9),ISNUMBER(G9),ISNUMBER(K9)),SUM(L9,M9,N9,O9,('TT 1'!D10*0.3),(ANNUAL!D10*0.3)),"") -> 40 | Q9: =IF(ISNUMBER('UT1'!H11),'UT1'!H11,"") -> 42 | R9: =IF(ISNUMBER('UT 2'!H11),'UT 2'!H11,"") -> 70 | S9: =IF(ISNUMBER('UT 3 '!H11),'UT 3 '!H11,"") -> 70 | T9: =IF('TT 1'!H11>0,'TT 1'!H11,"") -> 70 | U9: =IF('UT 4'!H11>0,'UT 4'!H11,"") -> 70 | V9: =IF('UT 5PB1'!H11>0,'UT 5PB1'!H11,"") -> 70 | W9: =IF('PREANNU PB2 '!H11>0,'PREANNU PB2 '!H11,"") -> 70 | X9: =IF(ANNUAL!H11>0,ANNUAL!H11,"") -> 70 | Y9: 7 | Z9: 7 | AA9: 7 | AB9: 7 | AC9: =IF(OR(ISNUMBER(Y9),ISNUMBER(Z9),ISNUMBER(AA9),ISNUMBER(AB9),ISNUMBER(T9),ISNUMBER(X9)),SUM(Y9,Z9,AA9,AB9,('TT 1'!E10*0.3),(ANNUAL!E10*0.3)),"") -> 63.1 | AD9: =IF(ISNUMBER('UT1'!K11),'UT1'!K11,"") -> 70 | AE9: =IF(ISNUMBER('UT 2'!K11),'UT 2'!K11,"") -> 70 | AF9: =IF(ISNUMBER('UT 3 '!K11),'UT 3 '!K11,"") -> 70 | AG9: =IF('TT 1'!K11>0,'TT 1'!K11,"") -> 70 | AH9: =IF('UT 4'!K11>0,'UT 4'!K11,"") -> 70 | AI9: =IF('UT 5PB1'!K11>0,'UT 5PB1'!K11,"") -> 70 | AJ9: =IF('PREANNU PB2 '!K11>0,'PREANNU PB2 '!K11,"") -> 70 | AK9: =IF(ANNUAL!K11>0,ANNUAL!K11,"") -> 70 | AL9: 7 | AM9: 7 | AN9: 7 | AO9: 7 | AP9: =IF(OR(ISNUMBER(AL9),ISNUMBER(AM9),ISNUMBER(AN9),ISNUMBER(AO9),ISNUMBER(AG9),ISNUMBER(AK9)),SUM(AL9,AM9,AN9,AO9,('TT 1'!R10*0.3),(ANNUAL!R10*0.3)),"") -> 49 | AQ9: =IF(ISNUMBER('UT1'!N11),'UT1'!N11,"") -> 70 | AR9: =IF(ISNUMBER('UT 2'!N11),'UT 2'!N11,"") -> 70 | AS9: =IF(ISNUMBER('UT 3 '!N11),'UT 3 '!N11,"") -> 70 | AT9: =IF('TT 1'!N11>0,'TT 1'!N11,"") -> 70 | AU9: =IF('UT 4'!N11>0,'UT 4'!N11,"") -> 70 | AV9: =IF('UT 5PB1'!N11>0,'UT 5PB1'!N11,"") -> 70 | AW9: =IF('PREANNU PB2 '!N11>0,'PREANNU PB2 '!N11,"") -> 70 | AX9: =IF(ANNUAL!N11>0,ANNUAL!N11,"") -> 70 | AY9: 7 | AZ9: 7 | BA9: 7 | BB9: 7 | BC9: =IF(OR(ISNUMBER(AY9),ISNUMBER(AZ9),ISNUMBER(BA9),ISNUMBER(BB9),ISNUMBER(AT9),ISNUMBER(AX9)),SUM(AY9,AZ9,BA9,BB9,('TT 1'!AE10*0.3),(ANNUAL!AE10*0.3)),"") -> 28 | BD9: =IF(ISNUMBER('UT1'!Q11),'UT1'!Q11,"") -> 70 | BE9: =IF(ISNUMBER('UT 2'!Q11),'UT 2'!Q11,"") -> 70 | BF9: =IF(ISNUMBER('UT 3 '!Q11),'UT 3 '!Q11,"") -> 70 | BG9: =IF('TT 1'!Q11>0,'TT 1'!Q11,"") -> 70 | BH9: =IF('UT 4'!Q11>0,'UT 4'!Q11,"") -> 70 | BI9: =IF('UT 5PB1'!Q11>0,'UT 5PB1'!Q11,"") -> 70 | BJ9: =IF('PREANNU PB2 '!Q11>0,'PREANNU PB2 '!Q11,"") -> 70 | BK9: =IF(ANNUAL!Q11>0,ANNUAL!Q11,"") -> 70 | BL9: 7 | BM9: 7 | BN9: 7 | BO9: 7 | BP9: =IF(OR(ISNUMBER(BL9),ISNUMBER(BM9),ISNUMBER(BN9),ISNUMBER(BO9),ISNUMBER(BG9),ISNUMBER(BK9)),SUM(BL9,BM9,BN9,BO9,('TT 1'!AR10*0.3),(ANNUAL!AR10*0.3)),"") -> 28 | BQ9: =IF(ISNUMBER('UT1'!T11),'UT1'!T11,"") -> 70 | BR9: =IF(ISNUMBER('UT 2'!T11),'UT 2'!T11,"") -> 70 | BS9: =IF(ISNUMBER('UT 3 '!T11),'UT 3 '!T11,"") -> 70 | BT9: =IF('TT 1'!T11>0,'TT 1'!T11,"") -> 70 | BU9: =IF('UT 4'!T11>0,'UT 4'!T11,"") -> 70 | BV9: =IF('UT 5PB1'!T11>0,'UT 5PB1'!T11,"") -> 70 | BW9: =IF('PREANNU PB2 '!T11>0,'PREANNU PB2 '!T11,"") -> 70 | BX9: =IF(ANNUAL!T11>0,ANNUAL!T11,"") -> 70 | BY9: 7 | BZ9: 7 | CA9: 7 | CB9: 7 | CC9: =IF(OR(ISNUMBER(BY9),ISNUMBER(BZ9),ISNUMBER(CA9),ISNUMBER(CB9),ISNUMBER(BT9),ISNUMBER(BX9)),SUM(BY9,BZ9,CA9,CB9,('TT 1'!BE10*0.3),(ANNUAL!BE10*0.3)),"") -> 28 | CD9: =IF(ISNUMBER('UT1'!W11),'UT1'!W11,"") -> 70 | CE9: =IF(ISNUMBER('UT 2'!W11),'UT 2'!W11,"") -> 70 | CF9: =IF(ISNUMBER('UT 3 '!W11),'UT 3 '!W11,"") -> 70 | CG9: =IF('TT 1'!W11>0,'TT 1'!W11,"") -> 70 | CH9: =IF('UT 4'!W11>0,'UT 4'!W11,"") -> 70 | CI9: =IF('UT 5PB1'!W11>0,'UT 5PB1'!W11,"") -> 70 | CJ9: =IF('PREANNU PB2 '!W11>0,'PREANNU PB2 '!W11,"") -> 70 | CK9: =IF(ANNUAL!W11>0,ANNUAL!W11,"") -> 70 | CL9: 7 | CM9: 7 | CN9: 7 | CO9: 7 | CP9: =IF(OR(ISNUMBER(CL9),ISNUMBER(CM9),ISNUMBER(CN9),ISNUMBER(CO9),ISNUMBER(CG9),ISNUMBER(CK9)),SUM(CL9,CM9,CN9,CO9,('TT 1'!BR10*0.3),(ANNUAL!BR10*0.3)),"") -> 28 | CQ9: 40 | CR9: 63.1 | CS9: 49 | CT9: 28 | CU9: 28 | CV9: 28 | CW9: 28 | CX9: 264.1 | CY9: =CX9/'Student Profile'!P10 -> 52.82 | CZ9: 28
A10: =ANNUAL!A12 ->  | B10: =ANNUAL!B12 ->  | C10: =IF('Student Profile'!D11>0,'Student Profile'!D11,"") ->  | D10: =IF(ISNUMBER('UT1'!E12),'UT1'!E12,"") -> 82 | E10: =IF(ISNUMBER('UT 2'!E12),'UT 2'!E12,"") -> 82 | F10: =IF(ISNUMBER('UT 3 '!E12),'UT 3 '!E12,"") -> 82 | G10: =IF('TT 1'!E12>0,'TT 1'!E12,"") -> 55 | H10: =IF('UT 4'!E12>0,'UT 4'!E12,"") -> 82 | I10: =IF('UT 5PB1'!E12>0,'UT 5PB1'!E12,"") -> 82 | J10: =IF('PREANNU PB2 '!E12>0,'PREANNU PB2 '!E12,"") -> 82 | K10: =IF(ANNUAL!E12>0,ANNUAL!E12,"") -> 49 | L10: 8.2 | M10: 8.2 | N10: 8.2 | O10: 8.2 | P10: =IF(OR(ISNUMBER(L10),ISNUMBER(M10),ISNUMBER(N10),ISNUMBER(O10),ISNUMBER(G10),ISNUMBER(K10)),SUM(L10,M10,N10,O10,('TT 1'!D11*0.3),(ANNUAL!D11*0.3)),"") -> 43 | Q10: =IF(ISNUMBER('UT1'!H12),'UT1'!H12,"") -> 49 | R10: =IF(ISNUMBER('UT 2'!H12),'UT 2'!H12,"") -> 82 | S10: =IF(ISNUMBER('UT 3 '!H12),'UT 3 '!H12,"") -> 82 | T10: =IF('TT 1'!H12>0,'TT 1'!H12,"") -> 82 | U10: =IF('UT 4'!H12>0,'UT 4'!H12,"") -> 82 | V10: =IF('UT 5PB1'!H12>0,'UT 5PB1'!H12,"") -> 82 | W10: =IF('PREANNU PB2 '!H12>0,'PREANNU PB2 '!H12,"") -> 82 | X10: =IF(ANNUAL!H12>0,ANNUAL!H12,"") -> 82 | Y10: 8.2 | Z10: 8.2 | AA10: 8.2 | AB10: 8.2 | AC10: =IF(OR(ISNUMBER(Y10),ISNUMBER(Z10),ISNUMBER(AA10),ISNUMBER(AB10),ISNUMBER(T10),ISNUMBER(X10)),SUM(Y10,Z10,AA10,AB10,('TT 1'!E11*0.3),(ANNUAL!E11*0.3)),"") -> 59.5 | AD10: =IF(ISNUMBER('UT1'!K12),'UT1'!K12,"") -> 82 | AE10: =IF(ISNUMBER('UT 2'!K12),'UT 2'!K12,"") -> 82 | AF10: =IF(ISNUMBER('UT 3 '!K12),'UT 3 '!K12,"") -> 82 | AG10: =IF('TT 1'!K12>0,'TT 1'!K12,"") -> 82 | AH10: =IF('UT 4'!K12>0,'UT 4'!K12,"") -> 82 | AI10: =IF('UT 5PB1'!K12>0,'UT 5PB1'!K12,"") -> 82 | AJ10: =IF('PREANNU PB2 '!K12>0,'PREANNU PB2 '!K12,"") -> 82 | AK10: =IF(ANNUAL!K12>0,ANNUAL!K12,"") -> 82 | AL10: 8.2 | AM10: 8.2 | AN10: 8.2 | AO10: 8.2 | AP10: =IF(OR(ISNUMBER(AL10),ISNUMBER(AM10),ISNUMBER(AN10),ISNUMBER(AO10),ISNUMBER(AG10),ISNUMBER(AK10)),SUM(AL10,AM10,AN10,AO10,('TT 1'!R11*0.3),(ANNUAL!R11*0.3)),"") -> 47.8 | AQ10: =IF(ISNUMBER('UT1'!N12),'UT1'!N12,"") -> 82 | AR10: =IF(ISNUMBER('UT 2'!N12),'UT 2'!N12,"") -> 82 | AS10: =IF(ISNUMBER('UT 3 '!N12),'UT 3 '!N12,"") -> 82 | AT10: =IF('TT 1'!N12>0,'TT 1'!N12,"") -> 82 | AU10: =IF('UT 4'!N12>0,'UT 4'!N12,"") -> 82 | AV10: =IF('UT 5PB1'!N12>0,'UT 5PB1'!N12,"") -> 82 | AW10: =IF('PREANNU PB2 '!N12>0,'PREANNU PB2 '!N12,"") -> 82 | AX10: =IF(ANNUAL!N12>0,ANNUAL!N12,"") -> 82 | AY10: 8.2 | AZ10: 8.2 | BA10: 8.2 | BB10: 8.2 | BC10: =IF(OR(ISNUMBER(AY10),ISNUMBER(AZ10),ISNUMBER(BA10),ISNUMBER(BB10),ISNUMBER(AT10),ISNUMBER(AX10)),SUM(AY10,AZ10,BA10,BB10,('TT 1'!AE11*0.3),(ANNUAL!AE11*0.3)),"") -> 32.8 | BD10: =IF(ISNUMBER('UT1'!Q12),'UT1'!Q12,"") -> 82 | BE10: =IF(ISNUMBER('UT 2'!Q12),'UT 2'!Q12,"") -> 82 | BF10: =IF(ISNUMBER('UT 3 '!Q12),'UT 3 '!Q12,"") -> 82 | BG10: =IF('TT 1'!Q12>0,'TT 1'!Q12,"") -> 82 | BH10: =IF('UT 4'!Q12>0,'UT 4'!Q12,"") -> 82 | BI10: =IF('UT 5PB1'!Q12>0,'UT 5PB1'!Q12,"") -> 82 | BJ10: =IF('PREANNU PB2 '!Q12>0,'PREANNU PB2 '!Q12,"") -> 82 | BK10: =IF(ANNUAL!Q12>0,ANNUAL!Q12,"") -> 82 | BL10: 8.2 | BM10: 8.2 | BN10: 8.2 | BO10: 8.2 | BP10: =IF(OR(ISNUMBER(BL10),ISNUMBER(BM10),ISNUMBER(BN10),ISNUMBER(BO10),ISNUMBER(BG10),ISNUMBER(BK10)),SUM(BL10,BM10,BN10,BO10,('TT 1'!AR11*0.3),(ANNUAL!AR11*0.3)),"") -> 32.8 | BQ10: =IF(ISNUMBER('UT1'!T12),'UT1'!T12,"") -> 82 | BR10: =IF(ISNUMBER('UT 2'!T12),'UT 2'!T12,"") -> 82 | BS10: =IF(ISNUMBER('UT 3 '!T12),'UT 3 '!T12,"") -> 82 | BT10: =IF('TT 1'!T12>0,'TT 1'!T12,"") -> 82 | BU10: =IF('UT 4'!T12>0,'UT 4'!T12,"") -> 82 | BV10: =IF('UT 5PB1'!T12>0,'UT 5PB1'!T12,"") -> 82 | BW10: =IF('PREANNU PB2 '!T12>0,'PREANNU PB2 '!T12,"") -> 82 | BX10: =IF(ANNUAL!T12>0,ANNUAL!T12,"") -> 82 | BY10: 8.2 | BZ10: 8.2 | CA10: 8.2 | CB10: 8.2 | CC10: =IF(OR(ISNUMBER(BY10),ISNUMBER(BZ10),ISNUMBER(CA10),ISNUMBER(CB10),ISNUMBER(BT10),ISNUMBER(BX10)),SUM(BY10,BZ10,CA10,CB10,('TT 1'!BE11*0.3),(ANNUAL!BE11*0.3)),"") -> 32.8 | CD10: =IF(ISNUMBER('UT1'!W12),'UT1'!W12,"") -> 82 | CE10: =IF(ISNUMBER('UT 2'!W12),'UT 2'!W12,"") -> 82 | CF10: =IF(ISNUMBER('UT 3 '!W12),'UT 3 '!W12,"") -> 82 | CG10: =IF('TT 1'!W12>0,'TT 1'!W12,"") -> 82 | CH10: =IF('UT 4'!W12>0,'UT 4'!W12,"") -> 82 | CI10: =IF('UT 5PB1'!W12>0,'UT 5PB1'!W12,"") -> 82 | CJ10: =IF('PREANNU PB2 '!W12>0,'PREANNU PB2 '!W12,"") -> 82 | CK10: =IF(ANNUAL!W12>0,ANNUAL!W12,"") -> 82 | CL10: 8.2 | CM10: 8.2 | CN10: 8.2 | CO10: 8.2 | CP10: =IF(OR(ISNUMBER(CL10),ISNUMBER(CM10),ISNUMBER(CN10),ISNUMBER(CO10),ISNUMBER(CG10),ISNUMBER(CK10)),SUM(CL10,CM10,CN10,CO10,('TT 1'!BR11*0.3),(ANNUAL!BR11*0.3)),"") -> 32.8 | CQ10: 43 | CR10: 59.5 | CS10: 47.8 | CT10: 32.8 | CU10: 32.8 | CV10: 32.8 | CW10: 32.8 | CX10: 281.5 | CY10: =CX10/'Student Profile'!P11 -> 56.3 | CZ10: 10
A11: =ANNUAL!A13 ->  | B11: =ANNUAL!B13 ->  | C11: =IF('Student Profile'!D12>0,'Student Profile'!D12,"") ->  | D11: =IF(ISNUMBER('UT1'!E13),'UT1'!E13,"") -> 85 | E11: =IF(ISNUMBER('UT 2'!E13),'UT 2'!E13,"") -> 85 | F11: =IF(ISNUMBER('UT 3 '!E13),'UT 3 '!E13,"") -> 85 | G11: =IF('TT 1'!E13>0,'TT 1'!E13,"") -> 57 | H11: =IF('UT 4'!E13>0,'UT 4'!E13,"") -> 85 | I11: =IF('UT 5PB1'!E13>0,'UT 5PB1'!E13,"") -> 85 | J11: =IF('PREANNU PB2 '!E13>0,'PREANNU PB2 '!E13,"") -> 85 | K11: =IF(ANNUAL!E13>0,ANNUAL!E13,"") -> 51 | L11: 8.5 | M11: 8.5 | N11: 8.5 | O11: 8.5 | P11: =IF(OR(ISNUMBER(L11),ISNUMBER(M11),ISNUMBER(N11),ISNUMBER(O11),ISNUMBER(G11),ISNUMBER(K11)),SUM(L11,M11,N11,O11,('TT 1'!D12*0.3),(ANNUAL!D12*0.3)),"") -> 43 | Q11: =IF(ISNUMBER('UT1'!H13),'UT1'!H13,"") -> 51 | R11: =IF(ISNUMBER('UT 2'!H13),'UT 2'!H13,"") -> 85 | S11: =IF(ISNUMBER('UT 3 '!H13),'UT 3 '!H13,"") -> 85 | T11: =IF('TT 1'!H13>0,'TT 1'!H13,"") -> 85 | U11: =IF('UT 4'!H13>0,'UT 4'!H13,"") -> 85 | V11: =IF('UT 5PB1'!H13>0,'UT 5PB1'!H13,"") -> 85 | W11: =IF('PREANNU PB2 '!H13>0,'PREANNU PB2 '!H13,"") -> 85 | X11: =IF(ANNUAL!H13>0,ANNUAL!H13,"") -> 85 | Y11: 8.5 | Z11: 8.5 | AA11: 8.5 | AB11: 8.5 | AC11: =IF(OR(ISNUMBER(Y11),ISNUMBER(Z11),ISNUMBER(AA11),ISNUMBER(AB11),ISNUMBER(T11),ISNUMBER(X11)),SUM(Y11,Z11,AA11,AB11,('TT 1'!E12*0.3),(ANNUAL!E12*0.3)),"") -> 65.2 | AD11: =IF(ISNUMBER('UT1'!K13),'UT1'!K13,"") -> 85 | AE11: =IF(ISNUMBER('UT 2'!K13),'UT 2'!K13,"") -> 85 | AF11: =IF(ISNUMBER('UT 3 '!K13),'UT 3 '!K13,"") -> 85 | AG11: =IF('TT 1'!K13>0,'TT 1'!K13,"") -> 85 | AH11: =IF('UT 4'!K13>0,'UT 4'!K13,"") -> 85 | AI11: =IF('UT 5PB1'!K13>0,'UT 5PB1'!K13,"") -> 85 | AJ11: =IF('PREANNU PB2 '!K13>0,'PREANNU PB2 '!K13,"") -> 85 | AK11: =IF(ANNUAL!K13>0,ANNUAL!K13,"") -> 85 | AL11: 8.5 | AM11: 8.5 | AN11: 8.5 | AO11: 8.5 | AP11: =IF(OR(ISNUMBER(AL11),ISNUMBER(AM11),ISNUMBER(AN11),ISNUMBER(AO11),ISNUMBER(AG11),ISNUMBER(AK11)),SUM(AL11,AM11,AN11,AO11,('TT 1'!R12*0.3),(ANNUAL!R12*0.3)),"") -> 54.4 | AQ11: =IF(ISNUMBER('UT1'!N13),'UT1'!N13,"") -> 85 | AR11: =IF(ISNUMBER('UT 2'!N13),'UT 2'!N13,"") -> 85 | AS11: =IF(ISNUMBER('UT 3 '!N13),'UT 3 '!N13,"") -> 85 | AT11: =IF('TT 1'!N13>0,'TT 1'!N13,"") -> 85 | AU11: =IF('UT 4'!N13>0,'UT 4'!N13,"") -> 85 | AV11: =IF('UT 5PB1'!N13>0,'UT 5PB1'!N13,"") -> 85 | AW11: =IF('PREANNU PB2 '!N13>0,'PREANNU PB2 '!N13,"") -> 85 | AX11: =IF(ANNUAL!N13>0,ANNUAL!N13,"") -> 85 | AY11: 8.5 | AZ11: 8.5 | BA11: 8.5 | BB11: 8.5 | BC11: =IF(OR(ISNUMBER(AY11),ISNUMBER(AZ11),ISNUMBER(BA11),ISNUMBER(BB11),ISNUMBER(AT11),ISNUMBER(AX11)),SUM(AY11,AZ11,BA11,BB11,('TT 1'!AE12*0.3),(ANNUAL!AE12*0.3)),"") -> 34 | BD11: =IF(ISNUMBER('UT1'!Q13),'UT1'!Q13,"") -> 85 | BE11: =IF(ISNUMBER('UT 2'!Q13),'UT 2'!Q13,"") -> 85 | BF11: =IF(ISNUMBER('UT 3 '!Q13),'UT 3 '!Q13,"") -> 85 | BG11: =IF('TT 1'!Q13>0,'TT 1'!Q13,"") -> 85 | BH11: =IF('UT 4'!Q13>0,'UT 4'!Q13,"") -> 85 | BI11: =IF('UT 5PB1'!Q13>0,'UT 5PB1'!Q13,"") -> 85 | BJ11: =IF('PREANNU PB2 '!Q13>0,'PREANNU PB2 '!Q13,"") -> 85 | BK11: =IF(ANNUAL!Q13>0,ANNUAL!Q13,"") -> 85 | BL11: 8.5 | BM11: 8.5 | BN11: 8.5 | BO11: 8.5 | BP11: =IF(OR(ISNUMBER(BL11),ISNUMBER(BM11),ISNUMBER(BN11),ISNUMBER(BO11),ISNUMBER(BG11),ISNUMBER(BK11)),SUM(BL11,BM11,BN11,BO11,('TT 1'!AR12*0.3),(ANNUAL!AR12*0.3)),"") -> 34 | BQ11: =IF(ISNUMBER('UT1'!T13),'UT1'!T13,"") -> 85 | BR11: =IF(ISNUMBER('UT 2'!T13),'UT 2'!T13,"") -> 85 | BS11: =IF(ISNUMBER('UT 3 '!T13),'UT 3 '!T13,"") -> 85 | BT11: =IF('TT 1'!T13>0,'TT 1'!T13,"") -> 85 | BU11: =IF('UT 4'!T13>0,'UT 4'!T13,"") -> 85 | BV11: =IF('UT 5PB1'!T13>0,'UT 5PB1'!T13,"") -> 85 | BW11: =IF('PREANNU PB2 '!T13>0,'PREANNU PB2 '!T13,"") -> 85 | BX11: =IF(ANNUAL!T13>0,ANNUAL!T13,"") -> 85 | BY11: 8.5 | BZ11: 8.5 | CA11: 8.5 | CB11: 8.5 | CC11: =IF(OR(ISNUMBER(BY11),ISNUMBER(BZ11),ISNUMBER(CA11),ISNUMBER(CB11),ISNUMBER(BT11),ISNUMBER(BX11)),SUM(BY11,BZ11,CA11,CB11,('TT 1'!BE12*0.3),(ANNUAL!BE12*0.3)),"") -> 34 | CD11: =IF(ISNUMBER('UT1'!W13),'UT1'!W13,"") -> 85 | CE11: =IF(ISNUMBER('UT 2'!W13),'UT 2'!W13,"") -> 85 | CF11: =IF(ISNUMBER('UT 3 '!W13),'UT 3 '!W13,"") -> 85 | CG11: =IF('TT 1'!W13>0,'TT 1'!W13,"") -> 85 | CH11: =IF('UT 4'!W13>0,'UT 4'!W13,"") -> 85 | CI11: =IF('UT 5PB1'!W13>0,'UT 5PB1'!W13,"") -> 85 | CJ11: =IF('PREANNU PB2 '!W13>0,'PREANNU PB2 '!W13,"") -> 85 | CK11: =IF(ANNUAL!W13>0,ANNUAL!W13,"") -> 85 | CL11: 8.5 | CM11: 8.5 | CN11: 8.5 | CO11: 8.5 | CP11: =IF(OR(ISNUMBER(CL11),ISNUMBER(CM11),ISNUMBER(CN11),ISNUMBER(CO11),ISNUMBER(CG11),ISNUMBER(CK11)),SUM(CL11,CM11,CN11,CO11,('TT 1'!BR12*0.3),(ANNUAL!BR12*0.3)),"") -> 34 | CQ11: 43 | CR11: 65.2 | CS11: 54.4 | CT11: 34 | CU11: 34 | CV11: 34 | CW11: 34 | CX11: 298.6 | CY11: =CX11/'Student Profile'!P12 -> 59.72 | CZ11: 5
A12: =ANNUAL!A14 ->  | B12: =ANNUAL!B14 ->  | C12: =IF('Student Profile'!D13>0,'Student Profile'!D13,"") ->  | D12: =IF(ISNUMBER('UT1'!E14),'UT1'!E14,"") -> 67 | E12: =IF(ISNUMBER('UT 2'!E14),'UT 2'!E14,"") -> 67 | F12: =IF(ISNUMBER('UT 3 '!E14),'UT 3 '!E14,"") -> 67 | G12: =IF('TT 1'!E14>0,'TT 1'!E14,"") -> 45 | H12: =IF('UT 4'!E14>0,'UT 4'!E14,"") -> 67 | I12: =IF('UT 5PB1'!E14>0,'UT 5PB1'!E14,"") -> 67 | J12: =IF('PREANNU PB2 '!E14>0,'PREANNU PB2 '!E14,"") -> 67 | K12: =IF(ANNUAL!E14>0,ANNUAL!E14,"") -> 40 | L12: 6.7 | M12: 6.7 | N12: 6.7 | O12: 6.7 | P12: =IF(OR(ISNUMBER(L12),ISNUMBER(M12),ISNUMBER(N12),ISNUMBER(O12),ISNUMBER(G12),ISNUMBER(K12)),SUM(L12,M12,N12,O12,('TT 1'!D13*0.3),(ANNUAL!D13*0.3)),"") -> 35.8 | Q12: =IF(ISNUMBER('UT1'!H14),'UT1'!H14,"") -> 40 | R12: =IF(ISNUMBER('UT 2'!H14),'UT 2'!H14,"") -> 67 | S12: =IF(ISNUMBER('UT 3 '!H14),'UT 3 '!H14,"") -> 67 | T12: =IF('TT 1'!H14>0,'TT 1'!H14,"") -> 67 | U12: =IF('UT 4'!H14>0,'UT 4'!H14,"") -> 67 | V12: =IF('UT 5PB1'!H14>0,'UT 5PB1'!H14,"") -> 67 | W12: =IF('PREANNU PB2 '!H14>0,'PREANNU PB2 '!H14,"") -> 67 | X12: =IF(ANNUAL!H14>0,ANNUAL!H14,"") -> 67 | Y12: 6.7 | Z12: 6.7 | AA12: 6.7 | AB12: 6.7 | AC12: =IF(OR(ISNUMBER(Y12),ISNUMBER(Z12),ISNUMBER(AA12),ISNUMBER(AB12),ISNUMBER(T12),ISNUMBER(X12)),SUM(Y12,Z12,AA12,AB12,('TT 1'!E13*0.3),(ANNUAL!E13*0.3)),"") -> 59.2 | AD12: =IF(ISNUMBER('UT1'!K14),'UT1'!K14,"") -> 67 | AE12: =IF(ISNUMBER('UT 2'!K14),'UT 2'!K14,"") -> 67 | AF12: =IF(ISNUMBER('UT 3 '!K14),'UT 3 '!K14,"") -> 67 | AG12: =IF('TT 1'!K14>0,'TT 1'!K14,"") -> 67 | AH12: =IF('UT 4'!K14>0,'UT 4'!K14,"") -> 67 | AI12: =IF('UT 5PB1'!K14>0,'UT 5PB1'!K14,"") -> 67 | AJ12: =IF('PREANNU PB2 '!K14>0,'PREANNU PB2 '!K14,"") -> 67 | AK12: =IF(ANNUAL!K14>0,ANNUAL!K14,"") -> 67 | AL12: 6.7 | AM12: 6.7 | AN12: 6.7 | AO12: 6.7 | AP12: =IF(OR(ISNUMBER(AL12),ISNUMBER(AM12),ISNUMBER(AN12),ISNUMBER(AO12),ISNUMBER(AG12),ISNUMBER(AK12)),SUM(AL12,AM12,AN12,AO12,('TT 1'!R13*0.3),(ANNUAL!R13*0.3)),"") -> 48.4 | AQ12: =IF(ISNUMBER('UT1'!N14),'UT1'!N14,"") -> 67 | AR12: =IF(ISNUMBER('UT 2'!N14),'UT 2'!N14,"") -> 67 | AS12: =IF(ISNUMBER('UT 3 '!N14),'UT 3 '!N14,"") -> 67 | AT12: =IF('TT 1'!N14>0,'TT 1'!N14,"") -> 67 | AU12: =IF('UT 4'!N14>0,'UT 4'!N14,"") -> 67 | AV12: =IF('UT 5PB1'!N14>0,'UT 5PB1'!N14,"") -> 67 | AW12: =IF('PREANNU PB2 '!N14>0,'PREANNU PB2 '!N14,"") -> 67 | AX12: =IF(ANNUAL!N14>0,ANNUAL!N14,"") -> 67 | AY12: 6.7 | AZ12: 6.7 | BA12: 6.7 | BB12: 6.7 | BC12: =IF(OR(ISNUMBER(AY12),ISNUMBER(AZ12),ISNUMBER(BA12),ISNUMBER(BB12),ISNUMBER(AT12),ISNUMBER(AX12)),SUM(AY12,AZ12,BA12,BB12,('TT 1'!AE13*0.3),(ANNUAL!AE13*0.3)),"") -> 26.8 | BD12: =IF(ISNUMBER('UT1'!Q14),'UT1'!Q14,"") -> 67 | BE12: =IF(ISNUMBER('UT 2'!Q14),'UT 2'!Q14,"") -> 67 | BF12: =IF(ISNUMBER('UT 3 '!Q14),'UT 3 '!Q14,"") -> 67 | BG12: =IF('TT 1'!Q14>0,'TT 1'!Q14,"") -> 67 | BH12: =IF('UT 4'!Q14>0,'UT 4'!Q14,"") -> 67 | BI12: =IF('UT 5PB1'!Q14>0,'UT 5PB1'!Q14,"") -> 67 | BJ12: =IF('PREANNU PB2 '!Q14>0,'PREANNU PB2 '!Q14,"") -> 67 | BK12: =IF(ANNUAL!Q14>0,ANNUAL!Q14,"") -> 67 | BL12: 6.7 | BM12: 6.7 | BN12: 6.7 | BO12: 6.7 | BP12: =IF(OR(ISNUMBER(BL12),ISNUMBER(BM12),ISNUMBER(BN12),ISNUMBER(BO12),ISNUMBER(BG12),ISNUMBER(BK12)),SUM(BL12,BM12,BN12,BO12,('TT 1'!AR13*0.3),(ANNUAL!AR13*0.3)),"") -> 26.8 | BQ12: =IF(ISNUMBER('UT1'!T14),'UT1'!T14,"") -> 67 | BR12: =IF(ISNUMBER('UT 2'!T14),'UT 2'!T14,"") -> 67 | BS12: =IF(ISNUMBER('UT 3 '!T14),'UT 3 '!T14,"") -> 67 | BT12: =IF('TT 1'!T14>0,'TT 1'!T14,"") -> 67 | BU12: =IF('UT 4'!T14>0,'UT 4'!T14,"") -> 67 | BV12: =IF('UT 5PB1'!T14>0,'UT 5PB1'!T14,"") -> 67 | BW12: =IF('PREANNU PB2 '!T14>0,'PREANNU PB2 '!T14,"") -> 67 | BX12: =IF(ANNUAL!T14>0,ANNUAL!T14,"") -> 67 | BY12: 6.7 | BZ12: 6.7 | CA12: 6.7 | CB12: 6.7 | CC12: =IF(OR(ISNUMBER(BY12),ISNUMBER(BZ12),ISNUMBER(CA12),ISNUMBER(CB12),ISNUMBER(BT12),ISNUMBER(BX12)),SUM(BY12,BZ12,CA12,CB12,('TT 1'!BE13*0.3),(ANNUAL!BE13*0.3)),"") -> 26.8 | CD12: =IF(ISNUMBER('UT1'!W14),'UT1'!W14,"") -> 67 | CE12: =IF(ISNUMBER('UT 2'!W14),'UT 2'!W14,"") -> 67 | CF12: =IF(ISNUMBER('UT 3 '!W14),'UT 3 '!W14,"") -> 67 | CG12: =IF('TT 1'!W14>0,'TT 1'!W14,"") -> 67 | CH12: =IF('UT 4'!W14>0,'UT 4'!W14,"") -> 67 | CI12: =IF('UT 5PB1'!W14>0,'UT 5PB1'!W14,"") -> 67 | CJ12: =IF('PREANNU PB2 '!W14>0,'PREANNU PB2 '!W14,"") -> 67 | CK12: =IF(ANNUAL!W14>0,ANNUAL!W14,"") -> 67 | CL12: 6.7 | CM12: 6.7 | CN12: 6.7 | CO12: 6.7 | CP12: =IF(OR(ISNUMBER(CL12),ISNUMBER(CM12),ISNUMBER(CN12),ISNUMBER(CO12),ISNUMBER(CG12),ISNUMBER(CK12)),SUM(CL12,CM12,CN12,CO12,('TT 1'!BR13*0.3),(ANNUAL!BR13*0.3)),"") -> 26.8 | CQ12: 35.8 | CR12: 59.2 | CS12: 48.4 | CT12: 26.8 | CU12: 26.8 | CV12: 26.8 | CW12: 26.8 | CX12: 250.6 | CY12: =CX12/'Student Profile'!P13 -> 50.12 | CZ12: 32
A13: =ANNUAL!A15 ->  | B13: =ANNUAL!B15 ->  | C13: =IF('Student Profile'!D14>0,'Student Profile'!D14,"") ->  | D13: =IF(ISNUMBER('UT1'!E15),'UT1'!E15,"") -> 82 | E13: =IF(ISNUMBER('UT 2'!E15),'UT 2'!E15,"") -> 82 | F13: =IF(ISNUMBER('UT 3 '!E15),'UT 3 '!E15,"") -> 82 | G13: =IF('TT 1'!E15>0,'TT 1'!E15,"") -> 55 | H13: =IF('UT 4'!E15>0,'UT 4'!E15,"") -> 82 | I13: =IF('UT 5PB1'!E15>0,'UT 5PB1'!E15,"") -> 82 | J13: =IF('PREANNU PB2 '!E15>0,'PREANNU PB2 '!E15,"") -> 82 | K13: =IF(ANNUAL!E15>0,ANNUAL!E15,"") -> 49 | L13: 8.2 | M13: 8.2 | N13: 8.2 | O13: 8.2 | P13: =IF(OR(ISNUMBER(L13),ISNUMBER(M13),ISNUMBER(N13),ISNUMBER(O13),ISNUMBER(G13),ISNUMBER(K13)),SUM(L13,M13,N13,O13,('TT 1'!D14*0.3),(ANNUAL!D14*0.3)),"") -> 41.8 | Q13: =IF(ISNUMBER('UT1'!H15),'UT1'!H15,"") -> 49 | R13: =IF(ISNUMBER('UT 2'!H15),'UT 2'!H15,"") -> 82 | S13: =IF(ISNUMBER('UT 3 '!H15),'UT 3 '!H15,"") -> 82 | T13: =IF('TT 1'!H15>0,'TT 1'!H15,"") -> 82 | U13: =IF('UT 4'!H15>0,'UT 4'!H15,"") -> 82 | V13: =IF('UT 5PB1'!H15>0,'UT 5PB1'!H15,"") -> 82 | W13: =IF('PREANNU PB2 '!H15>0,'PREANNU PB2 '!H15,"") -> 82 | X13: =IF(ANNUAL!H15>0,ANNUAL!H15,"") -> 82 | Y13: 8.2 | Z13: 8.2 | AA13: 8.2 | AB13: 8.2 | AC13: =IF(OR(ISNUMBER(Y13),ISNUMBER(Z13),ISNUMBER(AA13),ISNUMBER(AB13),ISNUMBER(T13),ISNUMBER(X13)),SUM(Y13,Z13,AA13,AB13,('TT 1'!E14*0.3),(ANNUAL!E14*0.3)),"") -> 58.3 | AD13: =IF(ISNUMBER('UT1'!K15),'UT1'!K15,"") -> 82 | AE13: =IF(ISNUMBER('UT 2'!K15),'UT 2'!K15,"") -> 82 | AF13: =IF(ISNUMBER('UT 3 '!K15),'UT 3 '!K15,"") -> 82 | AG13: =IF('TT 1'!K15>0,'TT 1'!K15,"") -> 82 | AH13: =IF('UT 4'!K15>0,'UT 4'!K15,"") -> 82 | AI13: =IF('UT 5PB1'!K15>0,'UT 5PB1'!K15,"") -> 82 | AJ13: =IF('PREANNU PB2 '!K15>0,'PREANNU PB2 '!K15,"") -> 82 | AK13: =IF(ANNUAL!K15>0,ANNUAL!K15,"") -> 82 | AL13: 8.2 | AM13: 8.2 | AN13: 8.2 | AO13: 8.2 | AP13: =IF(OR(ISNUMBER(AL13),ISNUMBER(AM13),ISNUMBER(AN13),ISNUMBER(AO13),ISNUMBER(AG13),ISNUMBER(AK13)),SUM(AL13,AM13,AN13,AO13,('TT 1'!R14*0.3),(ANNUAL!R14*0.3)),"") -> 47.8 | AQ13: =IF(ISNUMBER('UT1'!N15),'UT1'!N15,"") -> 82 | AR13: =IF(ISNUMBER('UT 2'!N15),'UT 2'!N15,"") -> 82 | AS13: =IF(ISNUMBER('UT 3 '!N15),'UT 3 '!N15,"") -> 82 | AT13: =IF('TT 1'!N15>0,'TT 1'!N15,"") -> 82 | AU13: =IF('UT 4'!N15>0,'UT 4'!N15,"") -> 82 | AV13: =IF('UT 5PB1'!N15>0,'UT 5PB1'!N15,"") -> 82 | AW13: =IF('PREANNU PB2 '!N15>0,'PREANNU PB2 '!N15,"") -> 82 | AX13: =IF(ANNUAL!N15>0,ANNUAL!N15,"") -> 82 | AY13: 8.2 | AZ13: 8.2 | BA13: 8.2 | BB13: 8.2 | BC13: =IF(OR(ISNUMBER(AY13),ISNUMBER(AZ13),ISNUMBER(BA13),ISNUMBER(BB13),ISNUMBER(AT13),ISNUMBER(AX13)),SUM(AY13,AZ13,BA13,BB13,('TT 1'!AE14*0.3),(ANNUAL!AE14*0.3)),"") -> 32.8 | BD13: =IF(ISNUMBER('UT1'!Q15),'UT1'!Q15,"") -> 82 | BE13: =IF(ISNUMBER('UT 2'!Q15),'UT 2'!Q15,"") -> 82 | BF13: =IF(ISNUMBER('UT 3 '!Q15),'UT 3 '!Q15,"") -> 82 | BG13: =IF('TT 1'!Q15>0,'TT 1'!Q15,"") -> 82 | BH13: =IF('UT 4'!Q15>0,'UT 4'!Q15,"") -> 82 | BI13: =IF('UT 5PB1'!Q15>0,'UT 5PB1'!Q15,"") -> 82 | BJ13: =IF('PREANNU PB2 '!Q15>0,'PREANNU PB2 '!Q15,"") -> 82 | BK13: =IF(ANNUAL!Q15>0,ANNUAL!Q15,"") -> 82 | BL13: 8.2 | BM13: 8.2 | BN13: 8.2 | BO13: 8.2 | BP13: =IF(OR(ISNUMBER(BL13),ISNUMBER(BM13),ISNUMBER(BN13),ISNUMBER(BO13),ISNUMBER(BG13),ISNUMBER(BK13)),SUM(BL13,BM13,BN13,BO13,('TT 1'!AR14*0.3),(ANNUAL!AR14*0.3)),"") -> 32.8 | BQ13: =IF(ISNUMBER('UT1'!T15),'UT1'!T15,"") -> 82 | BR13: =IF(ISNUMBER('UT 2'!T15),'UT 2'!T15,"") -> 82 | BS13: =IF(ISNUMBER('UT 3 '!T15),'UT 3 '!T15,"") -> 82 | BT13: =IF('TT 1'!T15>0,'TT 1'!T15,"") -> 82 | BU13: =IF('UT 4'!T15>0,'UT 4'!T15,"") -> 82 | BV13: =IF('UT 5PB1'!T15>0,'UT 5PB1'!T15,"") -> 82 | BW13: =IF('PREANNU PB2 '!T15>0,'PREANNU PB2 '!T15,"") -> 82 | BX13: =IF(ANNUAL!T15>0,ANNUAL!T15,"") -> 82 | BY13: 8.2 | BZ13: 8.2 | CA13: 8.2 | CB13: 8.2 | CC13: =IF(OR(ISNUMBER(BY13),ISNUMBER(BZ13),ISNUMBER(CA13),ISNUMBER(CB13),ISNUMBER(BT13),ISNUMBER(BX13)),SUM(BY13,BZ13,CA13,CB13,('TT 1'!BE14*0.3),(ANNUAL!BE14*0.3)),"") -> 32.8 | CD13: =IF(ISNUMBER('UT1'!W15),'UT1'!W15,"") -> 82 | CE13: =IF(ISNUMBER('UT 2'!W15),'UT 2'!W15,"") -> 82 | CF13: =IF(ISNUMBER('UT 3 '!W15),'UT 3 '!W15,"") -> 82 | CG13: =IF('TT 1'!W15>0,'TT 1'!W15,"") -> 82 | CH13: =IF('UT 4'!W15>0,'UT 4'!W15,"") -> 82 | CI13: =IF('UT 5PB1'!W15>0,'UT 5PB1'!W15,"") -> 82 | CJ13: =IF('PREANNU PB2 '!W15>0,'PREANNU PB2 '!W15,"") -> 82 | CK13: =IF(ANNUAL!W15>0,ANNUAL!W15,"") -> 82 | CL13: 8.2 | CM13: 8.2 | CN13: 8.2 | CO13: 8.2 | CP13: =IF(OR(ISNUMBER(CL13),ISNUMBER(CM13),ISNUMBER(CN13),ISNUMBER(CO13),ISNUMBER(CG13),ISNUMBER(CK13)),SUM(CL13,CM13,CN13,CO13,('TT 1'!BR14*0.3),(ANNUAL!BR14*0.3)),"") -> 32.8 | CQ13: 41.8 | CR13: 58.3 | CS13: 47.8 | CT13: 32.8 | CU13: 32.8 | CV13: 32.8 | CW13: 32.8 | CX13: 279.1 | CY13: =CX13/'Student Profile'!P14 -> 55.82 | CZ13: 14
A14: =ANNUAL!A16 ->  | B14: =ANNUAL!B16 ->  | C14: =IF('Student Profile'!D15>0,'Student Profile'!D15,"") ->  | D14: =IF(ISNUMBER('UT1'!E16),'UT1'!E16,"") -> 77 | E14: =IF(ISNUMBER('UT 2'!E16),'UT 2'!E16,"") -> 77 | F14: =IF(ISNUMBER('UT 3 '!E16),'UT 3 '!E16,"") -> 77 | G14: =IF('TT 1'!E16>0,'TT 1'!E16,"") -> 52 | H14: =IF('UT 4'!E16>0,'UT 4'!E16,"") -> 77 | I14: =IF('UT 5PB1'!E16>0,'UT 5PB1'!E16,"") -> 77 | J14: =IF('PREANNU PB2 '!E16>0,'PREANNU PB2 '!E16,"") -> 77 | K14: =IF(ANNUAL!E16>0,ANNUAL!E16,"") -> 46 | L14: 7.7 | M14: 7.7 | N14: 7.7 | O14: 7.7 | P14: =IF(OR(ISNUMBER(L14),ISNUMBER(M14),ISNUMBER(N14),ISNUMBER(O14),ISNUMBER(G14),ISNUMBER(K14)),SUM(L14,M14,N14,O14,('TT 1'!D15*0.3),(ANNUAL!D15*0.3)),"") -> 39.8 | Q14: =IF(ISNUMBER('UT1'!H16),'UT1'!H16,"") -> 46 | R14: =IF(ISNUMBER('UT 2'!H16),'UT 2'!H16,"") -> 77 | S14: =IF(ISNUMBER('UT 3 '!H16),'UT 3 '!H16,"") -> 77 | T14: =IF('TT 1'!H16>0,'TT 1'!H16,"") -> 77 | U14: =IF('UT 4'!H16>0,'UT 4'!H16,"") -> 77 | V14: =IF('UT 5PB1'!H16>0,'UT 5PB1'!H16,"") -> 77 | W14: =IF('PREANNU PB2 '!H16>0,'PREANNU PB2 '!H16,"") -> 77 | X14: =IF(ANNUAL!H16>0,ANNUAL!H16,"") -> 77 | Y14: 7.7 | Z14: 7.7 | AA14: 7.7 | AB14: 7.7 | AC14: =IF(OR(ISNUMBER(Y14),ISNUMBER(Z14),ISNUMBER(AA14),ISNUMBER(AB14),ISNUMBER(T14),ISNUMBER(X14)),SUM(Y14,Z14,AA14,AB14,('TT 1'!E15*0.3),(ANNUAL!E15*0.3)),"") -> 62 | AD14: =IF(ISNUMBER('UT1'!K16),'UT1'!K16,"") -> 77 | AE14: =IF(ISNUMBER('UT 2'!K16),'UT 2'!K16,"") -> 77 | AF14: =IF(ISNUMBER('UT 3 '!K16),'UT 3 '!K16,"") -> 77 | AG14: =IF('TT 1'!K16>0,'TT 1'!K16,"") -> 77 | AH14: =IF('UT 4'!K16>0,'UT 4'!K16,"") -> 77 | AI14: =IF('UT 5PB1'!K16>0,'UT 5PB1'!K16,"") -> 77 | AJ14: =IF('PREANNU PB2 '!K16>0,'PREANNU PB2 '!K16,"") -> 77 | AK14: =IF(ANNUAL!K16>0,ANNUAL!K16,"") -> 77 | AL14: 7.7 | AM14: 7.7 | AN14: 7.7 | AO14: 7.7 | AP14: =IF(OR(ISNUMBER(AL14),ISNUMBER(AM14),ISNUMBER(AN14),ISNUMBER(AO14),ISNUMBER(AG14),ISNUMBER(AK14)),SUM(AL14,AM14,AN14,AO14,('TT 1'!R15*0.3),(ANNUAL!R15*0.3)),"") -> 51.2 | AQ14: =IF(ISNUMBER('UT1'!N16),'UT1'!N16,"") -> 77 | AR14: =IF(ISNUMBER('UT 2'!N16),'UT 2'!N16,"") -> 77 | AS14: =IF(ISNUMBER('UT 3 '!N16),'UT 3 '!N16,"") -> 77 | AT14: =IF('TT 1'!N16>0,'TT 1'!N16,"") -> 77 | AU14: =IF('UT 4'!N16>0,'UT 4'!N16,"") -> 77 | AV14: =IF('UT 5PB1'!N16>0,'UT 5PB1'!N16,"") -> 77 | AW14: =IF('PREANNU PB2 '!N16>0,'PREANNU PB2 '!N16,"") -> 77 | AX14: =IF(ANNUAL!N16>0,ANNUAL!N16,"") -> 77 | AY14: 7.7 | AZ14: 7.7 | BA14: 7.7 | BB14: 7.7 | BC14: =IF(OR(ISNUMBER(AY14),ISNUMBER(AZ14),ISNUMBER(BA14),ISNUMBER(BB14),ISNUMBER(AT14),ISNUMBER(AX14)),SUM(AY14,AZ14,BA14,BB14,('TT 1'!AE15*0.3),(ANNUAL!AE15*0.3)),"") -> 30.8 | BD14: =IF(ISNUMBER('UT1'!Q16),'UT1'!Q16,"") -> 77 | BE14: =IF(ISNUMBER('UT 2'!Q16),'UT 2'!Q16,"") -> 77 | BF14: =IF(ISNUMBER('UT 3 '!Q16),'UT 3 '!Q16,"") -> 77 | BG14: =IF('TT 1'!Q16>0,'TT 1'!Q16,"") -> 77 | BH14: =IF('UT 4'!Q16>0,'UT 4'!Q16,"") -> 77 | BI14: =IF('UT 5PB1'!Q16>0,'UT 5PB1'!Q16,"") -> 77 | BJ14: =IF('PREANNU PB2 '!Q16>0,'PREANNU PB2 '!Q16,"") -> 77 | BK14: =IF(ANNUAL!Q16>0,ANNUAL!Q16,"") -> 77 | BL14: 7.7 | BM14: 7.7 | BN14: 7.7 | BO14: 7.7 | BP14: =IF(OR(ISNUMBER(BL14),ISNUMBER(BM14),ISNUMBER(BN14),ISNUMBER(BO14),ISNUMBER(BG14),ISNUMBER(BK14)),SUM(BL14,BM14,BN14,BO14,('TT 1'!AR15*0.3),(ANNUAL!AR15*0.3)),"") -> 30.8 | BQ14: =IF(ISNUMBER('UT1'!T16),'UT1'!T16,"") -> 77 | BR14: =IF(ISNUMBER('UT 2'!T16),'UT 2'!T16,"") -> 77 | BS14: =IF(ISNUMBER('UT 3 '!T16),'UT 3 '!T16,"") -> 77 | BT14: =IF('TT 1'!T16>0,'TT 1'!T16,"") -> 77 | BU14: =IF('UT 4'!T16>0,'UT 4'!T16,"") -> 77 | BV14: =IF('UT 5PB1'!T16>0,'UT 5PB1'!T16,"") -> 77 | BW14: =IF('PREANNU PB2 '!T16>0,'PREANNU PB2 '!T16,"") -> 77 | BX14: =IF(ANNUAL!T16>0,ANNUAL!T16,"") -> 77 | BY14: 7.7 | BZ14: 7.7 | CA14: 7.7 | CB14: 7.7 | CC14: =IF(OR(ISNUMBER(BY14),ISNUMBER(BZ14),ISNUMBER(CA14),ISNUMBER(CB14),ISNUMBER(BT14),ISNUMBER(BX14)),SUM(BY14,BZ14,CA14,CB14,('TT 1'!BE15*0.3),(ANNUAL!BE15*0.3)),"") -> 30.8 | CD14: =IF(ISNUMBER('UT1'!W16),'UT1'!W16,"") -> 77 | CE14: =IF(ISNUMBER('UT 2'!W16),'UT 2'!W16,"") -> 77 | CF14: =IF(ISNUMBER('UT 3 '!W16),'UT 3 '!W16,"") -> 77 | CG14: =IF('TT 1'!W16>0,'TT 1'!W16,"") -> 77 | CH14: =IF('UT 4'!W16>0,'UT 4'!W16,"") -> 77 | CI14: =IF('UT 5PB1'!W16>0,'UT 5PB1'!W16,"") -> 77 | CJ14: =IF('PREANNU PB2 '!W16>0,'PREANNU PB2 '!W16,"") -> 77 | CK14: =IF(ANNUAL!W16>0,ANNUAL!W16,"") -> 77 | CL14: 7.7 | CM14: 7.7 | CN14: 7.7 | CO14: 7.7 | CP14: =IF(OR(ISNUMBER(CL14),ISNUMBER(CM14),ISNUMBER(CN14),ISNUMBER(CO14),ISNUMBER(CG14),ISNUMBER(CK14)),SUM(CL14,CM14,CN14,CO14,('TT 1'!BR15*0.3),(ANNUAL!BR15*0.3)),"") -> 30.8 | CQ14: 39.8 | CR14: 62 | CS14: 51.2 | CT14: 30.8 | CU14: 30.8 | CV14: 30.8 | CW14: 30.8 | CX14: 276.2 | CY14: =CX14/'Student Profile'!P15 -> 55.24 | CZ14: 19
A15: =ANNUAL!A17 ->  | B15: =ANNUAL!B17 ->  | C15: =IF('Student Profile'!D16>0,'Student Profile'!D16,"") ->  | D15: =IF(ISNUMBER('UT1'!E17),'UT1'!E17,"") -> 74 | E15: =IF(ISNUMBER('UT 2'!E17),'UT 2'!E17,"") -> 74 | F15: =IF(ISNUMBER('UT 3 '!E17),'UT 3 '!E17,"") -> 74 | G15: =IF('TT 1'!E17>0,'TT 1'!E17,"") -> 49 | H15: =IF('UT 4'!E17>0,'UT 4'!E17,"") -> 74 | I15: =IF('UT 5PB1'!E17>0,'UT 5PB1'!E17,"") -> 74 | J15: =IF('PREANNU PB2 '!E17>0,'PREANNU PB2 '!E17,"") -> 74 | K15: =IF(ANNUAL!E17>0,ANNUAL!E17,"") -> 44 | L15: 7.4 | M15: 7.4 | N15: 7.4 | O15: 7.4 | P15: =IF(OR(ISNUMBER(L15),ISNUMBER(M15),ISNUMBER(N15),ISNUMBER(O15),ISNUMBER(G15),ISNUMBER(K15)),SUM(L15,M15,N15,O15,('TT 1'!D16*0.3),(ANNUAL!D16*0.3)),"") -> 40.4 | Q15: =IF(ISNUMBER('UT1'!H17),'UT1'!H17,"") -> 44 | R15: =IF(ISNUMBER('UT 2'!H17),'UT 2'!H17,"") -> 74 | S15: =IF(ISNUMBER('UT 3 '!H17),'UT 3 '!H17,"") -> 74 | T15: =IF('TT 1'!H17>0,'TT 1'!H17,"") -> 74 | U15: =IF('UT 4'!H17>0,'UT 4'!H17,"") -> 74 | V15: =IF('UT 5PB1'!H17>0,'UT 5PB1'!H17,"") -> 74 | W15: =IF('PREANNU PB2 '!H17>0,'PREANNU PB2 '!H17,"") -> 74 | X15: =IF(ANNUAL!H17>0,ANNUAL!H17,"") -> 74 | Y15: 7.4 | Z15: 7.4 | AA15: 7.4 | AB15: 7.4 | AC15: =IF(OR(ISNUMBER(Y15),ISNUMBER(Z15),ISNUMBER(AA15),ISNUMBER(AB15),ISNUMBER(T15),ISNUMBER(X15)),SUM(Y15,Z15,AA15,AB15,('TT 1'!E16*0.3),(ANNUAL!E16*0.3)),"") -> 59 | AD15: =IF(ISNUMBER('UT1'!K17),'UT1'!K17,"") -> 74 | AE15: =IF(ISNUMBER('UT 2'!K17),'UT 2'!K17,"") -> 74 | AF15: =IF(ISNUMBER('UT 3 '!K17),'UT 3 '!K17,"") -> 74 | AG15: =IF('TT 1'!K17>0,'TT 1'!K17,"") -> 74 | AH15: =IF('UT 4'!K17>0,'UT 4'!K17,"") -> 74 | AI15: =IF('UT 5PB1'!K17>0,'UT 5PB1'!K17,"") -> 74 | AJ15: =IF('PREANNU PB2 '!K17>0,'PREANNU PB2 '!K17,"") -> 74 | AK15: =IF(ANNUAL!K17>0,ANNUAL!K17,"") -> 74 | AL15: 7.4 | AM15: 7.4 | AN15: 7.4 | AO15: 7.4 | AP15: =IF(OR(ISNUMBER(AL15),ISNUMBER(AM15),ISNUMBER(AN15),ISNUMBER(AO15),ISNUMBER(AG15),ISNUMBER(AK15)),SUM(AL15,AM15,AN15,AO15,('TT 1'!R16*0.3),(ANNUAL!R16*0.3)),"") -> 46.4 | AQ15: =IF(ISNUMBER('UT1'!N17),'UT1'!N17,"") -> 74 | AR15: =IF(ISNUMBER('UT 2'!N17),'UT 2'!N17,"") -> 74 | AS15: =IF(ISNUMBER('UT 3 '!N17),'UT 3 '!N17,"") -> 74 | AT15: =IF('TT 1'!N17>0,'TT 1'!N17,"") -> 74 | AU15: =IF('UT 4'!N17>0,'UT 4'!N17,"") -> 74 | AV15: =IF('UT 5PB1'!N17>0,'UT 5PB1'!N17,"") -> 74 | AW15: =IF('PREANNU PB2 '!N17>0,'PREANNU PB2 '!N17,"") -> 74 | AX15: =IF(ANNUAL!N17>0,ANNUAL!N17,"") -> 74 | AY15: 7.4 | AZ15: 7.4 | BA15: 7.4 | BB15: 7.4 | BC15: =IF(OR(ISNUMBER(AY15),ISNUMBER(AZ15),ISNUMBER(BA15),ISNUMBER(BB15),ISNUMBER(AT15),ISNUMBER(AX15)),SUM(AY15,AZ15,BA15,BB15,('TT 1'!AE16*0.3),(ANNUAL!AE16*0.3)),"") -> 29.6 | BD15: =IF(ISNUMBER('UT1'!Q17),'UT1'!Q17,"") -> 74 | BE15: =IF(ISNUMBER('UT 2'!Q17),'UT 2'!Q17,"") -> 74 | BF15: =IF(ISNUMBER('UT 3 '!Q17),'UT 3 '!Q17,"") -> 74 | BG15: =IF('TT 1'!Q17>0,'TT 1'!Q17,"") -> 74 | BH15: =IF('UT 4'!Q17>0,'UT 4'!Q17,"") -> 74 | BI15: =IF('UT 5PB1'!Q17>0,'UT 5PB1'!Q17,"") -> 74 | BJ15: =IF('PREANNU PB2 '!Q17>0,'PREANNU PB2 '!Q17,"") -> 74 | BK15: =IF(ANNUAL!Q17>0,ANNUAL!Q17,"") -> 74 | BL15: 7.4 | BM15: 7.4 | BN15: 7.4 | BO15: 7.4 | BP15: =IF(OR(ISNUMBER(BL15),ISNUMBER(BM15),ISNUMBER(BN15),ISNUMBER(BO15),ISNUMBER(BG15),ISNUMBER(BK15)),SUM(BL15,BM15,BN15,BO15,('TT 1'!AR16*0.3),(ANNUAL!AR16*0.3)),"") -> 29.6 | BQ15: =IF(ISNUMBER('UT1'!T17),'UT1'!T17,"") -> 74 | BR15: =IF(ISNUMBER('UT 2'!T17),'UT 2'!T17,"") -> 74 | BS15: =IF(ISNUMBER('UT 3 '!T17),'UT 3 '!T17,"") -> 74 | BT15: =IF('TT 1'!T17>0,'TT 1'!T17,"") -> 74 | BU15: =IF('UT 4'!T17>0,'UT 4'!T17,"") -> 74 | BV15: =IF('UT 5PB1'!T17>0,'UT 5PB1'!T17,"") -> 74 | BW15: =IF('PREANNU PB2 '!T17>0,'PREANNU PB2 '!T17,"") -> 74 | BX15: =IF(ANNUAL!T17>0,ANNUAL!T17,"") -> 74 | BY15: 7.4 | BZ15: 7.4 | CA15: 7.4 | CB15: 7.4 | CC15: =IF(OR(ISNUMBER(BY15),ISNUMBER(BZ15),ISNUMBER(CA15),ISNUMBER(CB15),ISNUMBER(BT15),ISNUMBER(BX15)),SUM(BY15,BZ15,CA15,CB15,('TT 1'!BE16*0.3),(ANNUAL!BE16*0.3)),"") -> 29.6 | CD15: =IF(ISNUMBER('UT1'!W17),'UT1'!W17,"") -> 74 | CE15: =IF(ISNUMBER('UT 2'!W17),'UT 2'!W17,"") -> 74 | CF15: =IF(ISNUMBER('UT 3 '!W17),'UT 3 '!W17,"") -> 74 | CG15: =IF('TT 1'!W17>0,'TT 1'!W17,"") -> 74 | CH15: =IF('UT 4'!W17>0,'UT 4'!W17,"") -> 74 | CI15: =IF('UT 5PB1'!W17>0,'UT 5PB1'!W17,"") -> 74 | CJ15: =IF('PREANNU PB2 '!W17>0,'PREANNU PB2 '!W17,"") -> 74 | CK15: =IF(ANNUAL!W17>0,ANNUAL!W17,"") -> 74 | CL15: 7.4 | CM15: 7.4 | CN15: 7.4 | CO15: 7.4 | CP15: =IF(OR(ISNUMBER(CL15),ISNUMBER(CM15),ISNUMBER(CN15),ISNUMBER(CO15),ISNUMBER(CG15),ISNUMBER(CK15)),SUM(CL15,CM15,CN15,CO15,('TT 1'!BR16*0.3),(ANNUAL!BR16*0.3)),"") -> 29.6 | CQ15: 40.4 | CR15: 59 | CS15: 46.4 | CT15: 29.6 | CU15: 29.6 | CV15: 29.6 | CW15: 29.6 | CX15: 264.2 | CY15: =CX15/'Student Profile'!P16 -> 52.84 | CZ15: 24
A16: =ANNUAL!A18 ->  | B16: =ANNUAL!B18 ->  | C16: =IF('Student Profile'!D17>0,'Student Profile'!D17,"") ->  | D16: =IF(ISNUMBER('UT1'!E18),'UT1'!E18,"") -> 50 | E16: =IF(ISNUMBER('UT 2'!E18),'UT 2'!E18,"") -> 50 | F16: =IF(ISNUMBER('UT 3 '!E18),'UT 3 '!E18,"") -> 50 | G16: =IF('TT 1'!E18>0,'TT 1'!E18,"") -> 34 | H16: =IF('UT 4'!E18>0,'UT 4'!E18,"") -> 50 | I16: =IF('UT 5PB1'!E18>0,'UT 5PB1'!E18,"") -> 50 | J16: =IF('PREANNU PB2 '!E18>0,'PREANNU PB2 '!E18,"") -> 50 | K16: =IF(ANNUAL!E18>0,ANNUAL!E18,"") -> 30 | L16: 5 | M16: 5 | N16: 5 | O16: 5 | P16: =IF(OR(ISNUMBER(L16),ISNUMBER(M16),ISNUMBER(N16),ISNUMBER(O16),ISNUMBER(G16),ISNUMBER(K16)),SUM(L16,M16,N16,O16,('TT 1'!D17*0.3),(ANNUAL!D17*0.3)),"") -> 29 | Q16: =IF(ISNUMBER('UT1'!H18),'UT1'!H18,"") -> 30 | R16: =IF(ISNUMBER('UT 2'!H18),'UT 2'!H18,"") -> 50 | S16: =IF(ISNUMBER('UT 3 '!H18),'UT 3 '!H18,"") -> 50 | T16: =IF('TT 1'!H18>0,'TT 1'!H18,"") -> 50 | U16: =IF('UT 4'!H18>0,'UT 4'!H18,"") -> 50 | V16: =IF('UT 5PB1'!H18>0,'UT 5PB1'!H18,"") -> 50 | W16: =IF('PREANNU PB2 '!H18>0,'PREANNU PB2 '!H18,"") -> 50 | X16: =IF(ANNUAL!H18>0,ANNUAL!H18,"") -> 50 | Y16: 5 | Z16: 5 | AA16: 5 | AB16: 5 | AC16: =IF(OR(ISNUMBER(Y16),ISNUMBER(Z16),ISNUMBER(AA16),ISNUMBER(AB16),ISNUMBER(T16),ISNUMBER(X16)),SUM(Y16,Z16,AA16,AB16,('TT 1'!E17*0.3),(ANNUAL!E17*0.3)),"") -> 47.9 | AD16: =IF(ISNUMBER('UT1'!K18),'UT1'!K18,"") -> 50 | AE16: =IF(ISNUMBER('UT 2'!K18),'UT 2'!K18,"") -> 50 | AF16: =IF(ISNUMBER('UT 3 '!K18),'UT 3 '!K18,"") -> 50 | AG16: =IF('TT 1'!K18>0,'TT 1'!K18,"") -> 50 | AH16: =IF('UT 4'!K18>0,'UT 4'!K18,"") -> 50 | AI16: =IF('UT 5PB1'!K18>0,'UT 5PB1'!K18,"") -> 50 | AJ16: =IF('PREANNU PB2 '!K18>0,'PREANNU PB2 '!K18,"") -> 50 | AK16: =IF(ANNUAL!K18>0,ANNUAL!K18,"") -> 50 | AL16: 5 | AM16: 5 | AN16: 5 | AO16: 5 | AP16: =IF(OR(ISNUMBER(AL16),ISNUMBER(AM16),ISNUMBER(AN16),ISNUMBER(AO16),ISNUMBER(AG16),ISNUMBER(AK16)),SUM(AL16,AM16,AN16,AO16,('TT 1'!R17*0.3),(ANNUAL!R17*0.3)),"") -> 37.4 | AQ16: =IF(ISNUMBER('UT1'!N18),'UT1'!N18,"") -> 50 | AR16: =IF(ISNUMBER('UT 2'!N18),'UT 2'!N18,"") -> 50 | AS16: =IF(ISNUMBER('UT 3 '!N18),'UT 3 '!N18,"") -> 50 | AT16: =IF('TT 1'!N18>0,'TT 1'!N18,"") -> 50 | AU16: =IF('UT 4'!N18>0,'UT 4'!N18,"") -> 50 | AV16: =IF('UT 5PB1'!N18>0,'UT 5PB1'!N18,"") -> 50 | AW16: =IF('PREANNU PB2 '!N18>0,'PREANNU PB2 '!N18,"") -> 50 | AX16: =IF(ANNUAL!N18>0,ANNUAL!N18,"") -> 50 | AY16: 5 | AZ16: 5 | BA16: 5 | BB16: 5 | BC16: =IF(OR(ISNUMBER(AY16),ISNUMBER(AZ16),ISNUMBER(BA16),ISNUMBER(BB16),ISNUMBER(AT16),ISNUMBER(AX16)),SUM(AY16,AZ16,BA16,BB16,('TT 1'!AE17*0.3),(ANNUAL!AE17*0.3)),"") -> 20 | BD16: =IF(ISNUMBER('UT1'!Q18),'UT1'!Q18,"") -> 50 | BE16: =IF(ISNUMBER('UT 2'!Q18),'UT 2'!Q18,"") -> 50 | BF16: =IF(ISNUMBER('UT 3 '!Q18),'UT 3 '!Q18,"") -> 50 | BG16: =IF('TT 1'!Q18>0,'TT 1'!Q18,"") -> 50 | BH16: =IF('UT 4'!Q18>0,'UT 4'!Q18,"") -> 50 | BI16: =IF('UT 5PB1'!Q18>0,'UT 5PB1'!Q18,"") -> 50 | BJ16: =IF('PREANNU PB2 '!Q18>0,'PREANNU PB2 '!Q18,"") -> 50 | BK16: =IF(ANNUAL!Q18>0,ANNUAL!Q18,"") -> 50 | BL16: 5 | BM16: 5 | BN16: 5 | BO16: 5 | BP16: =IF(OR(ISNUMBER(BL16),ISNUMBER(BM16),ISNUMBER(BN16),ISNUMBER(BO16),ISNUMBER(BG16),ISNUMBER(BK16)),SUM(BL16,BM16,BN16,BO16,('TT 1'!AR17*0.3),(ANNUAL!AR17*0.3)),"") -> 20 | BQ16: =IF(ISNUMBER('UT1'!T18),'UT1'!T18,"") -> 50 | BR16: =IF(ISNUMBER('UT 2'!T18),'UT 2'!T18,"") -> 50 | BS16: =IF(ISNUMBER('UT 3 '!T18),'UT 3 '!T18,"") -> 50 | BT16: =IF('TT 1'!T18>0,'TT 1'!T18,"") -> 50 | BU16: =IF('UT 4'!T18>0,'UT 4'!T18,"") -> 50 | BV16: =IF('UT 5PB1'!T18>0,'UT 5PB1'!T18,"") -> 50 | BW16: =IF('PREANNU PB2 '!T18>0,'PREANNU PB2 '!T18,"") -> 50 | BX16: =IF(ANNUAL!T18>0,ANNUAL!T18,"") -> 50 | BY16: 5 | BZ16: 5 | CA16: 5 | CB16: 5 | CC16: =IF(OR(ISNUMBER(BY16),ISNUMBER(BZ16),ISNUMBER(CA16),ISNUMBER(CB16),ISNUMBER(BT16),ISNUMBER(BX16)),SUM(BY16,BZ16,CA16,CB16,('TT 1'!BE17*0.3),(ANNUAL!BE17*0.3)),"") -> 20 | CD16: =IF(ISNUMBER('UT1'!W18),'UT1'!W18,"") -> 50 | CE16: =IF(ISNUMBER('UT 2'!W18),'UT 2'!W18,"") -> 50 | CF16: =IF(ISNUMBER('UT 3 '!W18),'UT 3 '!W18,"") -> 50 | CG16: =IF('TT 1'!W18>0,'TT 1'!W18,"") -> 50 | CH16: =IF('UT 4'!W18>0,'UT 4'!W18,"") -> 50 | CI16: =IF('UT 5PB1'!W18>0,'UT 5PB1'!W18,"") -> 50 | CJ16: =IF('PREANNU PB2 '!W18>0,'PREANNU PB2 '!W18,"") -> 50 | CK16: =IF(ANNUAL!W18>0,ANNUAL!W18,"") -> 50 | CL16: 5 | CM16: 5 | CN16: 5 | CO16: 5 | CP16: =IF(OR(ISNUMBER(CL16),ISNUMBER(CM16),ISNUMBER(CN16),ISNUMBER(CO16),ISNUMBER(CG16),ISNUMBER(CK16)),SUM(CL16,CM16,CN16,CO16,('TT 1'!BR17*0.3),(ANNUAL!BR17*0.3)),"") -> 20 | CQ16: 29 | CR16: 47.9 | CS16: 37.4 | CT16: 20 | CU16: 20 | CV16: 20 | CW16: 20 | CX16: 194.3 | CY16: =CX16/'Student Profile'!P17 -> 38.86 | CZ16: 42
A17: =ANNUAL!A19 ->  | B17: =ANNUAL!B19 ->  | C17: =IF('Student Profile'!D18>0,'Student Profile'!D18,"") ->  | D17: =IF(ISNUMBER('UT1'!E19),'UT1'!E19,"") -> 67 | E17: =IF(ISNUMBER('UT 2'!E19),'UT 2'!E19,"") -> 67 | F17: =IF(ISNUMBER('UT 3 '!E19),'UT 3 '!E19,"") -> 67 | G17: =IF('TT 1'!E19>0,'TT 1'!E19,"") -> 45 | H17: =IF('UT 4'!E19>0,'UT 4'!E19,"") -> 67 | I17: =IF('UT 5PB1'!E19>0,'UT 5PB1'!E19,"") -> 67 | J17: =IF('PREANNU PB2 '!E19>0,'PREANNU PB2 '!E19,"") -> 67 | K17: =IF(ANNUAL!E19>0,ANNUAL!E19,"") -> 40 | L17: 6.7 | M17: 6.7 | N17: 6.7 | O17: 6.7 | P17: =IF(OR(ISNUMBER(L17),ISNUMBER(M17),ISNUMBER(N17),ISNUMBER(O17),ISNUMBER(G17),ISNUMBER(K17)),SUM(L17,M17,N17,O17,('TT 1'!D18*0.3),(ANNUAL!D18*0.3)),"") -> 32.8 | Q17: =IF(ISNUMBER('UT1'!H19),'UT1'!H19,"") -> 40 | R17: =IF(ISNUMBER('UT 2'!H19),'UT 2'!H19,"") -> 67 | S17: =IF(ISNUMBER('UT 3 '!H19),'UT 3 '!H19,"") -> 67 | T17: =IF('TT 1'!H19>0,'TT 1'!H19,"") -> 67 | U17: =IF('UT 4'!H19>0,'UT 4'!H19,"") -> 67 | V17: =IF('UT 5PB1'!H19>0,'UT 5PB1'!H19,"") -> 67 | W17: =IF('PREANNU PB2 '!H19>0,'PREANNU PB2 '!H19,"") -> 67 | X17: =IF(ANNUAL!H19>0,ANNUAL!H19,"") -> 67 | Y17: 6.7 | Z17: 6.7 | AA17: 6.7 | AB17: 6.7 | AC17: =IF(OR(ISNUMBER(Y17),ISNUMBER(Z17),ISNUMBER(AA17),ISNUMBER(AB17),ISNUMBER(T17),ISNUMBER(X17)),SUM(Y17,Z17,AA17,AB17,('TT 1'!E18*0.3),(ANNUAL!E18*0.3)),"") -> 46 | AD17: =IF(ISNUMBER('UT1'!K19),'UT1'!K19,"") -> 67 | AE17: =IF(ISNUMBER('UT 2'!K19),'UT 2'!K19,"") -> 67 | AF17: =IF(ISNUMBER('UT 3 '!K19),'UT 3 '!K19,"") -> 67 | AG17: =IF('TT 1'!K19>0,'TT 1'!K19,"") -> 67 | AH17: =IF('UT 4'!K19>0,'UT 4'!K19,"") -> 67 | AI17: =IF('UT 5PB1'!K19>0,'UT 5PB1'!K19,"") -> 67 | AJ17: =IF('PREANNU PB2 '!K19>0,'PREANNU PB2 '!K19,"") -> 67 | AK17: =IF(ANNUAL!K19>0,ANNUAL!K19,"") -> 67 | AL17: 6.7 | AM17: 6.7 | AN17: 6.7 | AO17: 6.7 | AP17: =IF(OR(ISNUMBER(AL17),ISNUMBER(AM17),ISNUMBER(AN17),ISNUMBER(AO17),ISNUMBER(AG17),ISNUMBER(AK17)),SUM(AL17,AM17,AN17,AO17,('TT 1'!R18*0.3),(ANNUAL!R18*0.3)),"") -> 38.8 | AQ17: =IF(ISNUMBER('UT1'!N19),'UT1'!N19,"") -> 67 | AR17: =IF(ISNUMBER('UT 2'!N19),'UT 2'!N19,"") -> 67 | AS17: =IF(ISNUMBER('UT 3 '!N19),'UT 3 '!N19,"") -> 67 | AT17: =IF('TT 1'!N19>0,'TT 1'!N19,"") -> 67 | AU17: =IF('UT 4'!N19>0,'UT 4'!N19,"") -> 67 | AV17: =IF('UT 5PB1'!N19>0,'UT 5PB1'!N19,"") -> 67 | AW17: =IF('PREANNU PB2 '!N19>0,'PREANNU PB2 '!N19,"") -> 67 | AX17: =IF(ANNUAL!N19>0,ANNUAL!N19,"") -> 67 | AY17: 6.7 | AZ17: 6.7 | BA17: 6.7 | BB17: 6.7 | BC17: =IF(OR(ISNUMBER(AY17),ISNUMBER(AZ17),ISNUMBER(BA17),ISNUMBER(BB17),ISNUMBER(AT17),ISNUMBER(AX17)),SUM(AY17,AZ17,BA17,BB17,('TT 1'!AE18*0.3),(ANNUAL!AE18*0.3)),"") -> 26.8 | BD17: =IF(ISNUMBER('UT1'!Q19),'UT1'!Q19,"") -> 67 | BE17: =IF(ISNUMBER('UT 2'!Q19),'UT 2'!Q19,"") -> 67 | BF17: =IF(ISNUMBER('UT 3 '!Q19),'UT 3 '!Q19,"") -> 67 | BG17: =IF('TT 1'!Q19>0,'TT 1'!Q19,"") -> 67 | BH17: =IF('UT 4'!Q19>0,'UT 4'!Q19,"") -> 67 | BI17: =IF('UT 5PB1'!Q19>0,'UT 5PB1'!Q19,"") -> 67 | BJ17: =IF('PREANNU PB2 '!Q19>0,'PREANNU PB2 '!Q19,"") -> 67 | BK17: =IF(ANNUAL!Q19>0,ANNUAL!Q19,"") -> 67 | BL17: 6.7 | BM17: 6.7 | BN17: 6.7 | BO17: 6.7 | BP17: =IF(OR(ISNUMBER(BL17),ISNUMBER(BM17),ISNUMBER(BN17),ISNUMBER(BO17),ISNUMBER(BG17),ISNUMBER(BK17)),SUM(BL17,BM17,BN17,BO17,('TT 1'!AR18*0.3),(ANNUAL!AR18*0.3)),"") -> 26.8 | BQ17: =IF(ISNUMBER('UT1'!T19),'UT1'!T19,"") -> 67 | BR17: =IF(ISNUMBER('UT 2'!T19),'UT 2'!T19,"") -> 67 | BS17: =IF(ISNUMBER('UT 3 '!T19),'UT 3 '!T19,"") -> 67 | BT17: =IF('TT 1'!T19>0,'TT 1'!T19,"") -> 67 | BU17: =IF('UT 4'!T19>0,'UT 4'!T19,"") -> 67 | BV17: =IF('UT 5PB1'!T19>0,'UT 5PB1'!T19,"") -> 67 | BW17: =IF('PREANNU PB2 '!T19>0,'PREANNU PB2 '!T19,"") -> 67 | BX17: =IF(ANNUAL!T19>0,ANNUAL!T19,"") -> 67 | BY17: 6.7 | BZ17: 6.7 | CA17: 6.7 | CB17: 6.7 | CC17: =IF(OR(ISNUMBER(BY17),ISNUMBER(BZ17),ISNUMBER(CA17),ISNUMBER(CB17),ISNUMBER(BT17),ISNUMBER(BX17)),SUM(BY17,BZ17,CA17,CB17,('TT 1'!BE18*0.3),(ANNUAL!BE18*0.3)),"") -> 26.8 | CD17: =IF(ISNUMBER('UT1'!W19),'UT1'!W19,"") -> 67 | CE17: =IF(ISNUMBER('UT 2'!W19),'UT 2'!W19,"") -> 67 | CF17: =IF(ISNUMBER('UT 3 '!W19),'UT 3 '!W19,"") -> 67 | CG17: =IF('TT 1'!W19>0,'TT 1'!W19,"") -> 67 | CH17: =IF('UT 4'!W19>0,'UT 4'!W19,"") -> 67 | CI17: =IF('UT 5PB1'!W19>0,'UT 5PB1'!W19,"") -> 67 | CJ17: =IF('PREANNU PB2 '!W19>0,'PREANNU PB2 '!W19,"") -> 67 | CK17: =IF(ANNUAL!W19>0,ANNUAL!W19,"") -> 67 | CL17: 6.7 | CM17: 6.7 | CN17: 6.7 | CO17: 6.7 | CP17: =IF(OR(ISNUMBER(CL17),ISNUMBER(CM17),ISNUMBER(CN17),ISNUMBER(CO17),ISNUMBER(CG17),ISNUMBER(CK17)),SUM(CL17,CM17,CN17,CO17,('TT 1'!BR18*0.3),(ANNUAL!BR18*0.3)),"") -> 26.8 | CQ17: 32.8 | CR17: 46 | CS17: 38.8 | CT17: 26.8 | CU17: 26.8 | CV17: 26.8 | CW17: 26.8 | CX17: 224.8 | CY17: =CX17/'Student Profile'!P18 -> 44.96 | CZ17: 38
A18: =ANNUAL!A20 ->  | B18: =ANNUAL!B20 ->  | C18: =IF('Student Profile'!D19>0,'Student Profile'!D19,"") ->  | D18: =IF(ISNUMBER('UT1'!E20),'UT1'!E20,"") -> 92 | E18: =IF(ISNUMBER('UT 2'!E20),'UT 2'!E20,"") -> 92 | F18: =IF(ISNUMBER('UT 3 '!E20),'UT 3 '!E20,"") -> 92 | G18: =IF('TT 1'!E20>0,'TT 1'!E20,"") -> 62 | H18: =IF('UT 4'!E20>0,'UT 4'!E20,"") -> 92 | I18: =IF('UT 5PB1'!E20>0,'UT 5PB1'!E20,"") -> 92 | J18: =IF('PREANNU PB2 '!E20>0,'PREANNU PB2 '!E20,"") -> 92 | K18: =IF(ANNUAL!E20>0,ANNUAL!E20,"") -> 55 | L18: 9.2 | M18: 9.2 | N18: 9.2 | O18: 9.2 | P18: =IF(OR(ISNUMBER(L18),ISNUMBER(M18),ISNUMBER(N18),ISNUMBER(O18),ISNUMBER(G18),ISNUMBER(K18)),SUM(L18,M18,N18,O18,('TT 1'!D19*0.3),(ANNUAL!D19*0.3)),"") -> 45.8 | Q18: =IF(ISNUMBER('UT1'!H20),'UT1'!H20,"") -> 55 | R18: =IF(ISNUMBER('UT 2'!H20),'UT 2'!H20,"") -> 92 | S18: =IF(ISNUMBER('UT 3 '!H20),'UT 3 '!H20,"") -> 92 | T18: =IF('TT 1'!H20>0,'TT 1'!H20,"") -> 92 | U18: =IF('UT 4'!H20>0,'UT 4'!H20,"") -> 92 | V18: =IF('UT 5PB1'!H20>0,'UT 5PB1'!H20,"") -> 92 | W18: =IF('PREANNU PB2 '!H20>0,'PREANNU PB2 '!H20,"") -> 92 | X18: =IF(ANNUAL!H20>0,ANNUAL!H20,"") -> 92 | Y18: 9.2 | Z18: 9.2 | AA18: 9.2 | AB18: 9.2 | AC18: =IF(OR(ISNUMBER(Y18),ISNUMBER(Z18),ISNUMBER(AA18),ISNUMBER(AB18),ISNUMBER(T18),ISNUMBER(X18)),SUM(Y18,Z18,AA18,AB18,('TT 1'!E19*0.3),(ANNUAL!E19*0.3)),"") -> 62.3 | AD18: =IF(ISNUMBER('UT1'!K20),'UT1'!K20,"") -> 92 | AE18: =IF(ISNUMBER('UT 2'!K20),'UT 2'!K20,"") -> 92 | AF18: =IF(ISNUMBER('UT 3 '!K20),'UT 3 '!K20,"") -> 92 | AG18: =IF('TT 1'!K20>0,'TT 1'!K20,"") -> 92 | AH18: =IF('UT 4'!K20>0,'UT 4'!K20,"") -> 92 | AI18: =IF('UT 5PB1'!K20>0,'UT 5PB1'!K20,"") -> 92 | AJ18: =IF('PREANNU PB2 '!K20>0,'PREANNU PB2 '!K20,"") -> 92 | AK18: =IF(ANNUAL!K20>0,ANNUAL!K20,"") -> 92 | AL18: 9.2 | AM18: 9.2 | AN18: 9.2 | AO18: 9.2 | AP18: =IF(OR(ISNUMBER(AL18),ISNUMBER(AM18),ISNUMBER(AN18),ISNUMBER(AO18),ISNUMBER(AG18),ISNUMBER(AK18)),SUM(AL18,AM18,AN18,AO18,('TT 1'!R19*0.3),(ANNUAL!R19*0.3)),"") -> 51.8 | AQ18: =IF(ISNUMBER('UT1'!N20),'UT1'!N20,"") -> 92 | AR18: =IF(ISNUMBER('UT 2'!N20),'UT 2'!N20,"") -> 92 | AS18: =IF(ISNUMBER('UT 3 '!N20),'UT 3 '!N20,"") -> 92 | AT18: =IF('TT 1'!N20>0,'TT 1'!N20,"") -> 92 | AU18: =IF('UT 4'!N20>0,'UT 4'!N20,"") -> 92 | AV18: =IF('UT 5PB1'!N20>0,'UT 5PB1'!N20,"") -> 92 | AW18: =IF('PREANNU PB2 '!N20>0,'PREANNU PB2 '!N20,"") -> 92 | AX18: =IF(ANNUAL!N20>0,ANNUAL!N20,"") -> 92 | AY18: 9.2 | AZ18: 9.2 | BA18: 9.2 | BB18: 9.2 | BC18: =IF(OR(ISNUMBER(AY18),ISNUMBER(AZ18),ISNUMBER(BA18),ISNUMBER(BB18),ISNUMBER(AT18),ISNUMBER(AX18)),SUM(AY18,AZ18,BA18,BB18,('TT 1'!AE19*0.3),(ANNUAL!AE19*0.3)),"") -> 36.8 | BD18: =IF(ISNUMBER('UT1'!Q20),'UT1'!Q20,"") -> 92 | BE18: =IF(ISNUMBER('UT 2'!Q20),'UT 2'!Q20,"") -> 92 | BF18: =IF(ISNUMBER('UT 3 '!Q20),'UT 3 '!Q20,"") -> 92 | BG18: =IF('TT 1'!Q20>0,'TT 1'!Q20,"") -> 92 | BH18: =IF('UT 4'!Q20>0,'UT 4'!Q20,"") -> 92 | BI18: =IF('UT 5PB1'!Q20>0,'UT 5PB1'!Q20,"") -> 92 | BJ18: =IF('PREANNU PB2 '!Q20>0,'PREANNU PB2 '!Q20,"") -> 92 | BK18: =IF(ANNUAL!Q20>0,ANNUAL!Q20,"") -> 92 | BL18: 9.2 | BM18: 9.2 | BN18: 9.2 | BO18: 9.2 | BP18: =IF(OR(ISNUMBER(BL18),ISNUMBER(BM18),ISNUMBER(BN18),ISNUMBER(BO18),ISNUMBER(BG18),ISNUMBER(BK18)),SUM(BL18,BM18,BN18,BO18,('TT 1'!AR19*0.3),(ANNUAL!AR19*0.3)),"") -> 36.8 | BQ18: =IF(ISNUMBER('UT1'!T20),'UT1'!T20,"") -> 92 | BR18: =IF(ISNUMBER('UT 2'!T20),'UT 2'!T20,"") -> 92 | BS18: =IF(ISNUMBER('UT 3 '!T20),'UT 3 '!T20,"") -> 92 | BT18: =IF('TT 1'!T20>0,'TT 1'!T20,"") -> 92 | BU18: =IF('UT 4'!T20>0,'UT 4'!T20,"") -> 92 | BV18: =IF('UT 5PB1'!T20>0,'UT 5PB1'!T20,"") -> 92 | BW18: =IF('PREANNU PB2 '!T20>0,'PREANNU PB2 '!T20,"") -> 92 | BX18: =IF(ANNUAL!T20>0,ANNUAL!T20,"") -> 92 | BY18: 9.2 | BZ18: 9.2 | CA18: 9.2 | CB18: 9.2 | CC18: =IF(OR(ISNUMBER(BY18),ISNUMBER(BZ18),ISNUMBER(CA18),ISNUMBER(CB18),ISNUMBER(BT18),ISNUMBER(BX18)),SUM(BY18,BZ18,CA18,CB18,('TT 1'!BE19*0.3),(ANNUAL!BE19*0.3)),"") -> 36.8 | CD18: =IF(ISNUMBER('UT1'!W20),'UT1'!W20,"") -> 92 | CE18: =IF(ISNUMBER('UT 2'!W20),'UT 2'!W20,"") -> 92 | CF18: =IF(ISNUMBER('UT 3 '!W20),'UT 3 '!W20,"") -> 92 | CG18: =IF('TT 1'!W20>0,'TT 1'!W20,"") -> 92 | CH18: =IF('UT 4'!W20>0,'UT 4'!W20,"") -> 92 | CI18: =IF('UT 5PB1'!W20>0,'UT 5PB1'!W20,"") -> 92 | CJ18: =IF('PREANNU PB2 '!W20>0,'PREANNU PB2 '!W20,"") -> 92 | CK18: =IF(ANNUAL!W20>0,ANNUAL!W20,"") -> 92 | CL18: 9.2 | CM18: 9.2 | CN18: 9.2 | CO18: 9.2 | CP18: =IF(OR(ISNUMBER(CL18),ISNUMBER(CM18),ISNUMBER(CN18),ISNUMBER(CO18),ISNUMBER(CG18),ISNUMBER(CK18)),SUM(CL18,CM18,CN18,CO18,('TT 1'!BR19*0.3),(ANNUAL!BR19*0.3)),"") -> 36.8 | CQ18: 45.8 | CR18: 62.3 | CS18: 51.8 | CT18: 36.8 | CU18: 36.8 | CV18: 36.8 | CW18: 36.8 | CX18: 307.1 | CY18: =CX18/'Student Profile'!P19 -> 61.42 | CZ18: 1
A19: =ANNUAL!A21 ->  | B19: =ANNUAL!B21 ->  | C19: =IF('Student Profile'!D20>0,'Student Profile'!D20,"") ->  | D19: =IF(ISNUMBER('UT1'!E21),'UT1'!E21,"") -> 70 | E19: =IF(ISNUMBER('UT 2'!E21),'UT 2'!E21,"") -> 70 | F19: =IF(ISNUMBER('UT 3 '!E21),'UT 3 '!E21,"") -> 70 | G19: =IF('TT 1'!E21>0,'TT 1'!E21,"") -> 47 | H19: =IF('UT 4'!E21>0,'UT 4'!E21,"") -> 70 | I19: =IF('UT 5PB1'!E21>0,'UT 5PB1'!E21,"") -> 70 | J19: =IF('PREANNU PB2 '!E21>0,'PREANNU PB2 '!E21,"") -> 70 | K19: =IF(ANNUAL!E21>0,ANNUAL!E21,"") -> 42 | L19: 7 | M19: 7 | N19: 7 | O19: 7 | P19: =IF(OR(ISNUMBER(L19),ISNUMBER(M19),ISNUMBER(N19),ISNUMBER(O19),ISNUMBER(G19),ISNUMBER(K19)),SUM(L19,M19,N19,O19,('TT 1'!D20*0.3),(ANNUAL!D20*0.3)),"") -> 40 | Q19: =IF(ISNUMBER('UT1'!H21),'UT1'!H21,"") -> 42 | R19: =IF(ISNUMBER('UT 2'!H21),'UT 2'!H21,"") -> 70 | S19: =IF(ISNUMBER('UT 3 '!H21),'UT 3 '!H21,"") -> 70 | T19: =IF('TT 1'!H21>0,'TT 1'!H21,"") -> 70 | U19: =IF('UT 4'!H21>0,'UT 4'!H21,"") -> 70 | V19: =IF('UT 5PB1'!H21>0,'UT 5PB1'!H21,"") -> 70 | W19: =IF('PREANNU PB2 '!H21>0,'PREANNU PB2 '!H21,"") -> 70 | X19: =IF(ANNUAL!H21>0,ANNUAL!H21,"") -> 70 | Y19: 7 | Z19: 7 | AA19: 7 | AB19: 7 | AC19: =IF(OR(ISNUMBER(Y19),ISNUMBER(Z19),ISNUMBER(AA19),ISNUMBER(AB19),ISNUMBER(T19),ISNUMBER(X19)),SUM(Y19,Z19,AA19,AB19,('TT 1'!E20*0.3),(ANNUAL!E20*0.3)),"") -> 63.1 | AD19: =IF(ISNUMBER('UT1'!K21),'UT1'!K21,"") -> 70 | AE19: =IF(ISNUMBER('UT 2'!K21),'UT 2'!K21,"") -> 70 | AF19: =IF(ISNUMBER('UT 3 '!K21),'UT 3 '!K21,"") -> 70 | AG19: =IF('TT 1'!K21>0,'TT 1'!K21,"") -> 70 | AH19: =IF('UT 4'!K21>0,'UT 4'!K21,"") -> 70 | AI19: =IF('UT 5PB1'!K21>0,'UT 5PB1'!K21,"") -> 70 | AJ19: =IF('PREANNU PB2 '!K21>0,'PREANNU PB2 '!K21,"") -> 70 | AK19: =IF(ANNUAL!K21>0,ANNUAL!K21,"") -> 70 | AL19: 7 | AM19: 7 | AN19: 7 | AO19: 7 | AP19: =IF(OR(ISNUMBER(AL19),ISNUMBER(AM19),ISNUMBER(AN19),ISNUMBER(AO19),ISNUMBER(AG19),ISNUMBER(AK19)),SUM(AL19,AM19,AN19,AO19,('TT 1'!R20*0.3),(ANNUAL!R20*0.3)),"") -> 49 | AQ19: =IF(ISNUMBER('UT1'!N21),'UT1'!N21,"") -> 70 | AR19: =IF(ISNUMBER('UT 2'!N21),'UT 2'!N21,"") -> 70 | AS19: =IF(ISNUMBER('UT 3 '!N21),'UT 3 '!N21,"") -> 70 | AT19: =IF('TT 1'!N21>0,'TT 1'!N21,"") -> 70 | AU19: =IF('UT 4'!N21>0,'UT 4'!N21,"") -> 70 | AV19: =IF('UT 5PB1'!N21>0,'UT 5PB1'!N21,"") -> 70 | AW19: =IF('PREANNU PB2 '!N21>0,'PREANNU PB2 '!N21,"") -> 70 | AX19: =IF(ANNUAL!N21>0,ANNUAL!N21,"") -> 70 | AY19: 7 | AZ19: 7 | BA19: 7 | BB19: 7 | BC19: =IF(OR(ISNUMBER(AY19),ISNUMBER(AZ19),ISNUMBER(BA19),ISNUMBER(BB19),ISNUMBER(AT19),ISNUMBER(AX19)),SUM(AY19,AZ19,BA19,BB19,('TT 1'!AE20*0.3),(ANNUAL!AE20*0.3)),"") -> 28 | BD19: =IF(ISNUMBER('UT1'!Q21),'UT1'!Q21,"") -> 70 | BE19: =IF(ISNUMBER('UT 2'!Q21),'UT 2'!Q21,"") -> 70 | BF19: =IF(ISNUMBER('UT 3 '!Q21),'UT 3 '!Q21,"") -> 70 | BG19: =IF('TT 1'!Q21>0,'TT 1'!Q21,"") -> 70 | BH19: =IF('UT 4'!Q21>0,'UT 4'!Q21,"") -> 70 | BI19: =IF('UT 5PB1'!Q21>0,'UT 5PB1'!Q21,"") -> 70 | BJ19: =IF('PREANNU PB2 '!Q21>0,'PREANNU PB2 '!Q21,"") -> 70 | BK19: =IF(ANNUAL!Q21>0,ANNUAL!Q21,"") -> 70 | BL19: 7 | BM19: 7 | BN19: 7 | BO19: 7 | BP19: =IF(OR(ISNUMBER(BL19),ISNUMBER(BM19),ISNUMBER(BN19),ISNUMBER(BO19),ISNUMBER(BG19),ISNUMBER(BK19)),SUM(BL19,BM19,BN19,BO19,('TT 1'!AR20*0.3),(ANNUAL!AR20*0.3)),"") -> 28 | BQ19: =IF(ISNUMBER('UT1'!T21),'UT1'!T21,"") -> 70 | BR19: =IF(ISNUMBER('UT 2'!T21),'UT 2'!T21,"") -> 70 | BS19: =IF(ISNUMBER('UT 3 '!T21),'UT 3 '!T21,"") -> 70 | BT19: =IF('TT 1'!T21>0,'TT 1'!T21,"") -> 70 | BU19: =IF('UT 4'!T21>0,'UT 4'!T21,"") -> 70 | BV19: =IF('UT 5PB1'!T21>0,'UT 5PB1'!T21,"") -> 70 | BW19: =IF('PREANNU PB2 '!T21>0,'PREANNU PB2 '!T21,"") -> 70 | BX19: =IF(ANNUAL!T21>0,ANNUAL!T21,"") -> 70 | BY19: 7 | BZ19: 7 | CA19: 7 | CB19: 7 | CC19: =IF(OR(ISNUMBER(BY19),ISNUMBER(BZ19),ISNUMBER(CA19),ISNUMBER(CB19),ISNUMBER(BT19),ISNUMBER(BX19)),SUM(BY19,BZ19,CA19,CB19,('TT 1'!BE20*0.3),(ANNUAL!BE20*0.3)),"") -> 28 | CD19: =IF(ISNUMBER('UT1'!W21),'UT1'!W21,"") -> 70 | CE19: =IF(ISNUMBER('UT 2'!W21),'UT 2'!W21,"") -> 70 | CF19: =IF(ISNUMBER('UT 3 '!W21),'UT 3 '!W21,"") -> 70 | CG19: =IF('TT 1'!W21>0,'TT 1'!W21,"") -> 70 | CH19: =IF('UT 4'!W21>0,'UT 4'!W21,"") -> 70 | CI19: =IF('UT 5PB1'!W21>0,'UT 5PB1'!W21,"") -> 70 | CJ19: =IF('PREANNU PB2 '!W21>0,'PREANNU PB2 '!W21,"") -> 70 | CK19: =IF(ANNUAL!W21>0,ANNUAL!W21,"") -> 70 | CL19: 7 | CM19: 7 | CN19: 7 | CO19: 7 | CP19: =IF(OR(ISNUMBER(CL19),ISNUMBER(CM19),ISNUMBER(CN19),ISNUMBER(CO19),ISNUMBER(CG19),ISNUMBER(CK19)),SUM(CL19,CM19,CN19,CO19,('TT 1'!BR20*0.3),(ANNUAL!BR20*0.3)),"") -> 28 | CQ19: 40 | CR19: 63.1 | CS19: 49 | CT19: 28 | CU19: 28 | CV19: 28 | CW19: 28 | CX19: 264.1 | CY19: =CX19/'Student Profile'!P20 -> 52.82 | CZ19: 28
A20: =ANNUAL!A22 ->  | B20: =ANNUAL!B22 ->  | C20: =IF('Student Profile'!D21>0,'Student Profile'!D21,"") ->  | D20: =IF(ISNUMBER('UT1'!E22),'UT1'!E22,"") -> 82 | E20: =IF(ISNUMBER('UT 2'!E22),'UT 2'!E22,"") -> 82 | F20: =IF(ISNUMBER('UT 3 '!E22),'UT 3 '!E22,"") -> 82 | G20: =IF('TT 1'!E22>0,'TT 1'!E22,"") -> 55 | H20: =IF('UT 4'!E22>0,'UT 4'!E22,"") -> 82 | I20: =IF('UT 5PB1'!E22>0,'UT 5PB1'!E22,"") -> 82 | J20: =IF('PREANNU PB2 '!E22>0,'PREANNU PB2 '!E22,"") -> 82 | K20: =IF(ANNUAL!E22>0,ANNUAL!E22,"") -> 49 | L20: 8.2 | M20: 8.2 | N20: 8.2 | O20: 8.2 | P20: =IF(OR(ISNUMBER(L20),ISNUMBER(M20),ISNUMBER(N20),ISNUMBER(O20),ISNUMBER(G20),ISNUMBER(K20)),SUM(L20,M20,N20,O20,('TT 1'!D21*0.3),(ANNUAL!D21*0.3)),"") -> 43 | Q20: =IF(ISNUMBER('UT1'!H22),'UT1'!H22,"") -> 49 | R20: =IF(ISNUMBER('UT 2'!H22),'UT 2'!H22,"") -> 82 | S20: =IF(ISNUMBER('UT 3 '!H22),'UT 3 '!H22,"") -> 82 | T20: =IF('TT 1'!H22>0,'TT 1'!H22,"") -> 82 | U20: =IF('UT 4'!H22>0,'UT 4'!H22,"") -> 82 | V20: =IF('UT 5PB1'!H22>0,'UT 5PB1'!H22,"") -> 82 | W20: =IF('PREANNU PB2 '!H22>0,'PREANNU PB2 '!H22,"") -> 82 | X20: =IF(ANNUAL!H22>0,ANNUAL!H22,"") -> 82 | Y20: 8.2 | Z20: 8.2 | AA20: 8.2 | AB20: 8.2 | AC20: =IF(OR(ISNUMBER(Y20),ISNUMBER(Z20),ISNUMBER(AA20),ISNUMBER(AB20),ISNUMBER(T20),ISNUMBER(X20)),SUM(Y20,Z20,AA20,AB20,('TT 1'!E21*0.3),(ANNUAL!E21*0.3)),"") -> 59.5 | AD20: =IF(ISNUMBER('UT1'!K22),'UT1'!K22,"") -> 82 | AE20: =IF(ISNUMBER('UT 2'!K22),'UT 2'!K22,"") -> 82 | AF20: =IF(ISNUMBER('UT 3 '!K22),'UT 3 '!K22,"") -> 82 | AG20: =IF('TT 1'!K22>0,'TT 1'!K22,"") -> 82 | AH20: =IF('UT 4'!K22>0,'UT 4'!K22,"") -> 82 | AI20: =IF('UT 5PB1'!K22>0,'UT 5PB1'!K22,"") -> 82 | AJ20: =IF('PREANNU PB2 '!K22>0,'PREANNU PB2 '!K22,"") -> 82 | AK20: =IF(ANNUAL!K22>0,ANNUAL!K22,"") -> 82 | AL20: 8.2 | AM20: 8.2 | AN20: 8.2 | AO20: 8.2 | AP20: =IF(OR(ISNUMBER(AL20),ISNUMBER(AM20),ISNUMBER(AN20),ISNUMBER(AO20),ISNUMBER(AG20),ISNUMBER(AK20)),SUM(AL20,AM20,AN20,AO20,('TT 1'!R21*0.3),(ANNUAL!R21*0.3)),"") -> 47.8 | AQ20: =IF(ISNUMBER('UT1'!N22),'UT1'!N22,"") -> 82 | AR20: =IF(ISNUMBER('UT 2'!N22),'UT 2'!N22,"") -> 82 | AS20: =IF(ISNUMBER('UT 3 '!N22),'UT 3 '!N22,"") -> 82 | AT20: =IF('TT 1'!N22>0,'TT 1'!N22,"") -> 82 | AU20: =IF('UT 4'!N22>0,'UT 4'!N22,"") -> 82 | AV20: =IF('UT 5PB1'!N22>0,'UT 5PB1'!N22,"") -> 82 | AW20: =IF('PREANNU PB2 '!N22>0,'PREANNU PB2 '!N22,"") -> 82 | AX20: =IF(ANNUAL!N22>0,ANNUAL!N22,"") -> 82 | AY20: 8.2 | AZ20: 8.2 | BA20: 8.2 | BB20: 8.2 | BC20: =IF(OR(ISNUMBER(AY20),ISNUMBER(AZ20),ISNUMBER(BA20),ISNUMBER(BB20),ISNUMBER(AT20),ISNUMBER(AX20)),SUM(AY20,AZ20,BA20,BB20,('TT 1'!AE21*0.3),(ANNUAL!AE21*0.3)),"") -> 32.8 | BD20: =IF(ISNUMBER('UT1'!Q22),'UT1'!Q22,"") -> 82 | BE20: =IF(ISNUMBER('UT 2'!Q22),'UT 2'!Q22,"") -> 82 | BF20: =IF(ISNUMBER('UT 3 '!Q22),'UT 3 '!Q22,"") -> 82 | BG20: =IF('TT 1'!Q22>0,'TT 1'!Q22,"") -> 82 | BH20: =IF('UT 4'!Q22>0,'UT 4'!Q22,"") -> 82 | BI20: =IF('UT 5PB1'!Q22>0,'UT 5PB1'!Q22,"") -> 82 | BJ20: =IF('PREANNU PB2 '!Q22>0,'PREANNU PB2 '!Q22,"") -> 82 | BK20: =IF(ANNUAL!Q22>0,ANNUAL!Q22,"") -> 82 | BL20: 8.2 | BM20: 8.2 | BN20: 8.2 | BO20: 8.2 | BP20: =IF(OR(ISNUMBER(BL20),ISNUMBER(BM20),ISNUMBER(BN20),ISNUMBER(BO20),ISNUMBER(BG20),ISNUMBER(BK20)),SUM(BL20,BM20,BN20,BO20,('TT 1'!AR21*0.3),(ANNUAL!AR21*0.3)),"") -> 32.8 | BQ20: =IF(ISNUMBER('UT1'!T22),'UT1'!T22,"") -> 82 | BR20: =IF(ISNUMBER('UT 2'!T22),'UT 2'!T22,"") -> 82 | BS20: =IF(ISNUMBER('UT 3 '!T22),'UT 3 '!T22,"") -> 82 | BT20: =IF('TT 1'!T22>0,'TT 1'!T22,"") -> 82 | BU20: =IF('UT 4'!T22>0,'UT 4'!T22,"") -> 82 | BV20: =IF('UT 5PB1'!T22>0,'UT 5PB1'!T22,"") -> 82 | BW20: =IF('PREANNU PB2 '!T22>0,'PREANNU PB2 '!T22,"") -> 82 | BX20: =IF(ANNUAL!T22>0,ANNUAL!T22,"") -> 82 | BY20: 8.2 | BZ20: 8.2 | CA20: 8.2 | CB20: 8.2 | CC20: =IF(OR(ISNUMBER(BY20),ISNUMBER(BZ20),ISNUMBER(CA20),ISNUMBER(CB20),ISNUMBER(BT20),ISNUMBER(BX20)),SUM(BY20,BZ20,CA20,CB20,('TT 1'!BE21*0.3),(ANNUAL!BE21*0.3)),"") -> 32.8 | CD20: =IF(ISNUMBER('UT1'!W22),'UT1'!W22,"") -> 82 | CE20: =IF(ISNUMBER('UT 2'!W22),'UT 2'!W22,"") -> 82 | CF20: =IF(ISNUMBER('UT 3 '!W22),'UT 3 '!W22,"") -> 82 | CG20: =IF('TT 1'!W22>0,'TT 1'!W22,"") -> 82 | CH20: =IF('UT 4'!W22>0,'UT 4'!W22,"") -> 82 | CI20: =IF('UT 5PB1'!W22>0,'UT 5PB1'!W22,"") -> 82 | CJ20: =IF('PREANNU PB2 '!W22>0,'PREANNU PB2 '!W22,"") -> 82 | CK20: =IF(ANNUAL!W22>0,ANNUAL!W22,"") -> 82 | CL20: 8.2 | CM20: 8.2 | CN20: 8.2 | CO20: 8.2 | CP20: =IF(OR(ISNUMBER(CL20),ISNUMBER(CM20),ISNUMBER(CN20),ISNUMBER(CO20),ISNUMBER(CG20),ISNUMBER(CK20)),SUM(CL20,CM20,CN20,CO20,('TT 1'!BR21*0.3),(ANNUAL!BR21*0.3)),"") -> 32.8 | CQ20: 43 | CR20: 59.5 | CS20: 47.8 | CT20: 32.8 | CU20: 32.8 | CV20: 32.8 | CW20: 32.8 | CX20: 281.5 | CY20: =CX20/'Student Profile'!P21 -> 56.3 | CZ20: 10
A21: =ANNUAL!A23 ->  | B21: =ANNUAL!B23 ->  | C21: =IF('Student Profile'!D22>0,'Student Profile'!D22,"") ->  | D21: =IF(ISNUMBER('UT1'!E23),'UT1'!E23,"") -> 85 | E21: =IF(ISNUMBER('UT 2'!E23),'UT 2'!E23,"") -> 85 | F21: =IF(ISNUMBER('UT 3 '!E23),'UT 3 '!E23,"") -> 85 | G21: =IF('TT 1'!E23>0,'TT 1'!E23,"") -> 57 | H21: =IF('UT 4'!E23>0,'UT 4'!E23,"") -> 85 | I21: =IF('UT 5PB1'!E23>0,'UT 5PB1'!E23,"") -> 85 | J21: =IF('PREANNU PB2 '!E23>0,'PREANNU PB2 '!E23,"") -> 85 | K21: =IF(ANNUAL!E23>0,ANNUAL!E23,"") -> 51 | L21: 8.5 | M21: 8.5 | N21: 8.5 | O21: 8.5 | P21: =IF(OR(ISNUMBER(L21),ISNUMBER(M21),ISNUMBER(N21),ISNUMBER(O21),ISNUMBER(G21),ISNUMBER(K21)),SUM(L21,M21,N21,O21,('TT 1'!D22*0.3),(ANNUAL!D22*0.3)),"") -> 43 | Q21: =IF(ISNUMBER('UT1'!H23),'UT1'!H23,"") -> 51 | R21: =IF(ISNUMBER('UT 2'!H23),'UT 2'!H23,"") -> 85 | S21: =IF(ISNUMBER('UT 3 '!H23),'UT 3 '!H23,"") -> 85 | T21: =IF('TT 1'!H23>0,'TT 1'!H23,"") -> 85 | U21: =IF('UT 4'!H23>0,'UT 4'!H23,"") -> 85 | V21: =IF('UT 5PB1'!H23>0,'UT 5PB1'!H23,"") -> 85 | W21: =IF('PREANNU PB2 '!H23>0,'PREANNU PB2 '!H23,"") -> 85 | X21: =IF(ANNUAL!H23>0,ANNUAL!H23,"") -> 85 | Y21: 8.5 | Z21: 8.5 | AA21: 8.5 | AB21: 8.5 | AC21: =IF(OR(ISNUMBER(Y21),ISNUMBER(Z21),ISNUMBER(AA21),ISNUMBER(AB21),ISNUMBER(T21),ISNUMBER(X21)),SUM(Y21,Z21,AA21,AB21,('TT 1'!E22*0.3),(ANNUAL!E22*0.3)),"") -> 65.2 | AD21: =IF(ISNUMBER('UT1'!K23),'UT1'!K23,"") -> 85 | AE21: =IF(ISNUMBER('UT 2'!K23),'UT 2'!K23,"") -> 85 | AF21: =IF(ISNUMBER('UT 3 '!K23),'UT 3 '!K23,"") -> 85 | AG21: =IF('TT 1'!K23>0,'TT 1'!K23,"") -> 85 | AH21: =IF('UT 4'!K23>0,'UT 4'!K23,"") -> 85 | AI21: =IF('UT 5PB1'!K23>0,'UT 5PB1'!K23,"") -> 85 | AJ21: =IF('PREANNU PB2 '!K23>0,'PREANNU PB2 '!K23,"") -> 85 | AK21: =IF(ANNUAL!K23>0,ANNUAL!K23,"") -> 85 | AL21: 8.5 | AM21: 8.5 | AN21: 8.5 | AO21: 8.5 | AP21: =IF(OR(ISNUMBER(AL21),ISNUMBER(AM21),ISNUMBER(AN21),ISNUMBER(AO21),ISNUMBER(AG21),ISNUMBER(AK21)),SUM(AL21,AM21,AN21,AO21,('TT 1'!R22*0.3),(ANNUAL!R22*0.3)),"") -> 54.4 | AQ21: =IF(ISNUMBER('UT1'!N23),'UT1'!N23,"") -> 85 | AR21: =IF(ISNUMBER('UT 2'!N23),'UT 2'!N23,"") -> 85 | AS21: =IF(ISNUMBER('UT 3 '!N23),'UT 3 '!N23,"") -> 85 | AT21: =IF('TT 1'!N23>0,'TT 1'!N23,"") -> 85 | AU21: =IF('UT 4'!N23>0,'UT 4'!N23,"") -> 85 | AV21: =IF('UT 5PB1'!N23>0,'UT 5PB1'!N23,"") -> 85 | AW21: =IF('PREANNU PB2 '!N23>0,'PREANNU PB2 '!N23,"") -> 85 | AX21: =IF(ANNUAL!N23>0,ANNUAL!N23,"") -> 85 | AY21: 8.5 | AZ21: 8.5 | BA21: 8.5 | BB21: 8.5 | BC21: =IF(OR(ISNUMBER(AY21),ISNUMBER(AZ21),ISNUMBER(BA21),ISNUMBER(BB21),ISNUMBER(AT21),ISNUMBER(AX21)),SUM(AY21,AZ21,BA21,BB21,('TT 1'!AE22*0.3),(ANNUAL!AE22*0.3)),"") -> 34 | BD21: =IF(ISNUMBER('UT1'!Q23),'UT1'!Q23,"") -> 85 | BE21: =IF(ISNUMBER('UT 2'!Q23),'UT 2'!Q23,"") -> 85 | BF21: =IF(ISNUMBER('UT 3 '!Q23),'UT 3 '!Q23,"") -> 85 | BG21: =IF('TT 1'!Q23>0,'TT 1'!Q23,"") -> 85 | BH21: =IF('UT 4'!Q23>0,'UT 4'!Q23,"") -> 85 | BI21: =IF('UT 5PB1'!Q23>0,'UT 5PB1'!Q23,"") -> 85 | BJ21: =IF('PREANNU PB2 '!Q23>0,'PREANNU PB2 '!Q23,"") -> 85 | BK21: =IF(ANNUAL!Q23>0,ANNUAL!Q23,"") -> 85 | BL21: 8.5 | BM21: 8.5 | BN21: 8.5 | BO21: 8.5 | BP21: =IF(OR(ISNUMBER(BL21),ISNUMBER(BM21),ISNUMBER(BN21),ISNUMBER(BO21),ISNUMBER(BG21),ISNUMBER(BK21)),SUM(BL21,BM21,BN21,BO21,('TT 1'!AR22*0.3),(ANNUAL!AR22*0.3)),"") -> 34 | BQ21: =IF(ISNUMBER('UT1'!T23),'UT1'!T23,"") -> 85 | BR21: =IF(ISNUMBER('UT 2'!T23),'UT 2'!T23,"") -> 85 | BS21: =IF(ISNUMBER('UT 3 '!T23),'UT 3 '!T23,"") -> 85 | BT21: =IF('TT 1'!T23>0,'TT 1'!T23,"") -> 85 | BU21: =IF('UT 4'!T23>0,'UT 4'!T23,"") -> 85 | BV21: =IF('UT 5PB1'!T23>0,'UT 5PB1'!T23,"") -> 85 | BW21: =IF('PREANNU PB2 '!T23>0,'PREANNU PB2 '!T23,"") -> 85 | BX21: =IF(ANNUAL!T23>0,ANNUAL!T23,"") -> 85 | BY21: 8.5 | BZ21: 8.5 | CA21: 8.5 | CB21: 8.5 | CC21: =IF(OR(ISNUMBER(BY21),ISNUMBER(BZ21),ISNUMBER(CA21),ISNUMBER(CB21),ISNUMBER(BT21),ISNUMBER(BX21)),SUM(BY21,BZ21,CA21,CB21,('TT 1'!BE22*0.3),(ANNUAL!BE22*0.3)),"") -> 34 | CD21: =IF(ISNUMBER('UT1'!W23),'UT1'!W23,"") -> 85 | CE21: =IF(ISNUMBER('UT 2'!W23),'UT 2'!W23,"") -> 85 | CF21: =IF(ISNUMBER('UT 3 '!W23),'UT 3 '!W23,"") -> 85 | CG21: =IF('TT 1'!W23>0,'TT 1'!W23,"") -> 85 | CH21: =IF('UT 4'!W23>0,'UT 4'!W23,"") -> 85 | CI21: =IF('UT 5PB1'!W23>0,'UT 5PB1'!W23,"") -> 85 | CJ21: =IF('PREANNU PB2 '!W23>0,'PREANNU PB2 '!W23,"") -> 85 | CK21: =IF(ANNUAL!W23>0,ANNUAL!W23,"") -> 85 | CL21: 8.5 | CM21: 8.5 | CN21: 8.5 | CO21: 8.5 | CP21: =IF(OR(ISNUMBER(CL21),ISNUMBER(CM21),ISNUMBER(CN21),ISNUMBER(CO21),ISNUMBER(CG21),ISNUMBER(CK21)),SUM(CL21,CM21,CN21,CO21,('TT 1'!BR22*0.3),(ANNUAL!BR22*0.3)),"") -> 34 | CQ21: 43 | CR21: 65.2 | CS21: 54.4 | CT21: 34 | CU21: 34 | CV21: 34 | CW21: 34 | CX21: 298.6 | CY21: =CX21/'Student Profile'!P22 -> 59.72 | CZ21: 5
A22: =ANNUAL!A24 ->  | B22: =ANNUAL!B24 ->  | C22: =IF('Student Profile'!D23>0,'Student Profile'!D23,"") ->  | D22: =IF(ISNUMBER('UT1'!E24),'UT1'!E24,"") -> 67 | E22: =IF(ISNUMBER('UT 2'!E24),'UT 2'!E24,"") -> 67 | F22: =IF(ISNUMBER('UT 3 '!E24),'UT 3 '!E24,"") -> 67 | G22: =IF('TT 1'!E24>0,'TT 1'!E24,"") -> 45 | H22: =IF('UT 4'!E24>0,'UT 4'!E24,"") -> 67 | I22: =IF('UT 5PB1'!E24>0,'UT 5PB1'!E24,"") -> 67 | J22: =IF('PREANNU PB2 '!E24>0,'PREANNU PB2 '!E24,"") -> 67 | K22: =IF(ANNUAL!E24>0,ANNUAL!E24,"") -> 40 | L22: 6.7 | M22: 6.7 | N22: 6.7 | O22: 6.7 | P22: =IF(OR(ISNUMBER(L22),ISNUMBER(M22),ISNUMBER(N22),ISNUMBER(O22),ISNUMBER(G22),ISNUMBER(K22)),SUM(L22,M22,N22,O22,('TT 1'!D23*0.3),(ANNUAL!D23*0.3)),"") -> 35.8 | Q22: =IF(ISNUMBER('UT1'!H24),'UT1'!H24,"") -> 40 | R22: =IF(ISNUMBER('UT 2'!H24),'UT 2'!H24,"") -> 67 | S22: =IF(ISNUMBER('UT 3 '!H24),'UT 3 '!H24,"") -> 67 | T22: =IF('TT 1'!H24>0,'TT 1'!H24,"") -> 67 | U22: =IF('UT 4'!H24>0,'UT 4'!H24,"") -> 67 | V22: =IF('UT 5PB1'!H24>0,'UT 5PB1'!H24,"") -> 67 | W22: =IF('PREANNU PB2 '!H24>0,'PREANNU PB2 '!H24,"") -> 67 | X22: =IF(ANNUAL!H24>0,ANNUAL!H24,"") -> 67 | Y22: 6.7 | Z22: 6.7 | AA22: 6.7 | AB22: 6.7 | AC22: =IF(OR(ISNUMBER(Y22),ISNUMBER(Z22),ISNUMBER(AA22),ISNUMBER(AB22),ISNUMBER(T22),ISNUMBER(X22)),SUM(Y22,Z22,AA22,AB22,('TT 1'!E23*0.3),(ANNUAL!E23*0.3)),"") -> 59.2 | AD22: =IF(ISNUMBER('UT1'!K24),'UT1'!K24,"") -> 67 | AE22: =IF(ISNUMBER('UT 2'!K24),'UT 2'!K24,"") -> 67 | AF22: =IF(ISNUMBER('UT 3 '!K24),'UT 3 '!K24,"") -> 67 | AG22: =IF('TT 1'!K24>0,'TT 1'!K24,"") -> 67 | AH22: =IF('UT 4'!K24>0,'UT 4'!K24,"") -> 67 | AI22: =IF('UT 5PB1'!K24>0,'UT 5PB1'!K24,"") -> 67 | AJ22: =IF('PREANNU PB2 '!K24>0,'PREANNU PB2 '!K24,"") -> 67 | AK22: =IF(ANNUAL!K24>0,ANNUAL!K24,"") -> 67 | AL22: 6.7 | AM22: 6.7 | AN22: 6.7 | AO22: 6.7 | AP22: =IF(OR(ISNUMBER(AL22),ISNUMBER(AM22),ISNUMBER(AN22),ISNUMBER(AO22),ISNUMBER(AG22),ISNUMBER(AK22)),SUM(AL22,AM22,AN22,AO22,('TT 1'!R23*0.3),(ANNUAL!R23*0.3)),"") -> 48.4 | AQ22: =IF(ISNUMBER('UT1'!N24),'UT1'!N24,"") -> 67 | AR22: =IF(ISNUMBER('UT 2'!N24),'UT 2'!N24,"") -> 67 | AS22: =IF(ISNUMBER('UT 3 '!N24),'UT 3 '!N24,"") -> 67 | AT22: =IF('TT 1'!N24>0,'TT 1'!N24,"") -> 67 | AU22: =IF('UT 4'!N24>0,'UT 4'!N24,"") -> 67 | AV22: =IF('UT 5PB1'!N24>0,'UT 5PB1'!N24,"") -> 67 | AW22: =IF('PREANNU PB2 '!N24>0,'PREANNU PB2 '!N24,"") -> 67 | AX22: =IF(ANNUAL!N24>0,ANNUAL!N24,"") -> 67 | AY22: 6.7 | AZ22: 6.7 | BA22: 6.7 | BB22: 6.7 | BC22: =IF(OR(ISNUMBER(AY22),ISNUMBER(AZ22),ISNUMBER(BA22),ISNUMBER(BB22),ISNUMBER(AT22),ISNUMBER(AX22)),SUM(AY22,AZ22,BA22,BB22,('TT 1'!AE23*0.3),(ANNUAL!AE23*0.3)),"") -> 26.8 | BD22: =IF(ISNUMBER('UT1'!Q24),'UT1'!Q24,"") -> 67 | BE22: =IF(ISNUMBER('UT 2'!Q24),'UT 2'!Q24,"") -> 67 | BF22: =IF(ISNUMBER('UT 3 '!Q24),'UT 3 '!Q24,"") -> 67 | BG22: =IF('TT 1'!Q24>0,'TT 1'!Q24,"") -> 67 | BH22: =IF('UT 4'!Q24>0,'UT 4'!Q24,"") -> 67 | BI22: =IF('UT 5PB1'!Q24>0,'UT 5PB1'!Q24,"") -> 67 | BJ22: =IF('PREANNU PB2 '!Q24>0,'PREANNU PB2 '!Q24,"") -> 67 | BK22: =IF(ANNUAL!Q24>0,ANNUAL!Q24,"") -> 67 | BL22: 6.7 | BM22: 6.7 | BN22: 6.7 | BO22: 6.7 | BP22: =IF(OR(ISNUMBER(BL22),ISNUMBER(BM22),ISNUMBER(BN22),ISNUMBER(BO22),ISNUMBER(BG22),ISNUMBER(BK22)),SUM(BL22,BM22,BN22,BO22,('TT 1'!AR23*0.3),(ANNUAL!AR23*0.3)),"") -> 26.8 | BQ22: =IF(ISNUMBER('UT1'!T24),'UT1'!T24,"") -> 67 | BR22: =IF(ISNUMBER('UT 2'!T24),'UT 2'!T24,"") -> 67 | BS22: =IF(ISNUMBER('UT 3 '!T24),'UT 3 '!T24,"") -> 67 | BT22: =IF('TT 1'!T24>0,'TT 1'!T24,"") -> 67 | BU22: =IF('UT 4'!T24>0,'UT 4'!T24,"") -> 67 | BV22: =IF('UT 5PB1'!T24>0,'UT 5PB1'!T24,"") -> 67 | BW22: =IF('PREANNU PB2 '!T24>0,'PREANNU PB2 '!T24,"") -> 67 | BX22: =IF(ANNUAL!T24>0,ANNUAL!T24,"") -> 67 | BY22: 6.7 | BZ22: 6.7 | CA22: 6.7 | CB22: 6.7 | CC22: =IF(OR(ISNUMBER(BY22),ISNUMBER(BZ22),ISNUMBER(CA22),ISNUMBER(CB22),ISNUMBER(BT22),ISNUMBER(BX22)),SUM(BY22,BZ22,CA22,CB22,('TT 1'!BE23*0.3),(ANNUAL!BE23*0.3)),"") -> 26.8 | CD22: =IF(ISNUMBER('UT1'!W24),'UT1'!W24,"") -> 67 | CE22: =IF(ISNUMBER('UT 2'!W24),'UT 2'!W24,"") -> 67 | CF22: =IF(ISNUMBER('UT 3 '!W24),'UT 3 '!W24,"") -> 67 | CG22: =IF('TT 1'!W24>0,'TT 1'!W24,"") -> 67 | CH22: =IF('UT 4'!W24>0,'UT 4'!W24,"") -> 67 | CI22: =IF('UT 5PB1'!W24>0,'UT 5PB1'!W24,"") -> 67 | CJ22: =IF('PREANNU PB2 '!W24>0,'PREANNU PB2 '!W24,"") -> 67 | CK22: =IF(ANNUAL!W24>0,ANNUAL!W24,"") -> 67 | CL22: 6.7 | CM22: 6.7 | CN22: 6.7 | CO22: 6.7 | CP22: =IF(OR(ISNUMBER(CL22),ISNUMBER(CM22),ISNUMBER(CN22),ISNUMBER(CO22),ISNUMBER(CG22),ISNUMBER(CK22)),SUM(CL22,CM22,CN22,CO22,('TT 1'!BR23*0.3),(ANNUAL!BR23*0.3)),"") -> 26.8 | CQ22: 35.8 | CR22: 59.2 | CS22: 48.4 | CT22: 26.8 | CU22: 26.8 | CV22: 26.8 | CW22: 26.8 | CX22: 250.6 | CY22: =CX22/'Student Profile'!P23 -> 50.12 | CZ22: 32
A23: =ANNUAL!A25 ->  | B23: =ANNUAL!B25 ->  | C23: =IF('Student Profile'!D24>0,'Student Profile'!D24,"") ->  | D23: =IF(ISNUMBER('UT1'!E25),'UT1'!E25,"") -> 82 | E23: =IF(ISNUMBER('UT 2'!E25),'UT 2'!E25,"") -> 82 | F23: =IF(ISNUMBER('UT 3 '!E25),'UT 3 '!E25,"") -> 82 | G23: =IF('TT 1'!E25>0,'TT 1'!E25,"") -> 55 | H23: =IF('UT 4'!E25>0,'UT 4'!E25,"") -> 82 | I23: =IF('UT 5PB1'!E25>0,'UT 5PB1'!E25,"") -> 82 | J23: =IF('PREANNU PB2 '!E25>0,'PREANNU PB2 '!E25,"") -> 82 | K23: =IF(ANNUAL!E25>0,ANNUAL!E25,"") -> 49 | L23: 8.2 | M23: 8.2 | N23: 8.2 | O23: 8.2 | P23: =IF(OR(ISNUMBER(L23),ISNUMBER(M23),ISNUMBER(N23),ISNUMBER(O23),ISNUMBER(G23),ISNUMBER(K23)),SUM(L23,M23,N23,O23,('TT 1'!D24*0.3),(ANNUAL!D24*0.3)),"") -> 41.8 | Q23: =IF(ISNUMBER('UT1'!H25),'UT1'!H25,"") -> 49 | R23: =IF(ISNUMBER('UT 2'!H25),'UT 2'!H25,"") -> 82 | S23: =IF(ISNUMBER('UT 3 '!H25),'UT 3 '!H25,"") -> 82 | T23: =IF('TT 1'!H25>0,'TT 1'!H25,"") -> 82 | U23: =IF('UT 4'!H25>0,'UT 4'!H25,"") -> 82 | V23: =IF('UT 5PB1'!H25>0,'UT 5PB1'!H25,"") -> 82 | W23: =IF('PREANNU PB2 '!H25>0,'PREANNU PB2 '!H25,"") -> 82 | X23: =IF(ANNUAL!H25>0,ANNUAL!H25,"") -> 82 | Y23: 8.2 | Z23: 8.2 | AA23: 8.2 | AB23: 8.2 | AC23: =IF(OR(ISNUMBER(Y23),ISNUMBER(Z23),ISNUMBER(AA23),ISNUMBER(AB23),ISNUMBER(T23),ISNUMBER(X23)),SUM(Y23,Z23,AA23,AB23,('TT 1'!E24*0.3),(ANNUAL!E24*0.3)),"") -> 58.3 | AD23: =IF(ISNUMBER('UT1'!K25),'UT1'!K25,"") -> 82 | AE23: =IF(ISNUMBER('UT 2'!K25),'UT 2'!K25,"") -> 82 | AF23: =IF(ISNUMBER('UT 3 '!K25),'UT 3 '!K25,"") -> 82 | AG23: =IF('TT 1'!K25>0,'TT 1'!K25,"") -> 82 | AH23: =IF('UT 4'!K25>0,'UT 4'!K25,"") -> 82 | AI23: =IF('UT 5PB1'!K25>0,'UT 5PB1'!K25,"") -> 82 | AJ23: =IF('PREANNU PB2 '!K25>0,'PREANNU PB2 '!K25,"") -> 82 | AK23: =IF(ANNUAL!K25>0,ANNUAL!K25,"") -> 82 | AL23: 8.2 | AM23: 8.2 | AN23: 8.2 | AO23: 8.2 | AP23: =IF(OR(ISNUMBER(AL23),ISNUMBER(AM23),ISNUMBER(AN23),ISNUMBER(AO23),ISNUMBER(AG23),ISNUMBER(AK23)),SUM(AL23,AM23,AN23,AO23,('TT 1'!R24*0.3),(ANNUAL!R24*0.3)),"") -> 47.8 | AQ23: =IF(ISNUMBER('UT1'!N25),'UT1'!N25,"") -> 82 | AR23: =IF(ISNUMBER('UT 2'!N25),'UT 2'!N25,"") -> 82 | AS23: =IF(ISNUMBER('UT 3 '!N25),'UT 3 '!N25,"") -> 82 | AT23: =IF('TT 1'!N25>0,'TT 1'!N25,"") -> 82 | AU23: =IF('UT 4'!N25>0,'UT 4'!N25,"") -> 82 | AV23: =IF('UT 5PB1'!N25>0,'UT 5PB1'!N25,"") -> 82 | AW23: =IF('PREANNU PB2 '!N25>0,'PREANNU PB2 '!N25,"") -> 82 | AX23: =IF(ANNUAL!N25>0,ANNUAL!N25,"") -> 82 | AY23: 8.2 | AZ23: 8.2 | BA23: 8.2 | BB23: 8.2 | BC23: =IF(OR(ISNUMBER(AY23),ISNUMBER(AZ23),ISNUMBER(BA23),ISNUMBER(BB23),ISNUMBER(AT23),ISNUMBER(AX23)),SUM(AY23,AZ23,BA23,BB23,('TT 1'!AE24*0.3),(ANNUAL!AE24*0.3)),"") -> 32.8 | BD23: =IF(ISNUMBER('UT1'!Q25),'UT1'!Q25,"") -> 82 | BE23: =IF(ISNUMBER('UT 2'!Q25),'UT 2'!Q25,"") -> 82 | BF23: =IF(ISNUMBER('UT 3 '!Q25),'UT 3 '!Q25,"") -> 82 | BG23: =IF('TT 1'!Q25>0,'TT 1'!Q25,"") -> 82 | BH23: =IF('UT 4'!Q25>0,'UT 4'!Q25,"") -> 82 | BI23: =IF('UT 5PB1'!Q25>0,'UT 5PB1'!Q25,"") -> 82 | BJ23: =IF('PREANNU PB2 '!Q25>0,'PREANNU PB2 '!Q25,"") -> 82 | BK23: =IF(ANNUAL!Q25>0,ANNUAL!Q25,"") -> 82 | BL23: 8.2 | BM23: 8.2 | BN23: 8.2 | BO23: 8.2 | BP23: =IF(OR(ISNUMBER(BL23),ISNUMBER(BM23),ISNUMBER(BN23),ISNUMBER(BO23),ISNUMBER(BG23),ISNUMBER(BK23)),SUM(BL23,BM23,BN23,BO23,('TT 1'!AR24*0.3),(ANNUAL!AR24*0.3)),"") -> 32.8 | BQ23: =IF(ISNUMBER('UT1'!T25),'UT1'!T25,"") -> 82 | BR23: =IF(ISNUMBER('UT 2'!T25),'UT 2'!T25,"") -> 82 | BS23: =IF(ISNUMBER('UT 3 '!T25),'UT 3 '!T25,"") -> 82 | BT23: =IF('TT 1'!T25>0,'TT 1'!T25,"") -> 82 | BU23: =IF('UT 4'!T25>0,'UT 4'!T25,"") -> 82 | BV23: =IF('UT 5PB1'!T25>0,'UT 5PB1'!T25,"") -> 82 | BW23: =IF('PREANNU PB2 '!T25>0,'PREANNU PB2 '!T25,"") -> 82 | BX23: =IF(ANNUAL!T25>0,ANNUAL!T25,"") -> 82 | BY23: 8.2 | BZ23: 8.2 | CA23: 8.2 | CB23: 8.2 | CC23: =IF(OR(ISNUMBER(BY23),ISNUMBER(BZ23),ISNUMBER(CA23),ISNUMBER(CB23),ISNUMBER(BT23),ISNUMBER(BX23)),SUM(BY23,BZ23,CA23,CB23,('TT 1'!BE24*0.3),(ANNUAL!BE24*0.3)),"") -> 32.8 | CD23: =IF(ISNUMBER('UT1'!W25),'UT1'!W25,"") -> 82 | CE23: =IF(ISNUMBER('UT 2'!W25),'UT 2'!W25,"") -> 82 | CF23: =IF(ISNUMBER('UT 3 '!W25),'UT 3 '!W25,"") -> 82 | CG23: =IF('TT 1'!W25>0,'TT 1'!W25,"") -> 82 | CH23: =IF('UT 4'!W25>0,'UT 4'!W25,"") -> 82 | CI23: =IF('UT 5PB1'!W25>0,'UT 5PB1'!W25,"") -> 82 | CJ23: =IF('PREANNU PB2 '!W25>0,'PREANNU PB2 '!W25,"") -> 82 | CK23: =IF(ANNUAL!W25>0,ANNUAL!W25,"") -> 82 | CL23: 8.2 | CM23: 8.2 | CN23: 8.2 | CO23: 8.2 | CP23: =IF(OR(ISNUMBER(CL23),ISNUMBER(CM23),ISNUMBER(CN23),ISNUMBER(CO23),ISNUMBER(CG23),ISNUMBER(CK23)),SUM(CL23,CM23,CN23,CO23,('TT 1'!BR24*0.3),(ANNUAL!BR24*0.3)),"") -> 32.8 | CQ23: 41.8 | CR23: 58.3 | CS23: 47.8 | CT23: 32.8 | CU23: 32.8 | CV23: 32.8 | CW23: 32.8 | CX23: 279.1 | CY23: =CX23/'Student Profile'!P24 -> 55.82 | CZ23: 14
A24: =ANNUAL!A26 ->  | B24: =ANNUAL!B26 ->  | C24: =IF('Student Profile'!D25>0,'Student Profile'!D25,"") ->  | D24: =IF(ISNUMBER('UT1'!E26),'UT1'!E26,"") -> 77 | E24: =IF(ISNUMBER('UT 2'!E26),'UT 2'!E26,"") -> 77 | F24: =IF(ISNUMBER('UT 3 '!E26),'UT 3 '!E26,"") -> 77 | G24: =IF('TT 1'!E26>0,'TT 1'!E26,"") -> 52 | H24: =IF('UT 4'!E26>0,'UT 4'!E26,"") -> 77 | I24: =IF('UT 5PB1'!E26>0,'UT 5PB1'!E26,"") -> 77 | J24: =IF('PREANNU PB2 '!E26>0,'PREANNU PB2 '!E26,"") -> 77 | K24: =IF(ANNUAL!E26>0,ANNUAL!E26,"") -> 46 | L24: 7.7 | M24: 7.7 | N24: 7.7 | O24: 7.7 | P24: =IF(OR(ISNUMBER(L24),ISNUMBER(M24),ISNUMBER(N24),ISNUMBER(O24),ISNUMBER(G24),ISNUMBER(K24)),SUM(L24,M24,N24,O24,('TT 1'!D25*0.3),(ANNUAL!D25*0.3)),"") -> 39.8 | Q24: =IF(ISNUMBER('UT1'!H26),'UT1'!H26,"") -> 46 | R24: =IF(ISNUMBER('UT 2'!H26),'UT 2'!H26,"") -> 77 | S24: =IF(ISNUMBER('UT 3 '!H26),'UT 3 '!H26,"") -> 77 | T24: =IF('TT 1'!H26>0,'TT 1'!H26,"") -> 77 | U24: =IF('UT 4'!H26>0,'UT 4'!H26,"") -> 77 | V24: =IF('UT 5PB1'!H26>0,'UT 5PB1'!H26,"") -> 77 | W24: =IF('PREANNU PB2 '!H26>0,'PREANNU PB2 '!H26,"") -> 77 | X24: =IF(ANNUAL!H26>0,ANNUAL!H26,"") -> 77 | Y24: 7.7 | Z24: 7.7 | AA24: 7.7 | AB24: 7.7 | AC24: =IF(OR(ISNUMBER(Y24),ISNUMBER(Z24),ISNUMBER(AA24),ISNUMBER(AB24),ISNUMBER(T24),ISNUMBER(X24)),SUM(Y24,Z24,AA24,AB24,('TT 1'!E25*0.3),(ANNUAL!E25*0.3)),"") -> 62 | AD24: =IF(ISNUMBER('UT1'!K26),'UT1'!K26,"") -> 77 | AE24: =IF(ISNUMBER('UT 2'!K26),'UT 2'!K26,"") -> 77 | AF24: =IF(ISNUMBER('UT 3 '!K26),'UT 3 '!K26,"") -> 77 | AG24: =IF('TT 1'!K26>0,'TT 1'!K26,"") -> 77 | AH24: =IF('UT 4'!K26>0,'UT 4'!K26,"") -> 77 | AI24: =IF('UT 5PB1'!K26>0,'UT 5PB1'!K26,"") -> 77 | AJ24: =IF('PREANNU PB2 '!K26>0,'PREANNU PB2 '!K26,"") -> 77 | AK24: =IF(ANNUAL!K26>0,ANNUAL!K26,"") -> 77 | AL24: 7.7 | AM24: 7.7 | AN24: 7.7 | AO24: 7.7 | AP24: =IF(OR(ISNUMBER(AL24),ISNUMBER(AM24),ISNUMBER(AN24),ISNUMBER(AO24),ISNUMBER(AG24),ISNUMBER(AK24)),SUM(AL24,AM24,AN24,AO24,('TT 1'!R25*0.3),(ANNUAL!R25*0.3)),"") -> 51.2 | AQ24: =IF(ISNUMBER('UT1'!N26),'UT1'!N26,"") -> 77 | AR24: =IF(ISNUMBER('UT 2'!N26),'UT 2'!N26,"") -> 77 | AS24: =IF(ISNUMBER('UT 3 '!N26),'UT 3 '!N26,"") -> 77 | AT24: =IF('TT 1'!N26>0,'TT 1'!N26,"") -> 77 | AU24: =IF('UT 4'!N26>0,'UT 4'!N26,"") -> 77 | AV24: =IF('UT 5PB1'!N26>0,'UT 5PB1'!N26,"") -> 77 | AW24: =IF('PREANNU PB2 '!N26>0,'PREANNU PB2 '!N26,"") -> 77 | AX24: =IF(ANNUAL!N26>0,ANNUAL!N26,"") -> 77 | AY24: 7.7 | AZ24: 7.7 | BA24: 7.7 | BB24: 7.7 | BC24: =IF(OR(ISNUMBER(AY24),ISNUMBER(AZ24),ISNUMBER(BA24),ISNUMBER(BB24),ISNUMBER(AT24),ISNUMBER(AX24)),SUM(AY24,AZ24,BA24,BB24,('TT 1'!AE25*0.3),(ANNUAL!AE25*0.3)),"") -> 30.8 | BD24: =IF(ISNUMBER('UT1'!Q26),'UT1'!Q26,"") -> 77 | BE24: =IF(ISNUMBER('UT 2'!Q26),'UT 2'!Q26,"") -> 77 | BF24: =IF(ISNUMBER('UT 3 '!Q26),'UT 3 '!Q26,"") -> 77 | BG24: =IF('TT 1'!Q26>0,'TT 1'!Q26,"") -> 77 | BH24: =IF('UT 4'!Q26>0,'UT 4'!Q26,"") -> 77 | BI24: =IF('UT 5PB1'!Q26>0,'UT 5PB1'!Q26,"") -> 77 | BJ24: =IF('PREANNU PB2 '!Q26>0,'PREANNU PB2 '!Q26,"") -> 77 | BK24: =IF(ANNUAL!Q26>0,ANNUAL!Q26,"") -> 77 | BL24: 7.7 | BM24: 7.7 | BN24: 7.7 | BO24: 7.7 | BP24: =IF(OR(ISNUMBER(BL24),ISNUMBER(BM24),ISNUMBER(BN24),ISNUMBER(BO24),ISNUMBER(BG24),ISNUMBER(BK24)),SUM(BL24,BM24,BN24,BO24,('TT 1'!AR25*0.3),(ANNUAL!AR25*0.3)),"") -> 30.8 | BQ24: =IF(ISNUMBER('UT1'!T26),'UT1'!T26,"") -> 77 | BR24: =IF(ISNUMBER('UT 2'!T26),'UT 2'!T26,"") -> 77 | BS24: =IF(ISNUMBER('UT 3 '!T26),'UT 3 '!T26,"") -> 77 | BT24: =IF('TT 1'!T26>0,'TT 1'!T26,"") -> 77 | BU24: =IF('UT 4'!T26>0,'UT 4'!T26,"") -> 77 | BV24: =IF('UT 5PB1'!T26>0,'UT 5PB1'!T26,"") -> 77 | BW24: =IF('PREANNU PB2 '!T26>0,'PREANNU PB2 '!T26,"") -> 77 | BX24: =IF(ANNUAL!T26>0,ANNUAL!T26,"") -> 77 | BY24: 7.7 | BZ24: 7.7 | CA24: 7.7 | CB24: 7.7 | CC24: =IF(OR(ISNUMBER(BY24),ISNUMBER(BZ24),ISNUMBER(CA24),ISNUMBER(CB24),ISNUMBER(BT24),ISNUMBER(BX24)),SUM(BY24,BZ24,CA24,CB24,('TT 1'!BE25*0.3),(ANNUAL!BE25*0.3)),"") -> 30.8 | CD24: =IF(ISNUMBER('UT1'!W26),'UT1'!W26,"") -> 77 | CE24: =IF(ISNUMBER('UT 2'!W26),'UT 2'!W26,"") -> 77 | CF24: =IF(ISNUMBER('UT 3 '!W26),'UT 3 '!W26,"") -> 77 | CG24: =IF('TT 1'!W26>0,'TT 1'!W26,"") -> 77 | CH24: =IF('UT 4'!W26>0,'UT 4'!W26,"") -> 77 | CI24: =IF('UT 5PB1'!W26>0,'UT 5PB1'!W26,"") -> 77 | CJ24: =IF('PREANNU PB2 '!W26>0,'PREANNU PB2 '!W26,"") -> 77 | CK24: =IF(ANNUAL!W26>0,ANNUAL!W26,"") -> 77 | CL24: 7.7 | CM24: 7.7 | CN24: 7.7 | CO24: 7.7 | CP24: =IF(OR(ISNUMBER(CL24),ISNUMBER(CM24),ISNUMBER(CN24),ISNUMBER(CO24),ISNUMBER(CG24),ISNUMBER(CK24)),SUM(CL24,CM24,CN24,CO24,('TT 1'!BR25*0.3),(ANNUAL!BR25*0.3)),"") -> 30.8 | CQ24: 39.8 | CR24: 62 | CS24: 51.2 | CT24: 30.8 | CU24: 30.8 | CV24: 30.8 | CW24: 30.8 | CX24: 276.2 | CY24: =CX24/'Student Profile'!P25 -> 55.24 | CZ24: 19
A25: =ANNUAL!A27 ->  | B25: =ANNUAL!B27 ->  | C25: =IF('Student Profile'!D26>0,'Student Profile'!D26,"") ->  | D25: =IF(ISNUMBER('UT1'!E27),'UT1'!E27,"") -> 74 | E25: =IF(ISNUMBER('UT 2'!E27),'UT 2'!E27,"") -> 74 | F25: =IF(ISNUMBER('UT 3 '!E27),'UT 3 '!E27,"") -> 74 | G25: =IF('TT 1'!E27>0,'TT 1'!E27,"") -> 49 | H25: =IF('UT 4'!E27>0,'UT 4'!E27,"") -> 74 | I25: =IF('UT 5PB1'!E27>0,'UT 5PB1'!E27,"") -> 74 | J25: =IF('PREANNU PB2 '!E27>0,'PREANNU PB2 '!E27,"") -> 74 | K25: =IF(ANNUAL!E27>0,ANNUAL!E27,"") -> 44 | L25: 7.4 | M25: 7.4 | N25: 7.4 | O25: 7.4 | P25: =IF(OR(ISNUMBER(L25),ISNUMBER(M25),ISNUMBER(N25),ISNUMBER(O25),ISNUMBER(G25),ISNUMBER(K25)),SUM(L25,M25,N25,O25,('TT 1'!D26*0.3),(ANNUAL!D26*0.3)),"") -> 40.4 | Q25: =IF(ISNUMBER('UT1'!H27),'UT1'!H27,"") -> 44 | R25: =IF(ISNUMBER('UT 2'!H27),'UT 2'!H27,"") -> 74 | S25: =IF(ISNUMBER('UT 3 '!H27),'UT 3 '!H27,"") -> 74 | T25: =IF('TT 1'!H27>0,'TT 1'!H27,"") -> 74 | U25: =IF('UT 4'!H27>0,'UT 4'!H27,"") -> 74 | V25: =IF('UT 5PB1'!H27>0,'UT 5PB1'!H27,"") -> 74 | W25: =IF('PREANNU PB2 '!H27>0,'PREANNU PB2 '!H27,"") -> 74 | X25: =IF(ANNUAL!H27>0,ANNUAL!H27,"") -> 74 | Y25: 7.4 | Z25: 7.4 | AA25: 7.4 | AB25: 7.4 | AC25: =IF(OR(ISNUMBER(Y25),ISNUMBER(Z25),ISNUMBER(AA25),ISNUMBER(AB25),ISNUMBER(T25),ISNUMBER(X25)),SUM(Y25,Z25,AA25,AB25,('TT 1'!E26*0.3),(ANNUAL!E26*0.3)),"") -> 59 | AD25: =IF(ISNUMBER('UT1'!K27),'UT1'!K27,"") -> 74 | AE25: =IF(ISNUMBER('UT 2'!K27),'UT 2'!K27,"") -> 74 | AF25: =IF(ISNUMBER('UT 3 '!K27),'UT 3 '!K27,"") -> 74 | AG25: =IF('TT 1'!K27>0,'TT 1'!K27,"") -> 74 | AH25: =IF('UT 4'!K27>0,'UT 4'!K27,"") -> 74 | AI25: =IF('UT 5PB1'!K27>0,'UT 5PB1'!K27,"") -> 74 | AJ25: =IF('PREANNU PB2 '!K27>0,'PREANNU PB2 '!K27,"") -> 74 | AK25: =IF(ANNUAL!K27>0,ANNUAL!K27,"") -> 74 | AL25: 7.4 | AM25: 7.4 | AN25: 7.4 | AO25: 7.4 | AP25: =IF(OR(ISNUMBER(AL25),ISNUMBER(AM25),ISNUMBER(AN25),ISNUMBER(AO25),ISNUMBER(AG25),ISNUMBER(AK25)),SUM(AL25,AM25,AN25,AO25,('TT 1'!R26*0.3),(ANNUAL!R26*0.3)),"") -> 46.4 | AQ25: =IF(ISNUMBER('UT1'!N27),'UT1'!N27,"") -> 74 | AR25: =IF(ISNUMBER('UT 2'!N27),'UT 2'!N27,"") -> 74 | AS25: =IF(ISNUMBER('UT 3 '!N27),'UT 3 '!N27,"") -> 74 | AT25: =IF('TT 1'!N27>0,'TT 1'!N27,"") -> 74 | AU25: =IF('UT 4'!N27>0,'UT 4'!N27,"") -> 74 | AV25: =IF('UT 5PB1'!N27>0,'UT 5PB1'!N27,"") -> 74 | AW25: =IF('PREANNU PB2 '!N27>0,'PREANNU PB2 '!N27,"") -> 74 | AX25: =IF(ANNUAL!N27>0,ANNUAL!N27,"") -> 74 | AY25: 7.4 | AZ25: 7.4 | BA25: 7.4 | BB25: 7.4 | BC25: =IF(OR(ISNUMBER(AY25),ISNUMBER(AZ25),ISNUMBER(BA25),ISNUMBER(BB25),ISNUMBER(AT25),ISNUMBER(AX25)),SUM(AY25,AZ25,BA25,BB25,('TT 1'!AE26*0.3),(ANNUAL!AE26*0.3)),"") -> 29.6 | BD25: =IF(ISNUMBER('UT1'!Q27),'UT1'!Q27,"") -> 74 | BE25: =IF(ISNUMBER('UT 2'!Q27),'UT 2'!Q27,"") -> 74 | BF25: =IF(ISNUMBER('UT 3 '!Q27),'UT 3 '!Q27,"") -> 74 | BG25: =IF('TT 1'!Q27>0,'TT 1'!Q27,"") -> 74 | BH25: =IF('UT 4'!Q27>0,'UT 4'!Q27,"") -> 74 | BI25: =IF('UT 5PB1'!Q27>0,'UT 5PB1'!Q27,"") -> 74 | BJ25: =IF('PREANNU PB2 '!Q27>0,'PREANNU PB2 '!Q27,"") -> 74 | BK25: =IF(ANNUAL!Q27>0,ANNUAL!Q27,"") -> 74 | BL25: 7.4 | BM25: 7.4 | BN25: 7.4 | BO25: 7.4 | BP25: =IF(OR(ISNUMBER(BL25),ISNUMBER(BM25),ISNUMBER(BN25),ISNUMBER(BO25),ISNUMBER(BG25),ISNUMBER(BK25)),SUM(BL25,BM25,BN25,BO25,('TT 1'!AR26*0.3),(ANNUAL!AR26*0.3)),"") -> 29.6 | BQ25: =IF(ISNUMBER('UT1'!T27),'UT1'!T27,"") -> 74 | BR25: =IF(ISNUMBER('UT 2'!T27),'UT 2'!T27,"") -> 74 | BS25: =IF(ISNUMBER('UT 3 '!T27),'UT 3 '!T27,"") -> 74 | BT25: =IF('TT 1'!T27>0,'TT 1'!T27,"") -> 74 | BU25: =IF('UT 4'!T27>0,'UT 4'!T27,"") -> 74 | BV25: =IF('UT 5PB1'!T27>0,'UT 5PB1'!T27,"") -> 74 | BW25: =IF('PREANNU PB2 '!T27>0,'PREANNU PB2 '!T27,"") -> 74 | BX25: =IF(ANNUAL!T27>0,ANNUAL!T27,"") -> 74 | BY25: 7.4 | BZ25: 7.4 | CA25: 7.4 | CB25: 7.4 | CC25: =IF(OR(ISNUMBER(BY25),ISNUMBER(BZ25),ISNUMBER(CA25),ISNUMBER(CB25),ISNUMBER(BT25),ISNUMBER(BX25)),SUM(BY25,BZ25,CA25,CB25,('TT 1'!BE26*0.3),(ANNUAL!BE26*0.3)),"") -> 29.6 | CD25: =IF(ISNUMBER('UT1'!W27),'UT1'!W27,"") -> 74 | CE25: =IF(ISNUMBER('UT 2'!W27),'UT 2'!W27,"") -> 74 | CF25: =IF(ISNUMBER('UT 3 '!W27),'UT 3 '!W27,"") -> 74 | CG25: =IF('TT 1'!W27>0,'TT 1'!W27,"") -> 74 | CH25: =IF('UT 4'!W27>0,'UT 4'!W27,"") -> 74 | CI25: =IF('UT 5PB1'!W27>0,'UT 5PB1'!W27,"") -> 74 | CJ25: =IF('PREANNU PB2 '!W27>0,'PREANNU PB2 '!W27,"") -> 74 | CK25: =IF(ANNUAL!W27>0,ANNUAL!W27,"") -> 74 | CL25: 7.4 | CM25: 7.4 | CN25: 7.4 | CO25: 7.4 | CP25: =IF(OR(ISNUMBER(CL25),ISNUMBER(CM25),ISNUMBER(CN25),ISNUMBER(CO25),ISNUMBER(CG25),ISNUMBER(CK25)),SUM(CL25,CM25,CN25,CO25,('TT 1'!BR26*0.3),(ANNUAL!BR26*0.3)),"") -> 29.6 | CQ25: 40.4 | CR25: 59 | CS25: 46.4 | CT25: 29.6 | CU25: 29.6 | CV25: 29.6 | CW25: 29.6 | CX25: 264.2 | CY25: =CX25/'Student Profile'!P26 -> 52.84 | CZ25: 24
